Workbook

Sheet Standing Data
A1: Accounts Return March 2016 - Standing Data
A3: Academy Trust company name
D4: Enter company name in the cell above | F4: If the Academy Trust has changed its name in the period please enter the previous name in the cell above
A6: Period end | D6: 2016-03-31
D7: Select from drop-down box in the cell above
A9: Academy UPIN
D10: Enter UPIN or "Multiple" if MAT
A12: Academy Trusts Trading Name | D12: =VLOOKUP(D$9,Reference!O8:P5603,2,FALSE) ->  | AB12: Check for number | AD12: =IF(ISERROR(D9),"XXXXXX",IF(OR(D9="Multiple",D9="000000"),IF(F9<>"",F9,"XXXXXX"),D9)) -> 0
D13: Trading name will populate automatically in the cell above | F13: If pre-populated name is incorrect please enter the correct name in the cell above | AB13: Random numner | AD13: =IF(AD12<>"XXXXXX","",IF(D14<>"Type number here",D14,INT(RAND()*100000000))) -> 
A14: Trust's company number | D14: Type number here
D15: Enter company's registration number in the cell above
A17: Conversion date | D17: =VLOOKUP($D$9,Reference!O8:Q5603,3,FALSE) ->  | AB17: File name to save | AD17: =IF(AD13="",AD12,AD12&" - "&AD13) -> 0
D18: Date will populate automatically in the cell above | F18: If pre-populated date is incorrect please enter the correct date in the cell above
A20: Incorporation date
D21: Enter company's incorporation date in the cell above
A23: Period length
D24: Select from drop-down box in the cell above
A26: Status of the 2015 financial statements' audit opinion | D26: N/A - 31 March
D27: Select from drop-down box in the cell above
A29: Did the Academy Trust submit a EFA financial return as at 31 March 2012 | D29: No
D30: Select from drop-down box in the cell above
A32: Conclusion of 2015 assurance report on regularity | D32: N/A - 31 March
D33: Select from drop-down box in the cell above
A35: Regional Schools Commissioner | D35: =VLOOKUP($D$9,Reference!O8:T5603,6,FALSE) -> 
D36: Region will populate automatically above | F36: If pre-populated region is incorrect please enter the correct region in the cell above
A38: Ex-local authority | D38: =VLOOKUP($D$9,Reference!O8:T5603,4,FALSE) -> 
D39: Local authority will populate automatically above | F39: If pre-populated local authority is incorrect please enter the correct local authority in the cell above
A41: Academy type
D42: Select from drop-down box in the cell above | F42: If 'Other' please enter the correct academy type in the cell above
A44: Multi-academy Trust | D44: =IF(D12="Multi-academy trust","Yes","No") -> 
D45: Trust status will populate automatically above
D47: Multi-academy Trust academy school names | E47: Academy UPIN | F47: Exisiting, newly converted, transferred in or transferred out member | G47: Date joined/left if in period | I47: Correct Academy name
A48: Academies included within this Accounts Return submitted by a Multi-academy Trust | D48: =IFERROR(VLOOKUP(E48,Reference!$O$10:$P$5603,2,FALSE),"") -> 
D49: =IFERROR(VLOOKUP(E49,Reference!$O$10:$P$5603,2,FALSE),"") -> 
D50: =IFERROR(VLOOKUP(E50,Reference!$O$10:$P$5603,2,FALSE),"") -> 
D51: =IFERROR(VLOOKUP(E51,Reference!$O$10:$P$5603,2,FALSE),"") -> 
D52: =IFERROR(VLOOKUP(E52,Reference!$O$10:$P$5603,2,FALSE),"") -> 
D53: =IFERROR(VLOOKUP(E53,Reference!$O$10:$P$5603,2,FALSE),"") -> 
D54: =IFERROR(VLOOKUP(E54,Reference!$O$10:$P$5603,2,FALSE),"") -> 
D55: =IFERROR(VLOOKUP(E55,Reference!$O$10:$P$5603,2,FALSE),"") -> 
D56: =IFERROR(VLOOKUP(E56,Reference!$O$10:$P$5603,2,FALSE),"") -> 
D57: =IFERROR(VLOOKUP(E57,Reference!$O$10:$P$5603,2,FALSE),"") -> 
D58: =IFERROR(VLOOKUP(E58,Reference!$O$10:$P$5603,2,FALSE),"") -> 
D59: =IFERROR(VLOOKUP(E59,Reference!$O$10:$P$5603,2,FALSE),"") -> 
D60: =IFERROR(VLOOKUP(E60,Reference!$O$10:$P$5603,2,FALSE),"") -> 
D61: =IFERROR(VLOOKUP(E61,Reference!$O$10:$P$5603,2,FALSE),"") -> 
D62: =IFERROR(VLOOKUP(E62,Reference!$O$10:$P$5603,2,FALSE),"") -> 
D63: =IFERROR(VLOOKUP(E63,Reference!$O$10:$P$5603,2,FALSE),"") -> 
D64: =IFERROR(VLOOKUP(E64,Reference!$O$10:$P$5603,2,FALSE),"") -> 
D65: =IFERROR(VLOOKUP(E65,Reference!$O$10:$P$5603,2,FALSE),"") -> 
D66: =IFERROR(VLOOKUP(E66,Reference!$O$10:$P$5603,2,FALSE),"") -> 
D67: =IFERROR(VLOOKUP(E67,Reference!$O$10:$P$5603,2,FALSE),"") -> 
D68: =IFERROR(VLOOKUP(E68,Reference!$O$10:$P$5603,2,FALSE),"") -> 
D69: =IFERROR(VLOOKUP(E69,Reference!$O$10:$P$5603,2,FALSE),"") -> 
D70: =IFERROR(VLOOKUP(E70,Reference!$O$10:$P$5603,2,FALSE),"") -> 
D71: =IFERROR(VLOOKUP(E71,Reference!$O$10:$P$5603,2,FALSE),"") -> 
D72: =IFERROR(VLOOKUP(E72,Reference!$O$10:$P$5603,2,FALSE),"") -> 
D73: =IFERROR(VLOOKUP(E73,Reference!$O$10:$P$5603,2,FALSE),"") -> 
D74: =IFERROR(VLOOKUP(E74,Reference!$O$10:$P$5603,2,FALSE),"") -> 
D75: =IFERROR(VLOOKUP(E75,Reference!$O$10:$P$5603,2,FALSE),"") -> 
D76: =IFERROR(VLOOKUP(E76,Reference!$O$10:$P$5603,2,FALSE),"") -> 
D77: =IFERROR(VLOOKUP(E77,Reference!$O$10:$P$5603,2,FALSE),"") -> 
D78: =IFERROR(VLOOKUP(E78,Reference!$O$10:$P$5603,2,FALSE),"") -> 
D79: =IFERROR(VLOOKUP(E79,Reference!$O$10:$P$5603,2,FALSE),"") -> 
D80: =IFERROR(VLOOKUP(E80,Reference!$O$10:$P$5603,2,FALSE),"") -> 
D81: =IFERROR(VLOOKUP(E81,Reference!$O$10:$P$5603,2,FALSE),"") -> 
D82: =IFERROR(VLOOKUP(E82,Reference!$O$10:$P$5603,2,FALSE),"") -> 
D83: =IFERROR(VLOOKUP(E83,Reference!$O$10:$P$5603,2,FALSE),"") -> 
D84: =IFERROR(VLOOKUP(E84,Reference!$O$10:$P$5603,2,FALSE),"") -> 
D85: =IFERROR(VLOOKUP(E85,Reference!$O$10:$P$5603,2,FALSE),"") -> 
D86: =IFERROR(VLOOKUP(E86,Reference!$O$10:$P$5603,2,FALSE),"") -> 
D87: =IFERROR(VLOOKUP(E87,Reference!$O$10:$P$5603,2,FALSE),"") -> 
D88: =IFERROR(VLOOKUP(E88,Reference!$O$10:$P$5603,2,FALSE),"") -> 
D89: =IFERROR(VLOOKUP(E89,Reference!$O$10:$P$5603,2,FALSE),"") -> 
D90: =IFERROR(VLOOKUP(E90,Reference!$O$10:$P$5603,2,FALSE),"") -> 
D91: =IFERROR(VLOOKUP(E91,Reference!$O$10:$P$5603,2,FALSE),"") -> 
D92: =IFERROR(VLOOKUP(E92,Reference!$O$10:$P$5603,2,FALSE),"") -> 
D93: =IFERROR(VLOOKUP(E93,Reference!$O$10:$P$5603,2,FALSE),"") -> 
D94: =IFERROR(VLOOKUP(E94,Reference!$O$10:$P$5603,2,FALSE),"") -> 
D95: =IFERROR(VLOOKUP(E95,Reference!$O$10:$P$5603,2,FALSE),"") -> 
D96: =IFERROR(VLOOKUP(E96,Reference!$O$10:$P$5603,2,FALSE),"") -> 
D97: =IFERROR(VLOOKUP(E97,Reference!$O$10:$P$5603,2,FALSE),"") -> 
D98: =IFERROR(VLOOKUP(E98,Reference!$O$10:$P$5603,2,FALSE),"") -> 
D99: =IFERROR(VLOOKUP(E99,Reference!$O$10:$P$5603,2,FALSE),"") -> 
D100: =IFERROR(VLOOKUP(E100,Reference!$O$10:$P$5603,2,FALSE),"") -> 
D101: =IFERROR(VLOOKUP(E101,Reference!$O$10:$P$5603,2,FALSE),"") -> 
D102: =IFERROR(VLOOKUP(E102,Reference!$O$10:$P$5603,2,FALSE),"") -> 
D103: =IFERROR(VLOOKUP(E103,Reference!$O$10:$P$5603,2,FALSE),"") -> 
D104: =IFERROR(VLOOKUP(E104,Reference!$O$10:$P$5603,2,FALSE),"") -> 
D105: =IFERROR(VLOOKUP(E105,Reference!$O$10:$P$5603,2,FALSE),"") -> 
D106: =IFERROR(VLOOKUP(E106,Reference!$O$10:$P$5603,2,FALSE),"") -> 
D107: =IFERROR(VLOOKUP(E107,Reference!$O$10:$P$5603,2,FALSE),"") -> 
D108: =IFERROR(VLOOKUP(E108,Reference!$O$10:$P$5603,2,FALSE),"") -> 
D109: =IFERROR(VLOOKUP(E109,Reference!$O$10:$P$5603,2,FALSE),"") -> 
D110: =IFERROR(VLOOKUP(E110,Reference!$O$10:$P$5603,2,FALSE),"") -> 
D111: =IFERROR(VLOOKUP(E111,Reference!$O$10:$P$5603,2,FALSE),"") -> 
D112: =IFERROR(VLOOKUP(E112,Reference!$O$10:$P$5603,2,FALSE),"") -> 
D113: =IFERROR(VLOOKUP(E113,Reference!$O$10:$P$5603,2,FALSE),"") -> 
D114: =IFERROR(VLOOKUP(E114,Reference!$O$10:$P$5603,2,FALSE),"") -> 
D115: =IFERROR(VLOOKUP(E115,Reference!$O$10:$P$5603,2,FALSE),"") -> 
D116: =IFERROR(VLOOKUP(E116,Reference!$O$10:$P$5603,2,FALSE),"") -> 
D117: =IFERROR(VLOOKUP(E117,Reference!$O$10:$P$5603,2,FALSE),"") -> 
D118: =IFERROR(VLOOKUP(E118,Reference!$O$10:$P$5603,2,FALSE),"") -> 
D119: =IFERROR(VLOOKUP(E119,Reference!$O$10:$P$5603,2,FALSE),"") -> 
D120: =IFERROR(VLOOKUP(E120,Reference!$O$10:$P$5603,2,FALSE),"") -> 
D121: =IFERROR(VLOOKUP(E121,Reference!$O$10:$P$5603,2,FALSE),"") -> 
D122: =IFERROR(VLOOKUP(E122,Reference!$O$10:$P$5603,2,FALSE),"") -> 
D123: =IFERROR(VLOOKUP(E123,Reference!$O$10:$P$5603,2,FALSE),"") -> 
D124: =IFERROR(VLOOKUP(E124,Reference!$O$10:$P$5603,2,FALSE),"") -> 
D125: =IFERROR(VLOOKUP(E125,Reference!$O$10:$P$5603,2,FALSE),"") -> 
D126: =IFERROR(VLOOKUP(E126,Reference!$O$10:$P$5603,2,FALSE),"") -> 
D127: =IFERROR(VLOOKUP(E127,Reference!$O$10:$P$5603,2,FALSE),"") -> 
D128: =IFERROR(VLOOKUP(E128,Reference!$O$10:$P$5603,2,FALSE),"") -> 
D129: =IFERROR(VLOOKUP(E129,Reference!$O$10:$P$5603,2,FALSE),"") -> 
D130: =IFERROR(VLOOKUP(E130,Reference!$O$10:$P$5603,2,FALSE),"") -> 
D131: =IFERROR(VLOOKUP(E131,Reference!$O$10:$P$5603,2,FALSE),"") -> 
D132: =IFERROR(VLOOKUP(E132,Reference!$O$10:$P$5603,2,FALSE),"") -> 
D133: =IFERROR(VLOOKUP(E133,Reference!$O$10:$P$5603,2,FALSE),"") -> 
D134: =IFERROR(VLOOKUP(E134,Reference!$O$10:$P$5603,2,FALSE),"") -> 
D135: =IFERROR(VLOOKUP(E135,Reference!$O$10:$P$5603,2,FALSE),"") -> 
D136: =IFERROR(VLOOKUP(E136,Reference!$O$10:$P$5603,2,FALSE),"") -> 
D137: =IFERROR(VLOOKUP(E137,Reference!$O$10:$P$5603,2,FALSE),"") -> 
D138: =IFERROR(VLOOKUP(E138,Reference!$O$10:$P$5603,2,FALSE),"") -> 
D139: =IFERROR(VLOOKUP(E139,Reference!$O$10:$P$5603,2,FALSE),"") -> 
D140: =IFERROR(VLOOKUP(E140,Reference!$O$10:$P$5603,2,FALSE),"") -> 
D141: =IFERROR(VLOOKUP(E141,Reference!$O$10:$P$5603,2,FALSE),"") -> 
D142: =IFERROR(VLOOKUP(E142,Reference!$O$10:$P$5603,2,FALSE),"") -> 
D143: =IFERROR(VLOOKUP(E143,Reference!$O$10:$P$5603,2,FALSE),"") -> 
D144: =IFERROR(VLOOKUP(E144,Reference!$O$10:$P$5603,2,FALSE),"") -> 
D145: =IFERROR(VLOOKUP(E145,Reference!$O$10:$P$5603,2,FALSE),"") -> 
D146: =IFERROR(VLOOKUP(E146,Reference!$O$10:$P$5603,2,FALSE),"") -> 
D147: =IFERROR(VLOOKUP(E147,Reference!$O$10:$P$5603,2,FALSE),"") -> 
E148: Please input the academy UPIN | F148: Select from drop-down box in the cells above | I148: If pre-populated name is incorrect please enter the correct name in the cell above
A149: Has the Trust had subsidiaries during the period?
D151: No
A153: Has the subsidiaries tab been completed?
D154: No | F154: =IF(D151="Yes", IF(D154="No","Subsiduaries tab must be completed",""),"") -> 
A156: PREPARER DETAILS
A157: Contact details of person completing the form:
A158: (please enter these details, so EFA can contact you if there are any questions)
A159: Contact Name:
A160: Contact Telephone Number:
A161: Contact E-mail Address:
A163: Professional accounting advisors
D164: Please enter the name of the Trust's accounting advisors, if used, in the cell above
A166: External auditors
D167: Please enter the name of the Trust's external auditors, including office, in the cell above
A169: ACADEMY TRUST DECLARATION
A171: I confirm that those entries in the Accounts Return denoted as:
A172: · Green cells have been prepared on a consistent basis (accounting policies and recognition & valuation criteria) with those policies and criteria that will be used to prepare the academy trust’s full audited statutory financial statements for the period. | H172: Navigation Links & Error Counts
A173: · Amber and red cells have been properly extracted from the academy’s financial records and presented within the Accounts Return in accordance with the guidance notes issued by the Education Funding Agency.
H174: SoFA | I174: =COUNTIF('Fin.Return - SOFA'!D16:J59,"Error*") -> 0 | J174: Balance Sheet | K174: =COUNTIF('Fin.Return - BS'!D16:H58,"Error*") -> 0 | L174: Total Errors | M174: =I176+K176+M176+I178+K178+M178+I180+K180+M180+I174+K174+I182+K182+M182+I184 -> 3
A175: Signed: | B175: Please type name here | H175: SoFA notes
A176: Accounting Officer | H176: Income | I176: =COUNTIF('Fin.Return - SOFA'!D65:J166,"Error*") -> 0 | J176: Expenses | K176: =COUNTIF('Fin.Return - SOFA'!D169:J352,"Error*") -> 0 | L176: Boarding | M176: =COUNTIF('Fin.Return - SOFA'!D354:H414,"Error*") -> 0
H177: Balance sheet notes
A178: E-mail address | B178: Please type e-mail here | H178: Fixed Assets | I178: =COUNTIF('Fin.Return - BS'!D62:P191,"Error*") -> 0 | J178: Current Assets | K178: =COUNTIF('Fin.Return - BS'!D193:M266,"Error*") -> 0 | L178: Liabilities | M178: =COUNTIF('Fin.Return - BS'!D268:K411,"Error*") -> 0
H179: Other Notes
A180: Date: | H180: Funds | I180: =COUNTIF('Fin.Return - Other Notes'!D15:L134,"Error*") -> 0 | J180: Pensions & Commit'ts | K180: =COUNTIF('Fin.Return - Other Notes'!D136:N158,"Error*")+COUNTIF('Fin.Return - Other Notes'!D221:AV264,"Error*")+COUNTIF('Fin.Return - Other Notes'!D345:AV472, "Error*") -> 0 | L180: PFI & Later Notes | M180: =COUNTIF('Fin.Return - Other Notes'!D474:N657,"Error*") -> 3
H181: Other Tabs
H182: Counterparty | I182: =COUNTIF(CoPty.Return!A15:AV221,"Error*") -> 0 | J182: Subsidiaries | K182: =COUNTIF(Subsidiaries!C11:N24,"Error*") -> 0 | L182: Benchmarking | M182: 0
H184: Land and Property | I184: =COUNTIF('Land and Property'!C14:L112,"Error*")+COUNTIF('Land and Property'!K3:K5,"error*") -> 0
B188: Version date | D188: 2016-03-31
D189: v1

Sheet Accountant's Report (hidden)
A1: INDEPENDENT REPORTING ACCOUNTANT’S REPORT ON THE ACCOUNTS RETURN TO [ACADEMY TRUST NAME] FOR THE [YEAR/PERIOD] ENDED 31st AUGUST 2015
A3: We have examined the Accounts Return set out in the attached file, together with the audited statutory financial statements of [academy trust name] for the [period/year] ended 31 August 2015 prepared under section 396 of the Companies Act 2006, and the applicable framework comprising the Charities SORP and the Academies Accounts Direction 2014 to 2015.
A5: This report is made solely to [academy trust name] in accordance with our instructions. Our work has been undertaken so that we might state to [academy trust name] those matters we are required to state to them in an independent reporting accountant’s report and for no other purpose. To the fullest extent permitted by law, we do not accept or assume responsibility to anyone other than [academy trust name], for our work, for this report, or for the conclusions we have drawn.
A7: Respective responsibilities of the [trustees]/[directors] and independent reporting accountant
A9: The [trustees]/[directors] are responsible for preparing the Accounts Return, in accordance with the requirements set out in the guidance notes issued by the Education Funding Agency, and the audited statutory financial statements.
A11: It is our responsibility to report to you our conclusion as to whether:
A12: · information in the Accounts Return marked as ‘sourced directly from financial statements’ is consistent with [academy trust name]’s audited statutory financial statements for the period; and
A13: · other information provided in the Accounts Return has been properly extracted from [academy trust name]’s financial records and presented in the Accounts Return in accordance with the guidance notes issued by the Education Funding Agency.
A15: Scope
A16: As a practising member firm of the [Institute of Chartered Accountants in England and Wales or other relevant accounting body], we are subject to its ethical and other professional requirements which are detailed at [www.icaew.com/en/members/regulations-standards-and-guidance or equivalent link for other bodies].
A18: We have not been instructed to carry out an audit or a review of the Accounts Return or of the underlying accounting records from which the Accounts Return is prepared. For this reason, we have not verified the accuracy or completeness of the accounting records or information and explanations you have given to us. Consequently the procedures undertaken do not provide all the evidence that would be required in an audit and, therefore, we do not express an audit opinion on the information presented in the Accounts Return nor do we express an audit opinion in respect of the underlying accounting records from which the Accounts Return is prepared.
A20: Conclusion
A22: It is our conclusion that the information marked as ‘sourced directly from the financial statements’ in the Accounts Return is consistent with the audited statutory financial statements of [academy trust name] for the [period/year] ended 31 August 2015 and other information provided in the Accounts Return has been properly extracted from [academy trust name]’s financial records and presented in [academy trust name]’s Accounts Return in accordance with the guidance notes issued by the Education Funding Agency.
A25: Auditor LLP
A26: [Office]
A27: [Date]

Sheet Fin.Return - SOFA
A1: Accounts Return March 2016 - Financial Return (Statement of Financial Activity)
A3: Trust: | C3: ='Standing Data'!$D$3 -> 0 | H3: % of cells | I3: Navigation Links & Error Counts
A5: Period end: | C5: ='Standing Data'!$D$6 -> 2016-03-31 | G5: Sourced directly from Financial Statements | H5: =Q13/V13 -> 0.57002457 | I5: SoFA | J5: =COUNTIF(A16:K59,"Error*") -> 0 | K5: Balance Sheet | M5: Notes to the F.S. | N5: =J7+L7+N7+J9+L9+N9+J11+L11+N11 -> 0
A7: Company No.: | C7: ='Standing Data'!D14 -> Type number here | G7: Additional to Financial Statements, prepared on a similar basis | H7: =S13/V13 -> 0.316953317 | I7: Income | J7: =COUNTIF(A66:J167,"Error*") -> 0 | K7: Expenses | L7: =COUNTIF(A169:J352,"Error*") -> 0 | M7: Boarding | N7: =COUNTIF(A354:H414,"Error*") -> 0
A9: Academy UPIN: | C9: =IF(AND(OR('Standing Data'!D9="Multiple",'Standing Data'!D9="Federation"),'Standing Data'!M48=0),'Standing Data'!E48,IF('Standing Data'!M48<>0,'Standing Data'!M48,IF(OR('Standing Data'!D9="Other",'Standing Data'!F9<>""),'Standing Data'!F9,'Standing Data'!D12))) ->  | G9: Additional to Financial Statements, prepared on a different/new basis | H9: =T13/V13 -> 0 | I9: Fixed Assets | K9: Current Assets | M9: Liabilities
C10: Above details will populate automatically
D11: Cells populate automatically from elsewhere in the Return | H11: =U13/V13 -> 0.113022113 | I11: Funds | K11: Pensions & Commit'ts | M11: PFI & Later Notes | Q11: Possible Cells | W11: Completed Cells
A12: FINANCIAL RETURN | D12: Error check cells | F12: HELP | O12: DESTINATION | Q12: Green | R12: Blue | S12: Amber | T12: Red | U12: Grey | V12: Total | W12: Green | X12: Blue | Y12: Amber | Z12: Red | AA12: Grey | AB12: Total
Q13: =SUM(Q14:Q1361) -> 232 | S13: =SUM(S14:S1361) -> 129 | T13: =SUM(T14:T1361) -> 0 | U13: =SUM(U14:U1361) -> 46 | V13: =SUM(Q13:U13) -> 407 | W13: =SUM(W14:W1361) -> 15 | Y13: =SUM(Y14:Y1361) -> 0 | Z13: =SUM(Z14:Z1361) -> 0 | AA13: =SUM(AA14:AA1361) -> 3 | AB13: =SUM(W13:AA13) -> 18
A14: STATEMENT OF FINANCIAL ACTIVITIES
E16: Total | G16: Unrestricted Funds | H16: Restricted Funds | I16: Restricted Fixed Asset Funds | J16: Endowment Funds | L16: Lower limit | M16: Upper limit
E17: £000 | G17: £000 | H17: £000 | I17: £000 | J17: £000 | L17: £000 | M17: £000
A18: Income and Endowments from:
C19: Donations | E19: =SUM(G19:J19) -> 0 | L19: -750000 | M19: 750000 | O19: Consol, SoCNE | Q19: 4 | W19: =COUNTA(G19:J19) -> 0
C20: Transfer on conversion | E20: =SUM(G20:J20) -> 0 | L20: =L19 -> -750000 | M20: =M19 -> 750000 | O20: Consol, SoCNE | Q20: 4 | W20: =COUNTA(G20:J20) -> 0
C21: Transfers on existing academies moving into the trust | E21: =SUM(G21:J21) -> 0 | L21: =L20 -> -750000 | M21: =M20 -> 750000
C22: Activities for generating funds | E22: =SUM(G22:J22) -> 0 | L22: =L20 -> -750000 | M22: =M20 -> 750000 | O22: Consol, SoCNE | Q22: 4 | W22: =COUNTA(G22:J22) -> 0
C23: Investment income | E23: =SUM(G23:J23) -> 0 | L23: =L22 -> -750000 | M23: =M22 -> 750000 | O23: Consol, SoCNE | Q23: 4 | W23: =COUNTA(G23:J23) -> 0
B24: Charitable activities:
C25: Funding for the academy's educational operations | E25: =SUM(G25:J25) -> 0 | L25: =L23 -> -750000 | M25: =M23 -> 750000 | O25: Consol, SoCNE | Q25: 4 | W25: =COUNTA(G25:J25) -> 0
C26: Provision of boarding activities | E26: =SUM(G26:J26) -> 0 | L26: =L25 -> -750000 | M26: =M25 -> 750000 | O26: Consol, SoCNE | Q26: 4 | W26: =COUNTA(G26:J26) -> 0
A28: Total | E28: =SUM(E18:E27) -> 0 | G28: =SUM(G18:G27) -> 0 | H28: =SUM(H18:H27) -> 0 | I28: =SUM(I18:I27) -> 0 | J28: =SUM(J18:J27) -> 0
A29: Expenditure on:
B30: Raising funds:
C31: Costs of generating voluntary income | E31: =SUM(G31:J31) -> 0 | L31: =L26 -> -750000 | M31: =M26 -> 750000 | O31: Consol, SoCNE | Q31: 4 | W31: =COUNTA(G31:J31) -> 0
C32: Transfers on existing academies moving out of the trust | E32: =SUM(G32:J32) -> 0 | L32: =+(L31) -> -750000 | M32: =+(M31) -> 750000
C33: Fund raising income | E33: =SUM(G33:J33) -> 0 | L33: =L31 -> -750000 | M33: =M31 -> 750000 | O33: Consol, SoCNE | Q33: 4 | W33: =COUNTA(G33:J33) -> 0
B34: Charitable activities:
C35: Academy's educational operations | E35: =SUM(G35:J35) -> 0 | L35: =L33 -> -750000 | M35: =M33 -> 750000 | O35: Consol, SoCNE | Q35: 4 | W35: =COUNTA(G35:J35) -> 0
C36: Provision of boarding activities | E36: =SUM(G36:J36) -> 0 | L36: =L35 -> -750000 | M36: =M35 -> 750000 | O36: Consol, SoCNE | Q36: 4 | W36: =COUNTA(G36:J36) -> 0
B37: Governance costs | E37: =SUM(G37:J37) -> 0 | L37: =L36 -> -750000 | M37: =M36 -> 750000 | O37: Consol, SoCNE | Q37: 4 | W37: =COUNTA(G37:J37) -> 0
A39: Total | E39: =SUM(E31:E38) -> 0 | G39: =SUM(G31:G38) -> 0 | H39: =SUM(H31:H38) -> 0 | I39: =SUM(I31:I38) -> 0 | J39: =SUM(J31:J38) -> 0
A40: Net incoming/(outgoing) resources before transfers | E40: =E28-E39 -> 0 | G40: =G28-G39 -> 0 | H40: =H28-H39 -> 0 | I40: =I28-I39 -> 0 | J40: =J28-J39 -> 0
A41: Gross transfers between funds | D41: =IF(E41<>0,"Error - should be nil","") ->  | E41: =SUM(G41:J41) -> 0 | L41: =L37 -> -750000 | M41: =M37 -> 750000 | O41: Consol, SoCNE | Q41: 4 | W41: =COUNTA(G41:J41) -> 0
A43: Net income/(expenditure) for the period | E43: =SUM(E40:E41) -> 0 | G43: =SUM(G40:G41) -> 0 | H43: =SUM(H40:H41) -> 0 | I43: =SUM(I40:I41) -> 0 | J43: =SUM(J40:J41) -> 0
A44: OTHER RECOGNISED GAINS AND LOSSES
B45: Actuarial gains/(losses) on defined benefit pension schemes | D45: =IF(E45<>'Fin.Return - Other Notes'!E174,"Error - imbalance with note","") ->  | E45: =SUM(G45:H45) -> 0 | L45: =L41 -> -750000 | M45: =M41 -> 750000 | O45: Consol, SoCNE | Q45: 2 | W45: =COUNTA(G45:H45) -> 0
B46: Valuation gains/(losses) on tangible and intangible fixed assets | D46: =IF(E46<>('Fin.Return - BS'!E74+'Fin.Return - BS'!E84+'Fin.Return - BS'!E134-'Fin.Return - BS'!E144),"Error - not equal to tangible and intangible fixed asset notes","") ->  | E46: =SUM(G46:J46) -> 0 | L46: =L45 -> -750000 | M46: 750000 | O46: Consol, SoCNE | Q46: 4 | W46: =COUNTA(G46:J46) -> 0
B47: Valuation gains/(losses) on investment portfolio | D47: =IF(E47<>('Fin.Return - BS'!E251+'Fin.Return - BS'!E182),"Error - not equal to fixed and current assets investment notes","") ->  | E47: =SUM(G47:J47) -> 0 | L47: -750000 | M47: 750000 | O47: Consol, SoCNE | Q47: 4 | W47: =COUNTA(G47:J47) -> 0
B48: Other | E48: =SUM(G48:J48) -> 0 | L48: -750000 | M48: 750000 | Q48: 4 | W48: =COUNTA(G48:J48) -> 0
A50: NET MOVEMENT IN FUNDS | E50: =SUM(E43:E49) -> 0 | G50: =SUM(G43:G49) -> 0 | H50: =SUM(H43:H49) -> 0 | I50: =SUM(I43:I49) -> 0 | J50: =SUM(J43:J49) -> 0
A51: RECONCILIATION OF FUNDS
B52: Funds brought forward | E52: =SUM(G52:J52) -> 0 | G52: ='Fin.Return - BS'!E406 -> 0 | H52: ='Fin.Return - BS'!E390 -> 0 | I52: ='Fin.Return - BS'!E401 -> 0 | J52: ='Fin.Return - BS'!E404 -> 0 | L52: =L48 -> -750000 | M52: =M48 -> 750000 | O52: Consol, SoCNE | Q52: 0 | U52: 4 | W52: =COUNTA(G52:J52) -> 4
B53: Funds obtained on conversion | E53: =SUM(G53:J53) -> 0 | L53: =L52 -> -750000 | M53: 750000 | O53: Consol, SoCNE | Q53: 4 | W53: =COUNTA(G53:J53) -> 0
B54: Funds obtained on existing academies transfering into the trust | E54: =SUM(G54:J54) -> 0 | L54: -750000 | M54: 750000 | Q54: 4 | W54: =COUNTA(G54:J54) -> 0
B55: Funds disposed of on existing academies transferring out of the trust | E55: =SUM(G55:J55) -> 0 | L55: -750000 | M55: 750000 | Q55: 4 | W55: 0
B56: Net movement in funds | E56: =SUM(G56:J56) -> 0 | G56: =G50 -> 0 | H56: =H50 -> 0 | I56: =I50 -> 0 | J56: =J50 -> 0
B58: Funds carried forward | D58: =IF(E58<>'Fin.Return - BS'!G57,"Error - with BS","") ->  | E58: =SUM(E52:E57) -> 0 | G58: =SUM(G52:G57) -> 0 | H58: =SUM(H52:H57) -> 0 | I58: =SUM(I52:I57) -> 0 | J58: =SUM(J52:J57) -> 0
G59: =IF(G58<>'Fin.Return - BS'!G55,"Error - with BS","") ->  | H59: =IF(H58<>SUM('Fin.Return - BS'!G48:G49),"Error - with BS","") ->  | I59: =IF(I58<>'Fin.Return - BS'!G47,"Error - with BS","") ->  | J59: =IF(J58<>'Fin.Return - BS'!G45,"Error - with BS","") -> 
A62: NOTES TO THE STATEMENT OF FINANCIAL ACTIVITIES
A66: DONATIONS | E66: Total | G66: Unrestricted Funds | H66: Restricted Funds (including Fixed Assets) | I66: Endowment Funds | K66: Lower limit | L66: Upper limit
A67: SoFA | E67: £000 | G67: £000 | H67: £000 | I67: £000 | K67: £000 | L67: £000
B68: Donated fixed assets (non-EFA) | D68: ='Fin.Return - BS'!D70 ->  | E68: =SUM(G68:I68) -> 0 | K68: =$L$19 -> -750000 | L68: =$M$19 -> 750000 | O68: Consol, EFA/DfE SoCNE | Q68: 3 | W68: =COUNTA(G68:I68) -> 0
B69: Fixed assets donated by the EFA | D69: ='Fin.Return - BS'!D71 ->  | E69: =SUM(G69:I69) -> 0 | K69: =$L$19 -> -750000 | L69: =$M$19 -> 750000
B70: Private sponsorship | E70: =SUM(G70:I70) -> 0 | K70: =K68 -> -750000 | L70: =L68 -> 750000 | O70: Consol, EFA/DfE SoCNE | Q70: 3 | W70: =COUNTA(G70:I70) -> 0
B71: Other donations | E71: =SUM(G71:I71) -> 0 | K71: =K70 -> -750000 | L71: =L70 -> 750000 | O71: Consol, EFA/DfE SoCNE | Q71: 3 | W71: =COUNTA(G71:I71) -> 0
D73: =IF(E73<>SUM(E68:E72),"Error - column does not cast","") ->  | E73: =E19 -> 0 | G73: =G19 -> 0 | H73: =SUM(H19:I19) -> 0 | I73: =J19 -> 0 | U73: 4 | AA73: =COUNTIF(G73:I73,"<>0")+COUNTIF(E73:E73,"<>0") -> 0
D74: =IF(E73<>E19,"Error - Total does not agree to SOFA donations","") ->  | G74: =IF(G73<>SUM(G68:G72),"Error - column does not cast","") ->  | H74: =IF(H73<>SUM(H68:H72),"Error - column does not cast","") ->  | I74: =IF(I73<>SUM(I68:I72),"Error - column does not cast","") -> 
G75: =IF(G74<>"","Error - Total does not agree to SOFA donations","") ->  | H75: =IF(H73<>(H19+I19),"Error - Total does not agree to SOFA donations","") ->  | I75: =IF(I74<>"","Error - Total does not agree to SOFA donations","") -> 
A77: ACTIVITIES FOR GENERATING FUNDS | E77: Total | G77: Unrestricted Funds | H77: Restricted Funds (including Fixed Assets) | I77: Endowment Funds | K77: Lower limit | L77: Upper limit
A78: SoFA | E78: £000 | G78: £000 | H78: £000 | I78: £000 | K78: £000 | L78: £000
B79: Hire of facilities | E79: =SUM(G79:I79) -> 0 | K79: =$L$19 -> -750000 | L79: =$M$19 -> 750000 | O79: Consol, EFA/DfE SoCNE | Q79: 3 | W79: =COUNTA(G79:I79) -> 0
B80: Catering income | E80: 0 | K80: =K79 -> -750000 | L80: 750000 | O80: Consol, EFA/DfE SoCNE | Q80: 3 | W80: =COUNTA(G80:I80) -> 0
B81: Rental income | E81: 0 | K81: -750000 | L81: 750000 | O81: Consol, EFA/DfE SoCNE | Q81: 3 | W81: =COUNTA(G81:I81) -> 0
B82: Receipts from supply teacher insurance claims | E82: 0 | K82: -750000 | L82: 750000 | S82: 3
B83: Risk Protection Arrangement Claims | E83: 0 | K83: -750000 | L83: 750000
B84: Other | E84: 0 | K84: =K82 -> -750000 | L84: =L82 -> 750000 | O84: Consol, EFA/DfE SoCNE | S84: 3 | W84: =COUNTA(G84:I84) -> 0
D86: =IF(E86<>SUM(E79:E85),"Error - column does not cast","") ->  | E86: =E22 -> 0 | G86: =G22 -> 0 | H86: =SUM(H22:I22) -> 0 | I86: =J22 -> 0 | U86: 4 | AA86: =COUNTIF(G86:I86,"<>0")+COUNTIF(E86:E86,"<>0") -> 0
D87: =IF(D86<>"","Total does not agree SOFA AFGF","") ->  | G87: =IF(G86<>SUM(G79:G85),"Error - column does not cast","") ->  | H87: =IF(H86<>SUM(H79:H85),"Error - column does not cast","") ->  | I87: =IF(I86<>SUM(I79:I85),"Error - column does not cast","") -> 
G88: =IF(G87<>"","Error -Total does not agree to SOFA AFGF","") ->  | H88: =IF(H87<>"","Error - Total does not agree to SOFA AFGF","") ->  | I88: =IF(I87<>"","Error - Total does not agree to SOFA AFGF","") -> 
A90: INVESTMENT INCOME | E90: Total | G90: Unrestricted Funds | H90: Restricted Funds (including Fixed Assets) | I90: Endowment Funds | K90: Lower limit | L90: Upper limit
A91: SoFA | E91: £000 | G91: £000 | H91: £000 | I91: £000 | K91: £000 | L91: £000
B92: Short-term deposits | E92: =SUM(G92:I92) -> 0 | K92: =$L$19 -> -750000 | L92: =$M$19 -> 750000 | O92: Consol, EFA/DfE SoCNE | Q92: 3 | W92: =COUNTA(G92:I92) -> 0
B93: Interest | E93: =SUM(G93:I93) -> 0 | K93: =K92 -> -750000 | L93: 750000 | O93: Consol, EFA/DfE SoCNE | Q93: 3 | W93: =COUNTA(G93:I93) -> 0
B94: Dividend income | E94: =SUM(G94:I94) -> 0 | K94: -750000 | L94: 750000 | Q94: 3
B95: Other | E95: =SUM(G95:I95) -> 0 | K95: -750000 | L95: 750000 | O95: Consol, EFA/DfE SoCNE | Q95: 3 | W95: =COUNTA(G95:I95) -> 0
D97: =IF(E97<>SUM(E92:E96),"Error - column does not cast","") ->  | E97: =E23 -> 0 | G97: =G23 -> 0 | H97: =SUM(H23:I23) -> 0 | I97: =J23 -> 0 | U97: 4 | AA97: =COUNTIF(G97:I97,"<>0")+COUNTIF(E97:E97,"<>0") -> 0
D98: =IF(D97<>"","Error - Total does not agree to SOFA Inv Inc","") ->  | G98: =IF(G97<>SUM(G92:G96),"Error - column does not cast","") ->  | H98: =IF(H97<>SUM(H92:H96),"Error - column does not cast","") ->  | I98: =IF(I97<>SUM(I92:I96),"Error - column does not cast","") -> 
G99: =IF(G98<>"","Error - Total does not agree to SOFA Inv Inc","") ->  | H99: =IF(H98<>"","Error - Total does not agree to SOFA Inv Inc","") ->  | I99: =IF(I98<>"","Error - Total does not agree to SOFA Inv Inc","") -> 
A101: FUNDING FOR ACADEMY'S EDUCATIONAL OPERATIONS | D101: Notes | E101: Total | G101: Unrestricted Funds | H101: Restricted Funds (including Fixed Assets) | J101: Lower limit | K101: Upper limit
A102: SoFA | E102: £000 | G102: £000 | H102: £000 | J102: £000 | K102: £000
B103: EFA Grants
C104: Revenue Grants
C105: 20% Rates Relief | E105: =SUM(G105:H105) -> 0 | J105: =$L$19 -> -750000 | K105: =$M$19 -> 750000 | O105: Consol, EFA/DfE SoCNE | S105: 2 | Y105: =COUNTA(G105:H105) -> 0
C106: Pupil Led Factors | E106: 0 | J106: =J105 -> -750000 | K106: =K105 -> 750000 | O106: Consol, EFA/DfE SoCNE | S106: 2 | Y106: 0
C107: Academy Post 16 Bursary Funding | E107: 0 | J107: =(J106) -> -750000 | K107: =(K106) -> 750000 | O107: Consol, EFA/DfE SoCNE | S107: 2 | Y107: 0
C108: Education Services Grant | E108: 0 | J108: -750000 | K108: 750000 | O108: Consol, EFA/DfE SoCNE | S108: 2 | Y108: 0
C109: Pupil Premium | E109: 0 | J109: =(J108) -> -750000 | K109: =(K108) -> 750000 | S109: 2 | Y109: 0
C110: Start-up Grant A | E110: 0 | J110: -750000 | K110: 750000 | O110: Consol, EFA/DfE SoCNE | S110: 2 | Y110: 0
C111: Start-up Grant B | E111: 0 | J111: -750000 | K111: 750000 | O111: Consol, EFA/DfE SoCNE | S111: 2 | Y111: 0
C112: Insurance | E112: 0 | J112: -750000 | K112: 750000 | O112: Consol, EFA/DfE SoCNE | S112: 2 | Y112: 0
C113: Other Mainstream Grants | E113: 0 | J113: -750000 | K113: 750000 | O113: Consol, EFA/DfE SoCNE | S113: 2 | Y113: 0
C114: Other | E114: 0 | J114: -750000 | K114: 750000 | O114: Consol, EFA/DfE SoCNE | S114: 2 | Y114: 0
C116: Capital Grants
C117: 16-19 Demographic Growth Capital Fund | E117: =SUM(G117:H117) -> 0 | J117: =J114 -> -750000 | K117: =K114 -> 750000 | S117: 2 | Y117: =COUNTA(G117:H117) -> 0
C118: Devolved Formula Capital for Young People Aged Under 16 yrs | E118: 0 | J118: =J117 -> -750000 | K118: 750000 | S118: 2 | Y118: 0
C119: Centrally Managed Programme - Framework Academies | E119: 0 | J119: -750000 | K119: 750000 | S119: 2 | Y119: 0
C120: Centrally Managed Programme - BSF Legacy Academies | E120: 0 | J120: -750000 | K120: 750000 | S120: 2 | Y120: 0
C121: Centrally Managed Programme - Free Schools | E121: 0 | J121: -750000 | K121: 750000 | S121: 2 | Y121: 0
C122: Devolved Programmes - Academies Capital Maintenance | E122: 0 | J122: -750000 | K122: 750000 | S122: 2 | Y122: 0
C123: Continuing Commitments - Building Schools for the Future | E123: 0 | J123: -750000 | K123: 750000 | S123: 2 | Y123: 0
C124: Other | E124: 0 | J124: -750000 | K124: 750000 | S124: 2 | Y124: 0
E126: =SUM(E105:E125) -> 0 | G126: =SUM(G105:G125) -> 0 | H126: =SUM(H105:H125) -> 0
B127: DfE Family Revenue Grants:
C128: Department for Education (DfE) | E128: =SUM(G128:H128) -> 0 | J128: =J124 -> -750000 | K128: =K124 -> 750000 | O128: Consol, EFA/DfE SoCNE | S128: 2 | Y128: =COUNTA(G128:H128) -> 0
C129: Teaching Agency (TA) | E129: 0 | J129: =+(J128) -> -750000 | K129: 750000 | O129: Consol, EFA/DfE SoCNE | S129: 2 | Y129: 0
C130: National College for Teaching and Leadership (NCTL) | E130: 0 | J130: -750000 | K130: 750000 | O130: Consol, EFA/DfE SoCNE | S130: 2 | Y130: 0
C131: Standards and Testing Agency (STA) | E131: 0 | J131: -750000 | K131: 750000 | O131: Consol, EFA/DfE SoCNE | S131: 2 | Y131: 0
C132: Equality and Human Rights Commission (EHRC) | E132: 0 | J132: -750000 | K132: 750000 | O132: Consol, EFA/DfE SoCNE | S132: 2 | Y132: 0
C133: Office of the Children's Commissioner (OCC) | E133: 0 | J133: -750000 | K133: 750000 | O133: Consol, EFA/DfE SoCNE | S133: 2 | Y133: 0
E135: =SUM(E128:E134) -> 0 | G135: =SUM(G128:G134) -> 0 | H135: =SUM(H128:H134) -> 0
B136: DfE Family Capital Grants
C137: DfE | E137: =SUM(G137:H137) -> 0 | J137: =J133 -> -750000 | K137: =K133 -> 750000 | O137: Consol, EFA/DfE SoCNE | S137: 2 | Y137: =COUNTA(G137:H137) -> 0
C138: TA | E138: 0 | J138: =+(J137) -> -750000 | K138: =+(K137) -> 750000 | O138: Consol, EFA/DfE SoCNE | S138: 2 | Y138: 0
C139: NCTL | E139: 0 | J139: =(J138) -> -750000 | K139: 750000 | O139: Consol, EFA/DfE SoCNE | S139: 2 | Y139: 0
C140: STA | E140: 0 | J140: -750000 | K140: 750000 | O140: Consol, EFA/DfE SoCNE | S140: 2 | Y140: 0
C141: EHRC | E141: 0 | J141: -750000 | K141: 750000 | O141: Consol, EFA/DfE SoCNE | S141: 2 | Y141: 0
C142: OCC | E142: 0 | J142: -750000 | K142: 750000 | O142: Consol, EFA/DfE SoCNE | S142: 2 | Y142: 0
E144: =SUM(E137:E143) -> 0 | G144: =SUM(G137:G143) -> 0 | H144: =SUM(H137:H143) -> 0
B145: Local Authority Grants | Y145: =COUNTA(G145:H145) -> 0
C146: SEN | E146: =SUM(G146:H146) -> 0 | J146: =(J142) -> -750000 | K146: =(K142) -> 750000 | S146: 2 | Y146: =COUNTA(G146:H146) -> 0
C147: Other Revenue | E147: =SUM(G147:H147) -> 0 | J147: =(J146) -> -750000 | K147: =(K146) -> 750000 | S147: 2 | Y147: =COUNTA(G147:H147) -> 0
C148: Capital | E148: =SUM(G148:H148) -> 0 | J148: =(J147) -> -750000 | K148: =(K147) -> 750000 | S148: 2 | Y148: =COUNTA(G148:H148) -> 0
E150: =SUM(E146:E149) -> 0 | G150: =SUM(G146:G149) -> 0 | H150: 0
B152: Other Government Grants
C153: Revenue | E153: =SUM(G153:H153) -> 0 | J153: =J142 -> -750000 | K153: =K142 -> 750000 | O153: Consol, EFA/DfE SoCNE | Q153: 2 | W153: =COUNTA(G153:H153) -> 0
C154: Capital | E154: =SUM(G154:H154) -> 0 | J154: =J153 -> -750000 | K154: =K153 -> 750000 | O154: Consol, EFA/DfE SoCNE | Q154: 2 | W154: =COUNTA(G154:H154) -> 0
E156: =SUM(E153:E155) -> 0 | G156: =SUM(G153:G155) -> 0 | H156: =SUM(H153:H155) -> 0
B157: Other Income | O157: Consol, EFA/DfE SoCNE
C158: Government sources (non-grant) | E158: =SUM(G158:H158) -> 0 | J158: =J154 -> -750000 | K158: =K154 -> 750000 | Q158: 2 | W158: =COUNTA(G158:H158) -> 0
C159: Academies | E159: =SUM(G159:H159) -> 0 | J159: =J158 -> -750000 | K159: =K158 -> 750000 | Q159: 2 | W159: =COUNTA(G159:H159) -> 0
C160: Non-Government - Revenue | E160: =SUM(G160:H160) -> 0 | J160: =J159 -> -750000 | K160: =K159 -> 750000 | Q160: 2 | W160: =COUNTA(G160:H160) -> 0
C161: Non-Government - Capital | E161: =SUM(G161:H161) -> 0 | J161: =J159 -> -750000 | K161: =K159 -> 750000 | Q161: 2 | W161: =COUNTA(G161:H161) -> 0
E163: =SUM(E158:E162) -> 0 | G163: =SUM(G158:G162) -> 0 | H163: =SUM(H158:H162) -> 0
D165: =IF(E165<>(E126+E135+E144+E156+E163+E150),"Error - column does not cast","") ->  | E165: =E25 -> 0 | G165: =G25 -> 0 | H165: =SUM(H25:I25) -> 0 | U165: 3 | AA165: =COUNTIF(G165:H165,"<>0")+COUNTIF(E165:E165,"<>0") -> 0
D166: =IF(D165<>"","Error - Total does not agree with SOFA AEO","") ->  | G166: =IF(G165<>(G126+G135+G144+G156+G163+G150),"Error - column does not cast","") ->  | H166: =IF(H165<>(H126+H135+H144+H156+H163+H150),"Error - column does not cast","") -> 
G167: =IF(G166<>"","Error - Total does not agree with SOFA AEO","") ->  | H167: =IF(H166<>"","Error - Total does not agree with SOFA AEO","") -> 
A169: EXPENDITURE | D169: Notes | E169: Total | G169: Pay Costs | H169: Premises | I169: Other Costs | K169: Lower limit | L169: Upper limit
A170: SoFA | E170: £000 | G170: £000 | H170: £000 | I170: £000 | K170: £000 | L170: £000
B171: Costs of generating voluntary income | D171: =IF(E171<>SUM(G171:I171),"Error - row does not cross cast","") ->  | E171: =E206 -> 0 | G171: =+(E200) -> 0 | K171: =$L$19 -> -750000 | L171: =$M$19 -> 750000 | O171: Consol, EFA/DfE SoCNE | Q171: 2 | U171: 2 | W171: =COUNTA(H171:I171) -> 0 | AA171: =COUNTA(G171) -> 1
B172: Costs of activities for generating funds | D172: =IF(E172<>SUM(G172:I172),"Error - row does not cross cast","") ->  | E172: =E33 -> 0 | K172: =K171 -> -750000 | L172: =L171 -> 750000 | O172: Consol, EFA/DfE SoCNE | Q172: 3 | U172: 1 | W172: =COUNTA(G172:I172) -> 0 | AA172: =COUNTIF(E172:E172,"<>0") -> 0
B173: Academy's educational operations:
C174: Direct costs | D174: =IF(E174<>SUM(G174:I174),"Error - row does not cross cast","") ->  | E174: =E225 -> 0 | G174: =+(E212) -> 0 | K174: =K172 -> -750000 | L174: =L172 -> 750000 | O174: Consol, EFA/DfE SoCNE | Q174: 2 | U174: 2 | W174: =COUNTA(H174:I174) -> 0 | AA174: =COUNTA(G174) -> 1
C175: Allocated support costs | D175: =IF(E175<>SUM(G175:I175),"Error - row does not cross cast","") ->  | E175: =E259 -> 0 | G175: =+(E227) -> 0 | K175: =K174 -> -750000 | L175: =L174 -> 750000 | O175: Consol, EFA/DfE SoCNE | Q175: 2 | U175: 2 | W175: =COUNTA(H175:I175) -> 0 | AA175: =COUNTA(G175) -> 1
D177: =IF(E177<>SUM(G177:I177),"Error - row does not cross cast","") ->  | E177: =SUM(E171:E176) -> 0 | G177: =SUM(G171:G176) -> 0 | H177: =SUM(H171:H176) -> 0 | I177: =SUM(I171:I176) -> 0
B178: Governance costs including allocated support costs | D178: =IF(E178<>SUM(G178:I178),"Error - row does not cross cast","") ->  | E178: =E283 -> 0 | G178: =+E276 -> 0 | K178: =K175 -> -750000 | L178: =L175 -> 750000 | O178: Consol, EFA/DfE SoCNE | Q178: 2 | U178: 2 | W178: =COUNTA(G178:I178) -> 1 | AA178: =COUNTIF(E178:E178,"<>0") -> 0
B179: Provision of boarding activities | D179: =IF(E179<>SUM(G179:I179),"Error - row does not cross cast","") ->  | E179: =-E380-E400 -> 0 | G179: =-E374-E382 -> 0 | K179: =K178 -> -750000 | L179: =L178 -> 750000 | S179: 2 | U179: 2 | Y179: =COUNTA(H179:I179) -> 0 | AA179: =COUNTIF(E179:E179,"<>0") -> 0
E181: =SUM(E177:E180) -> 0 | G181: =SUM(G177:G180) -> 0 | H181: =SUM(H177:H180) -> 0 | I181: =SUM(I177:I180) -> 0
B183: (Incoming)/outgoing resources for the year include:
C184: Operating leases:
C185: Land and buildings | E185: =E237-E385 -> 0 | O185: Consol, EFA/DfE SoCNE | U185: 1 | AA185: =COUNTIF(E185:E185,"<>0") -> 0
C186: Other | E186: =E236-E384 -> 0 | O186: Consol, EFA/DfE SoCNE | U186: 1 | AA186: =COUNTIF(E186:E186,"<>0") -> 0
C187: Depreciation | D187: =IF(E187<>-'Fin.Return - BS'!E81,"Error - imbalance with FA note","") ->  | E187: =E201+E213+E229+E267-E391 -> 0 | O187: Consol, EFA/DfE SoCNE | U187: 1 | AA187: =COUNTIF(E187:E187,"<>0") -> 0
C188: Amortisation | D188: =IF(E188<>-'Fin.Return - BS'!E141,"Error - imbalance with FA note","") ->  | E188: =E202+E214+E230+E268-E392 -> 0 | O188: Consol, EFA/DfE SoCNE | U188: 1 | AA188: =COUNTIF(E188:E188,"<>0") -> 0
C189: Impairment | D189: =IF(E189<>-(SUM('Fin.Return - BS'!E91:E92)+SUM('Fin.Return - BS'!E151:E152)),"Error - imbalance with FA note","") ->  | E189: =E203+E215+E231+E269-E393 -> 0 | O189: Consol, EFA/DfE SoCNE | U189: 1 | AA189: =COUNTIF(E189:E189,"<>0") -> 0
C190: Fees payable to auditors:
C191: Audit | E191: =E271 -> 0 | O191: Consol, EFA/DfE SoCNE | U191: 1 | AA191: =COUNTIF(E191:E191,"<>0") -> 0
C192: Other services | E192: =E272 -> 0 | O192: Consol, EFA/DfE SoCNE | U192: 1 | AA192: =COUNTIF(E192:E192,"<>0") -> 0
C193: (Gain)/loss on disposal of tangible fixed assets | E193: =E254+E273-E395 -> 0 | O193: Consol, EFA/DfE SoCNE | U193: 1 | AA193: =COUNTIF(E193:E193,"<>0") -> 0
C194: (Gain)/loss on disposal of intangible fixed assets | E194: =E255+E274-E396 -> 0 | O194: Consol, EFA/DfE SoCNE | U194: 1 | AA194: =COUNTIF(E194:E194,"<>0") -> 0
C195: (Gain)/loss on disposal of investments | E195: =E256+E275-E397 -> 0 | O195: Consol, EFA/DfE SoCNE | U195: 1 | AA195: =COUNTIF(E195:E195,"<>0") -> 0
A198: COSTS OF GENERATING VOLUNTARY INCOME | E198: Total | G198: Lower limit | H198: Upper limit
A199: SoFA | E199: £000 | G199: £000 | H199: £000
B200: Pay costs | G200: =$L$19 -> -750000 | H200: =$M$19 -> 750000 | Q200: 1 | W200: =COUNTA(E200:E200) -> 0
B201: Depreciation | D201: =D187 ->  | G201: =(G200) -> -750000 | H201: =(H200) -> 750000 | Q201: 1 | W201: 0
B202: Amortisation | D202: =D188 ->  | G202: =G201 -> -750000 | H202: 750000 | Q202: 1 | W202: 0
B203: Impairment | D203: =D189 ->  | G203: -750000 | H203: 750000 | Q203: 1 | W203: 0
B204: Other | G204: -750000 | H204: 750000 | Q204: 1 | W204: 0
D206: =IF(E206<>SUM(E200:E205),"Error - column does not cast","") ->  | E206: =E31 -> 0 | U206: 1 | AA206: =COUNTIF(E206:E206,"<>0") -> 0
D207: =IF(D206<>"","Error - Total does not agree with SOFA GVI","") -> 
A209: CHARITABLE ACTIVITIES - ACADEMY'S EDUCATIONAL OPERATIONS | E209: Total | G209: Lower limit | H209: Upper limit
A210: SoFA | E210: £000 | G210: £000 | H210: £000
B211: Direct costs
C212: Teaching and educational support staff pay costs | G212: =$L$19 -> -750000 | H212: =$M$19 -> 750000 | O212: Consol, EFA/DfE SoCNE | Q212: 1 | W212: =COUNTA(E212:E212) -> 0
C213: Depreciation | D213: =D187 ->  | G213: =G212 -> -750000 | H213: =H212 -> 750000 | O213: Consol, EFA/DfE SoCNE | Q213: 1 | W213: 0
C214: Amortisation | D214: =D188 ->  | G214: =G213 -> -750000 | H214: 750000 | O214: Consol, EFA/DfE SoCNE | Q214: 1 | W214: 0
C215: Impairment | D215: =D189 ->  | G215: -750000 | H215: 750000 | O215: Consol, EFA/DfE SoCNE | Q215: 1 | W215: 0
C216: Educational supplies | G216: -750000 | H216: 750000 | O216: Consol, EFA/DfE SoCNE | Q216: 1 | W216: 0
C217: Examination fees | G217: -750000 | H217: 750000 | O217: Consol, EFA/DfE SoCNE | Q217: 1 | W217: 0
C218: Staff development | G218: -750000 | H218: 750000 | O218: Consol, EFA/DfE SoCNE | Q218: 1 | W218: 0
C219: Staff related insurance | G219: -750000 | H219: 750000 | S219: 1
C220: Technology costs | G220: =G218 -> -750000 | H220: =H218 -> 750000 | O220: Consol, EFA/DfE SoCNE | Q220: 1 | W220: =COUNTA(E220:E220) -> 0
C221: Educational consultancy | G221: =G220 -> -750000 | H221: 750000 | O221: Consol, EFA/DfE SoCNE | Q221: 1 | W221: =COUNTA(E221:E221) -> 0
C222: Travel and subsistence | D222: Notes | G222: -750000 | H222: 750000 | O222: Consol, EFA/DfE SoCNE | S222: 1 | Y222: =COUNTA(E222:E222) -> 0
C223: Other direct costs | G223: -750000 | H223: 750000 | O223: Consol, EFA/DfE SoCNE | S223: 1 | Y223: =COUNTA(E223:E223) -> 0
E225: =SUM(E212:E224) -> 0
B226: Allocated support costs
C227: Support staff pay costs | G227: =G223 -> -750000 | H227: =H223 -> 750000 | O227: Consol, EFA/DfE SoCNE | Q227: 1 | W227: =COUNTA(E227:E227) -> 0
C228: Supply teacher insurance | G228: =G227 -> -750000 | H228: =H227 -> 750000 | O228: Consol, EFA/DfE SoCNE | S228: 1
C229: Depreciation | D229: =D187 ->  | G229: =G227 -> -750000 | H229: =H227 -> 750000 | O229: Consol, EFA/DfE SoCNE | Q229: 1 | W229: =COUNTA(E229:E229) -> 0
C230: Amortisation | D230: =D188 ->  | G230: =G229 -> -750000 | H230: =H229 -> 750000 | O230: Consol, EFA/DfE SoCNE | Q230: 1 | W230: =COUNTA(E230:E230) -> 0
C231: Impairment | D231: =D189 ->  | G231: -750000 | H231: 750000 | O231: Consol, EFA/DfE SoCNE | Q231: 1 | W231: =COUNTA(E231:E231) -> 0
C232: Recruitment and support | G232: -750000 | H232: 750000 | O232: Consol, EFA/DfE SoCNE | Q232: 1 | W232: =COUNTA(E232:E232) -> 0
C233: Maintenance of premises | G233: -750000 | H233: 750000 | O233: Consol, EFA/DfE SoCNE | S233: 1 | Y233: =COUNTA(E233:E233) -> 0
C234: Maintenance of equipment | G234: -750000 | H234: 750000 | O234: Consol, EFA/DfE SoCNE | S234: 1 | Y234: =COUNTA(E234:E234) -> 0
C235: Cleaning | G235: -750000 | H235: 750000 | O235: Consol, EFA/DfE SoCNE | Q235: 1 | W235: =COUNTA(E235:E235) -> 0
C236: Operating lease rentals - other | G236: -750000 | H236: 750000 | O236: Consol, EFA/DfE SoCNE | S236: 1 | Y236: =COUNTA(E236:E236) -> 0
C237: Operating lease rentals - land & buildings | G237: -750000 | H237: 750000 | O237: Consol, EFA/DfE SoCNE | S237: 1 | Y237: =COUNTA(E237:E237) -> 0
C238: Rates | G238: -750000 | H238: 750000 | O238: Consol, EFA/DfE SoCNE | S238: 1 | Y238: =COUNTA(E238:E238) -> 0
C239: Water rates | G239: -750000 | H239: 750000 | O239: Consol, EFA/DfE SoCNE | S239: 1 | Y239: =COUNTA(E239:E239) -> 0
... 153 more rows

Sheet Fin.Return - BS
A1: Accounts Return March 2016 - Financial Return (Balance Sheet)
A3: Trust: | C3: ='Standing Data'!$D$3 -> 0 | H3: % of cells | J3: Navigation Links & Error Counts
A5: Period end: | C5: ='Standing Data'!$D$6 -> 2016-03-31 | G5: Sourced directly from Financial Statements | H5: =+(Y13/AD13) -> 0.7196132597 | J5: SoFA | L5: Balance Sheet | M5: =COUNTIF('Fin.Return - BS'!D16:H58,"Error*") -> 0 | N5: Notes to the F.S. | O5: =K7+M7+O7+K9+M9+O9+K11+M11+O11 -> 0
A7: Company No.: | C7: ='Standing Data'!D14 -> Type number here | G7: Additional to Financial Statements, prepared on a similar basis | H7: =AA13/AD13 -> 0.03038674033 | J7: Income | L7: Expenses | N7: Boarding
A9: Academy UPIN: | C9: =IF(AND(OR('Standing Data'!D9="Multiple",'Standing Data'!D9="Federation"),'Standing Data'!M48=0),'Standing Data'!E48,IF('Standing Data'!M48<>0,'Standing Data'!M48,IF(OR('Standing Data'!D9="Other",'Standing Data'!F9<>""),'Standing Data'!F9,'Standing Data'!D12))) ->  | G9: Additional to Financial Statements, prepared on a different/new basis | H9: =AB13/AD13 -> 0.002762430939 | J9: Fixed Assets | K9: =COUNTIF(D60:P191,"Error*") -> 0 | L9: Current Assets | M9: =COUNTIF(D193:M266,"Error*") -> 0 | N9: Liabilities | O9: =COUNTIF(D268:N431,"Error*") -> 0
C10: Above details will populate automatically
D11: Cells populate automatically from elsewhere in the Return | H11: =AC13/AD13 -> 0.1035911602 | J11: Funds | L11: Pensions & Commit'ts | N11: PFI & Later Notes | Y11: Possible Cells | AE11: Completed Cells
A12: FINANCIAL RETURN | D12: Error check cells | F12: HELP | W12: DESTINATION | Y12: Green | Z12: Blue | AA12: Amber | AB12: Red | AC12: Grey | AD12: Total | AE12: Green | AF12: Blue | AG12: Amber | AH12: Red | AI12: Grey | AJ12: Total
Y13: =+SUM(Y19:Y443) -> 521 | Z13: =+SUM(Z19:Z443) -> 104 | AA13: =+SUM(AA19:AA443) -> 22 | AB13: =+SUM(AB19:AB443) -> 2 | AC13: =+SUM(AC19:AC443) -> 75 | AD13: =+SUM(Y13:AC13) -> 724 | AE13: =+SUM(AE19:AE443) -> 13 | AF13: 0 | AG13: 0 | AH13: 0 | AI13: 0 | AJ13: 0
A14: BALANCE SHEET
E16: =YEAR('Fin.Return - SOFA'!C5) -> 2016 | G16: =E16 -> 2016 | I16: Lower limit | J16: Upper limit
E17: £000 | G17: £000 | I17: £000 | J17: £000
A18: FIXED ASSETS
B19: Tangible assets | I19: 0 | J19: 750000 | W19: Consol, EFA/DfE SoFP | Y19: 1 | AE19: =COUNTA('Fin.Return - BS'!#REF!) -> 1
B20: Intangible assets | I20: =I19 -> 0 | J20: =J19 -> 750000 | W20: Consol, EFA/DfE SoFP | Y20: 1 | AE20: =COUNTA('Fin.Return - BS'!#REF!) -> 1
B21: Investments | I21: =I20 -> 0 | J21: =J20 -> 750000 | W21: Consol, EFA/DfE SoFP | Y21: 1 | AE21: =COUNTA('Fin.Return - BS'!#REF!) -> 1
G23: =SUM(G19:G22) -> 0
A24: CURRENT ASSETS
B25: Stock | I25: 0 | J25: =J21 -> 750000 | W25: Consol, EFA/DfE SoFP | Y25: 1 | AE25: =COUNTA('Fin.Return - BS'!#REF!) -> 1
B26: Debtors - amounts due within one year | I26: =I25 -> 0 | J26: 750000 | W26: Consol, EFA/DfE SoFP | Y26: 1 | AE26: =COUNTA('Fin.Return - BS'!#REF!) -> 1
B27: Debtors - amounts due after more than one year | I27: 0 | J27: 750000 | W27: Consol, EFA/DfE SoFP | Y27: 1 | AE27: =COUNTA('Fin.Return - BS'!#REF!) -> 1
B28: Investments | I28: 0 | J28: 750000 | W28: Consol, EFA/DfE SoFP | Y28: 1 | AE28: =COUNTA('Fin.Return - BS'!#REF!) -> 1
B29: Cash at bank and in hand | I29: 0 | J29: 750000 | W29: Consol, EFA/DfE SoFP | Y29: 1 | AE29: =COUNTA('Fin.Return - BS'!#REF!) -> 1
E31: =SUM(E24:E30) -> 0
A32: CREDITORS: AMOUNTS DUE WITHIN ONE YEAR | I32: =-J19 -> -750000 | J32: 0 | W32: Consol, EFA/DfE SoFP | Y32: 1 | AE32: =COUNTA('Fin.Return - BS'!#REF!) -> 1
A34: NET CURRENT ASSETS/(LIABILITIES) | G34: =SUM(E31:E33) -> 0
A36: TOTAL ASSETS LESS CURRENT LIABILTIIES | G36: =SUM(G23:G35) -> 0
A37: CREDITORS: AMOUNTS DUE AFTER MORE THAN ONE YEAR | I37: =I32 -> -750000 | J37: =J32 -> 0 | W37: Consol, EFA/DfE SoFP | Y37: 1 | AE37: =COUNTA('Fin.Return - BS'!#REF!) -> 1
A38: PROVISIONS FOR LIABILITIES AND CHARGES | I38: =I37 -> -750000 | J38: =J37 -> 0 | W38: Consol, EFA/DfE SoFP | Y38: 1 | AE38: =COUNTA('Fin.Return - BS'!#REF!) -> 1
A40: NET ASSETS EXCLUDING PENSION LIABILTIY | G40: =SUM(G36:G39) -> 0
B41: Pension scheme liability | I41: =I38 -> -750000 | J41: =J29 -> 750000 | W41: Consol, EFA/DfE SoFP | Y41: 1 | AE41: =COUNTA('Fin.Return - BS'!#REF!) -> 1
A43: NET ASSETS INCLUDING PENSION SCHEME LIABILITY | G43: =SUM(G40:G42) -> 0
A44: FUNDS OF THE ACADEMY:
A45: Endowment Funds | I45: =I41 -> -750000 | J45: =J41 -> 750000
A46: Restricted Funds
B47: Fixed Asset Fund(s) | I47: =I45 -> -750000 | J47: =J45 -> 750000 | W47: Consol, EFA/DfE SoFP | Y47: 1 | AE47: =COUNTA('Fin.Return - BS'!G1:G1) -> 0
B48: General Fund(s) | I48: =I47 -> -750000 | J48: =J47 -> 750000 | W48: Consol, EFA/DfE SoFP | Y48: 1 | AE48: =COUNTA('Fin.Return - BS'!G2:G2) -> 0
B49: Pension Reserves | D49: =IF(G49<>G41, "Error - not equal to pension scheme liability","") ->  | I49: =I48 -> -750000 | J49: =J48 -> 750000 | W49: Consol, EFA/DfE SoFP | Y49: 1 | AE49: =COUNTA('Fin.Return - BS'!G3:G3) -> 0
A51: Total Restricted Funds | G51: =SUM(G47:G50) -> 0
A52: Unrestricted Funds
B53: General Fund(s) | I53: =I49 -> -750000 | J53: =J49 -> 750000 | W53: Consol, EFA/DfE SoFP | Y53: 1 | AE53: =COUNTA('Fin.Return - BS'!G7:G7) -> 1
A55: Total Unrestricted Funds | G55: =SUM(G53:G54) -> 0
A57: TOTAL FUNDS | D57: =IF(G43<>G57,"Error - with net assets","") ->  | G57: =G45+G51+G55 -> 0
A60: NOTES TO THE BALANCE SHEET
A61: TANGIBLE FIXED ASSETS | E61: Total | G61: Freehold Land and Buildings | H61: Leasehold Land and Buildings | I61: Leasehold Improvements | J61: Plant & Machinery | K61: Furniture & Equipment | L61: Computer Equipment | M61: Motor Vehicles | N61: Assets Under Construction | P61: Lower limit | Q61: Upper limit
A62: Balance sheet | E62: £000 | G62: £000 | H62: £000 | I62: £000 | J62: £000 | K62: £000 | L62: £000 | M62: £000 | N62: £000 | P62: £000 | Q62: £000
B63: Cost or valuation
C64: At start of period | E64: =SUM(G64:N64) -> 0 | P64: 0 | Q64: ='Fin.Return - BS'!$J$19 -> 750000 | X64: 7 | Z64: 2
C65: Additions - funded from EFA capital grant | E65: 0 | P65: =P64 -> 0 | Q65: 750000 | X65: 0 | Z65: 9
C66: Additions - other | E66: 0 | P66: 0 | Q66: 750000 | Z66: 9
C67: Transferred in on conversion - local authority | E67: 0 | P67: =P65 -> 0 | Q67: =Q65 -> 750000 | X67: 7 | Z67: 2
C68: Transferred in on conversion - elsewhere | E68: 0 | P68: 0 | Q68: 750000 | X68: 7 | Z68: 2
C69: Transferred in on existing academies joining the trust | E69: 0 | P69: 0 | Q69: 750000 | X69: 7 | Z69: 2
C70: Donations (non-EFA) | D70: =IF(E70<>'Fin.Return - SOFA'!E68,"Error - does not equal capital donations in SOFA voluntary income note","") ->  | E70: 0 | P70: =P68 -> 0 | Q70: =Q68 -> 750000 | X70: 0 | Z70: 9
C71: Donated by the EFA | D71: =IF(E71<>'Fin.Return - SOFA'!E69,"Error - does not equal EFA capital donations in SOFA voluntary income note","") ->  | E71: 0 | P71: =P69 -> 0 | Q71: =Q69 -> 750000 | Z71: 9
C72: Disposals | E72: 0 | P72: ='Fin.Return - BS'!$I$45 -> -750000 | Q72: 0 | X72: 7 | Z72: 2
C73: Transferred out on existing academies leaving the trust | E73: 0 | P73: -750000 | Q73: - | X73: 7 | Z73: 2
A74: SoFA | C74: Revaluations | E74: 0 | P74: =P72 -> -750000 | Q74: =Q70 -> 750000 | X74: 7 | Z74: 2
C75: Reclassifications | D75: =IF(E75<>0, "Error - reclassifications must sum to zero","") ->  | E75: 0 | P75: =P74 -> -750000 | Q75: =Q74 -> 750000 | X75: 7 | Z75: 2
C77: At close of period | E77: =SUM(E64:E76) -> 0 | G77: =SUM(G64:G76) -> 0 | H77: 0 | I77: 0 | J77: 0 | K77: 0 | L77: 0 | M77: 0 | N77: 0
E78: =IF(E77<0,"Error - credit bal.","") ->  | G78: =IF(G77<0,"Error - credit bal.","") -> 
B79: Depreciation
C80: At start of period | E80: =SUM(G80:N80) -> 0 | G80: 0 | H80: 0 | I80: 0 | J80: 0 | K80: 0 | L80: 0 | M80: 0 | N80: 0 | P80: =P75 -> -750000 | Q80: 0 | X80: 7 | Z80: 2
C81: Charge in the period | E81: 0 | P81: =P80 -> -750000 | Q81: =Q80 -> 0 | X81: 6 | Z81: 2
C82: Eliminated on disposal | E82: 0 | P82: 0 | Q82: ='Fin.Return - BS'!$J$19 -> 750000 | X82: 7 | Z82: 2
C83: Transferred out on existing academies leaving the trust | E83: 0 | P83: 0 | Q83: ='Fin.Return - BS'!$J$19 -> 750000 | X83: 7 | Z83: 2
C84: Revaluations | E84: 0 | P84: =P81 -> -750000 | Q84: =Q82 -> 750000 | X84: 7 | Z84: 2
C85: Reclassifications | D85: =IF(E85<>0, "Error - reclassifications must sum to zero","") ->  | E85: 0 | P85: =P84 -> -750000 | Q85: =Q84 -> 750000 | X85: 7 | Z85: 2
C87: At close of period | E87: =SUM(E80:E86) -> 0 | G87: =SUM(G80:G86) -> 0 | H87: 0 | I87: 0 | J87: 0 | K87: 0 | L87: 0 | M87: 0 | N87: 0
E88: =IF(E87>0,"Error - debit bal.","") ->  | G88: =IF(G87>0,"Error - debit bal.","") -> 
B89: Impairment
C90: At start of period | E90: =SUM(G90:N90) -> 0 | G90: 0 | H90: 0 | I90: 0 | J90: 0 | K90: 0 | L90: 0 | M90: 0 | N90: 0 | P90: =P85 -> -750000 | Q90: 0 | X90: 7 | Z90: 2
C91: Charge in the period | E91: =SUM(G91:N91) -> 0 | P91: =P90 -> -750000 | Q91: =Q90 -> 0 | X91: 7 | Z91: 2
C92: Released in period | E92: =SUM(G92:N92) -> 0 | P92: 0 | Q92: ='Fin.Return - BS'!$J$19 -> 750000 | X92: 7 | Z92: 2
C93: Transferred out on existing academies leaving the trust | E93: =SUM(G93:N93) -> 0 | P93: 0 | Q93: ='Fin.Return - BS'!$J$19 -> 750000 | X93: 7 | Z93: 2
C95: At close of period | E95: =SUM(E90:E94) -> 0 | G95: =SUM(G90:G94) -> 0 | H95: 0 | I95: 0 | J95: 0 | K95: 0 | L95: 0 | M95: 0 | N95: 0
E96: =IF(E95>0,"Error - debit bal.","") ->  | G96: =IF(G95>0,"Error - debit bal.","") -> 
B97: Net book value
C98: At close of period | D98: =IF(E98<>E77+E87+E95,"Error - column does not cast","") ->  | E98: ='Fin.Return - BS'!G19 -> 0 | G98: =G77+G87+G95 -> 0 | H98: 0 | I98: 0 | J98: 0 | K98: 0 | L98: 0 | M98: 0 | N98: 0 | AB98: 1
D99: =IF(E98<>SUM(G98:N98),"Error - row does not cross cast","") ->  | G99: =IF(G98<0,"Error - credit bal.","") -> 
D100: =IF(OR(D98<>"",D99<>""),"Error - Total does not agree to balance sheet","") -> 
C101: At start of period | E101: =E64+E80+E90 -> 0 | G101: =G64+G80+G90 -> 0 | H101: 0 | I101: 0 | J101: 0 | K101: 0 | L101: 0 | M101: 0 | N101: 0
E102: =IF(E101<0,"Error - credit bal.","") ->  | G102: =IF(G101<0,"Error - credit bal.","") -> 
B104: Depreciation periods per accounting policies: (months) | E104: Notes
C105: Single period or minimum of range | P105: =P92 -> 0 | Q105: 1500 | X105: 6 | Z105: 2
C106: Maximum of range | P106: =P105 -> 0 | Q106: =Q105 -> 1500 | X106: 6 | Z106: 2
C107: Reducing balance rate | E107: Notes | P107: =P106 -> 0 | Q107: 100 | X107: 6 | Z107: 2
G108: =IF(AND(G77>0,G105="",G107=""),"Error - depreciation absent","") -> 
B109: Analysis of closing NBV of Land and Buildings: | E109: Notes
C110: Land | P110: 0 | Q110: ='Fin.Return - BS'!$J$19 -> 750000 | Z110: 2
C111: Buildings | P111: 0 | Q111: ='Fin.Return - BS'!$J$19 -> 750000 | Z111: 2
G113: =G98 -> 0 | H113: =H98 -> 0
G114: =IF(G113<>SUM(G110:G112),"Error - column does not cast","") ->  | H114: =IF(H113<>SUM(H110:H112),"Error - column does not cast","") -> 
B115: Revalued assets - historic cost analysis:
C116: Historic cost | E116: =SUM(G116:N116) -> 0 | P116: =P105 -> 0 | Q116: ='Fin.Return - BS'!$J$19 -> 750000 | Z116: 9
C117: Closing cumulative depreciation based on historic cost | E117: =SUM(G117:N117) -> 0 | P117: =(P91) -> -750000 | Q117: 0 | Z117: 9
C119: Historic cost - carrying value | E119: =SUM(E116:E118) -> 0 | G119: =SUM(G116:G118) -> 0 | H119: 0 | I119: 0 | J119: 0 | K119: 0 | L119: 0 | M119: 0 | N119: 0
B121: NBV of finance leased assets: | E121: =SUM(G121:N121) -> 0 | P121: =P116 -> 0 | Q121: =Q116 -> 750000
G122: =IF(G121>G98,"Error - above greater than total NBV","") ->  | M122: =IF(M121>M98,"Error - above greater than total NBV","") ->  | N122: =IF(N121>N98,"Error - above greater than total NBV","") ->  | X122: 7 | Z122: 2
A124: INTANGIBLE FIXED ASSETS | E124: Total | G124: Other | H124: Software | I124: Trademarks, licences, royalties, etc. | J124: Goodwill | L124: Lower limit | M124: Upper limit
A125: Balance sheet | E125: £000 | G125: £000 | H125: £000 | I125: £000 | J125: £000 | L125: £000 | M125: £000
B126: Cost or valuation
C127: At start of period | E127: =SUM(G127:J127) -> 0 | L127: 0 | M127: ='Fin.Return - BS'!$J$19 -> 750000 | Y127: 3
C128: Additions | E128: =SUM(G128:J128) -> 0 | L128: =L127 -> 0 | M128: 750000 | Y128: 3
C129: Transferred in on conversion - local authority | E129: 0 | L129: =L128 -> 0 | M129: 750000 | Y129: 3
C130: Transferred in on conversion - elsewhere | E130: 0 | L130: =L129 -> 0 | M130: 750000 | Y130: 3
C131: Transferred in on existing academies joining the trust | E131: 0 | L131: =L130 -> 0 | M131: 750000 | Y131: 3
C132: Disposals | E132: 0 | L132: ='Fin.Return - BS'!$I$45 -> -750000 | M132: 0 | Y132: 3
C133: Transferred out on existing academies leaving the trust | E133: 0 | L133: ='Fin.Return - BS'!$I$45 -> -750000 | M133: 0 | Y133: 3
A134: SoFA | C134: Revaluations | E134: 0 | L134: =L132 -> -750000 | M134: =M130 -> 750000 | Y134: 3
C135: Reclassifications | D135: =IF(E135<>0, "Error - reclassifications must sum to zero","") ->  | E135: 0 | L135: =L134 -> -750000 | M135: =M134 -> 750000 | Y135: 3
C137: At close of period | E137: =SUM(E127:E136) -> 0 | G137: =SUM(G127:G136) -> 0 | H137: =SUM(H127:H136) -> 0 | I137: =SUM(I127:I136) -> 0 | J137: =SUM(J127:J136) -> 0
E138: =IF(E137<0,"Error - credit bal.","") ->  | G138: =IF(G137<0,"Error - credit bal.","") ->  | H138: =IF(H137<0,"Error - credit bal.","") ->  | I138: =IF(I137<0,"Error - credit bal.","") ->  | J138: =IF(J137<0,"Error - credit bal.","") -> 
B139: Amortisation
C140: At start of period | E140: =SUM(G140:J140) -> 0 | L140: =L135 -> -750000 | M140: 0 | Y140: 3
C141: Charge in the period | E141: 0 | L141: =L140 -> -750000 | M141: =M140 -> 0 | Y141: 3
C142: Eliminated on disposal | E142: 0 | L142: 0 | M142: =M135 -> 750000 | Y142: 3
C143: Transferred out on existing academies leaving the trust | E143: 0 | L143: 0 | M143: =(M142) -> 750000 | Y143: 3
C144: Revaluations | E144: 0 | L144: =L141 -> -750000 | M144: =M142 -> 750000 | Y144: 3
C145: Reclassifications | D145: =IF(E145<>0, "Error - reclassifications must sum to zero","") ->  | E145: 0 | L145: =L144 -> -750000 | M145: =M144 -> 750000 | Y145: 3
C147: At close of period | E147: =SUM(E140:E146) -> 0 | G147: =SUM(G140:G146) -> 0 | H147: =SUM(H140:H146) -> 0 | I147: =SUM(I140:I146) -> 0 | J147: =SUM(J140:J146) -> 0
E148: =IF(E147>0,"Error - debit bal.","") ->  | G148: =IF(G147>0,"Error - debit bal.","") ->  | H148: =IF(H147>0,"Error - debit bal.","") ->  | I148: =IF(I147>0,"Error - debit bal.","") ->  | J148: =IF(J147>0,"Error - debit bal.","") -> 
B149: Impairment
C150: At start of period | E150: =SUM(G150:J150) -> 0 | L150: =L145 -> -750000 | M150: 0 | Y150: 3
C151: Charge in the period | E151: 0 | L151: =L150 -> -750000 | M151: 0 | Y151: 3
C152: Released in period | E152: 0 | L152: 0 | M152: =M145 -> 750000 | Y152: 3
C153: Transferred out on existing academies leaving the trust | E153: =SUM(G153:I153) -> 0 | L153: =(L152) -> 0 | M153: =(M152) -> 750000 | Y153: 3
C155: At close of period | E155: =SUM(E150:E154) -> 0 | G155: =SUM(G150:G154) -> 0 | H155: =SUM(H150:H154) -> 0 | I155: =SUM(I150:I154) -> 0 | J155: =SUM(J150:J154) -> 0
E156: =IF(E155>0,"Error - debit bal.","") ->  | G156: =IF(G155>0,"Error - debit bal.","") ->  | H156: =IF(H155>0,"Error - debit bal.","") ->  | I156: =IF(I155>0,"Error - debit bal.","") ->  | J156: =IF(J155>0,"Error - debit bal.","") -> 
B157: Net book value
C158: At close of period | D158: =IF(E158<>(E137+E147+E155),"Error - column does not cast","") ->  | E158: ='Fin.Return - BS'!G20 -> 0 | G158: =G137+G147+G155 -> 0 | H158: =H137+H147+H155 -> 0 | I158: =I137+I147+I155 -> 0 | J158: =J137+J147+J155 -> 0 | AC158: 1
D159: =IF(E158<>SUM(G158:I158),"Error - row does not cross cast","") ->  | G159: =IF(G158<0,"Error - credit bal.","") ->  | H159: =IF(H158<0,"Error - credit bal.","") ->  | I159: =IF(I158<0,"Error - credit bal.","") ->  | J159: =IF(J158<0,"Error - credit bal.","") -> 
D160: =IF(OR(D158<>"",D159<>""),"Total does not agree with balance sheet","") -> 
C161: At start of period | E161: =E127+E140+E150 -> 0 | G161: =G127+G140+G150 -> 0 | H161: =H127+H140+H150 -> 0 | I161: =I127+I140+I150 -> 0 | J161: =J127+J140+J150 -> 0
E162: =IF(E161<0,"Error - negative","") ->  | G162: =IF(G161<0,"Error - credit bal.","") ->  | H162: =IF(H161<0,"Error - credit bal.","") ->  | I162: =IF(I161<0,"Error - credit bal.","") ->  | J162: =IF(J161<0,"Error - credit bal.","") -> 
B163: Amortisation periods: (months) | E163: Notes
C164: Single period or minimum of range | L164: 0 | M164: 1200 | Y164: 3
C165: Maximum of range | L165: 0 | M165: =M164 -> 1200 | Y165: 3
C166: Reducing balance rate | E166: Notes | L166: 0 | M166: 100 | Y166: 3
G167: =IF(AND(G137>0,G164="",G166=""),"Error - amortisation absent","") ->  | H167: =IF(AND(H137>0,H164="",H166=""),"Error - amortisation absent","") ->  | I167: =IF(AND(I137>0,I164="",I166=""),"Error - amortisation absent","") ->  | J167: =IF(AND(J137>0,J164="",J166=""),"Error - amortisation absent","") -> 
A169: INVESTMENTS - FIXED | G169: Held at Cost | L169: Held at market (fair) value | T169: Lower limit | U169: Upper limit
E170: Total | G170: Subsidiaries | H170: Unlisted shares | I170: Unlisted corporate bonds | J170: Investment property | K170: Other | L170: Listed shares* | M170: Managed Funds* | N170: Listed Bonds (Gilts and corporate) | O170: Derivative securities | P170: Cash term deposits | Q170: Investment property | R170: Other
A171: Balance sheet | E171: £000 | G171: £000 | H171: £000 | I171: £000 | J171: £000 | K171: £000 | L171: £000 | M171: £000 | N171: £000 | O171: £000 | P171: £000 | Q171: £000 | R171: £000 | T171: £000 | U171: £000
B172: Opening balance | E172: =SUM(G172:R172) -> 0 | Y172: 12
B173: Additions | E173: =SUM(G173:R173) -> 0 | T173: 0 | U173: ='Fin.Return - BS'!$J$19 -> 750000 | Y173: 12
B174: Reclassification from current asset investments | E174: 0 | T174: =T173 -> 0 | U174: 750000 | Y174: 12
B175: Transferred in on conversion - local authority | E175: 0 | T175: =T174 -> 0 | U175: 750000 | Y175: 12
B176: Transferred in on conversion - elsewhere | E176: 0 | T176: =T175 -> 0 | U176: 750000 | Y176: 12
B177: Transferred in on existing academies joining the trust | E177: 0 | T177: =T176 -> 0 | U177: 750000 | Y177: 12
B178: Transferred out on existing academies leaving the trust | E178: 0 | T178: ='Fin.Return - BS'!$I$45 -> -750000 | U178: 0 | Y178: 12
B179: Disposals | E179: 0 | T179: ='Fin.Return - BS'!$I$45 -> -750000 | U179: 0 | Y179: 12
B180: Reclassification to current asset investments | E180: 0 | T180: =T179 -> -750000 | U180: =U179 -> 0 | Y180: 12
B181: Reclassification within fixed asset investments | D181: =IF(E181<>0,"Error - reclassifications must sum to zero","") ->  | E181: 0 | T181: =(T180) -> -750000 | U181: 750000 | Y181: 12
A182: SoFA | B182: Period end fair value gain/(loss) | E182: 0 | T182: =T180 -> -750000 | U182: =U176 -> 750000 | Y182: 7
B183: Impairment | E183: 0 | T183: =T182 -> -750000 | U183: =U182 -> 750000 | Y183: 12
B185: Closing balance | D185: =IF(E185<>SUM(E172:E184),"Error - column does not cast","") ->  | E185: ='Fin.Return - BS'!G21 -> 0 | G185: =SUM(G172:G184) -> 0 | H185: 0 | I185: 0 | J185: =SUM(J172:J184) -> 0 | K185: 0 | L185: 0 | M185: 0 | N185: 0 | O185: 0 | P185: 0 | Q185: 0 | R185: 0 | AC185: 1
G186: =IF(G185<0,"Error - credit bal.","") ->  | J186: =IF(J185<0,"Error - credit bal.","") ->  | K186: =IF(K185<0,"Error - credit bal.","") -> 
B187: Please describe 'Others' below | D187: =IF(OR(D185<>"",D186<>""),"Error - Total does not agree with balance sheet","") -> 
Z188: 1
K189: *=includes uninvested cash balances.
B190: Does the Academy have financial instruments other than receivables and payables? | D190: No | E190: Notes | AB190: 1
D191: Select from drop-down box in the cell above
A193: STOCK | E193: ='Fin.Return - BS'!E16 -> 2016 | G193: Lower limit | H193: Upper limit
A194: Balance sheet | E194: £000 | G194: £000 | H194: £000
B195: Clothing/uniform | G195: 0 | H195: ='Fin.Return - BS'!$J$19 -> 750000 | Y195: 1
B196: Catering | G196: =G195 -> 0 | H196: 750000 | Y196: 1
B197: Grounds maintenance | G197: 0 | H197: 750000 | Y197: 1
B198: Stationery | G198: 0 | H198: 750000 | Y198: 1
B199: Other | G199: 0 | H199: 750000 | Y199: 1
D201: =IF(E201<>SUM(E195:E200),"Error - column does not cast","") ->  | E201: ='Fin.Return - BS'!E25 -> 0 | AC201: 1
D202: =IF(D201<>"","Error - Total does not agree with balance sheet","") -> 
A204: DEBTORS | E204: Amounts within one year | G204: Amounts due after more than one year | I204: Lower limit | J204: Upper limit
A205: Balance sheet | E205: £000 | G205: £000 | I205: £000 | J205: £000
B206: Type analysis
C207: Trade debtors | I207: 0 | J207: ='Fin.Return - BS'!$J$19 -> 750000 | Y207: 2
C208: Amounts owed by group undertakings | I208: =I207 -> 0 | J208: 750000 | Y208: 2
C209: Prepayments and accrued income | I209: 0 | J209: 750000 | Y209: 2
C210: VAT recoverable | I210: 0 | J210: 750000 | Y210: 2
C211: Other debtors | I211: 0 | J211: 750000 | Y211: 2
D213: =IF(E213<>SUM(E207:E212),"Error - column does not cast","") ->  | E213: ='Fin.Return - BS'!E26 -> 0 | G213: ='Fin.Return - BS'!E27 -> 0 | H213: =IF(G213<>SUM(G207:G212),"Error - column does not cast","") ->  | AC213: 2
D214: =IF(D213<>"","Error - Total does not agree with balance sheet","") ->  | H214: =IF(H213<>"","Error - Total does not agree with balance sheet","") -> 
B215: Counterparty analysis | E215: Amounts within one year | G215: Amounts due after more than one year
E216: £000 | G216: £000
B217: Balances with central government bodies
C218: DfE Group:
C219: EFA | D219: Notes | E219: =SUM(CoPty.Return!W23:AA23) -> 0 | G219: =SUM(CoPty.Return!AC23:AF23) -> 0 | AC219: 2
C220: DfE | E220: =SUM(CoPty.Return!W22:AA22) -> 0 | G220: =SUM(CoPty.Return!AC22:AF22) -> 0 | AC220: 2
C221: TA | E221: =SUM(CoPty.Return!W24:AA24) -> 0 | G221: =SUM(CoPty.Return!AC24:AF24) -> 0 | AC221: 2
C222: NCTL | E222: =SUM(CoPty.Return!W25:AA25) -> 0 | G222: =SUM(CoPty.Return!AC25:AF25) -> 0 | AC222: 2
C223: STA | E223: =SUM(CoPty.Return!W26:AA26) -> 0 | G223: =SUM(CoPty.Return!AC26:AF26) -> 0 | AC223: 2
C224: EHRC | E224: =SUM(CoPty.Return!W28:AA28) -> 0 | G224: =SUM(CoPty.Return!AC28:AF28) -> 0 | AC224: 2
C225: OCC | E225: =SUM(CoPty.Return!W27:AA27) -> 0 | G225: =SUM(CoPty.Return!AC27:AF27) -> 0 | AC225: 2
C226: Other Government bodies | E226: =SUMIF(CoPty.Return!$D$29:$D$221,"CenGov't",CoPty.Return!$W$29:$W$221)+SUMIF(CoPty.Return!$D$29:$D$221,"CenGov't",CoPty.Return!$X$29:$X$221)+SUMIF(CoPty.Return!$D$29:$D$221,"CenGov't",CoPty.Return!$Y$29:$Y$221)+SUMIF(CoPty.Return!$D$29:$D$221,"CenGov't",CoPty.Return!$Z$29:$Z$221)+SUMIF(CoPty.Return!$D$29:$D$221,"CenGov't",CoPty.Return!$AA$29:$AA$221) -> 0 | G226: =SUMIF(CoPty.Return!$D$29:$D$221,"CenGov't",CoPty.Return!$AC$29:$AC$221)+SUMIF(CoPty.Return!$D$29:$D$221,"CenGov't",CoPty.Return!$AD$29:$AD$221)+SUMIF(CoPty.Return!$D$29:$D$221,"CenGov't",CoPty.Return!$AE$29:$AE$221)+SUMIF(CoPty.Return!$D$29:$D$221,"CenGov't",CoPty.Return!$AF$29:$AF$221) -> 0 | AC226: 2
C227: Academies | D227: Notes | E227: =SUMIF(CoPty.Return!$D$29:$D$221,"Academy",CoPty.Return!$W$29:$W$221)+SUMIF(CoPty.Return!$D$29:$D$221,"Academy",CoPty.Return!$X$29:$X$221)+SUMIF(CoPty.Return!$D$29:$D$221,"Academy",CoPty.Return!$Y$29:$Y$221)+SUMIF(CoPty.Return!$D$29:$D$221,"Academy",CoPty.Return!$Z$29:$Z$221)+SUMIF(CoPty.Return!$D$29:$D$221,"Academy",CoPty.Return!$AA$29:$AA$221) -> 0 | G227: =SUMIF(CoPty.Return!$D$29:$D$221,"Academy",CoPty.Return!$AC$29:$AC$221)+SUMIF(CoPty.Return!$D$29:$D$221,"Academy",CoPty.Return!$AD$29:$AD$221)+SUMIF(CoPty.Return!$D$29:$D$221,"Academy",CoPty.Return!$AE$29:$AE$221)+SUMIF(CoPty.Return!$D$29:$D$221,"Academy",CoPty.Return!$AF$29:$AF$221) -> 0 | AC227: 2
B228: Balances with local authorities | E228: =SUMIF(CoPty.Return!$D$29:$D$221,"LocGov't",CoPty.Return!$W$29:$W$221)+SUMIF(CoPty.Return!$D$29:$D$221,"LocGov't",CoPty.Return!$X$29:$X$221)+SUMIF(CoPty.Return!$D$29:$D$221,"LocGov't",CoPty.Return!$Y$29:$Y$221)+SUMIF(CoPty.Return!$D$29:$D$221,"LocGov't",CoPty.Return!$Z$29:$Z$221)+SUMIF(CoPty.Return!$D$29:$D$221,"LocGov't",CoPty.Return!$AA$29:$AA$221) -> 0 | G228: =SUMIF(CoPty.Return!$D$29:$D$221,"LocGov't",CoPty.Return!$AC$29:$AC$221)+SUMIF(CoPty.Return!$D$29:$D$221,"LocGov't",CoPty.Return!$AD$29:$AD$221)+SUMIF(CoPty.Return!$D$29:$D$221,"LocGov't",CoPty.Return!$AE$29:$AE$221)+SUMIF(CoPty.Return!$D$29:$D$221,"LocGov't",CoPty.Return!$AF$29:$AF$221) -> 0 | AC228: 2
B229: Balances with NHS Trusts | E229: =SUMIF(CoPty.Return!$D$29:$D$221,"NHS",CoPty.Return!$W$29:$W$221)+SUMIF(CoPty.Return!$D$29:$D$221,"NHS",CoPty.Return!$X$29:$X$221)+SUMIF(CoPty.Return!$D$29:$D$221,"NHS",CoPty.Return!$Y$29:$Y$221)+SUMIF(CoPty.Return!$D$29:$D$221,"NHS",CoPty.Return!$Z$29:$Z$221)+SUMIF(CoPty.Return!$D$29:$D$221,"NHS",CoPty.Return!$AA$29:$AA$221) -> 0 | G229: =SUMIF(CoPty.Return!$D$29:$D$221,"NHS",CoPty.Return!$AC$29:$AC$221)+SUMIF(CoPty.Return!$D$29:$D$221,"NHS",CoPty.Return!$AD$29:$AD$221)+SUMIF(CoPty.Return!$D$29:$D$221,"NHS",CoPty.Return!$AE$29:$AE$221)+SUMIF(CoPty.Return!$D$29:$D$221,"NHS",CoPty.Return!$AF$29:$AF$221) -> 0 | AC229: 2
B230: Balances with public corporations and trading funds | E230: =SUMIF(CoPty.Return!$D$29:$D$221,"PCs",CoPty.Return!$W$29:$W$221)+SUMIF(CoPty.Return!$D$29:$D$221,"PCs",CoPty.Return!$X$29:$X$221)+SUMIF(CoPty.Return!$D$29:$D$221,"PCs",CoPty.Return!$Y$29:$Y$221)+SUMIF(CoPty.Return!$D$29:$D$221,"PCs",CoPty.Return!$Z$29:$Z$221)+SUMIF(CoPty.Return!$D$29:$D$221,"PCs",CoPty.Return!$AA$29:$AA$221) -> 0 | G230: =SUMIF(CoPty.Return!$D$29:$D$221,"PCs",CoPty.Return!$AC$29:$AC$221)+SUMIF(CoPty.Return!$D$29:$D$221,"PCs",CoPty.Return!$AD$29:$AD$221)+SUMIF(CoPty.Return!$D$29:$D$221,"PCs",CoPty.Return!$AE$29:$AE$221)+SUMIF(CoPty.Return!$D$29:$D$221,"PCs",CoPty.Return!$AF$29:$AF$221) -> 0 | AC230: 2
E232: =SUM(E219:E231) -> 0 | G232: =SUM(G219:G231) -> 0
B233: Balances with bodies external to government | E233: =E235-E232 -> 0 | G233: =G235-G232 -> 0 | AC233: 2
E235: =E213 -> 0 | G235: =G213 -> 0 | AC235: 2
... 160 more rows

Sheet Fin.Return - Other Notes
A1: Accounts Return March 2016 - Financial Return (Other Notes)
A3: Trust: | C3: ='Standing Data'!$D$3 -> 0 | H3: % of cells | J3: Navigation Links & Error Counts
A5: Period end: | C5: ='Standing Data'!$D$6 -> 2016-03-31 | G5: Sourced directly from Financial Statements | H5: =BC13/BH13 -> 0.1791530945 | J5: SoFA | L5: Balance Sheet | N5: Notes to the F.S. | O5: =K7+M7+O7+K9+M9+O9+K11+M11+O11 -> 3
A7: Company No.: | C7: ='Standing Data'!D14 -> Type number here | G7: Additional to Financial Statements, prepared on a similar basis | H7: =BE13/BH13 -> 0.5931596091 | J7: Income | L7: Expenses | N7: Boarding
A9: Academy UPIN: | C9: =IF(AND(OR('Standing Data'!D9="Multiple",'Standing Data'!D9="Federation"),'Standing Data'!M48=0),'Standing Data'!E48,IF('Standing Data'!M48<>0,'Standing Data'!M48,IF(OR('Standing Data'!D9="Other",'Standing Data'!F9<>""),'Standing Data'!F9,'Standing Data'!D12))) ->  | G9: Additional to Financial Statements, prepared on a different/new basis | H9: =BF13/BH13 -> 0.09543973941 | J9: Fixed Assets | L9: Current Assets | N9: Liabilities
C10: Above details will populate automatically
D11: Cells populate automatically from elsewhere in the Return | H11: =BG13/BH13 -> 0.0996742671 | J11: Funds | K11: =COUNTIF(D15:L134,"Error*") -> 0 | L11: Pensions & Commit'ts | M11: =COUNTIF(D136:N158,"Error*")+COUNTIF(D220:N264,"Error*")+COUNTIF(D346:N472,"Error*") -> 0 | N11: PFI & Later Notes | O11: =COUNTIF(D474:N657,"Error*") -> 3 | BC11: Possible Cells | BI11: Completed Cells
A12: FINANCIAL RETURN | D12: Error check cells | F12: HELP | BA12: DESTINATION | BC12: Green | BD12: Blue | BE12: Amber | BF12: Red | BG12: Grey | BH12: Total | BI12: Green | BJ12: Blue | BK12: Amber | BL12: Red | BM12: Grey | BN12: Total
BC13: =+SUM(BC19:BC650) -> 550 | BD13: =+SUM(BD19:BD650) -> 100 | BE13: =+SUM(BE19:BE650) -> 1821 | BF13: =+SUM(BF19:BF650) -> 293 | BG13: =+SUM(BG19:BG650) -> 306 | BH13: =+SUM(BC13:BG13) -> 3070
A14: OTHER NOTES
A15: FUNDS - FOR MULTI-ACADEMY TRUSTS ONLY
E16: Closing General Funds Balance | G16: Analysis of academies by cost
A17: Balance sheet | E17: ='Fin.Return - BS'!E16 -> 2016 | G17: Teaching and Educational Support Staff Costs | H17: Other Support Staff Costs | I17: Educational Supplies | J17: Other Costs (excluding Depreciation) | K17: Total | L17: Lower limit | M17: Upper limit
C18: Academy | D18: Notes | E18: £000 | F18: Notes | G18: £000 | H18: £000 | I18: £000 | J18: £000 | K18: £000 | L18: £000 | M18: £000
C19: =+('Standing Data'!D48) ->  | K19: =+SUM(G19:J19) -> 0 | L19: ='Fin.Return - BS'!$I$45 -> -750000 | M19: ='Fin.Return - BS'!$J$19 -> 750000 | BC19: 5 | BG19: 1 | BI19: =COUNTA(E19:J19) -> 0 | BM19: =COUNTA(C19) -> 1
C20: =+('Standing Data'!D49) ->  | K20: 0 | L20: =L19 -> -750000 | M20: =M19 -> 750000 | BC20: 5 | BG20: 1 | BI20: 0 | BM20: 1
C21: =+('Standing Data'!D50) ->  | K21: 0 | L21: -750000 | M21: 750000 | BC21: 5 | BG21: 1 | BI21: 0 | BM21: 1
C22: =+('Standing Data'!D51) ->  | K22: 0 | L22: -750000 | M22: 750000 | BC22: 5 | BG22: 1 | BI22: 0 | BM22: 1
C23: =+('Standing Data'!D52) ->  | K23: 0 | L23: -750000 | M23: 750000 | BC23: 5 | BG23: 1 | BI23: 0 | BM23: 1
C24: =+('Standing Data'!D53) ->  | K24: 0 | L24: -750000 | M24: 750000 | BC24: 5 | BG24: 1 | BI24: 0 | BM24: 1
C25: =+('Standing Data'!D54) ->  | K25: 0 | L25: -750000 | M25: 750000 | BC25: 5 | BG25: 1 | BI25: 0 | BM25: 1
C26: =+('Standing Data'!D55) ->  | K26: 0 | L26: -750000 | M26: 750000 | BC26: 5 | BG26: 1 | BI26: 0 | BM26: 1
C27: =+('Standing Data'!D56) ->  | K27: 0 | L27: -750000 | M27: 750000 | BC27: 5 | BG27: 1 | BI27: 0 | BM27: 1
C28: =+('Standing Data'!D57) ->  | K28: 0 | L28: -750000 | M28: 750000 | BC28: 5 | BG28: 1 | BI28: 0 | BM28: 1
C29: =+('Standing Data'!D58) ->  | K29: 0 | L29: -750000 | M29: 750000 | BC29: 5 | BG29: 1 | BI29: 0 | BM29: 1
C30: =+('Standing Data'!D59) ->  | K30: 0 | L30: -750000 | M30: 750000 | BC30: 5 | BG30: 1 | BI30: 0 | BM30: 1
C31: =+('Standing Data'!D60) ->  | K31: 0 | L31: -750000 | M31: 750000 | BC31: 5 | BG31: 1 | BI31: 0 | BM31: 1
C32: =+('Standing Data'!D61) ->  | K32: 0 | L32: -750000 | M32: 750000 | BC32: 5 | BG32: 1 | BI32: 0 | BM32: 1
C33: =+('Standing Data'!D62) ->  | K33: 0 | L33: -750000 | M33: 750000 | BC33: 5 | BG33: 1 | BI33: 0 | BM33: 1
C34: =+('Standing Data'!D63) ->  | K34: 0 | L34: -750000 | M34: 750000 | BC34: 5 | BG34: 1 | BI34: 0 | BM34: 1
C35: =+('Standing Data'!D64) ->  | K35: 0 | L35: -750000 | M35: 750000 | BC35: 5 | BG35: 1 | BI35: 0 | BM35: 1
C36: =+('Standing Data'!D65) ->  | K36: 0 | L36: -750000 | M36: 750000 | BC36: 5 | BG36: 1 | BI36: 0 | BM36: 1
C37: =+('Standing Data'!D66) ->  | K37: 0 | L37: -750000 | M37: 750000 | BC37: 5 | BG37: 1 | BI37: 0 | BM37: 1
C38: =+('Standing Data'!D67) ->  | K38: 0 | L38: -750000 | M38: 750000 | BC38: 5 | BG38: 1 | BI38: 0 | BM38: 1
C39: =+('Standing Data'!D68) ->  | K39: 0 | L39: -750000 | M39: 750000 | BC39: 5 | BG39: 1 | BI39: 0 | BM39: 1
C40: =+('Standing Data'!D69) ->  | K40: 0 | L40: -750000 | M40: 750000 | BC40: 5 | BG40: 1 | BI40: 0 | BM40: 1
C41: =+('Standing Data'!D70) ->  | K41: 0 | L41: -750000 | M41: 750000 | BC41: 5 | BG41: 1 | BI41: 0 | BM41: 1
C42: =+('Standing Data'!D71) ->  | K42: 0 | L42: -750000 | M42: 750000 | BC42: 5 | BG42: 1 | BI42: 0 | BM42: 1
C43: =+('Standing Data'!D72) ->  | K43: 0 | L43: -750000 | M43: 750000 | BC43: 5 | BG43: 1 | BI43: 0 | BM43: 1
C44: =+('Standing Data'!D73) ->  | K44: 0 | L44: -750000 | M44: 750000 | BC44: 5 | BG44: 1 | BI44: 0 | BM44: 1
C45: =+('Standing Data'!D74) ->  | K45: 0 | L45: -750000 | M45: 750000 | BC45: 5 | BG45: 1 | BI45: 0 | BM45: 1
C46: =+('Standing Data'!D75) ->  | K46: 0 | L46: -750000 | M46: 750000 | BC46: 5 | BG46: 1 | BI46: 0 | BM46: 1
C47: =+('Standing Data'!D76) ->  | K47: 0 | L47: -750000 | M47: 750000 | BC47: 5 | BG47: 1 | BI47: 0 | BM47: 1
C48: =+('Standing Data'!D77) ->  | K48: 0 | L48: -750000 | M48: 750000 | BC48: 5 | BG48: 1 | BI48: 0 | BM48: 1
C49: =+('Standing Data'!D78) ->  | K49: 0 | L49: -750000 | M49: 750000 | BC49: 5 | BG49: 1 | BI49: 0 | BM49: 1
C50: =+('Standing Data'!D79) ->  | K50: 0 | L50: -750000 | M50: 750000 | BC50: 5 | BG50: 1 | BI50: 0 | BM50: 1
C51: =+('Standing Data'!D80) ->  | K51: =+SUM(G51:J51) -> 0 | L51: -750000 | M51: 750000 | BC51: 5 | BG51: 1 | BI51: =COUNTA(E51:J51) -> 0 | BM51: =COUNTA(C51) -> 1
C52: =+('Standing Data'!D81) ->  | K52: 0 | L52: =L51 -> -750000 | M52: =M51 -> 750000 | BC52: 5 | BG52: 1 | BI52: 0 | BM52: 1
C53: =+('Standing Data'!D82) ->  | K53: 0 | L53: -750000 | M53: 750000 | BC53: 5 | BG53: 1 | BI53: 0 | BM53: 1
C54: =+('Standing Data'!D83) ->  | K54: 0 | L54: -750000 | M54: 750000 | BC54: 5 | BG54: 1 | BI54: 0 | BM54: 1
C55: =+('Standing Data'!D84) ->  | K55: 0 | L55: -750000 | M55: 750000 | BC55: 5 | BG55: 1 | BI55: 0 | BM55: 1
C56: =+('Standing Data'!D85) ->  | K56: 0 | L56: -750000 | M56: 750000 | BC56: 5 | BG56: 1 | BI56: 0 | BM56: 1
C57: =+('Standing Data'!D86) ->  | K57: 0 | L57: -750000 | M57: 750000 | BC57: 5 | BG57: 1 | BI57: 0 | BM57: 1
C58: =+('Standing Data'!D87) ->  | K58: 0 | L58: -750000 | M58: 750000 | BC58: 5 | BG58: 1 | BI58: 0 | BM58: 1
C59: =+('Standing Data'!D88) ->  | K59: 0 | L59: -750000 | M59: 750000 | BC59: 5 | BG59: 1 | BI59: 0 | BM59: 1
C60: =+('Standing Data'!D89) ->  | K60: 0 | L60: -750000 | M60: 750000 | BC60: 5 | BG60: 1 | BI60: 0 | BM60: 1
C61: =+('Standing Data'!D90) ->  | K61: 0 | L61: -750000 | M61: 750000 | BC61: 5 | BG61: 1 | BI61: 0 | BM61: 1
C62: =+('Standing Data'!D91) ->  | K62: 0 | L62: -750000 | M62: 750000 | BC62: 5 | BG62: 1 | BI62: 0 | BM62: 1
C63: =+('Standing Data'!D92) ->  | K63: 0 | L63: -750000 | M63: 750000 | BC63: 5 | BG63: 1 | BI63: 0 | BM63: 1
C64: =+('Standing Data'!D93) ->  | K64: 0 | L64: -750000 | M64: 750000 | BC64: 5 | BG64: 1 | BI64: 0 | BM64: 1
C65: =+('Standing Data'!D94) ->  | K65: 0 | L65: -750000 | M65: 750000 | BC65: 5 | BG65: 1 | BI65: 0 | BM65: 1
C66: =+('Standing Data'!D95) ->  | K66: 0 | L66: -750000 | M66: 750000 | BC66: 5 | BG66: 1 | BI66: 0 | BM66: 1
C67: =+('Standing Data'!D96) ->  | K67: 0 | L67: -750000 | M67: 750000 | BC67: 5 | BG67: 1 | BI67: 0 | BM67: 1
C68: =+('Standing Data'!D97) ->  | K68: 0 | L68: -750000 | M68: 750000 | BC68: 5 | BG68: 1 | BI68: 0 | BM68: 1
C69: =+('Standing Data'!D98) ->  | K69: 0 | L69: -750000 | M69: 750000 | BC69: 5 | BG69: 1 | BI69: 0 | BM69: 1
C70: =+('Standing Data'!D99) ->  | K70: 0 | L70: -750000 | M70: 750000 | BC70: 5 | BG70: 1 | BI70: 0 | BM70: 1
C71: =+('Standing Data'!D100) ->  | K71: 0 | L71: -750000 | M71: 750000 | BC71: 5 | BG71: 1 | BI71: 0 | BM71: 1
C72: =+('Standing Data'!D101) ->  | K72: 0 | L72: -750000 | M72: 750000 | BC72: 5 | BG72: 1 | BI72: 0 | BM72: 1
C73: =+('Standing Data'!D102) ->  | K73: 0 | L73: -750000 | M73: 750000 | BC73: 5 | BG73: 1 | BI73: 0 | BM73: 1
C74: =+('Standing Data'!D103) ->  | K74: 0 | L74: -750000 | M74: 750000 | BC74: 5 | BG74: 1 | BI74: 0 | BM74: 1
C75: =+('Standing Data'!D104) ->  | K75: 0 | L75: -750000 | M75: 750000 | BC75: 5 | BG75: 1 | BI75: 0 | BM75: 1
C76: =+('Standing Data'!D105) ->  | K76: 0 | L76: -750000 | M76: 750000 | BC76: 5 | BG76: 1 | BI76: 0 | BM76: 1
C77: =+('Standing Data'!D106) ->  | K77: 0 | L77: -750000 | M77: 750000 | BC77: 5 | BG77: 1 | BI77: 0 | BM77: 1
C78: =+('Standing Data'!D107) ->  | K78: 0 | L78: -750000 | M78: 750000 | BC78: 5 | BG78: 1 | BI78: 0 | BM78: 1
C79: =+('Standing Data'!D108) ->  | K79: 0 | L79: -750000 | M79: 750000 | BC79: 5 | BG79: 1 | BI79: 0 | BM79: 1
C80: =+('Standing Data'!D109) ->  | K80: 0 | L80: -750000 | M80: 750000 | BC80: 5 | BG80: 1 | BI80: 0 | BM80: 1
C81: =+('Standing Data'!D110) ->  | K81: 0 | L81: -750000 | M81: 750000 | BC81: 5 | BG81: 1 | BI81: 0 | BM81: 1
C82: =+('Standing Data'!D111) ->  | K82: 0 | L82: -750000 | M82: 750000 | BC82: 5 | BG82: 1 | BI82: 0 | BM82: 1
C83: =+('Standing Data'!D112) ->  | K83: =+SUM(G83:J83) -> 0 | L83: -750000 | M83: 750000 | BC83: 5 | BG83: 1 | BI83: =COUNTA(E83:J83) -> 0 | BM83: =COUNTA(C83) -> 1
C84: =+('Standing Data'!D113) ->  | K84: 0 | L84: =L83 -> -750000 | M84: =M83 -> 750000 | BC84: 5 | BG84: 1 | BI84: 0 | BM84: 1
C85: =+('Standing Data'!D114) ->  | K85: 0 | L85: -750000 | M85: 750000 | BC85: 5 | BG85: 1 | BI85: 0 | BM85: 1
C86: =+('Standing Data'!D115) ->  | K86: 0 | L86: -750000 | M86: 750000 | BC86: 5 | BG86: 1 | BI86: 0 | BM86: 1
C87: =+('Standing Data'!D116) ->  | K87: 0 | L87: -750000 | M87: 750000 | BC87: 5 | BG87: 1 | BI87: 0 | BM87: 1
C88: =+('Standing Data'!D117) ->  | K88: 0 | L88: -750000 | M88: 750000 | BC88: 5 | BG88: 1 | BI88: 0 | BM88: 1
C89: =+('Standing Data'!D118) ->  | K89: 0 | L89: -750000 | M89: 750000 | BC89: 5 | BG89: 1 | BI89: 0 | BM89: 1
C90: =+('Standing Data'!D119) ->  | K90: 0 | L90: -750000 | M90: 750000 | BC90: 5 | BG90: 1 | BI90: 0 | BM90: 1
C91: =+('Standing Data'!D120) ->  | K91: 0 | L91: -750000 | M91: 750000 | BC91: 5 | BG91: 1 | BI91: 0 | BM91: 1
C92: =+('Standing Data'!D121) ->  | K92: 0 | L92: -750000 | M92: 750000 | BC92: 5 | BG92: 1 | BI92: 0 | BM92: 1
C93: =+('Standing Data'!D122) ->  | K93: 0 | L93: -750000 | M93: 750000 | BC93: 5 | BG93: 1 | BI93: 0 | BM93: 1
C94: =+('Standing Data'!D123) ->  | K94: 0 | L94: -750000 | M94: 750000 | BC94: 5 | BG94: 1 | BI94: 0 | BM94: 1
C95: =+('Standing Data'!D124) ->  | K95: 0 | L95: -750000 | M95: 750000 | BC95: 5 | BG95: 1 | BI95: 0 | BM95: 1
C96: =+('Standing Data'!D125) ->  | K96: 0 | L96: -750000 | M96: 750000 | BC96: 5 | BG96: 1 | BI96: 0 | BM96: 1
C97: =+('Standing Data'!D126) ->  | K97: 0 | L97: -750000 | M97: 750000 | BC97: 5 | BG97: 1 | BI97: 0 | BM97: 1
C98: =+('Standing Data'!D127) ->  | K98: 0 | L98: -750000 | M98: 750000 | BC98: 5 | BG98: 1 | BI98: 0 | BM98: 1
C99: =+('Standing Data'!D128) ->  | K99: 0 | L99: -750000 | M99: 750000 | BC99: 5 | BG99: 1 | BI99: 0 | BM99: 1
C100: =+('Standing Data'!D129) ->  | K100: 0 | L100: -750000 | M100: 750000 | BC100: 5 | BG100: 1 | BI100: 0 | BM100: 1
C101: =+('Standing Data'!D130) ->  | K101: 0 | L101: -750000 | M101: 750000 | BC101: 5 | BG101: 1 | BI101: 0 | BM101: 1
C102: =+('Standing Data'!D131) ->  | K102: 0 | L102: -750000 | M102: 750000 | BC102: 5 | BG102: 1 | BI102: 0 | BM102: 1
C103: =+('Standing Data'!D132) ->  | K103: 0 | L103: -750000 | M103: 750000 | BC103: 5 | BG103: 1 | BI103: 0 | BM103: 1
C104: =+('Standing Data'!D133) ->  | K104: 0 | L104: -750000 | M104: 750000 | BC104: 5 | BG104: 1 | BI104: 0 | BM104: 1
C105: =+('Standing Data'!D134) ->  | K105: 0 | L105: -750000 | M105: 750000 | BC105: 5 | BG105: 1 | BI105: 0 | BM105: 1
C106: =+('Standing Data'!D135) ->  | K106: 0 | L106: -750000 | M106: 750000 | BC106: 5 | BG106: 1 | BI106: 0 | BM106: 1
C107: =+('Standing Data'!D136) ->  | K107: 0 | L107: -750000 | M107: 750000 | BC107: 5 | BG107: 1 | BI107: 0 | BM107: 1
C108: =+('Standing Data'!D137) ->  | K108: 0 | L108: -750000 | M108: 750000 | BC108: 5 | BG108: 1 | BI108: 0 | BM108: 1
C109: =+('Standing Data'!D138) ->  | K109: 0 | L109: -750000 | M109: 750000 | BC109: 5 | BG109: 1 | BI109: 0 | BM109: 1
C110: =+('Standing Data'!D139) ->  | K110: 0 | L110: -750000 | M110: 750000 | BC110: 5 | BG110: 1 | BI110: 0 | BM110: 1
C111: =+('Standing Data'!D140) ->  | K111: 0 | L111: -750000 | M111: 750000 | BC111: 5 | BG111: 1 | BI111: 0 | BM111: 1
C112: =+('Standing Data'!D141) ->  | K112: 0 | L112: -750000 | M112: 750000 | BC112: 5 | BG112: 1 | BI112: 0 | BM112: 1
C113: =+('Standing Data'!D142) ->  | K113: 0 | L113: -750000 | M113: 750000 | BC113: 5 | BG113: 1 | BI113: 0 | BM113: 1
C114: =+('Standing Data'!D143) ->  | K114: 0 | L114: -750000 | M114: 750000 | BC114: 5 | BG114: 1 | BI114: 0 | BM114: 1
C115: =+('Standing Data'!D144) ->  | K115: =+SUM(G115:J115) -> 0 | L115: -750000 | M115: 750000 | BC115: 5 | BG115: 1 | BI115: 0 | BM115: 1
C116: =+('Standing Data'!D145) ->  | K116: 0 | L116: -750000 | M116: 750000 | BC116: 5 | BG116: 1 | BI116: 0 | BM116: 1
C117: =+('Standing Data'!D146) ->  | K117: 0 | L117: -750000 | M117: 750000 | BC117: 5 | BG117: 1 | BI117: 0 | BM117: 1
C118: =+('Standing Data'!D147) ->  | K118: 0 | L118: -750000 | M118: 750000 | BC118: 5 | BG118: 1 | BI118: 0 | BM118: 1
C119: Central Services (if applicable) | K119: 0 | L119: -750000 | M119: 750000 | BC119: 5 | BI119: 0 | BM119: 1
D120: =IF('Standing Data'!D9="Multiple",IF(E120<>('Fin.Return - BS'!G48+'Fin.Return - BS'!G53),"Error - imbalance with BS",""),"") ->  | E120: =+SUM(E19:E119) -> 0 | G120: =+SUM(G19:G119) -> 0 | H120: =+SUM(H19:H119) -> 0 | I120: =+SUM(I19:I119) -> 0 | J120: =+SUM(J19:J119) -> 0 | K120: =+SUM(K19:K119) -> 0
D121: =IF(K120>0,IF(K119=0,"No central service management charges shown, please check before submission"),"") ->  | K121: =IF('Standing Data'!D9="Multiple",IF(K120<>('Fin.Return - SOFA'!G39+'Fin.Return - SOFA'!H39),"Error - imbalance with SoFA",""),"") -> 
A124: ANALYSIS OF NET ASSETS BETWEEN FUNDS | E124: Total | G124: Unrestricted Funds | H124: Restricted Funds | I124: Restricted Fixed Asset Funds | J124: Endowment Funds | L124: Lower limit | M124: Upper limit
A125: Balance sheet | E125: £000 | G125: £000 | H125: £000 | I125: £000 | J125: £000 | L125: £000 | M125: £000
B126: Fixed assets | D126: =IF(E126<>SUM(G126:J126),"Error - row does not cross cast","") ->  | E126: ='Fin.Return - BS'!G23 -> 0 | L126: ='Fin.Return - BS'!$I$45 -> -750000 | M126: ='Fin.Return - BS'!$J$19 -> 750000 | BC126: 4 | BG126: 1 | BI126: =COUNTA(G126:J126) -> 0 | BM126: =COUNTIF(E126:E126,"<>0") -> 0
B127: Current assets | E127: ='Fin.Return - BS'!E31 -> 0 | L127: =L126 -> -750000 | M127: 750000 | BC127: 4 | BG127: 1 | BI127: 0 | BM127: 0
B128: Current liabilities | E128: ='Fin.Return - BS'!E32 -> 0 | L128: -750000 | M128: 750000 | BC128: 4 | BG128: 1 | BI128: 0 | BM128: 0
B129: Non-current liabilities | E129: ='Fin.Return - BS'!G37 -> 0 | L129: -750000 | M129: 750000 | BC129: 4 | BG129: 1 | BI129: 0 | BM129: 0
B130: Provisions | E130: ='Fin.Return - BS'!G38 -> 0 | L130: -750000 | M130: 750000 | BC130: 4 | BG130: 1 | BI130: 0 | BM130: 0
B131: Pension scheme liabilities | E131: ='Fin.Return - BS'!G41 -> 0 | L131: -750000 | M131: 750000 | BC131: 4 | BG131: 1 | BI131: 0 | BM131: 0
E133: ='Fin.Return - BS'!G43 -> 0 | G133: ='Fin.Return - BS'!G55 -> 0 | H133: ='Fin.Return - BS'!G51-'Fin.Return - BS'!G47 -> 0 | I133: ='Fin.Return - BS'!G47 -> 0 | J133: ='Fin.Return - BS'!G45 -> 0 | BG133: 5 | BM133: =COUNTIF(E133:E133,"<>0")+COUNTIF(G133:J133,"<>0") -> 0
G134: =IF(G133<>SUM(G126:G132),"Error - column does not cast","") ->  | H134: =IF(H133<>SUM(H126:H132),"Error - column does not cast","") ->  | I134: =IF(I133<>SUM(I126:I132),"Error - column does not cast","") ->  | J134: =IF(J133<>SUM(J126:J132),"Error - column does not cast","") -> 
A136: PENSION COMMITMENTS
A137: SoFA
B138: Please identify, by scheme type, the Academy's pension schemes from the dropdown boxes below:
C139: Scheme | E139: Scheme type
C140: Teachers' Pension Scheme | E140: Defined benefit scheme(s) - multi-employer unallocated scheme assets and liabilities | BA140: Consol, EFA/DfE Pension Note
C141: Local Government Pension Scheme (LGPS) | E141: Defined benefit scheme(s) - multi-employer allocated scheme assets and liabilities | BA141: Consol, EFA/DfE Pension Note
B142: Notes | C142: Scheme Name | D142: =IF(OR(AND(C142<>"Scheme Name",E142="Scheme Type"),AND(C142="Scheme Name",E142<>"Scheme Type")),"Error - within note","") ->  | E142: Scheme Type | K142: =IF(OR(E142=Reference!L$8,E142=Reference!L$9),"Complete 'Green' disclosures below", IF(E142="Scheme Type","","Ignore 'Green' disclosures below")) ->  | BA142: Consol, EFA/DfE Pension Note | BE142: 2 | BK142: =COUNTA(C142:E142)-1 -> 2
C143: Scheme Name | D143: =IF(OR(AND(C143<>"Scheme Name",E143="Scheme Type"),AND(C143="Scheme Name",E143<>"Scheme Type")),"Error - within note","") ->  | E143: Scheme Type | K143: =IF(OR(E143=Reference!L$8,E143=Reference!L$9),"Complete 'Green' disclosures below", IF(E143="Scheme Type","","Ignore 'Green' disclosures below")) ->  | BA143: Consol, EFA/DfE Pension Note | BE143: 2 | BK143: =COUNTA(C142:E142)-1 -> 2
C144: Scheme Name | D144: =IF(OR(AND(C144<>"Scheme Name",E144="Scheme Type"),AND(C144="Scheme Name",E144<>"Scheme Type")),"Error - within note","") ->  | E144: Scheme Type | K144: =IF(OR(E144=Reference!L$8,E144=Reference!L$9),"Complete 'Green' disclosures below", IF(E144="Scheme Type","","Ignore 'Green' disclosures below")) ->  | BA144: Consol, EFA/DfE Pension Note | BE144: 2 | BK144: =COUNTA(C142:E142)-1 -> 2
C145: Select scheme name from drop-down box | E145: Select scheme type from drop-down box
B147: Breakdown of SoFA pension charge: | E147: Total | G147: Employer Contributions | H147: FRS17 Adjustment | M147: Lower limit | N147: Upper limit
E148: £000 | G148: £000 | H148: £000 | M148: £000 | N148: £000
C149: LGPS | E149: =SUM(G149:H149) -> 0 | J149: =IF(G149<>SUMIF(CoPty.Return!B22:B221,"LG*",CoPty.Return!O22:O221), "Error - LGPS employer contributions do not equal total contributions shown in counter party return","") ->  | M149: -750000 | N149: ='Fin.Return - BS'!$J$19 -> 750000 | BA149: Consol, EFA/DfE Pension Note | BE149: 0 | BG149: 2 | BK149: =COUNTA(G149:H149) -> 0
C150: Other defined benefit scheme(s) - multi-employer allocated scheme assets and liabilities | E150: =SUM(G150:H150) -> 0 | M150: -750000 | N150: ='Fin.Return - BS'!$J$19 -> 750000
C151: Defined benefit scheme(s) - single employer | E151: =SUM(G151:H151) -> 0 | M151: -750000 | N151: =N149 -> 750000 | BA151: Consol, EFA/DfE Pension Note | BE151: 2 | BK151: =COUNTA(G151:H151) -> 0
C152: TPS | E152: =G152 -> 0 | M152: -750000 | N152: =N150 -> 750000
C153: Other defined benefit scheme(s) - multi-employer unallocated scheme assets and liabilities | E153: =G153 -> 0 | M153: =M151 -> -750000 | N153: =N151 -> 750000 | BA153: Consol, EFA/DfE Pension Note | BE153: 1 | BK153: =COUNTA(G153:H153) -> 0
C154: Defined contribution scheme(s) | E154: =G154 -> 0 | M154: =M153 -> -750000 | N154: =N153 -> 750000 | BA154: Consol, EFA/DfE Pension Note | BE154: 1 | BK154: =COUNTA(G154:H154) -> 0
C155: Stakeholder/private pension provision | E155: =G155 -> 0 | M155: =M154 -> -750000 | N155: =N154 -> 750000 | BA155: Consol, EFA/DfE Pension Note | BE155: 1 | BK155: =COUNTA(G155:H155) -> 0
D157: =IF(E157<>SUM(E149:E156),"Error - column does not cast","") ->  | E157: ='Fin.Return - SOFA'!E291 -> 0 | G157: =SUM(G149:G156) -> 0 | H157: =SUM(H149:H156) -> 0 | BG157: 1
D158: =IF(D157<>"","Error - Total does not agree SOFA staff note","") -> 
B159: FRS 17 pension scheme disclosures | E159: Total | G159: LGPS | H159: =IF(OR($E142=Reference!$L$8,$E142=Reference!$L$9),'Fin.Return - Other Notes'!$C142,"") ->  | I159: =IF(OR($E143=Reference!$L$8,$E143=Reference!$L$9),'Fin.Return - Other Notes'!$C143,"") ->  | J159: =IF(OR($E144=Reference!$L$8,$E144=Reference!$L$9),'Fin.Return - Other Notes'!$C144,"") ->  | BG159: 3
E160: £000 | G160: £000 | H160: £000 | I160: £000 | J160: £000
B161: Amounts recognised in the financial statements | H161: =IF(P161=TRUE, "No pension scheme selected","") ->  | I161: =IF(Q161=TRUE, "No pension scheme selected","") ->  | J161: =IF(R161=TRUE, "No pension scheme selected","") ->  | P161: =AND(H159="",H166+H172+H174+H190+H203+H219<>0) -> FALSE | Q161: =AND(I159="",I166+I172+I174+I190+I203+I219<>0) -> FALSE | R161: =AND(J159="",J166+J172+J174+J190+J203+J219<>0) -> FALSE
C162: Current service cost | D162: =IF(E162<>SUM(G162:J162),"Error - row does not cross cast","") ->  | M162: -750000 | N162: =N155 -> 750000 | BA162: Consol, EFA/DfE Pension Note | BC162: 1 | BE162: 3 | BG162: 1 | BI162: =COUNTA(E162:E162) -> 0 | BK162: =COUNTA(H162:J162) -> 0
C163: Past service cost | D163: =IF(E163<>SUM(G163:J163),"Error - row does not cross cast","") ->  | M163: =M162 -> -750000 | N163: =N162 -> 750000 | BA163: Consol, EFA/DfE Pension Note | BC163: 1 | BE163: 3 | BG163: 1 | BI163: =COUNTA(E163:E163) -> 0 | BK163: =COUNTA(H163:J163) -> 0
C164: Curtailment and settlement | D164: =IF(E164<>SUM(G164:J164),"Error - row does not cross cast","") ->  | M164: =M163 -> -750000 | N164: =N163 -> 750000 | BA164: Consol, EFA/DfE Pension Note | BC164: 1 | BE164: 3 | BG164: 1 | BI164: =COUNTA(E164:E164) -> 0 | BK164: =COUNTA(H164:J164) -> 0
C166: Total operating charge | E166: =SUM(E162:E165) -> 0 | G166: =SUM(G162:G165) -> 0 | H166: =SUM(H162:H165) -> 0 | I166: =SUM(I162:I165) -> 0 | J166: =SUM(J162:J165) -> 0
B168: Analysis of pension finance return/(charge)
C169: Expected return on employers' share of scheme assets | D169: =IF(E169<>SUM(G169:J169),"Error - row does not cross cast","") ->  | M169: =M164 -> -750000 | N169: =N164 -> 750000 | BA169: Consol, EFA/DfE Pension Note | BC169: 1 | BE169: 4 | BI169: =COUNTA(E169:E169) -> 0 | BK169: =COUNTA(H169:J169) -> 0
C170: Interest on pension liabilities | D170: =IF(E170<>SUM(G170:J170),"Error - row does not cross cast","") ->  | M170: =M169 -> -750000 | N170: =N169 -> 750000 | BA170: Consol, EFA/DfE Pension Note | BC170: 1 | BE170: 4 | BI170: =COUNTA(E170:E170) -> 0 | BK170: =COUNTA(H170:J170) -> 0
C172: Pension finance return/(charge) | E172: =SUM(E169:E171) -> 0 | G172: =SUM(G169:G171) -> 0 | H172: =SUM(H169:H171) -> 0 | I172: =SUM(I169:I171) -> 0 | J172: =SUM(J169:J171) -> 0
A174: SoFA | B174: Actuarial gains/(losses) recognised | D174: =IF(E174<>SUM(G174:J174),"Error - row does not cross cast","") ->  | E174: ='Fin.Return - SOFA'!E45 -> 0 | M174: =M170 -> -750000 | N174: =N170 -> 750000 | BA174: Consol, EFA/DfE Pension Note | BE174: 4 | BK174: =COUNTA(H174:J174) -> 0
D175: =IF(D174<>"","Total does not agree - SOFA E46","") -> 
B176: Movements in the present value of obligations during the year
C177: Opening present value of scheme obligations | D177: =IF(E177<>SUM(G177:J177),"Error - row does not cross cast","") ->  | M177: -750000 | N177: 0 | BA177: Consol, EFA/DfE Pension Note | BC177: 1 | BE177: 4 | BI177: =COUNTA(E177:E177) -> 0 | BK177: =COUNTA(H177:J177) -> 0
C178: Service cost | M178: -750000 | N178: 0 | BA178: Consol, EFA/DfE Pension Note | BC178: 1 | BE178: 4 | BI178: 0 | BK178: 0
C179: Interest cost | M179: -750000 | N179: 0 | BA179: Consol, EFA/DfE Pension Note | BC179: 1 | BE179: 4 | BI179: 0 | BK179: 0
C180: Actuarial (loss)/gain | M180: -750000 | N180: 750000 | BA180: Consol, EFA/DfE Pension Note | BC180: 1 | BE180: 4 | BI180: 0 | BK180: 0
C181: Employee contributions | M181: -750000 | N181: 750000 | BA181: Consol, EFA/DfE Pension Note | BC181: 1 | BE181: 4 | BI181: 0 | BK181: 0
C182: Benefits paid | M182: 0 | N182: 750000 | BA182: Consol, EFA/DfE Pension Note | BC182: 1 | BE182: 4 | BI182: 0 | BK182: 0
C183: Curtailments and settlements | M183: -750000 | N183: 750000 | BA183: Consol, EFA/DfE Pension Note | BC183: 1 | BE183: 4 | BI183: 0 | BK183: 0
C184: Past service cost/(gain) | M184: -750000 | N184: 750000 | BA184: Consol, EFA/DfE Pension Note | BC184: 1 | BE184: 4 | BI184: 0 | BK184: 0
C185: Unfunded pension payments | M185: 0 | N185: 750000 | BA185: Consol, EFA/DfE Pension Note | BC185: 1 | BE185: 4 | BI185: 0 | BK185: 0
C186: Transfer in from new academies | M186: -750000 | N186: 0 | BA186: Consol, EFA/DfE Pension Note | BC186: 1 | BE186: 4 | BI186: 0 | BK186: 0
C187: Transferred in on existing academies joining the trust | M187: -750000 | N187: 750000
C188: Transferred out on existing academies leaving the trust | M188: -750000 | N188: 750000
C190: Closing defined benefit obligation | E190: =SUM(E177:E189) -> 0 | G190: =SUM(G177:G189) -> 0 | H190: =SUM(H177:H189) -> 0 | I190: =SUM(I177:I189) -> 0 | J190: =SUM(J177:J189) -> 0
B192: Movements in the fair value of the Academy's share of scheme assets
C193: Opening fair value of scheme assets | D193: =IF(E193<>SUM(G193:J193),"Error - row does not cross cast","") ->  | M193: 0 | N193: 750000 | BA193: Consol, EFA/DfE Pension Note | BC193: 1 | BE193: 4 | BI193: =COUNTA(E193:E193) -> 0 | BK193: =COUNTA(H193:J193) -> 0
C194: Expected return on scheme assets | M194: 0 | N194: 750000 | BA194: Consol, EFA/DfE Pension Note | BC194: 1 | BE194: 4 | BI194: 0 | BK194: 0
C195: Actuarial (loss)/gain | M195: -750000 | N195: 750000 | BA195: Consol, EFA/DfE Pension Note | BC195: 1 | BE195: 4 | BI195: 0 | BK195: 0
C196: Employer contributions | M196: 0 | N196: 750000 | BA196: Consol, EFA/DfE Pension Note | BC196: 1 | BE196: 4 | BI196: 0 | BK196: 0
C197: Employee contributions | E197: =-(E181) -> 0 | G197: =-(G181) -> 0 | H197: =-(H181) -> 0 | I197: 0 | J197: 0 | M197: -750000 | N197: 750000 | BA197: Consol, EFA/DfE Pension Note | BG197: 5 | BI197: 1 | BK197: 3
C198: Benefits paid | E198: =-(E182) -> 0 | G198: =-(G182) -> 0 | H198: =-(H182) -> 0 | I198: 0 | J198: 0 | M198: -750000 | N198: 0 | BA198: Consol, EFA/DfE Pension Note | BG198: 5 | BI198: 1 | BK198: 3
C199: Transfer in from new academies | M199: 0 | N199: 750000 | BA199: Consol, EFA/DfE Pension Note | BC199: 1 | BE199: 4 | BI199: 0 | BK199: 0
C200: Transferred in on existing academies joining the trust | M200: -750000 | N200: 750000
C201: Transferred out on existing academies leaving the trust | M201: -750000 | N201: 750000
C203: Closing fair value of scheme assets | E203: =SUM(E193:E202) -> 0 | G203: =SUM(G193:G202) -> 0 | H203: =SUM(H193:H202) -> 0 | I203: =SUM(I193:I202) -> 0 | J203: =SUM(J193:J202) -> 0
B205: Reconciliation of opening to closing (deficit)/surplus
C206: Opening balance | D206: =IF(E206<>SUM(G206:J206),"Error - row does not cross cast","") ->  | E206: =E177+E193 -> 0 | G206: =G177+G193 -> 0 | H206: =H177+H193 -> 0 | I206: =I177+I193 -> 0 | J206: =J177+J193 -> 0 | BA206: Consol, EFA/DfE Pension Note | BG206: 5 | BI206: =COUNTA(E206:E206) -> 1 | BK206: =COUNTA(H206:J206) -> 3
C207: Change in asset valuation | E207: =E194 -> 0 | G207: =G194 -> 0 | H207: =H194 -> 0 | I207: =I194 -> 0 | J207: =J194 -> 0 | BA207: Consol, EFA/DfE Pension Note | BG207: 5 | BI207: 1 | BK207: 3
C208: Current service cost | E208: =E178 -> 0 | G208: =G178 -> 0 | H208: =H178 -> 0 | I208: =I178 -> 0 | J208: =J178 -> 0 | BA208: Consol, EFA/DfE Pension Note | BG208: 5 | BI208: 1 | BK208: 3
C209: Employer contributions | E209: =E196 -> 0 | G209: =G196 -> 0 | H209: =H196 -> 0 | I209: =I196 -> 0 | J209: =J196 -> 0 | BA209: Consol, EFA/DfE Pension Note | BG209: 5 | BI209: 1 | BK209: 3
C210: Unfunded pension payments | E210: =E185 -> 0 | G210: =G185 -> 0 | H210: =H185 -> 0 | I210: =I185 -> 0 | J210: =J185 -> 0 | BA210: Consol, EFA/DfE Pension Note | BG210: 5 | BI210: 1 | BK210: 3
C211: Past service costs | E211: =E184 -> 0 | G211: =G184 -> 0 | H211: =H184 -> 0 | I211: =I184 -> 0 | J211: =J184 -> 0 | BA211: Consol, EFA/DfE Pension Note | BG211: 5 | BI211: 1 | BK211: 3
C212: Other finance income | E212: =E179 -> 0 | G212: =G179 -> 0 | H212: =H179 -> 0 | I212: =I179 -> 0 | J212: =J179 -> 0 | BA212: Consol, EFA/DfE Pension Note | BG212: 5 | BI212: 1 | BK212: 3
C213: Curtailments and settlements | E213: =E183 -> 0 | G213: =G183 -> 0 | H213: =H183 -> 0 | I213: =I183 -> 0 | J213: =J183 -> 0 | BA213: Consol, EFA/DfE Pension Note | BG213: 5 | BI213: 1 | BK213: 3
C214: Actuarial (loss)/gain | E214: =E180+E195 -> 0 | G214: =G180+G195 -> 0 | H214: =H180+H195 -> 0 | I214: =I180+I195 -> 0 | J214: =J180+J195 -> 0 | BA214: Consol, EFA/DfE Pension Note | BG214: 5 | BI214: 1 | BK214: 3
C215: Transfer in from new academies | E215: =E199+E186 -> 0 | G215: =G199+G186 -> 0 | H215: =H199+H186 -> 0 | I215: =I199+I186 -> 0 | J215: =J199+J186 -> 0 | BA215: Consol, EFA/DfE Pension Note | BG215: 5 | BI215: 1 | BK215: 3
C216: Transferred in on existing academies joining the trust | E216: =E200+E187 -> 0 | G216: =G200+G187 -> 0 | H216: 0 | I216: 0 | J216: 0
C217: Transferred out on existing academies leaving the trust | E217: 0 | G217: =G201+G188 -> 0 | H217: 0 | I217: 0 | J217: 0
C219: Closing balance | D219: =IF(E219<>'Fin.Return - BS'!G41, "Error - not equal to balance sheet G41","") ->  | E219: =SUM(E206:E218) -> 0 | G219: =SUM(G206:G218) -> 0 | H219: =SUM(H206:H218) -> 0 | I219: =SUM(I206:I218) -> 0 | J219: =SUM(J206:J218) -> 0
... 378 more rows

Sheet CoPty.Return
A1: Accounts Return March 2016 - Counterparty Return
A3: Trust: | C3: ='Standing Data'!D3 -> 0 | D3: NAVIGATION LINKS
A5: Period end: | C5: ='Standing Data'!D6 -> 2016-03-31 | D5: Incoming resources | E5: Resources expended | G5: Cells will populate automatically from elsewhere in the Return
D6: Assets | E6: Liabilities <1yr
A7: Company Number: | C7: ='Standing Data'!D14 -> Type number here | D7: Liabilities >1yr | E7: Provisions | G7: Additional to Financial Statements, prepared on a similar basis
D8: Pension deficit
A9: Academy UPIN: | C9: ='Fin.Return - SOFA'!C9 ->  | G9: Non-financial cells to be populated by Academy Trust
C10: Above details will populate automatically
E11: Errors | G11: Comment cells available to the Academy Trust
A12: COUNTERPARTY RETURN | E12: =COUNTIF(A31:A221,"Error*")+COUNTIF(E31:E221,"Error*") -> 0 | F12: HELP
C15: Financial Return caption value | F15: =-'Fin.Return - SOFA'!$E73 -> 0 | G15: =-'Fin.Return - SOFA'!$E86 -> 0 | H15: =-'Fin.Return - SOFA'!$E97 -> 0 | I15: =-('Fin.Return - SOFA'!E126+'Fin.Return - SOFA'!E135+'Fin.Return - SOFA'!E144) -> 0 | J15: =-('Fin.Return - SOFA'!E150+'Fin.Return - SOFA'!E156) -> 0 | K15: =-('Fin.Return - SOFA'!E163) -> 0 | L15: =-'Fin.Return - SOFA'!$G370 -> 0 | N15: ='Fin.Return - SOFA'!$E289 -> 0 | O15: =+'Fin.Return - Other Notes'!G157 -> 0 | P15: ='Fin.Return - SOFA'!$E185 -> 0 | R15: ='Fin.Return - SOFA'!$E251 -> 0 | S15: ='Fin.Return - SOFA'!$E238-'Fin.Return - SOFA'!$E386 -> 0 | U15: =-'Fin.Return - SOFA'!G407 -> 0 | W15: ='Fin.Return - BS'!E207 -> 0 | X15: ='Fin.Return - BS'!E209 -> 0 | Z15: ='Fin.Return - BS'!E210 -> 0 | AA15: ='Fin.Return - BS'!E211 -> 0 | AC15: ='Fin.Return - BS'!G207 -> 0 | AD15: ='Fin.Return - BS'!G209 -> 0 | AE15: ='Fin.Return - BS'!G210 -> 0 | AF15: ='Fin.Return - BS'!G211 -> 0 | AH15: =-'Fin.Return - BS'!E271 -> 0 | AI15: =-'Fin.Return - BS'!E272 -> 0 | AJ15: =-'Fin.Return - BS'!E274-'Fin.Return - BS'!E278 -> 0 | AK15: =-'Fin.Return - BS'!E275 -> 0 | AL15: =-'Fin.Return - BS'!E277 -> 0 | AM15: =-'Fin.Return - BS'!E276 -> 0 | AN15: =-'Fin.Return - BS'!E279 -> 0 | AQ15: =-'Fin.Return - BS'!E316 -> 0 | AR15: =-'Fin.Return - BS'!E318 -> 0 | AS15: =-'Fin.Return - BS'!E319 -> 0 | AU15: =-'Fin.Return - BS'!E361 -> 0 | AV15: ='Fin.Return - BS'!M388 -> 0
F16: =+IF(F15-SUM(F22:F221)>0,"Error - counterparty balances exceed caption value","") ->  | G16: =+IF(G15-SUM(G22:G221)>0,"Error - counterparty balances exceed caption value","") ->  | H16: =+IF(H15-SUM(H22:H221)>0,"Error - counterparty balances exceed caption value","") ->  | I16: =+IF(I15-SUM(I22:I221)<>0,"Error - counterparty analysis does not equal SoFA note","") ->  | J16: =+IF(J15-SUM(J22:J221)<>0,"Error - counterparty analysis does not equal SoFA note","") ->  | K16: =+IF(K15-SUM(K22:K221)>0,"Error - counterparty balances exceed caption value","") ->  | L16: =+IF(L15-SUM(L22:L221)>0,"Error - counterparty balances exceed caption value","") ->  | N16: =+IF(N15-SUM(N22:N221)<0,"Error - counterparty balances exceed caption value","") ->  | O16: =+IF(O15-SUM(O22:O221)<0,"Error - counterparty balances exceed caption value","") ->  | P16: =+IF(P15-SUM(P22:Q221)<0,"Error - counterparty balances exceed caption value","") ->  | R16: =+IF(R15-SUM(R22:R221)<0,"Error - counterparty balances exceed caption value","") ->  | S16: =+IF(S15-SUM(S22:S221)<0,"Error - counterparty balances exceed caption value","") ->  | U16: =+IF(U15-SUM(U22:U221)<0,"Error - counterparty balances exceed caption value","") ->  | W16: =+IF(W15-SUM(W22:W221)<0,"Error - counterparty balances exceed caption value","") ->  | X16: =+IF(X15-SUM(X22:Y221)<0,"Error - counterparty balances exceed caption value","") ->  | Z16: =+IF(Z15-SUM(Z22:Z221)<0,"Error - counterparty balances exceed caption value","") ->  | AA16: =+IF(AA15-SUM(AA22:AA221)<0,"Error - counterparty balances exceed caption value","") ->  | AC16: =+IF(AC15-SUM(AC22:AC221)<0,"Error - counterparty balances exceed caption value","") ->  | AD16: =+IF(AD15-SUM(AD22:AD221)<0,"Error - counterparty balances exceed caption value","") ->  | AE16: =+IF(AE15-SUM(AE22:AE221)<0,"Error - counterparty balances exceed caption value","") ->  | AF16: =+IF(AF15-SUM(AF22:AF221)<0,"Error - counterparty balances exceed caption value","") ->  | AH16: =+IF(AH15-SUM(AH22:AH221)>0,"Error - counterparty balances exceed caption value","") ->  | AN16: =+IF(AN15-SUM(AN22:AO221)>0,"Error - counterparty balances exceed caption value","") ->  | AQ16: =+IF(AQ15-SUM(AQ22:AQ221)>0,"Error - counterparty balances exceed caption value","") ->  | AR16: =+IF(AR15-SUM(AR22:AR221)>0,"Error - counterparty balances exceed caption value","") ->  | AS16: =+IF(AS15-SUM(AS22:AS221)>0,"Error - counterparty balances exceed caption value","") ->  | AU16: =+IF(AU15-SUM(AU22:AU221)>0,"Error - counterparty balances exceed caption value","") ->  | AV16: =+IF(AV15-SUM(AV22:AV221)>0,"Error - counterparty balances exceed caption value","") -> 
A18: HELP | F18: Income and Endowments | N18: Expenditure | W18: Debtors under one year | AC18: Debtors over more than one year | AH18: Liabilities less than one year | AQ18: Liabilities over one year | AU18: Other | BB18: Blue | BC18: Grey | BD18: Amber | BE18: Total | BF18: Blue | BG18: Grey | BH18: Amber | BI18: Total
I19: Funding for the Academy's educational operations
B20: CPID & Academy Code (populate from drop-down boxes) | C20: Name of Public Body and/or Academy | D20: Type | F20: Voluntary income | G20: Activities for generating funds | H20: Investment income | I20: DfE Family | J20: LA and other government grants | K20: Other | L20: Provision of boarding activities | N20: Wages and salaries | O20: Employer's pension contributions | P20: Operating lease rentals - Buildings | Q20: Operating lease rentals - Land | R20: Finance lease interest payments | S20: Business rates | T20: Purchase of goods and services | U20: Boarding Activities | W20: Trade debtors | X20: Prepayments and accrued income (exc government grants) | Y20: Accrued Government grants | Z20: VAT recoverable | AA20: Other debtors | AC20: Trade debtors | AD20: Prepayments and accrued income | AE20: VAT recoverable | AF20: Other debtors | AH20: Loans within one year | AI20: Trade creditors | AJ20: Taxes and social security | AK20: Finance lease creditors within one year | AL20: Other creditors within one year | AM20: VAT Payable | AN20: Accruals and deferred income (excluding deferred government grants) | AO20: Deferred Government Grants | AQ20: Loans | AR20: Finance lease creditors | AS20: Other creditors | AU20: Provisions | AV20: Pension scheme surplus/(deficit) | AY20: Lower limit | AZ20: Upper limit | BB20: =SUM(BB21:BB496) -> 192 | BC20: =SUM(BC21:BC496) -> 200 | BD20: =SUM(BD21:BD496) -> 6200 | BE20: =SUM(BB20:BD20) -> 6592 | BF20: =SUM(BF21:BF496) -> 192 | BG20: =SUM(BG21:BG496) -> 9 | BH20: =SUM(BH21:BH496) -> 31 | BI20: =SUM(BF20:BH20) -> 232
F21: £000 | G21: £000 | H21: £000 | I21: £000 | L21: £000 | N21: £000 | O21: £000 | P21: £000 | Q21: £000 | R21: £000 | S21: £000 | T21: £000 | U21: £000 | W21: £000 | X21: £000 | Y21: £000 | Z21: £000 | AA21: £000 | AC21: £000 | AD21: £000 | AE21: £000 | AF21: £000 | AH21: £000 | AI21: £000 | AJ21: £000 | AK21: £000 | AL21: £000 | AM21: £000 | AN21: £000 | AO21: £000 | AQ21: £000 | AR21: £000 | AS21: £000 | AU21: £000 | AV21: £000 | AY21: £000 | AZ21: £000
B22: DFE022-01 | C22: =IFERROR(VLOOKUP(B22,'CP IDs'!$A$1:$E$7199,2,FALSE),"") -> Department for Education | D22: CenGov't | I22: =-('Fin.Return - SOFA'!E128+'Fin.Return - SOFA'!E137) -> 0 | L22: =-('Fin.Return - SOFA'!G360) -> 0 | AH22: =-('Fin.Return - BS'!G426) -> 0 | AQ22: =+SUM('Fin.Return - BS'!G427:G428) -> 0 | AY22: -500000 | AZ22: 500000 | BC22: 1 | BD22: 31 | BG22: 1 | BH22: =COUNT(F22:AV22) -> 4
B23: DFE022-08 | C23: =IFERROR(VLOOKUP(B23,'CP IDs'!$A$1:$E$7199,2,FALSE),"") -> Education Funding Agency (EFA) | D23: CenGov't | I23: =-('Fin.Return - SOFA'!E126) -> 0 | L23: =-('Fin.Return - SOFA'!G358) -> 0 | AH23: =-('Fin.Return - BS'!H426) -> 0 | AQ23: =+SUM('Fin.Return - BS'!H427:H428) -> 0 | AY23: =AY22 -> -500000 | AZ23: =AZ22 -> 500000 | BC23: 1 | BD23: 31 | BG23: 1 | BH23: 4
C24: =IFERROR(VLOOKUP(B24,'CP IDs'!$A$1:$E$7199,2,FALSE),"") ->  | D24: CenGov't | I24: =-('Fin.Return - SOFA'!E129+'Fin.Return - SOFA'!E138) -> 0 | L24: =-('Fin.Return - SOFA'!G361) -> 0 | AY24: =AY23 -> -500000 | AZ24: =AZ23 -> 500000 | BC24: 1 | BD24: 31 | BG24: 1 | BH24: 2
B25: DFE022-02 | C25: =IFERROR(VLOOKUP(B25,'CP IDs'!$A$1:$E$7199,2,FALSE),"") -> National College for Teaching and Leadership (NCTL) | D25: CenGov't | I25: =-('Fin.Return - SOFA'!E130+'Fin.Return - SOFA'!E139) -> 0 | L25: =-('Fin.Return - SOFA'!G362) -> 0 | AH25: =-('Fin.Return - BS'!I426) -> 0 | AQ25: =+SUM('Fin.Return - BS'!I427:I428) -> 0 | AY25: =AY24 -> -500000 | AZ25: =AZ24 -> 500000 | BC25: 1 | BD25: 31 | BG25: 1 | BH25: 4
B26: DFE022-06 | C26: =IFERROR(VLOOKUP(B26,'CP IDs'!$A$1:$E$7199,2,FALSE),"") -> Standards and Testing Agency (STA) | D26: CenGov't | I26: =-('Fin.Return - SOFA'!E131+'Fin.Return - SOFA'!E140) -> 0 | L26: =-('Fin.Return - SOFA'!G363) -> 0 | AH26: =-('Fin.Return - BS'!J426) -> 0 | AQ26: =+SUM('Fin.Return - BS'!J427:J428) -> 0 | AY26: -500000 | AZ26: 500000 | BC26: 1 | BD26: 31 | BG26: 1 | BH26: 4
B27: DFE022-03 | C27: =IFERROR(VLOOKUP(B27,'CP IDs'!$A$1:$E$7199,2,FALSE),"") -> Office of the Children’s Commissioner | D27: CenGov't | I27: =-('Fin.Return - SOFA'!E133+'Fin.Return - SOFA'!E142) -> 0 | L27: =-('Fin.Return - SOFA'!G365) -> 0 | AH27: =-('Fin.Return - BS'!L426) -> 0 | AQ27: =+SUM('Fin.Return - BS'!L427:L428) -> 0 | AY27: -500000 | AZ27: 500000 | BC27: 1 | BD27: 31 | BG27: 1 | BH27: 4
B28: EHR064 | C28: =IFERROR(VLOOKUP(B28,'CP IDs'!$A$1:$E$7199,2,FALSE),"") -> Equality and Human Rights Commission | D28: CenGov't | I28: =-('Fin.Return - SOFA'!E132+'Fin.Return - SOFA'!E141) -> 0 | L28: =-('Fin.Return - SOFA'!G364) -> 0 | AH28: =+('Fin.Return - BS'!K426) -> 0 | AQ28: =+SUM('Fin.Return - BS'!K427:K428) -> 0 | AY28: -500000 | AZ28: 500000 | BC28: 1 | BD28: 31 | BG28: 1 | BH28: 4
B29: TPS904 | C29: =IFERROR(VLOOKUP(B29,'CP IDs'!$A$1:$E$7199,2,FALSE),"") -> Teachers' Pension Scheme (England & Wales) | D29: CenGov't | O29: =+('Fin.Return - Other Notes'!E152) -> 0 | AY29: -500000 | AZ29: 500000 | BC29: 1 | BD29: 31 | BG29: 1 | BH29: 1
B30: HMR041-01 | C30: =IFERROR(VLOOKUP(B30,'CP IDs'!$A$1:$E$7199,2,FALSE),"") -> HM Revenue and Customs | D30: CenGov't | Z30: =+('Fin.Return - BS'!E210) -> 0 | AE30: =+('Fin.Return - BS'!G210) -> 0 | AJ30: =-('Fin.Return - BS'!E274+'Fin.Return - BS'!E278) -> 0 | AM30: =-('Fin.Return - BS'!E276) -> 0 | AY30: -500000 | AZ30: 500000 | BB30: 1 | BC30: 1 | BD30: 31 | BF30: =COUNTA(C30) -> 1 | BG30: =1-COUNTBLANK(B30) -> 1 | BH30: 4 | BJ30: =AND(B30=$C$9,'Standing Data'!$D$9<>"Multi-academy Trust") -> 
A31: =IF(B31<>"",IF('Standing Data'!$D$9<>"Multiple",IF('Standing Data'!$D$9=B31,"Error - counterparty with self",""),IF(N(ISNA(MATCH(B31,'Standing Data'!$E$48:$E$147,0)))<>0,"","Error - counterparty with self")),"") ->  | C31: =IFERROR(VLOOKUP(B31,'CP IDs'!$A$1:$E$7199,2,FALSE),"") ->  | D31: =IFERROR(VLOOKUP(B31,'CP IDs'!$A$1:$E$7199,5,FALSE),"") ->  | E31: =IF(OR(AND(COUNT(F31:AV31)>0,C31=""),AND(COUNT(F31:AV31)=0,C31<>"")),"Error - on line","") ->  | AY31: -500000 | AZ31: 500000 | BB31: 1 | BC31: 1 | BD31: 31 | BF31: 1 | BG31: 0 | BH31: 0 | BJ31: =AND(B31=$C$9,'Standing Data'!$D$9<>"Multi-academy Trust") -> 
A32: =IF(B32<>"",IF('Standing Data'!$D$9<>"Multiple",IF('Standing Data'!$D$9=B32,"Error - counterparty with self",""),IF(N(ISNA(MATCH(B32,'Standing Data'!$E$48:$E$147,0)))<>0,"","Error - counterparty with self")),"") ->  | C32: =IFERROR(VLOOKUP(B32,'CP IDs'!$A$1:$E$7199,2,FALSE),"") ->  | D32: =IFERROR(VLOOKUP(B32,'CP IDs'!$A$1:$E$7199,5,FALSE),"") ->  | AY32: -500000 | AZ32: 500000 | BB32: 1 | BC32: 1 | BD32: 31 | BF32: 1 | BG32: 0 | BH32: 0 | BJ32: =AND(B32=$C$9,'Standing Data'!$D$9<>"Multi-academy Trust") -> 
A33: =IF(B33<>"",IF('Standing Data'!$D$9<>"Multiple",IF('Standing Data'!$D$9=B33,"Error - counterparty with self",""),IF(N(ISNA(MATCH(B33,'Standing Data'!$E$48:$E$147,0)))<>0,"","Error - counterparty with self")),"") ->  | C33: =IFERROR(VLOOKUP(B33,'CP IDs'!$A$1:$E$7199,2,FALSE),"") ->  | D33: =IFERROR(VLOOKUP(B33,'CP IDs'!$A$1:$E$7199,5,FALSE),"") ->  | AY33: -500000 | AZ33: 500000 | BB33: 1 | BC33: 1 | BD33: 31 | BF33: 1 | BG33: 0 | BH33: 0 | BJ33: =AND(B33=$C$9,'Standing Data'!$D$9<>"Multi-academy Trust") -> 
A34: =IF(B34<>"",IF('Standing Data'!$D$9<>"Multiple",IF('Standing Data'!$D$9=B34,"Error - counterparty with self",""),IF(N(ISNA(MATCH(B34,'Standing Data'!$E$48:$E$147,0)))<>0,"","Error - counterparty with self")),"") ->  | C34: =IFERROR(VLOOKUP(B34,'CP IDs'!$A$1:$E$7199,2,FALSE),"") ->  | D34: =IFERROR(VLOOKUP(B34,'CP IDs'!$A$1:$E$7199,5,FALSE),"") ->  | AY34: -500000 | AZ34: 500000 | BB34: 1 | BC34: 1 | BD34: 31 | BF34: 1 | BG34: 0 | BH34: 0 | BJ34: =AND(B34=$C$9,'Standing Data'!$D$9<>"Multi-academy Trust") -> 
A35: =IF(B35<>"",IF('Standing Data'!$D$9<>"Multiple",IF('Standing Data'!$D$9=B35,"Error - counterparty with self",""),IF(N(ISNA(MATCH(B35,'Standing Data'!$E$48:$E$147,0)))<>0,"","Error - counterparty with self")),"") ->  | C35: =IFERROR(VLOOKUP(B35,'CP IDs'!$A$1:$E$7199,2,FALSE),"") ->  | D35: =IFERROR(VLOOKUP(B35,'CP IDs'!$A$1:$E$7199,5,FALSE),"") ->  | AY35: -500000 | AZ35: 500000 | BB35: 1 | BC35: 1 | BD35: 31 | BF35: 1 | BG35: 0 | BH35: 0 | BJ35: =AND(B35=$C$9,'Standing Data'!$D$9<>"Multi-academy Trust") -> 
A36: =IF(B36<>"",IF('Standing Data'!$D$9<>"Multiple",IF('Standing Data'!$D$9=B36,"Error - counterparty with self",""),IF(N(ISNA(MATCH(B36,'Standing Data'!$E$48:$E$147,0)))<>0,"","Error - counterparty with self")),"") ->  | C36: =IFERROR(VLOOKUP(B36,'CP IDs'!$A$1:$E$7199,2,FALSE),"") ->  | D36: =IFERROR(VLOOKUP(B36,'CP IDs'!$A$1:$E$7199,5,FALSE),"") ->  | AY36: -500000 | AZ36: 500000 | BB36: 1 | BC36: 1 | BD36: 31 | BF36: 1 | BG36: 0 | BH36: 0 | BJ36: =AND(B36=$C$9,'Standing Data'!$D$9<>"Multi-academy Trust") -> 
A37: =IF(B37<>"",IF('Standing Data'!$D$9<>"Multiple",IF('Standing Data'!$D$9=B37,"Error - counterparty with self",""),IF(N(ISNA(MATCH(B37,'Standing Data'!$E$48:$E$147,0)))<>0,"","Error - counterparty with self")),"") ->  | C37: =IFERROR(VLOOKUP(B37,'CP IDs'!$A$1:$E$7199,2,FALSE),"") ->  | D37: =IFERROR(VLOOKUP(B37,'CP IDs'!$A$1:$E$7199,5,FALSE),"") ->  | AY37: -500000 | AZ37: 500000 | BB37: 1 | BC37: 1 | BD37: 31 | BF37: 1 | BG37: 0 | BH37: 0 | BJ37: =AND(B37=$C$9,'Standing Data'!$D$9<>"Multi-academy Trust") -> 
A38: =IF(B38<>"",IF('Standing Data'!$D$9<>"Multiple",IF('Standing Data'!$D$9=B38,"Error - counterparty with self",""),IF(N(ISNA(MATCH(B38,'Standing Data'!$E$48:$E$147,0)))<>0,"","Error - counterparty with self")),"") ->  | C38: =IFERROR(VLOOKUP(B38,'CP IDs'!$A$1:$E$7199,2,FALSE),"") ->  | D38: =IFERROR(VLOOKUP(B38,'CP IDs'!$A$1:$E$7199,5,FALSE),"") ->  | AY38: -500000 | AZ38: 500000 | BB38: 1 | BC38: 1 | BD38: 31 | BF38: 1 | BG38: 0 | BH38: 0 | BJ38: =AND(B38=$C$9,'Standing Data'!$D$9<>"Multi-academy Trust") -> 
A39: =IF(B39<>"",IF('Standing Data'!$D$9<>"Multiple",IF('Standing Data'!$D$9=B39,"Error - counterparty with self",""),IF(N(ISNA(MATCH(B39,'Standing Data'!$E$48:$E$147,0)))<>0,"","Error - counterparty with self")),"") ->  | C39: =IFERROR(VLOOKUP(B39,'CP IDs'!$A$1:$E$7199,2,FALSE),"") ->  | D39: =IFERROR(VLOOKUP(B39,'CP IDs'!$A$1:$E$7199,5,FALSE),"") ->  | AY39: -500000 | AZ39: 500000 | BB39: 1 | BC39: 1 | BD39: 31 | BF39: 1 | BG39: 0 | BH39: 0 | BJ39: =AND(B39=$C$9,'Standing Data'!$D$9<>"Multi-academy Trust") -> 
A40: =IF(B40<>"",IF('Standing Data'!$D$9<>"Multiple",IF('Standing Data'!$D$9=B40,"Error - counterparty with self",""),IF(N(ISNA(MATCH(B40,'Standing Data'!$E$48:$E$147,0)))<>0,"","Error - counterparty with self")),"") ->  | C40: =IFERROR(VLOOKUP(B40,'CP IDs'!$A$1:$E$7199,2,FALSE),"") ->  | D40: =IFERROR(VLOOKUP(B40,'CP IDs'!$A$1:$E$7199,5,FALSE),"") ->  | AY40: -500000 | AZ40: 500000 | BB40: 1 | BC40: 1 | BD40: 31 | BF40: 1 | BG40: 0 | BH40: 0 | BJ40: =AND(B40=$C$9,'Standing Data'!$D$9<>"Multi-academy Trust") -> 
A41: =IF(B41<>"",IF('Standing Data'!$D$9<>"Multiple",IF('Standing Data'!$D$9=B41,"Error - counterparty with self",""),IF(N(ISNA(MATCH(B41,'Standing Data'!$E$48:$E$147,0)))<>0,"","Error - counterparty with self")),"") ->  | C41: =IFERROR(VLOOKUP(B41,'CP IDs'!$A$1:$E$7199,2,FALSE),"") ->  | D41: =IFERROR(VLOOKUP(B41,'CP IDs'!$A$1:$E$7199,5,FALSE),"") ->  | AY41: -500000 | AZ41: 500000 | BB41: 1 | BC41: 1 | BD41: 31 | BF41: 1 | BG41: 0 | BH41: 0 | BJ41: =AND(B41=$C$9,'Standing Data'!$D$9<>"Multi-academy Trust") -> 
A42: =IF(B42<>"",IF('Standing Data'!$D$9<>"Multiple",IF('Standing Data'!$D$9=B42,"Error - counterparty with self",""),IF(N(ISNA(MATCH(B42,'Standing Data'!$E$48:$E$147,0)))<>0,"","Error - counterparty with self")),"") ->  | C42: =IFERROR(VLOOKUP(B42,'CP IDs'!$A$1:$E$7199,2,FALSE),"") ->  | D42: =IFERROR(VLOOKUP(B42,'CP IDs'!$A$1:$E$7199,5,FALSE),"") ->  | AY42: -500000 | AZ42: 500000 | BB42: 1 | BC42: 1 | BD42: 31 | BF42: 1 | BG42: 0 | BH42: 0 | BJ42: =AND(B42=$C$9,'Standing Data'!$D$9<>"Multi-academy Trust") -> 
A43: =IF(B43<>"",IF('Standing Data'!$D$9<>"Multiple",IF('Standing Data'!$D$9=B43,"Error - counterparty with self",""),IF(N(ISNA(MATCH(B43,'Standing Data'!$E$48:$E$147,0)))<>0,"","Error - counterparty with self")),"") ->  | C43: =IFERROR(VLOOKUP(B43,'CP IDs'!$A$1:$E$7199,2,FALSE),"") ->  | D43: =IFERROR(VLOOKUP(B43,'CP IDs'!$A$1:$E$7199,5,FALSE),"") ->  | AY43: -500000 | AZ43: 500000 | BB43: 1 | BC43: 1 | BD43: 31 | BF43: 1 | BG43: 0 | BH43: 0 | BJ43: =AND(B43=$C$9,'Standing Data'!$D$9<>"Multi-academy Trust") -> 
A44: =IF(B44<>"",IF('Standing Data'!$D$9<>"Multiple",IF('Standing Data'!$D$9=B44,"Error - counterparty with self",""),IF(N(ISNA(MATCH(B44,'Standing Data'!$E$48:$E$147,0)))<>0,"","Error - counterparty with self")),"") ->  | C44: =IFERROR(VLOOKUP(B44,'CP IDs'!$A$1:$E$7199,2,FALSE),"") ->  | D44: =IFERROR(VLOOKUP(B44,'CP IDs'!$A$1:$E$7199,5,FALSE),"") ->  | AY44: -500000 | AZ44: 500000 | BB44: 1 | BC44: 1 | BD44: 31 | BF44: 1 | BG44: 0 | BH44: 0 | BJ44: =AND(B44=$C$9,'Standing Data'!$D$9<>"Multi-academy Trust") -> 
A45: =IF(B45<>"",IF('Standing Data'!$D$9<>"Multiple",IF('Standing Data'!$D$9=B45,"Error - counterparty with self",""),IF(N(ISNA(MATCH(B45,'Standing Data'!$E$48:$E$147,0)))<>0,"","Error - counterparty with self")),"") ->  | C45: =IFERROR(VLOOKUP(B45,'CP IDs'!$A$1:$E$7199,2,FALSE),"") ->  | D45: =IFERROR(VLOOKUP(B45,'CP IDs'!$A$1:$E$7199,5,FALSE),"") ->  | AY45: -500000 | AZ45: 500000 | BB45: 1 | BC45: 1 | BD45: 31 | BF45: 1 | BG45: 0 | BH45: 0 | BJ45: =AND(B45=$C$9,'Standing Data'!$D$9<>"Multi-academy Trust") -> 
A46: =IF(B46<>"",IF('Standing Data'!$D$9<>"Multiple",IF('Standing Data'!$D$9=B46,"Error - counterparty with self",""),IF(N(ISNA(MATCH(B46,'Standing Data'!$E$48:$E$147,0)))<>0,"","Error - counterparty with self")),"") ->  | C46: =IFERROR(VLOOKUP(B46,'CP IDs'!$A$1:$E$7199,2,FALSE),"") ->  | D46: =IFERROR(VLOOKUP(B46,'CP IDs'!$A$1:$E$7199,5,FALSE),"") ->  | AY46: -500000 | AZ46: 500000 | BB46: 1 | BC46: 1 | BD46: 31 | BF46: 1 | BG46: 0 | BH46: 0 | BJ46: =AND(B46=$C$9,'Standing Data'!$D$9<>"Multi-academy Trust") -> 
A47: =IF(B47<>"",IF('Standing Data'!$D$9<>"Multiple",IF('Standing Data'!$D$9=B47,"Error - counterparty with self",""),IF(N(ISNA(MATCH(B47,'Standing Data'!$E$48:$E$147,0)))<>0,"","Error - counterparty with self")),"") ->  | C47: =IFERROR(VLOOKUP(B47,'CP IDs'!$A$1:$E$7199,2,FALSE),"") ->  | D47: =IFERROR(VLOOKUP(B47,'CP IDs'!$A$1:$E$7199,5,FALSE),"") ->  | AY47: -500000 | AZ47: 500000 | BB47: 1 | BC47: 1 | BD47: 31 | BF47: 1 | BG47: 0 | BH47: 0 | BJ47: =AND(B47=$C$9,'Standing Data'!$D$9<>"Multi-academy Trust") -> 
A48: =IF(B48<>"",IF('Standing Data'!$D$9<>"Multiple",IF('Standing Data'!$D$9=B48,"Error - counterparty with self",""),IF(N(ISNA(MATCH(B48,'Standing Data'!$E$48:$E$147,0)))<>0,"","Error - counterparty with self")),"") ->  | C48: =IFERROR(VLOOKUP(B48,'CP IDs'!$A$1:$E$7199,2,FALSE),"") ->  | D48: =IFERROR(VLOOKUP(B48,'CP IDs'!$A$1:$E$7199,5,FALSE),"") ->  | AY48: -500000 | AZ48: 500000 | BB48: 1 | BC48: 1 | BD48: 31 | BF48: 1 | BG48: 0 | BH48: 0 | BJ48: =AND(B48=$C$9,'Standing Data'!$D$9<>"Multi-academy Trust") -> 
A49: =IF(B49<>"",IF('Standing Data'!$D$9<>"Multiple",IF('Standing Data'!$D$9=B49,"Error - counterparty with self",""),IF(N(ISNA(MATCH(B49,'Standing Data'!$E$48:$E$147,0)))<>0,"","Error - counterparty with self")),"") ->  | C49: =IFERROR(VLOOKUP(B49,'CP IDs'!$A$1:$E$7199,2,FALSE),"") ->  | D49: =IFERROR(VLOOKUP(B49,'CP IDs'!$A$1:$E$7199,5,FALSE),"") ->  | AY49: -500000 | AZ49: 500000 | BB49: 1 | BC49: 1 | BD49: 31 | BF49: 1 | BG49: 0 | BH49: 0 | BJ49: =AND(B49=$C$9,'Standing Data'!$D$9<>"Multi-academy Trust") -> 
A50: =IF(B50<>"",IF('Standing Data'!$D$9<>"Multiple",IF('Standing Data'!$D$9=B50,"Error - counterparty with self",""),IF(N(ISNA(MATCH(B50,'Standing Data'!$E$48:$E$147,0)))<>0,"","Error - counterparty with self")),"") ->  | C50: =IFERROR(VLOOKUP(B50,'CP IDs'!$A$1:$E$7199,2,FALSE),"") ->  | D50: =IFERROR(VLOOKUP(B50,'CP IDs'!$A$1:$E$7199,5,FALSE),"") ->  | AY50: -500000 | AZ50: 500000 | BB50: 1 | BC50: 1 | BD50: 31 | BF50: 1 | BG50: 0 | BH50: 0 | BJ50: =AND(B50=$C$9,'Standing Data'!$D$9<>"Multi-academy Trust") -> 
A51: =IF(B51<>"",IF('Standing Data'!$D$9<>"Multiple",IF('Standing Data'!$D$9=B51,"Error - counterparty with self",""),IF(N(ISNA(MATCH(B51,'Standing Data'!$E$48:$E$147,0)))<>0,"","Error - counterparty with self")),"") ->  | C51: =IFERROR(VLOOKUP(B51,'CP IDs'!$A$1:$E$7199,2,FALSE),"") ->  | D51: =IFERROR(VLOOKUP(B51,'CP IDs'!$A$1:$E$7199,5,FALSE),"") ->  | AY51: -500000 | AZ51: 500000 | BB51: 1 | BC51: 1 | BD51: 31 | BF51: 1 | BG51: 0 | BH51: 0 | BJ51: =AND(B51=$C$9,'Standing Data'!$D$9<>"Multi-academy Trust") -> 
A52: =IF(B52<>"",IF('Standing Data'!$D$9<>"Multiple",IF('Standing Data'!$D$9=B52,"Error - counterparty with self",""),IF(N(ISNA(MATCH(B52,'Standing Data'!$E$48:$E$147,0)))<>0,"","Error - counterparty with self")),"") ->  | C52: =IFERROR(VLOOKUP(B52,'CP IDs'!$A$1:$E$7199,2,FALSE),"") ->  | D52: =IFERROR(VLOOKUP(B52,'CP IDs'!$A$1:$E$7199,5,FALSE),"") ->  | AY52: -500000 | AZ52: 500000 | BB52: 1 | BC52: 1 | BD52: 31 | BF52: 1 | BG52: 0 | BH52: 0 | BJ52: =AND(B52=$C$9,'Standing Data'!$D$9<>"Multi-academy Trust") -> 
A53: =IF(B53<>"",IF('Standing Data'!$D$9<>"Multiple",IF('Standing Data'!$D$9=B53,"Error - counterparty with self",""),IF(N(ISNA(MATCH(B53,'Standing Data'!$E$48:$E$147,0)))<>0,"","Error - counterparty with self")),"") ->  | C53: =IFERROR(VLOOKUP(B53,'CP IDs'!$A$1:$E$7199,2,FALSE),"") ->  | D53: =IFERROR(VLOOKUP(B53,'CP IDs'!$A$1:$E$7199,5,FALSE),"") ->  | AY53: -500000 | AZ53: 500000 | BB53: 1 | BC53: 1 | BD53: 31 | BF53: 1 | BG53: 0 | BH53: 0 | BJ53: =AND(B53=$C$9,'Standing Data'!$D$9<>"Multi-academy Trust") -> 
A54: =IF(B54<>"",IF('Standing Data'!$D$9<>"Multiple",IF('Standing Data'!$D$9=B54,"Error - counterparty with self",""),IF(N(ISNA(MATCH(B54,'Standing Data'!$E$48:$E$147,0)))<>0,"","Error - counterparty with self")),"") ->  | C54: =IFERROR(VLOOKUP(B54,'CP IDs'!$A$1:$E$7199,2,FALSE),"") ->  | D54: =IFERROR(VLOOKUP(B54,'CP IDs'!$A$1:$E$7199,5,FALSE),"") ->  | AY54: -500000 | AZ54: 500000 | BB54: 1 | BC54: 1 | BD54: 31 | BF54: 1 | BG54: 0 | BH54: 0 | BJ54: =AND(B54=$C$9,'Standing Data'!$D$9<>"Multi-academy Trust") -> 
A55: =IF(B55<>"",IF('Standing Data'!$D$9<>"Multiple",IF('Standing Data'!$D$9=B55,"Error - counterparty with self",""),IF(N(ISNA(MATCH(B55,'Standing Data'!$E$48:$E$147,0)))<>0,"","Error - counterparty with self")),"") ->  | C55: =IFERROR(VLOOKUP(B55,'CP IDs'!$A$1:$E$7199,2,FALSE),"") ->  | D55: =IFERROR(VLOOKUP(B55,'CP IDs'!$A$1:$E$7199,5,FALSE),"") ->  | AY55: -500000 | AZ55: 500000 | BB55: 1 | BC55: 1 | BD55: 31 | BF55: 1 | BG55: 0 | BH55: 0 | BJ55: =AND(B55=$C$9,'Standing Data'!$D$9<>"Multi-academy Trust") -> 
A56: =IF(B56<>"",IF('Standing Data'!$D$9<>"Multiple",IF('Standing Data'!$D$9=B56,"Error - counterparty with self",""),IF(N(ISNA(MATCH(B56,'Standing Data'!$E$48:$E$147,0)))<>0,"","Error - counterparty with self")),"") ->  | C56: =IFERROR(VLOOKUP(B56,'CP IDs'!$A$1:$E$7199,2,FALSE),"") ->  | D56: =IFERROR(VLOOKUP(B56,'CP IDs'!$A$1:$E$7199,5,FALSE),"") ->  | AY56: -500000 | AZ56: 500000 | BB56: 1 | BC56: 1 | BD56: 31 | BF56: 1 | BG56: 0 | BH56: 0 | BJ56: =AND(B56=$C$9,'Standing Data'!$D$9<>"Multi-academy Trust") -> 
A57: =IF(B57<>"",IF('Standing Data'!$D$9<>"Multiple",IF('Standing Data'!$D$9=B57,"Error - counterparty with self",""),IF(N(ISNA(MATCH(B57,'Standing Data'!$E$48:$E$147,0)))<>0,"","Error - counterparty with self")),"") ->  | C57: =IFERROR(VLOOKUP(B57,'CP IDs'!$A$1:$E$7199,2,FALSE),"") ->  | D57: =IFERROR(VLOOKUP(B57,'CP IDs'!$A$1:$E$7199,5,FALSE),"") ->  | AY57: -500000 | AZ57: 500000 | BB57: 1 | BC57: 1 | BD57: 31 | BF57: 1 | BG57: 0 | BH57: 0 | BJ57: =AND(B57=$C$9,'Standing Data'!$D$9<>"Multi-academy Trust") -> 
A58: =IF(B58<>"",IF('Standing Data'!$D$9<>"Multiple",IF('Standing Data'!$D$9=B58,"Error - counterparty with self",""),IF(N(ISNA(MATCH(B58,'Standing Data'!$E$48:$E$147,0)))<>0,"","Error - counterparty with self")),"") ->  | C58: =IFERROR(VLOOKUP(B58,'CP IDs'!$A$1:$E$7199,2,FALSE),"") ->  | D58: =IFERROR(VLOOKUP(B58,'CP IDs'!$A$1:$E$7199,5,FALSE),"") ->  | AY58: -500000 | AZ58: 500000 | BB58: 1 | BC58: 1 | BD58: 31 | BF58: 1 | BG58: 0 | BH58: 0 | BJ58: =AND(B58=$C$9,'Standing Data'!$D$9<>"Multi-academy Trust") -> 
A59: =IF(B59<>"",IF('Standing Data'!$D$9<>"Multiple",IF('Standing Data'!$D$9=B59,"Error - counterparty with self",""),IF(N(ISNA(MATCH(B59,'Standing Data'!$E$48:$E$147,0)))<>0,"","Error - counterparty with self")),"") ->  | C59: =IFERROR(VLOOKUP(B59,'CP IDs'!$A$1:$E$7199,2,FALSE),"") ->  | D59: =IFERROR(VLOOKUP(B59,'CP IDs'!$A$1:$E$7199,5,FALSE),"") ->  | AY59: -500000 | AZ59: 500000 | BB59: 1 | BC59: 1 | BD59: 31 | BF59: 1 | BG59: 0 | BH59: 0 | BJ59: =AND(B59=$C$9,'Standing Data'!$D$9<>"Multi-academy Trust") -> 
A60: =IF(B60<>"",IF('Standing Data'!$D$9<>"Multiple",IF('Standing Data'!$D$9=B60,"Error - counterparty with self",""),IF(N(ISNA(MATCH(B60,'Standing Data'!$E$48:$E$147,0)))<>0,"","Error - counterparty with self")),"") ->  | C60: =IFERROR(VLOOKUP(B60,'CP IDs'!$A$1:$E$7199,2,FALSE),"") ->  | D60: =IFERROR(VLOOKUP(B60,'CP IDs'!$A$1:$E$7199,5,FALSE),"") ->  | AY60: -500000 | AZ60: 500000 | BB60: 1 | BC60: 1 | BD60: 31 | BF60: 1 | BG60: 0 | BH60: 0 | BJ60: =AND(B60=$C$9,'Standing Data'!$D$9<>"Multi-academy Trust") -> 
A61: =IF(B61<>"",IF('Standing Data'!$D$9<>"Multiple",IF('Standing Data'!$D$9=B61,"Error - counterparty with self",""),IF(N(ISNA(MATCH(B61,'Standing Data'!$E$48:$E$147,0)))<>0,"","Error - counterparty with self")),"") ->  | C61: =IFERROR(VLOOKUP(B61,'CP IDs'!$A$1:$E$7199,2,FALSE),"") ->  | D61: =IFERROR(VLOOKUP(B61,'CP IDs'!$A$1:$E$7199,5,FALSE),"") ->  | AY61: -500000 | AZ61: 500000 | BB61: 1 | BC61: 1 | BD61: 31 | BF61: 1 | BG61: 0 | BH61: 0 | BJ61: =AND(B61=$C$9,'Standing Data'!$D$9<>"Multi-academy Trust") -> 
A62: =IF(B62<>"",IF('Standing Data'!$D$9<>"Multiple",IF('Standing Data'!$D$9=B62,"Error - counterparty with self",""),IF(N(ISNA(MATCH(B62,'Standing Data'!$E$48:$E$147,0)))<>0,"","Error - counterparty with self")),"") ->  | C62: =IFERROR(VLOOKUP(B62,'CP IDs'!$A$1:$E$7199,2,FALSE),"") ->  | D62: =IFERROR(VLOOKUP(B62,'CP IDs'!$A$1:$E$7199,5,FALSE),"") ->  | AY62: -500000 | AZ62: 500000 | BB62: 1 | BC62: 1 | BD62: 31 | BF62: 1 | BG62: 0 | BH62: 0 | BJ62: =AND(B62=$C$9,'Standing Data'!$D$9<>"Multi-academy Trust") -> 
A63: =IF(B63<>"",IF('Standing Data'!$D$9<>"Multiple",IF('Standing Data'!$D$9=B63,"Error - counterparty with self",""),IF(N(ISNA(MATCH(B63,'Standing Data'!$E$48:$E$147,0)))<>0,"","Error - counterparty with self")),"") ->  | C63: =IFERROR(VLOOKUP(B63,'CP IDs'!$A$1:$E$7199,2,FALSE),"") ->  | D63: =IFERROR(VLOOKUP(B63,'CP IDs'!$A$1:$E$7199,5,FALSE),"") ->  | AY63: -500000 | AZ63: 500000 | BB63: 1 | BC63: 1 | BD63: 31 | BF63: 1 | BG63: 0 | BH63: 0 | BJ63: =AND(B63=$C$9,'Standing Data'!$D$9<>"Multi-academy Trust") -> 
A64: =IF(B64<>"",IF('Standing Data'!$D$9<>"Multiple",IF('Standing Data'!$D$9=B64,"Error - counterparty with self",""),IF(N(ISNA(MATCH(B64,'Standing Data'!$E$48:$E$147,0)))<>0,"","Error - counterparty with self")),"") ->  | C64: =IFERROR(VLOOKUP(B64,'CP IDs'!$A$1:$E$7199,2,FALSE),"") ->  | D64: =IFERROR(VLOOKUP(B64,'CP IDs'!$A$1:$E$7199,5,FALSE),"") ->  | AY64: -500000 | AZ64: 500000 | BB64: 1 | BC64: 1 | BD64: 31 | BF64: 1 | BG64: 0 | BH64: 0 | BJ64: =AND(B64=$C$9,'Standing Data'!$D$9<>"Multi-academy Trust") -> 
A65: =IF(B65<>"",IF('Standing Data'!$D$9<>"Multiple",IF('Standing Data'!$D$9=B65,"Error - counterparty with self",""),IF(N(ISNA(MATCH(B65,'Standing Data'!$E$48:$E$147,0)))<>0,"","Error - counterparty with self")),"") ->  | C65: =IFERROR(VLOOKUP(B65,'CP IDs'!$A$1:$E$7199,2,FALSE),"") ->  | D65: =IFERROR(VLOOKUP(B65,'CP IDs'!$A$1:$E$7199,5,FALSE),"") ->  | AY65: -500000 | AZ65: 500000 | BB65: 1 | BC65: 1 | BD65: 31 | BF65: 1 | BG65: 0 | BH65: 0 | BJ65: =AND(B65=$C$9,'Standing Data'!$D$9<>"Multi-academy Trust") -> 
A66: =IF(B66<>"",IF('Standing Data'!$D$9<>"Multiple",IF('Standing Data'!$D$9=B66,"Error - counterparty with self",""),IF(N(ISNA(MATCH(B66,'Standing Data'!$E$48:$E$147,0)))<>0,"","Error - counterparty with self")),"") ->  | C66: =IFERROR(VLOOKUP(B66,'CP IDs'!$A$1:$E$7199,2,FALSE),"") ->  | D66: =IFERROR(VLOOKUP(B66,'CP IDs'!$A$1:$E$7199,5,FALSE),"") ->  | AY66: -500000 | AZ66: 500000 | BB66: 1 | BC66: 1 | BD66: 31 | BF66: 1 | BG66: 0 | BH66: 0 | BJ66: =AND(B66=$C$9,'Standing Data'!$D$9<>"Multi-academy Trust") -> 
A67: =IF(B67<>"",IF('Standing Data'!$D$9<>"Multiple",IF('Standing Data'!$D$9=B67,"Error - counterparty with self",""),IF(N(ISNA(MATCH(B67,'Standing Data'!$E$48:$E$147,0)))<>0,"","Error - counterparty with self")),"") ->  | C67: =IFERROR(VLOOKUP(B67,'CP IDs'!$A$1:$E$7199,2,FALSE),"") ->  | D67: =IFERROR(VLOOKUP(B67,'CP IDs'!$A$1:$E$7199,5,FALSE),"") ->  | AY67: -500000 | AZ67: 500000 | BB67: 1 | BC67: 1 | BD67: 31 | BF67: 1 | BG67: 0 | BH67: 0 | BJ67: =AND(B67=$C$9,'Standing Data'!$D$9<>"Multi-academy Trust") -> 
A68: =IF(B68<>"",IF('Standing Data'!$D$9<>"Multiple",IF('Standing Data'!$D$9=B68,"Error - counterparty with self",""),IF(N(ISNA(MATCH(B68,'Standing Data'!$E$48:$E$147,0)))<>0,"","Error - counterparty with self")),"") ->  | C68: =IFERROR(VLOOKUP(B68,'CP IDs'!$A$1:$E$7199,2,FALSE),"") ->  | D68: =IFERROR(VLOOKUP(B68,'CP IDs'!$A$1:$E$7199,5,FALSE),"") ->  | AY68: -500000 | AZ68: 500000 | BB68: 1 | BC68: 1 | BD68: 31 | BF68: 1 | BG68: 0 | BH68: 0 | BJ68: =AND(B68=$C$9,'Standing Data'!$D$9<>"Multi-academy Trust") -> 
A69: =IF(B69<>"",IF('Standing Data'!$D$9<>"Multiple",IF('Standing Data'!$D$9=B69,"Error - counterparty with self",""),IF(N(ISNA(MATCH(B69,'Standing Data'!$E$48:$E$147,0)))<>0,"","Error - counterparty with self")),"") ->  | C69: =IFERROR(VLOOKUP(B69,'CP IDs'!$A$1:$E$7199,2,FALSE),"") ->  | D69: =IFERROR(VLOOKUP(B69,'CP IDs'!$A$1:$E$7199,5,FALSE),"") ->  | AY69: -500000 | AZ69: 500000 | BB69: 1 | BC69: 1 | BD69: 31 | BF69: 1 | BG69: 0 | BH69: 0 | BJ69: =AND(B69=$C$9,'Standing Data'!$D$9<>"Multi-academy Trust") -> 
A70: =IF(B70<>"",IF('Standing Data'!$D$9<>"Multiple",IF('Standing Data'!$D$9=B70,"Error - counterparty with self",""),IF(N(ISNA(MATCH(B70,'Standing Data'!$E$48:$E$147,0)))<>0,"","Error - counterparty with self")),"") ->  | C70: =IFERROR(VLOOKUP(B70,'CP IDs'!$A$1:$E$7199,2,FALSE),"") ->  | D70: =IFERROR(VLOOKUP(B70,'CP IDs'!$A$1:$E$7199,5,FALSE),"") ->  | AY70: -500000 | AZ70: 500000 | BB70: 1 | BC70: 1 | BD70: 31 | BF70: 1 | BG70: 0 | BH70: 0 | BJ70: =AND(B70=$C$9,'Standing Data'!$D$9<>"Multi-academy Trust") -> 
A71: =IF(B71<>"",IF('Standing Data'!$D$9<>"Multiple",IF('Standing Data'!$D$9=B71,"Error - counterparty with self",""),IF(N(ISNA(MATCH(B71,'Standing Data'!$E$48:$E$147,0)))<>0,"","Error - counterparty with self")),"") ->  | C71: =IFERROR(VLOOKUP(B71,'CP IDs'!$A$1:$E$7199,2,FALSE),"") ->  | D71: =IFERROR(VLOOKUP(B71,'CP IDs'!$A$1:$E$7199,5,FALSE),"") ->  | AY71: -500000 | AZ71: 500000 | BB71: 1 | BC71: 1 | BD71: 31 | BF71: 1 | BG71: 0 | BH71: 0 | BJ71: =AND(B71=$C$9,'Standing Data'!$D$9<>"Multi-academy Trust") -> 
A72: =IF(B72<>"",IF('Standing Data'!$D$9<>"Multiple",IF('Standing Data'!$D$9=B72,"Error - counterparty with self",""),IF(N(ISNA(MATCH(B72,'Standing Data'!$E$48:$E$147,0)))<>0,"","Error - counterparty with self")),"") ->  | C72: =IFERROR(VLOOKUP(B72,'CP IDs'!$A$1:$E$7199,2,FALSE),"") ->  | D72: =IFERROR(VLOOKUP(B72,'CP IDs'!$A$1:$E$7199,5,FALSE),"") ->  | AY72: -500000 | AZ72: 500000 | BB72: 1 | BC72: 1 | BD72: 31 | BF72: 1 | BG72: 0 | BH72: 0 | BJ72: =AND(B72=$C$9,'Standing Data'!$D$9<>"Multi-academy Trust") -> 
A73: =IF(B73<>"",IF('Standing Data'!$D$9<>"Multiple",IF('Standing Data'!$D$9=B73,"Error - counterparty with self",""),IF(N(ISNA(MATCH(B73,'Standing Data'!$E$48:$E$147,0)))<>0,"","Error - counterparty with self")),"") ->  | C73: =IFERROR(VLOOKUP(B73,'CP IDs'!$A$1:$E$7199,2,FALSE),"") ->  | D73: =IFERROR(VLOOKUP(B73,'CP IDs'!$A$1:$E$7199,5,FALSE),"") ->  | AY73: -500000 | AZ73: 500000 | BB73: 1 | BC73: 1 | BD73: 31 | BF73: 1 | BG73: 0 | BH73: 0 | BJ73: =AND(B73=$C$9,'Standing Data'!$D$9<>"Multi-academy Trust") -> 
A74: =IF(B74<>"",IF('Standing Data'!$D$9<>"Multiple",IF('Standing Data'!$D$9=B74,"Error - counterparty with self",""),IF(N(ISNA(MATCH(B74,'Standing Data'!$E$48:$E$147,0)))<>0,"","Error - counterparty with self")),"") ->  | C74: =IFERROR(VLOOKUP(B74,'CP IDs'!$A$1:$E$7199,2,FALSE),"") ->  | D74: =IFERROR(VLOOKUP(B74,'CP IDs'!$A$1:$E$7199,5,FALSE),"") ->  | AY74: -500000 | AZ74: 500000 | BB74: 1 | BC74: 1 | BD74: 31 | BF74: 1 | BG74: 0 | BH74: 0 | BJ74: =AND(B74=$C$9,'Standing Data'!$D$9<>"Multi-academy Trust") -> 
A75: =IF(B75<>"",IF('Standing Data'!$D$9<>"Multiple",IF('Standing Data'!$D$9=B75,"Error - counterparty with self",""),IF(N(ISNA(MATCH(B75,'Standing Data'!$E$48:$E$147,0)))<>0,"","Error - counterparty with self")),"") ->  | C75: =IFERROR(VLOOKUP(B75,'CP IDs'!$A$1:$E$7199,2,FALSE),"") ->  | D75: =IFERROR(VLOOKUP(B75,'CP IDs'!$A$1:$E$7199,5,FALSE),"") ->  | AY75: -500000 | AZ75: 500000 | BB75: 1 | BC75: 1 | BD75: 31 | BF75: 1 | BG75: 0 | BH75: 0 | BJ75: =AND(B75=$C$9,'Standing Data'!$D$9<>"Multi-academy Trust") -> 
A76: =IF(B76<>"",IF('Standing Data'!$D$9<>"Multiple",IF('Standing Data'!$D$9=B76,"Error - counterparty with self",""),IF(N(ISNA(MATCH(B76,'Standing Data'!$E$48:$E$147,0)))<>0,"","Error - counterparty with self")),"") ->  | C76: =IFERROR(VLOOKUP(B76,'CP IDs'!$A$1:$E$7199,2,FALSE),"") ->  | D76: =IFERROR(VLOOKUP(B76,'CP IDs'!$A$1:$E$7199,5,FALSE),"") ->  | AY76: -500000 | AZ76: 500000 | BB76: 1 | BC76: 1 | BD76: 31 | BF76: 1 | BG76: 0 | BH76: 0 | BJ76: =AND(B76=$C$9,'Standing Data'!$D$9<>"Multi-academy Trust") -> 
A77: =IF(B77<>"",IF('Standing Data'!$D$9<>"Multiple",IF('Standing Data'!$D$9=B77,"Error - counterparty with self",""),IF(N(ISNA(MATCH(B77,'Standing Data'!$E$48:$E$147,0)))<>0,"","Error - counterparty with self")),"") ->  | C77: =IFERROR(VLOOKUP(B77,'CP IDs'!$A$1:$E$7199,2,FALSE),"") ->  | D77: =IFERROR(VLOOKUP(B77,'CP IDs'!$A$1:$E$7199,5,FALSE),"") ->  | AY77: -500000 | AZ77: 500000 | BB77: 1 | BC77: 1 | BD77: 31 | BF77: 1 | BG77: 0 | BH77: 0 | BJ77: =AND(B77=$C$9,'Standing Data'!$D$9<>"Multi-academy Trust") -> 
A78: =IF(B78<>"",IF('Standing Data'!$D$9<>"Multiple",IF('Standing Data'!$D$9=B78,"Error - counterparty with self",""),IF(N(ISNA(MATCH(B78,'Standing Data'!$E$48:$E$147,0)))<>0,"","Error - counterparty with self")),"") ->  | C78: =IFERROR(VLOOKUP(B78,'CP IDs'!$A$1:$E$7199,2,FALSE),"") ->  | D78: =IFERROR(VLOOKUP(B78,'CP IDs'!$A$1:$E$7199,5,FALSE),"") ->  | AY78: -500000 | AZ78: 500000 | BB78: 1 | BC78: 1 | BD78: 31 | BF78: 1 | BG78: 0 | BH78: 0 | BJ78: =AND(B78=$C$9,'Standing Data'!$D$9<>"Multi-academy Trust") -> 
A79: =IF(B79<>"",IF('Standing Data'!$D$9<>"Multiple",IF('Standing Data'!$D$9=B79,"Error - counterparty with self",""),IF(N(ISNA(MATCH(B79,'Standing Data'!$E$48:$E$147,0)))<>0,"","Error - counterparty with self")),"") ->  | C79: =IFERROR(VLOOKUP(B79,'CP IDs'!$A$1:$E$7199,2,FALSE),"") ->  | D79: =IFERROR(VLOOKUP(B79,'CP IDs'!$A$1:$E$7199,5,FALSE),"") ->  | AY79: -500000 | AZ79: 500000 | BB79: 1 | BC79: 1 | BD79: 31 | BF79: 1 | BG79: 0 | BH79: 0 | BJ79: =AND(B79=$C$9,'Standing Data'!$D$9<>"Multi-academy Trust") -> 
A80: =IF(B80<>"",IF('Standing Data'!$D$9<>"Multiple",IF('Standing Data'!$D$9=B80,"Error - counterparty with self",""),IF(N(ISNA(MATCH(B80,'Standing Data'!$E$48:$E$147,0)))<>0,"","Error - counterparty with self")),"") ->  | C80: =IFERROR(VLOOKUP(B80,'CP IDs'!$A$1:$E$7199,2,FALSE),"") ->  | D80: =IFERROR(VLOOKUP(B80,'CP IDs'!$A$1:$E$7199,5,FALSE),"") ->  | AY80: -500000 | AZ80: 500000 | BB80: 1 | BC80: 1 | BD80: 31 | BF80: 1 | BG80: 0 | BH80: 0 | BJ80: =AND(B80=$C$9,'Standing Data'!$D$9<>"Multi-academy Trust") -> 
A81: =IF(B81<>"",IF('Standing Data'!$D$9<>"Multiple",IF('Standing Data'!$D$9=B81,"Error - counterparty with self",""),IF(N(ISNA(MATCH(B81,'Standing Data'!$E$48:$E$147,0)))<>0,"","Error - counterparty with self")),"") ->  | C81: =IFERROR(VLOOKUP(B81,'CP IDs'!$A$1:$E$7199,2,FALSE),"") ->  | D81: =IFERROR(VLOOKUP(B81,'CP IDs'!$A$1:$E$7199,5,FALSE),"") ->  | AY81: -500000 | AZ81: 500000 | BB81: 1 | BC81: 1 | BD81: 31 | BF81: 1 | BG81: 0 | BH81: 0 | BJ81: =AND(B81=$C$9,'Standing Data'!$D$9<>"Multi-academy Trust") -> 
A82: =IF(B82<>"",IF('Standing Data'!$D$9<>"Multiple",IF('Standing Data'!$D$9=B82,"Error - counterparty with self",""),IF(N(ISNA(MATCH(B82,'Standing Data'!$E$48:$E$147,0)))<>0,"","Error - counterparty with self")),"") ->  | C82: =IFERROR(VLOOKUP(B82,'CP IDs'!$A$1:$E$7199,2,FALSE),"") ->  | D82: =IFERROR(VLOOKUP(B82,'CP IDs'!$A$1:$E$7199,5,FALSE),"") ->  | AY82: -500000 | AZ82: 500000 | BB82: 1 | BC82: 1 | BD82: 31 | BF82: 1 | BG82: 0 | BH82: 0 | BJ82: =AND(B82=$C$9,'Standing Data'!$D$9<>"Multi-academy Trust") -> 
A83: =IF(B83<>"",IF('Standing Data'!$D$9<>"Multiple",IF('Standing Data'!$D$9=B83,"Error - counterparty with self",""),IF(N(ISNA(MATCH(B83,'Standing Data'!$E$48:$E$147,0)))<>0,"","Error - counterparty with self")),"") ->  | C83: =IFERROR(VLOOKUP(B83,'CP IDs'!$A$1:$E$7199,2,FALSE),"") ->  | D83: =IFERROR(VLOOKUP(B83,'CP IDs'!$A$1:$E$7199,5,FALSE),"") ->  | AY83: -500000 | AZ83: 500000 | BB83: 1 | BC83: 1 | BD83: 31 | BF83: 1 | BG83: 0 | BH83: 0 | BJ83: =AND(B83=$C$9,'Standing Data'!$D$9<>"Multi-academy Trust") -> 
A84: =IF(B84<>"",IF('Standing Data'!$D$9<>"Multiple",IF('Standing Data'!$D$9=B84,"Error - counterparty with self",""),IF(N(ISNA(MATCH(B84,'Standing Data'!$E$48:$E$147,0)))<>0,"","Error - counterparty with self")),"") ->  | C84: =IFERROR(VLOOKUP(B84,'CP IDs'!$A$1:$E$7199,2,FALSE),"") ->  | D84: =IFERROR(VLOOKUP(B84,'CP IDs'!$A$1:$E$7199,5,FALSE),"") ->  | AY84: -500000 | AZ84: 500000 | BB84: 1 | BC84: 1 | BD84: 31 | BF84: 1 | BG84: 0 | BH84: 0 | BJ84: =AND(B84=$C$9,'Standing Data'!$D$9<>"Multi-academy Trust") -> 
A85: =IF(B85<>"",IF('Standing Data'!$D$9<>"Multiple",IF('Standing Data'!$D$9=B85,"Error - counterparty with self",""),IF(N(ISNA(MATCH(B85,'Standing Data'!$E$48:$E$147,0)))<>0,"","Error - counterparty with self")),"") ->  | C85: =IFERROR(VLOOKUP(B85,'CP IDs'!$A$1:$E$7199,2,FALSE),"") ->  | D85: =IFERROR(VLOOKUP(B85,'CP IDs'!$A$1:$E$7199,5,FALSE),"") ->  | AY85: -500000 | AZ85: 500000 | BB85: 1 | BC85: 1 | BD85: 31 | BF85: 1 | BG85: 0 | BH85: 0 | BJ85: =AND(B85=$C$9,'Standing Data'!$D$9<>"Multi-academy Trust") -> 
A86: =IF(B86<>"",IF('Standing Data'!$D$9<>"Multiple",IF('Standing Data'!$D$9=B86,"Error - counterparty with self",""),IF(N(ISNA(MATCH(B86,'Standing Data'!$E$48:$E$147,0)))<>0,"","Error - counterparty with self")),"") ->  | C86: =IFERROR(VLOOKUP(B86,'CP IDs'!$A$1:$E$7199,2,FALSE),"") ->  | D86: =IFERROR(VLOOKUP(B86,'CP IDs'!$A$1:$E$7199,5,FALSE),"") ->  | AY86: -500000 | AZ86: 500000 | BB86: 1 | BC86: 1 | BD86: 31 | BF86: 1 | BG86: 0 | BH86: =COUNT(F86:AV86) -> 0 | BJ86: =AND(B86=$C$9,'Standing Data'!$D$9<>"Multi-academy Trust") -> 
A87: =IF(B87<>"",IF('Standing Data'!$D$9<>"Multiple",IF('Standing Data'!$D$9=B87,"Error - counterparty with self",""),IF(N(ISNA(MATCH(B87,'Standing Data'!$E$48:$E$147,0)))<>0,"","Error - counterparty with self")),"") ->  | C87: =IFERROR(VLOOKUP(B87,'CP IDs'!$A$1:$E$7199,2,FALSE),"") ->  | D87: =IFERROR(VLOOKUP(B87,'CP IDs'!$A$1:$E$7199,5,FALSE),"") ->  | AY87: =AY86 -> -500000 | AZ87: =AZ86 -> 500000 | BB87: 1 | BC87: 1 | BD87: 31 | BF87: 1 | BG87: 0 | BH87: 0 | BJ87: =AND(B87=$C$9,'Standing Data'!$D$9<>"Multi-academy Trust") -> 
A88: =IF(B88<>"",IF('Standing Data'!$D$9<>"Multiple",IF('Standing Data'!$D$9=B88,"Error - counterparty with self",""),IF(N(ISNA(MATCH(B88,'Standing Data'!$E$48:$E$147,0)))<>0,"","Error - counterparty with self")),"") ->  | C88: =IFERROR(VLOOKUP(B88,'CP IDs'!$A$1:$E$7199,2,FALSE),"") ->  | D88: =IFERROR(VLOOKUP(B88,'CP IDs'!$A$1:$E$7199,5,FALSE),"") ->  | AY88: -500000 | AZ88: 500000 | BB88: 1 | BC88: 1 | BD88: 31 | BF88: 1 | BG88: 0 | BH88: 0 | BJ88: =AND(B88=$C$9,'Standing Data'!$D$9<>"Multi-academy Trust") -> 
A89: =IF(B89<>"",IF('Standing Data'!$D$9<>"Multiple",IF('Standing Data'!$D$9=B89,"Error - counterparty with self",""),IF(N(ISNA(MATCH(B89,'Standing Data'!$E$48:$E$147,0)))<>0,"","Error - counterparty with self")),"") ->  | C89: =IFERROR(VLOOKUP(B89,'CP IDs'!$A$1:$E$7199,2,FALSE),"") ->  | D89: =IFERROR(VLOOKUP(B89,'CP IDs'!$A$1:$E$7199,5,FALSE),"") ->  | AY89: -500000 | AZ89: 500000 | BB89: 1 | BC89: 1 | BD89: 31 | BF89: 1 | BG89: 0 | BH89: 0 | BJ89: =AND(B89=$C$9,'Standing Data'!$D$9<>"Multi-academy Trust") -> 
A90: =IF(B90<>"",IF('Standing Data'!$D$9<>"Multiple",IF('Standing Data'!$D$9=B90,"Error - counterparty with self",""),IF(N(ISNA(MATCH(B90,'Standing Data'!$E$48:$E$147,0)))<>0,"","Error - counterparty with self")),"") ->  | C90: =IFERROR(VLOOKUP(B90,'CP IDs'!$A$1:$E$7199,2,FALSE),"") ->  | D90: =IFERROR(VLOOKUP(B90,'CP IDs'!$A$1:$E$7199,5,FALSE),"") ->  | AY90: -500000 | AZ90: 500000 | BB90: 1 | BC90: 1 | BD90: 31 | BF90: 1 | BG90: 0 | BH90: 0 | BJ90: =AND(B90=$C$9,'Standing Data'!$D$9<>"Multi-academy Trust") -> 
A91: =IF(B91<>"",IF('Standing Data'!$D$9<>"Multiple",IF('Standing Data'!$D$9=B91,"Error - counterparty with self",""),IF(N(ISNA(MATCH(B91,'Standing Data'!$E$48:$E$147,0)))<>0,"","Error - counterparty with self")),"") ->  | C91: =IFERROR(VLOOKUP(B91,'CP IDs'!$A$1:$E$7199,2,FALSE),"") ->  | D91: =IFERROR(VLOOKUP(B91,'CP IDs'!$A$1:$E$7199,5,FALSE),"") ->  | AY91: -500000 | AZ91: 500000 | BB91: 1 | BC91: 1 | BD91: 31 | BF91: 1 | BG91: 0 | BH91: 0 | BJ91: =AND(B91=$C$9,'Standing Data'!$D$9<>"Multi-academy Trust") -> 
A92: =IF(B92<>"",IF('Standing Data'!$D$9<>"Multiple",IF('Standing Data'!$D$9=B92,"Error - counterparty with self",""),IF(N(ISNA(MATCH(B92,'Standing Data'!$E$48:$E$147,0)))<>0,"","Error - counterparty with self")),"") ->  | C92: =IFERROR(VLOOKUP(B92,'CP IDs'!$A$1:$E$7199,2,FALSE),"") ->  | D92: =IFERROR(VLOOKUP(B92,'CP IDs'!$A$1:$E$7199,5,FALSE),"") ->  | AY92: -500000 | AZ92: 500000 | BB92: 1 | BC92: 1 | BD92: 31 | BF92: 1 | BG92: 0 | BH92: 0 | BJ92: =AND(B92=$C$9,'Standing Data'!$D$9<>"Multi-academy Trust") -> 
A93: =IF(B93<>"",IF('Standing Data'!$D$9<>"Multiple",IF('Standing Data'!$D$9=B93,"Error - counterparty with self",""),IF(N(ISNA(MATCH(B93,'Standing Data'!$E$48:$E$147,0)))<>0,"","Error - counterparty with self")),"") ->  | C93: =IFERROR(VLOOKUP(B93,'CP IDs'!$A$1:$E$7199,2,FALSE),"") ->  | D93: =IFERROR(VLOOKUP(B93,'CP IDs'!$A$1:$E$7199,5,FALSE),"") ->  | AY93: -500000 | AZ93: 500000 | BB93: 1 | BC93: 1 | BD93: 31 | BF93: 1 | BG93: 0 | BH93: 0 | BJ93: =AND(B93=$C$9,'Standing Data'!$D$9<>"Multi-academy Trust") -> 
A94: =IF(B94<>"",IF('Standing Data'!$D$9<>"Multiple",IF('Standing Data'!$D$9=B94,"Error - counterparty with self",""),IF(N(ISNA(MATCH(B94,'Standing Data'!$E$48:$E$147,0)))<>0,"","Error - counterparty with self")),"") ->  | C94: =IFERROR(VLOOKUP(B94,'CP IDs'!$A$1:$E$7199,2,FALSE),"") ->  | D94: =IFERROR(VLOOKUP(B94,'CP IDs'!$A$1:$E$7199,5,FALSE),"") ->  | AY94: -500000 | AZ94: 500000 | BB94: 1 | BC94: 1 | BD94: 31 | BF94: =COUNTA(C94) -> 1 | BG94: =1-COUNTBLANK(B94) -> 0 | BH94: 0 | BJ94: =AND(B94=$C$9,'Standing Data'!$D$9<>"Multi-academy Trust") -> 
A95: =IF(B95<>"",IF('Standing Data'!$D$9<>"Multiple",IF('Standing Data'!$D$9=B95,"Error - counterparty with self",""),IF(N(ISNA(MATCH(B95,'Standing Data'!$E$48:$E$147,0)))<>0,"","Error - counterparty with self")),"") ->  | C95: =IFERROR(VLOOKUP(B95,'CP IDs'!$A$1:$E$7199,2,FALSE),"") ->  | D95: =IFERROR(VLOOKUP(B95,'CP IDs'!$A$1:$E$7199,5,FALSE),"") ->  | E95: =IF(OR(AND(COUNT(F95:AV95)>0,C95=""),AND(COUNT(F95:AV95)=0,C95<>"")),"Error - on line","") ->  | AY95: -500000 | AZ95: 500000 | BB95: 1 | BC95: 1 | BD95: 31 | BF95: 1 | BG95: 0 | BH95: 0 | BJ95: =AND(B95=$C$9,'Standing Data'!$D$9<>"Multi-academy Trust") -> 
A96: =IF(B96<>"",IF('Standing Data'!$D$9<>"Multiple",IF('Standing Data'!$D$9=B96,"Error - counterparty with self",""),IF(N(ISNA(MATCH(B96,'Standing Data'!$E$48:$E$147,0)))<>0,"","Error - counterparty with self")),"") ->  | C96: =IFERROR(VLOOKUP(B96,'CP IDs'!$A$1:$E$7199,2,FALSE),"") ->  | D96: =IFERROR(VLOOKUP(B96,'CP IDs'!$A$1:$E$7199,5,FALSE),"") ->  | AY96: -500000 | AZ96: 500000 | BB96: 1 | BC96: 1 | BD96: 31 | BF96: 1 | BG96: 0 | BH96: 0 | BJ96: =AND(B96=$C$9,'Standing Data'!$D$9<>"Multi-academy Trust") -> 
A97: =IF(B97<>"",IF('Standing Data'!$D$9<>"Multiple",IF('Standing Data'!$D$9=B97,"Error - counterparty with self",""),IF(N(ISNA(MATCH(B97,'Standing Data'!$E$48:$E$147,0)))<>0,"","Error - counterparty with self")),"") ->  | C97: =IFERROR(VLOOKUP(B97,'CP IDs'!$A$1:$E$7199,2,FALSE),"") ->  | D97: =IFERROR(VLOOKUP(B97,'CP IDs'!$A$1:$E$7199,5,FALSE),"") ->  | AY97: -500000 | AZ97: 500000 | BB97: 1 | BC97: 1 | BD97: 31 | BF97: 1 | BG97: 0 | BH97: 0 | BJ97: =AND(B97=$C$9,'Standing Data'!$D$9<>"Multi-academy Trust") -> 
A98: =IF(B98<>"",IF('Standing Data'!$D$9<>"Multiple",IF('Standing Data'!$D$9=B98,"Error - counterparty with self",""),IF(N(ISNA(MATCH(B98,'Standing Data'!$E$48:$E$147,0)))<>0,"","Error - counterparty with self")),"") ->  | C98: =IFERROR(VLOOKUP(B98,'CP IDs'!$A$1:$E$7199,2,FALSE),"") ->  | D98: =IFERROR(VLOOKUP(B98,'CP IDs'!$A$1:$E$7199,5,FALSE),"") ->  | AY98: -500000 | AZ98: 500000 | BB98: 1 | BC98: 1 | BD98: 31 | BF98: 1 | BG98: 0 | BH98: 0 | BJ98: =AND(B98=$C$9,'Standing Data'!$D$9<>"Multi-academy Trust") -> 
A99: =IF(B99<>"",IF('Standing Data'!$D$9<>"Multiple",IF('Standing Data'!$D$9=B99,"Error - counterparty with self",""),IF(N(ISNA(MATCH(B99,'Standing Data'!$E$48:$E$147,0)))<>0,"","Error - counterparty with self")),"") ->  | C99: =IFERROR(VLOOKUP(B99,'CP IDs'!$A$1:$E$7199,2,FALSE),"") ->  | D99: =IFERROR(VLOOKUP(B99,'CP IDs'!$A$1:$E$7199,5,FALSE),"") ->  | AY99: -500000 | AZ99: 500000 | BB99: 1 | BC99: 1 | BD99: 31 | BF99: 1 | BG99: 0 | BH99: 0 | BJ99: =AND(B99=$C$9,'Standing Data'!$D$9<>"Multi-academy Trust") -> 
A100: =IF(B100<>"",IF('Standing Data'!$D$9<>"Multiple",IF('Standing Data'!$D$9=B100,"Error - counterparty with self",""),IF(N(ISNA(MATCH(B100,'Standing Data'!$E$48:$E$147,0)))<>0,"","Error - counterparty with self")),"") ->  | C100: =IFERROR(VLOOKUP(B100,'CP IDs'!$A$1:$E$7199,2,FALSE),"") ->  | D100: =IFERROR(VLOOKUP(B100,'CP IDs'!$A$1:$E$7199,5,FALSE),"") ->  | AY100: -500000 | AZ100: 500000 | BB100: 1 | BC100: 1 | BD100: 31 | BF100: 1 | BG100: 0 | BH100: 0 | BJ100: =AND(B100=$C$9,'Standing Data'!$D$9<>"Multi-academy Trust") -> 
A101: =IF(B101<>"",IF('Standing Data'!$D$9<>"Multiple",IF('Standing Data'!$D$9=B101,"Error - counterparty with self",""),IF(N(ISNA(MATCH(B101,'Standing Data'!$E$48:$E$147,0)))<>0,"","Error - counterparty with self")),"") ->  | C101: =IFERROR(VLOOKUP(B101,'CP IDs'!$A$1:$E$7199,2,FALSE),"") ->  | D101: =IFERROR(VLOOKUP(B101,'CP IDs'!$A$1:$E$7199,5,FALSE),"") ->  | AY101: -500000 | AZ101: 500000 | BB101: 1 | BC101: 1 | BD101: 31 | BF101: 1 | BG101: 0 | BH101: 0 | BJ101: =AND(B101=$C$9,'Standing Data'!$D$9<>"Multi-academy Trust") -> 
A102: =IF(B102<>"",IF('Standing Data'!$D$9<>"Multiple",IF('Standing Data'!$D$9=B102,"Error - counterparty with self",""),IF(N(ISNA(MATCH(B102,'Standing Data'!$E$48:$E$147,0)))<>0,"","Error - counterparty with self")),"") ->  | C102: =IFERROR(VLOOKUP(B102,'CP IDs'!$A$1:$E$7199,2,FALSE),"") ->  | D102: =IFERROR(VLOOKUP(B102,'CP IDs'!$A$1:$E$7199,5,FALSE),"") ->  | AY102: -500000 | AZ102: 500000 | BB102: 1 | BC102: 1 | BD102: 31 | BF102: 1 | BG102: 0 | BH102: 0 | BJ102: =AND(B102=$C$9,'Standing Data'!$D$9<>"Multi-academy Trust") -> 
A103: =IF(B103<>"",IF('Standing Data'!$D$9<>"Multiple",IF('Standing Data'!$D$9=B103,"Error - counterparty with self",""),IF(N(ISNA(MATCH(B103,'Standing Data'!$E$48:$E$147,0)))<>0,"","Error - counterparty with self")),"") ->  | C103: =IFERROR(VLOOKUP(B103,'CP IDs'!$A$1:$E$7199,2,FALSE),"") ->  | D103: =IFERROR(VLOOKUP(B103,'CP IDs'!$A$1:$E$7199,5,FALSE),"") ->  | AY103: -500000 | AZ103: 500000 | BB103: 1 | BC103: 1 | BD103: 31 | BF103: 1 | BG103: 0 | BH103: 0 | BJ103: =AND(B103=$C$9,'Standing Data'!$D$9<>"Multi-academy Trust") -> 
A104: =IF(B104<>"",IF('Standing Data'!$D$9<>"Multiple",IF('Standing Data'!$D$9=B104,"Error - counterparty with self",""),IF(N(ISNA(MATCH(B104,'Standing Data'!$E$48:$E$147,0)))<>0,"","Error - counterparty with self")),"") ->  | C104: =IFERROR(VLOOKUP(B104,'CP IDs'!$A$1:$E$7199,2,FALSE),"") ->  | D104: =IFERROR(VLOOKUP(B104,'CP IDs'!$A$1:$E$7199,5,FALSE),"") ->  | AY104: -500000 | AZ104: 500000 | BB104: 1 | BC104: 1 | BD104: 31 | BF104: 1 | BG104: 0 | BH104: 0 | BJ104: =AND(B104=$C$9,'Standing Data'!$D$9<>"Multi-academy Trust") -> 
A105: =IF(B105<>"",IF('Standing Data'!$D$9<>"Multiple",IF('Standing Data'!$D$9=B105,"Error - counterparty with self",""),IF(N(ISNA(MATCH(B105,'Standing Data'!$E$48:$E$147,0)))<>0,"","Error - counterparty with self")),"") ->  | C105: =IFERROR(VLOOKUP(B105,'CP IDs'!$A$1:$E$7199,2,FALSE),"") ->  | D105: =IFERROR(VLOOKUP(B105,'CP IDs'!$A$1:$E$7199,5,FALSE),"") ->  | AY105: -500000 | AZ105: 500000 | BB105: 1 | BC105: 1 | BD105: 31 | BF105: 1 | BG105: 0 | BH105: 0 | BJ105: =AND(B105=$C$9,'Standing Data'!$D$9<>"Multi-academy Trust") -> 
A106: =IF(B106<>"",IF('Standing Data'!$D$9<>"Multiple",IF('Standing Data'!$D$9=B106,"Error - counterparty with self",""),IF(N(ISNA(MATCH(B106,'Standing Data'!$E$48:$E$147,0)))<>0,"","Error - counterparty with self")),"") ->  | C106: =IFERROR(VLOOKUP(B106,'CP IDs'!$A$1:$E$7199,2,FALSE),"") ->  | D106: =IFERROR(VLOOKUP(B106,'CP IDs'!$A$1:$E$7199,5,FALSE),"") ->  | AY106: -500000 | AZ106: 500000 | BB106: 1 | BC106: 1 | BD106: 31 | BF106: 1 | BG106: 0 | BH106: 0 | BJ106: =AND(B106=$C$9,'Standing Data'!$D$9<>"Multi-academy Trust") -> 
A107: =IF(B107<>"",IF('Standing Data'!$D$9<>"Multiple",IF('Standing Data'!$D$9=B107,"Error - counterparty with self",""),IF(N(ISNA(MATCH(B107,'Standing Data'!$E$48:$E$147,0)))<>0,"","Error - counterparty with self")),"") ->  | C107: =IFERROR(VLOOKUP(B107,'CP IDs'!$A$1:$E$7199,2,FALSE),"") ->  | D107: =IFERROR(VLOOKUP(B107,'CP IDs'!$A$1:$E$7199,5,FALSE),"") ->  | AY107: -500000 | AZ107: 500000 | BB107: 1 | BC107: 1 | BD107: 31 | BF107: 1 | BG107: 0 | BH107: 0 | BJ107: =AND(B107=$C$9,'Standing Data'!$D$9<>"Multi-academy Trust") -> 
A108: =IF(B108<>"",IF('Standing Data'!$D$9<>"Multiple",IF('Standing Data'!$D$9=B108,"Error - counterparty with self",""),IF(N(ISNA(MATCH(B108,'Standing Data'!$E$48:$E$147,0)))<>0,"","Error - counterparty with self")),"") ->  | C108: =IFERROR(VLOOKUP(B108,'CP IDs'!$A$1:$E$7199,2,FALSE),"") ->  | D108: =IFERROR(VLOOKUP(B108,'CP IDs'!$A$1:$E$7199,5,FALSE),"") ->  | AY108: -500000 | AZ108: 500000 | BB108: 1 | BC108: 1 | BD108: 31 | BF108: 1 | BG108: 0 | BH108: 0 | BJ108: =AND(B108=$C$9,'Standing Data'!$D$9<>"Multi-academy Trust") -> 
A109: =IF(B109<>"",IF('Standing Data'!$D$9<>"Multiple",IF('Standing Data'!$D$9=B109,"Error - counterparty with self",""),IF(N(ISNA(MATCH(B109,'Standing Data'!$E$48:$E$147,0)))<>0,"","Error - counterparty with self")),"") ->  | C109: =IFERROR(VLOOKUP(B109,'CP IDs'!$A$1:$E$7199,2,FALSE),"") ->  | D109: =IFERROR(VLOOKUP(B109,'CP IDs'!$A$1:$E$7199,5,FALSE),"") ->  | AY109: -500000 | AZ109: 500000 | BB109: 1 | BC109: 1 | BD109: 31 | BF109: 1 | BG109: 0 | BH109: 0 | BJ109: =AND(B109=$C$9,'Standing Data'!$D$9<>"Multi-academy Trust") -> 
A110: =IF(B110<>"",IF('Standing Data'!$D$9<>"Multiple",IF('Standing Data'!$D$9=B110,"Error - counterparty with self",""),IF(N(ISNA(MATCH(B110,'Standing Data'!$E$48:$E$147,0)))<>0,"","Error - counterparty with self")),"") ->  | C110: =IFERROR(VLOOKUP(B110,'CP IDs'!$A$1:$E$7199,2,FALSE),"") ->  | D110: =IFERROR(VLOOKUP(B110,'CP IDs'!$A$1:$E$7199,5,FALSE),"") ->  | AY110: -500000 | AZ110: 500000 | BB110: 1 | BC110: 1 | BD110: 31 | BF110: 1 | BG110: 0 | BH110: 0 | BJ110: =AND(B110=$C$9,'Standing Data'!$D$9<>"Multi-academy Trust") -> 
A111: =IF(B111<>"",IF('Standing Data'!$D$9<>"Multiple",IF('Standing Data'!$D$9=B111,"Error - counterparty with self",""),IF(N(ISNA(MATCH(B111,'Standing Data'!$E$48:$E$147,0)))<>0,"","Error - counterparty with self")),"") ->  | C111: =IFERROR(VLOOKUP(B111,'CP IDs'!$A$1:$E$7199,2,FALSE),"") ->  | D111: =IFERROR(VLOOKUP(B111,'CP IDs'!$A$1:$E$7199,5,FALSE),"") ->  | AY111: -500000 | AZ111: 500000 | BB111: 1 | BC111: 1 | BD111: 31 | BF111: 1 | BG111: 0 | BH111: 0 | BJ111: =AND(B111=$C$9,'Standing Data'!$D$9<>"Multi-academy Trust") -> 
A112: =IF(B112<>"",IF('Standing Data'!$D$9<>"Multiple",IF('Standing Data'!$D$9=B112,"Error - counterparty with self",""),IF(N(ISNA(MATCH(B112,'Standing Data'!$E$48:$E$147,0)))<>0,"","Error - counterparty with self")),"") ->  | C112: =IFERROR(VLOOKUP(B112,'CP IDs'!$A$1:$E$7199,2,FALSE),"") ->  | D112: =IFERROR(VLOOKUP(B112,'CP IDs'!$A$1:$E$7199,5,FALSE),"") ->  | AY112: -500000 | AZ112: 500000 | BB112: 1 | BC112: 1 | BD112: 31 | BF112: 1 | BG112: 0 | BH112: 0 | BJ112: =AND(B112=$C$9,'Standing Data'!$D$9<>"Multi-academy Trust") -> 
A113: =IF(B113<>"",IF('Standing Data'!$D$9<>"Multiple",IF('Standing Data'!$D$9=B113,"Error - counterparty with self",""),IF(N(ISNA(MATCH(B113,'Standing Data'!$E$48:$E$147,0)))<>0,"","Error - counterparty with self")),"") ->  | C113: =IFERROR(VLOOKUP(B113,'CP IDs'!$A$1:$E$7199,2,FALSE),"") ->  | D113: =IFERROR(VLOOKUP(B113,'CP IDs'!$A$1:$E$7199,5,FALSE),"") ->  | AY113: -500000 | AZ113: 500000 | BB113: 1 | BC113: 1 | BD113: 31 | BF113: 1 | BG113: 0 | BH113: 0 | BJ113: =AND(B113=$C$9,'Standing Data'!$D$9<>"Multi-academy Trust") -> 
A114: =IF(B114<>"",IF('Standing Data'!$D$9<>"Multiple",IF('Standing Data'!$D$9=B114,"Error - counterparty with self",""),IF(N(ISNA(MATCH(B114,'Standing Data'!$E$48:$E$147,0)))<>0,"","Error - counterparty with self")),"") ->  | C114: =IFERROR(VLOOKUP(B114,'CP IDs'!$A$1:$E$7199,2,FALSE),"") ->  | D114: =IFERROR(VLOOKUP(B114,'CP IDs'!$A$1:$E$7199,5,FALSE),"") ->  | AY114: -500000 | AZ114: 500000 | BB114: 1 | BC114: 1 | BD114: 31 | BF114: 1 | BG114: 0 | BH114: 0 | BJ114: =AND(B114=$C$9,'Standing Data'!$D$9<>"Multi-academy Trust") -> 
A115: =IF(B115<>"",IF('Standing Data'!$D$9<>"Multiple",IF('Standing Data'!$D$9=B115,"Error - counterparty with self",""),IF(N(ISNA(MATCH(B115,'Standing Data'!$E$48:$E$147,0)))<>0,"","Error - counterparty with self")),"") ->  | C115: =IFERROR(VLOOKUP(B115,'CP IDs'!$A$1:$E$7199,2,FALSE),"") ->  | D115: =IFERROR(VLOOKUP(B115,'CP IDs'!$A$1:$E$7199,5,FALSE),"") ->  | AY115: -500000 | AZ115: 500000 | BB115: 1 | BC115: 1 | BD115: 31 | BF115: 1 | BG115: 0 | BH115: 0 | BJ115: =AND(B115=$C$9,'Standing Data'!$D$9<>"Multi-academy Trust") -> 
A116: =IF(B116<>"",IF('Standing Data'!$D$9<>"Multiple",IF('Standing Data'!$D$9=B116,"Error - counterparty with self",""),IF(N(ISNA(MATCH(B116,'Standing Data'!$E$48:$E$147,0)))<>0,"","Error - counterparty with self")),"") ->  | C116: =IFERROR(VLOOKUP(B116,'CP IDs'!$A$1:$E$7199,2,FALSE),"") ->  | D116: =IFERROR(VLOOKUP(B116,'CP IDs'!$A$1:$E$7199,5,FALSE),"") ->  | AY116: -500000 | AZ116: 500000 | BB116: 1 | BC116: 1 | BD116: 31 | BF116: 1 | BG116: 0 | BH116: 0 | BJ116: =AND(B116=$C$9,'Standing Data'!$D$9<>"Multi-academy Trust") -> 
A117: =IF(B117<>"",IF('Standing Data'!$D$9<>"Multiple",IF('Standing Data'!$D$9=B117,"Error - counterparty with self",""),IF(N(ISNA(MATCH(B117,'Standing Data'!$E$48:$E$147,0)))<>0,"","Error - counterparty with self")),"") ->  | C117: =IFERROR(VLOOKUP(B117,'CP IDs'!$A$1:$E$7199,2,FALSE),"") ->  | D117: =IFERROR(VLOOKUP(B117,'CP IDs'!$A$1:$E$7199,5,FALSE),"") ->  | AY117: -500000 | AZ117: 500000 | BB117: 1 | BC117: 1 | BD117: 31 | BF117: 1 | BG117: 0 | BH117: 0 | BJ117: =AND(B117=$C$9,'Standing Data'!$D$9<>"Multi-academy Trust") -> 
A118: =IF(B118<>"",IF('Standing Data'!$D$9<>"Multiple",IF('Standing Data'!$D$9=B118,"Error - counterparty with self",""),IF(N(ISNA(MATCH(B118,'Standing Data'!$E$48:$E$147,0)))<>0,"","Error - counterparty with self")),"") ->  | C118: =IFERROR(VLOOKUP(B118,'CP IDs'!$A$1:$E$7199,2,FALSE),"") ->  | D118: =IFERROR(VLOOKUP(B118,'CP IDs'!$A$1:$E$7199,5,FALSE),"") ->  | AY118: -500000 | AZ118: 500000 | BB118: 1 | BC118: 1 | BD118: 31 | BF118: 1 | BG118: 0 | BH118: 0 | BJ118: =AND(B118=$C$9,'Standing Data'!$D$9<>"Multi-academy Trust") -> 
A119: =IF(B119<>"",IF('Standing Data'!$D$9<>"Multiple",IF('Standing Data'!$D$9=B119,"Error - counterparty with self",""),IF(N(ISNA(MATCH(B119,'Standing Data'!$E$48:$E$147,0)))<>0,"","Error - counterparty with self")),"") ->  | C119: =IFERROR(VLOOKUP(B119,'CP IDs'!$A$1:$E$7199,2,FALSE),"") ->  | D119: =IFERROR(VLOOKUP(B119,'CP IDs'!$A$1:$E$7199,5,FALSE),"") ->  | AY119: -500000 | AZ119: 500000 | BB119: 1 | BC119: 1 | BD119: 31 | BF119: 1 | BG119: 0 | BH119: 0 | BJ119: =AND(B119=$C$9,'Standing Data'!$D$9<>"Multi-academy Trust") -> 
A120: =IF(B120<>"",IF('Standing Data'!$D$9<>"Multiple",IF('Standing Data'!$D$9=B120,"Error - counterparty with self",""),IF(N(ISNA(MATCH(B120,'Standing Data'!$E$48:$E$147,0)))<>0,"","Error - counterparty with self")),"") ->  | C120: =IFERROR(VLOOKUP(B120,'CP IDs'!$A$1:$E$7199,2,FALSE),"") ->  | D120: =IFERROR(VLOOKUP(B120,'CP IDs'!$A$1:$E$7199,5,FALSE),"") ->  | AY120: -500000 | AZ120: 500000 | BB120: 1 | BC120: 1 | BD120: 31 | BF120: 1 | BG120: 0 | BH120: 0 | BJ120: =AND(B120=$C$9,'Standing Data'!$D$9<>"Multi-academy Trust") -> 
A121: =IF(B121<>"",IF('Standing Data'!$D$9<>"Multiple",IF('Standing Data'!$D$9=B121,"Error - counterparty with self",""),IF(N(ISNA(MATCH(B121,'Standing Data'!$E$48:$E$147,0)))<>0,"","Error - counterparty with self")),"") ->  | C121: =IFERROR(VLOOKUP(B121,'CP IDs'!$A$1:$E$7199,2,FALSE),"") ->  | D121: =IFERROR(VLOOKUP(B121,'CP IDs'!$A$1:$E$7199,5,FALSE),"") ->  | AY121: -500000 | AZ121: 500000 | BB121: 1 | BC121: 1 | BD121: 31 | BF121: 1 | BG121: 0 | BH121: 0 | BJ121: =AND(B121=$C$9,'Standing Data'!$D$9<>"Multi-academy Trust") -> 
A122: =IF(B122<>"",IF('Standing Data'!$D$9<>"Multiple",IF('Standing Data'!$D$9=B122,"Error - counterparty with self",""),IF(N(ISNA(MATCH(B122,'Standing Data'!$E$48:$E$147,0)))<>0,"","Error - counterparty with self")),"") ->  | C122: =IFERROR(VLOOKUP(B122,'CP IDs'!$A$1:$E$7199,2,FALSE),"") ->  | D122: =IFERROR(VLOOKUP(B122,'CP IDs'!$A$1:$E$7199,5,FALSE),"") ->  | AY122: -500000 | AZ122: 500000 | BB122: 1 | BC122: 1 | BD122: 31 | BF122: 1 | BG122: 0 | BH122: 0 | BJ122: =AND(B122=$C$9,'Standing Data'!$D$9<>"Multi-academy Trust") -> 
A123: =IF(B123<>"",IF('Standing Data'!$D$9<>"Multiple",IF('Standing Data'!$D$9=B123,"Error - counterparty with self",""),IF(N(ISNA(MATCH(B123,'Standing Data'!$E$48:$E$147,0)))<>0,"","Error - counterparty with self")),"") ->  | C123: =IFERROR(VLOOKUP(B123,'CP IDs'!$A$1:$E$7199,2,FALSE),"") ->  | D123: =IFERROR(VLOOKUP(B123,'CP IDs'!$A$1:$E$7199,5,FALSE),"") ->  | AY123: -500000 | AZ123: 500000 | BB123: 1 | BC123: 1 | BD123: 31 | BF123: 1 | BG123: 0 | BH123: 0 | BJ123: =AND(B123=$C$9,'Standing Data'!$D$9<>"Multi-academy Trust") -> 
A124: =IF(B124<>"",IF('Standing Data'!$D$9<>"Multiple",IF('Standing Data'!$D$9=B124,"Error - counterparty with self",""),IF(N(ISNA(MATCH(B124,'Standing Data'!$E$48:$E$147,0)))<>0,"","Error - counterparty with self")),"") ->  | C124: =IFERROR(VLOOKUP(B124,'CP IDs'!$A$1:$E$7199,2,FALSE),"") ->  | D124: =IFERROR(VLOOKUP(B124,'CP IDs'!$A$1:$E$7199,5,FALSE),"") ->  | AY124: -500000 | AZ124: 500000 | BB124: 1 | BC124: 1 | BD124: 31 | BF124: 1 | BG124: 0 | BH124: 0 | BJ124: =AND(B124=$C$9,'Standing Data'!$D$9<>"Multi-academy Trust") -> 
A125: =IF(B125<>"",IF('Standing Data'!$D$9<>"Multiple",IF('Standing Data'!$D$9=B125,"Error - counterparty with self",""),IF(N(ISNA(MATCH(B125,'Standing Data'!$E$48:$E$147,0)))<>0,"","Error - counterparty with self")),"") ->  | C125: =IFERROR(VLOOKUP(B125,'CP IDs'!$A$1:$E$7199,2,FALSE),"") ->  | D125: =IFERROR(VLOOKUP(B125,'CP IDs'!$A$1:$E$7199,5,FALSE),"") ->  | AY125: -500000 | AZ125: 500000 | BB125: 1 | BC125: 1 | BD125: 31 | BF125: 1 | BG125: 0 | BH125: 0 | BJ125: =AND(B125=$C$9,'Standing Data'!$D$9<>"Multi-academy Trust") -> 
A126: =IF(B126<>"",IF('Standing Data'!$D$9<>"Multiple",IF('Standing Data'!$D$9=B126,"Error - counterparty with self",""),IF(N(ISNA(MATCH(B126,'Standing Data'!$E$48:$E$147,0)))<>0,"","Error - counterparty with self")),"") ->  | C126: =IFERROR(VLOOKUP(B126,'CP IDs'!$A$1:$E$7199,2,FALSE),"") ->  | D126: =IFERROR(VLOOKUP(B126,'CP IDs'!$A$1:$E$7199,5,FALSE),"") ->  | AY126: -500000 | AZ126: 500000 | BB126: 1 | BC126: 1 | BD126: 31 | BF126: 1 | BG126: 0 | BH126: 0 | BJ126: =AND(B126=$C$9,'Standing Data'!$D$9<>"Multi-academy Trust") -> 
A127: =IF(B127<>"",IF('Standing Data'!$D$9<>"Multiple",IF('Standing Data'!$D$9=B127,"Error - counterparty with self",""),IF(N(ISNA(MATCH(B127,'Standing Data'!$E$48:$E$147,0)))<>0,"","Error - counterparty with self")),"") ->  | C127: =IFERROR(VLOOKUP(B127,'CP IDs'!$A$1:$E$7199,2,FALSE),"") ->  | D127: =IFERROR(VLOOKUP(B127,'CP IDs'!$A$1:$E$7199,5,FALSE),"") ->  | AY127: -500000 | AZ127: 500000 | BB127: 1 | BC127: 1 | BD127: 31 | BF127: 1 | BG127: 0 | BH127: 0 | BJ127: =AND(B127=$C$9,'Standing Data'!$D$9<>"Multi-academy Trust") -> 
A128: =IF(B128<>"",IF('Standing Data'!$D$9<>"Multiple",IF('Standing Data'!$D$9=B128,"Error - counterparty with self",""),IF(N(ISNA(MATCH(B128,'Standing Data'!$E$48:$E$147,0)))<>0,"","Error - counterparty with self")),"") ->  | C128: =IFERROR(VLOOKUP(B128,'CP IDs'!$A$1:$E$7199,2,FALSE),"") ->  | D128: =IFERROR(VLOOKUP(B128,'CP IDs'!$A$1:$E$7199,5,FALSE),"") ->  | AY128: -500000 | AZ128: 500000 | BB128: 1 | BC128: 1 | BD128: 31 | BF128: 1 | BG128: 0 | BH128: 0 | BJ128: =AND(B128=$C$9,'Standing Data'!$D$9<>"Multi-academy Trust") -> 
A129: =IF(B129<>"",IF('Standing Data'!$D$9<>"Multiple",IF('Standing Data'!$D$9=B129,"Error - counterparty with self",""),IF(N(ISNA(MATCH(B129,'Standing Data'!$E$48:$E$147,0)))<>0,"","Error - counterparty with self")),"") ->  | C129: =IFERROR(VLOOKUP(B129,'CP IDs'!$A$1:$E$7199,2,FALSE),"") ->  | D129: =IFERROR(VLOOKUP(B129,'CP IDs'!$A$1:$E$7199,5,FALSE),"") ->  | AY129: -500000 | AZ129: 500000 | BB129: 1 | BC129: 1 | BD129: 31 | BF129: 1 | BG129: 0 | BH129: 0 | BJ129: =AND(B129=$C$9,'Standing Data'!$D$9<>"Multi-academy Trust") -> 
A130: =IF(B130<>"",IF('Standing Data'!$D$9<>"Multiple",IF('Standing Data'!$D$9=B130,"Error - counterparty with self",""),IF(N(ISNA(MATCH(B130,'Standing Data'!$E$48:$E$147,0)))<>0,"","Error - counterparty with self")),"") ->  | C130: =IFERROR(VLOOKUP(B130,'CP IDs'!$A$1:$E$7199,2,FALSE),"") ->  | D130: =IFERROR(VLOOKUP(B130,'CP IDs'!$A$1:$E$7199,5,FALSE),"") ->  | AY130: -500000 | AZ130: 500000 | BB130: 1 | BC130: 1 | BD130: 31 | BF130: 1 | BG130: 0 | BH130: 0 | BJ130: =AND(B130=$C$9,'Standing Data'!$D$9<>"Multi-academy Trust") -> 
A131: =IF(B131<>"",IF('Standing Data'!$D$9<>"Multiple",IF('Standing Data'!$D$9=B131,"Error - counterparty with self",""),IF(N(ISNA(MATCH(B131,'Standing Data'!$E$48:$E$147,0)))<>0,"","Error - counterparty with self")),"") ->  | C131: =IFERROR(VLOOKUP(B131,'CP IDs'!$A$1:$E$7199,2,FALSE),"") ->  | D131: =IFERROR(VLOOKUP(B131,'CP IDs'!$A$1:$E$7199,5,FALSE),"") ->  | AY131: -500000 | AZ131: 500000 | BB131: 1 | BC131: 1 | BD131: 31 | BF131: 1 | BG131: 0 | BH131: 0 | BJ131: =AND(B131=$C$9,'Standing Data'!$D$9<>"Multi-academy Trust") -> 
A132: =IF(B132<>"",IF('Standing Data'!$D$9<>"Multiple",IF('Standing Data'!$D$9=B132,"Error - counterparty with self",""),IF(N(ISNA(MATCH(B132,'Standing Data'!$E$48:$E$147,0)))<>0,"","Error - counterparty with self")),"") ->  | C132: =IFERROR(VLOOKUP(B132,'CP IDs'!$A$1:$E$7199,2,FALSE),"") ->  | D132: =IFERROR(VLOOKUP(B132,'CP IDs'!$A$1:$E$7199,5,FALSE),"") ->  | AY132: -500000 | AZ132: 500000 | BB132: 1 | BC132: 1 | BD132: 31 | BF132: 1 | BG132: 0 | BH132: 0 | BJ132: =AND(B132=$C$9,'Standing Data'!$D$9<>"Multi-academy Trust") -> 
A133: =IF(B133<>"",IF('Standing Data'!$D$9<>"Multiple",IF('Standing Data'!$D$9=B133,"Error - counterparty with self",""),IF(N(ISNA(MATCH(B133,'Standing Data'!$E$48:$E$147,0)))<>0,"","Error - counterparty with self")),"") ->  | C133: =IFERROR(VLOOKUP(B133,'CP IDs'!$A$1:$E$7199,2,FALSE),"") ->  | D133: =IFERROR(VLOOKUP(B133,'CP IDs'!$A$1:$E$7199,5,FALSE),"") ->  | AY133: -500000 | AZ133: 500000 | BB133: 1 | BC133: 1 | BD133: 31 | BF133: 1 | BG133: 0 | BH133: 0 | BJ133: =AND(B133=$C$9,'Standing Data'!$D$9<>"Multi-academy Trust") -> 
A134: =IF(B134<>"",IF('Standing Data'!$D$9<>"Multiple",IF('Standing Data'!$D$9=B134,"Error - counterparty with self",""),IF(N(ISNA(MATCH(B134,'Standing Data'!$E$48:$E$147,0)))<>0,"","Error - counterparty with self")),"") ->  | C134: =IFERROR(VLOOKUP(B134,'CP IDs'!$A$1:$E$7199,2,FALSE),"") ->  | D134: =IFERROR(VLOOKUP(B134,'CP IDs'!$A$1:$E$7199,5,FALSE),"") ->  | AY134: -500000 | AZ134: 500000 | BB134: 1 | BC134: 1 | BD134: 31 | BF134: 1 | BG134: 0 | BH134: 0 | BJ134: =AND(B134=$C$9,'Standing Data'!$D$9<>"Multi-academy Trust") -> 
A135: =IF(B135<>"",IF('Standing Data'!$D$9<>"Multiple",IF('Standing Data'!$D$9=B135,"Error - counterparty with self",""),IF(N(ISNA(MATCH(B135,'Standing Data'!$E$48:$E$147,0)))<>0,"","Error - counterparty with self")),"") ->  | C135: =IFERROR(VLOOKUP(B135,'CP IDs'!$A$1:$E$7199,2,FALSE),"") ->  | D135: =IFERROR(VLOOKUP(B135,'CP IDs'!$A$1:$E$7199,5,FALSE),"") ->  | AY135: -500000 | AZ135: 500000 | BB135: 1 | BC135: 1 | BD135: 31 | BF135: 1 | BG135: 0 | BH135: 0 | BJ135: =AND(B135=$C$9,'Standing Data'!$D$9<>"Multi-academy Trust") -> 
A136: =IF(B136<>"",IF('Standing Data'!$D$9<>"Multiple",IF('Standing Data'!$D$9=B136,"Error - counterparty with self",""),IF(N(ISNA(MATCH(B136,'Standing Data'!$E$48:$E$147,0)))<>0,"","Error - counterparty with self")),"") ->  | C136: =IFERROR(VLOOKUP(B136,'CP IDs'!$A$1:$E$7199,2,FALSE),"") ->  | D136: =IFERROR(VLOOKUP(B136,'CP IDs'!$A$1:$E$7199,5,FALSE),"") ->  | AY136: -500000 | AZ136: 500000 | BB136: 1 | BC136: 1 | BD136: 31 | BF136: 1 | BG136: 0 | BH136: 0 | BJ136: =AND(B136=$C$9,'Standing Data'!$D$9<>"Multi-academy Trust") -> 
A137: =IF(B137<>"",IF('Standing Data'!$D$9<>"Multiple",IF('Standing Data'!$D$9=B137,"Error - counterparty with self",""),IF(N(ISNA(MATCH(B137,'Standing Data'!$E$48:$E$147,0)))<>0,"","Error - counterparty with self")),"") ->  | C137: =IFERROR(VLOOKUP(B137,'CP IDs'!$A$1:$E$7199,2,FALSE),"") ->  | D137: =IFERROR(VLOOKUP(B137,'CP IDs'!$A$1:$E$7199,5,FALSE),"") ->  | AY137: -500000 | AZ137: 500000 | BB137: 1 | BC137: 1 | BD137: 31 | BF137: 1 | BG137: 0 | BH137: 0 | BJ137: =AND(B137=$C$9,'Standing Data'!$D$9<>"Multi-academy Trust") -> 
A138: =IF(B138<>"",IF('Standing Data'!$D$9<>"Multiple",IF('Standing Data'!$D$9=B138,"Error - counterparty with self",""),IF(N(ISNA(MATCH(B138,'Standing Data'!$E$48:$E$147,0)))<>0,"","Error - counterparty with self")),"") ->  | C138: =IFERROR(VLOOKUP(B138,'CP IDs'!$A$1:$E$7199,2,FALSE),"") ->  | D138: =IFERROR(VLOOKUP(B138,'CP IDs'!$A$1:$E$7199,5,FALSE),"") ->  | AY138: -500000 | AZ138: 500000 | BB138: 1 | BC138: 1 | BD138: 31 | BF138: 1 | BG138: 0 | BH138: 0 | BJ138: =AND(B138=$C$9,'Standing Data'!$D$9<>"Multi-academy Trust") -> 
A139: =IF(B139<>"",IF('Standing Data'!$D$9<>"Multiple",IF('Standing Data'!$D$9=B139,"Error - counterparty with self",""),IF(N(ISNA(MATCH(B139,'Standing Data'!$E$48:$E$147,0)))<>0,"","Error - counterparty with self")),"") ->  | C139: =IFERROR(VLOOKUP(B139,'CP IDs'!$A$1:$E$7199,2,FALSE),"") ->  | D139: =IFERROR(VLOOKUP(B139,'CP IDs'!$A$1:$E$7199,5,FALSE),"") ->  | AY139: -500000 | AZ139: 500000 | BB139: 1 | BC139: 1 | BD139: 31 | BF139: 1 | BG139: 0 | BH139: 0 | BJ139: =AND(B139=$C$9,'Standing Data'!$D$9<>"Multi-academy Trust") -> 
A140: =IF(B140<>"",IF('Standing Data'!$D$9<>"Multiple",IF('Standing Data'!$D$9=B140,"Error - counterparty with self",""),IF(N(ISNA(MATCH(B140,'Standing Data'!$E$48:$E$147,0)))<>0,"","Error - counterparty with self")),"") ->  | C140: =IFERROR(VLOOKUP(B140,'CP IDs'!$A$1:$E$7199,2,FALSE),"") ->  | D140: =IFERROR(VLOOKUP(B140,'CP IDs'!$A$1:$E$7199,5,FALSE),"") ->  | AY140: -500000 | AZ140: 500000 | BB140: 1 | BC140: 1 | BD140: 31 | BF140: 1 | BG140: 0 | BH140: 0 | BJ140: =AND(B140=$C$9,'Standing Data'!$D$9<>"Multi-academy Trust") -> 
A141: =IF(B141<>"",IF('Standing Data'!$D$9<>"Multiple",IF('Standing Data'!$D$9=B141,"Error - counterparty with self",""),IF(N(ISNA(MATCH(B141,'Standing Data'!$E$48:$E$147,0)))<>0,"","Error - counterparty with self")),"") ->  | C141: =IFERROR(VLOOKUP(B141,'CP IDs'!$A$1:$E$7199,2,FALSE),"") ->  | D141: =IFERROR(VLOOKUP(B141,'CP IDs'!$A$1:$E$7199,5,FALSE),"") ->  | AY141: -500000 | AZ141: 500000 | BB141: 1 | BC141: 1 | BD141: 31 | BF141: 1 | BG141: 0 | BH141: 0 | BJ141: =AND(B141=$C$9,'Standing Data'!$D$9<>"Multi-academy Trust") -> 
A142: =IF(B142<>"",IF('Standing Data'!$D$9<>"Multiple",IF('Standing Data'!$D$9=B142,"Error - counterparty with self",""),IF(N(ISNA(MATCH(B142,'Standing Data'!$E$48:$E$147,0)))<>0,"","Error - counterparty with self")),"") ->  | C142: =IFERROR(VLOOKUP(B142,'CP IDs'!$A$1:$E$7199,2,FALSE),"") ->  | D142: =IFERROR(VLOOKUP(B142,'CP IDs'!$A$1:$E$7199,5,FALSE),"") ->  | AY142: -500000 | AZ142: 500000 | BB142: 1 | BC142: 1 | BD142: 31 | BF142: 1 | BG142: 0 | BH142: 0 | BJ142: =AND(B142=$C$9,'Standing Data'!$D$9<>"Multi-academy Trust") -> 
A143: =IF(B143<>"",IF('Standing Data'!$D$9<>"Multiple",IF('Standing Data'!$D$9=B143,"Error - counterparty with self",""),IF(N(ISNA(MATCH(B143,'Standing Data'!$E$48:$E$147,0)))<>0,"","Error - counterparty with self")),"") ->  | C143: =IFERROR(VLOOKUP(B143,'CP IDs'!$A$1:$E$7199,2,FALSE),"") ->  | D143: =IFERROR(VLOOKUP(B143,'CP IDs'!$A$1:$E$7199,5,FALSE),"") ->  | AY143: -500000 | AZ143: 500000 | BB143: 1 | BC143: 1 | BD143: 31 | BF143: 1 | BG143: 0 | BH143: 0 | BJ143: =AND(B143=$C$9,'Standing Data'!$D$9<>"Multi-academy Trust") -> 
A144: =IF(B144<>"",IF('Standing Data'!$D$9<>"Multiple",IF('Standing Data'!$D$9=B144,"Error - counterparty with self",""),IF(N(ISNA(MATCH(B144,'Standing Data'!$E$48:$E$147,0)))<>0,"","Error - counterparty with self")),"") ->  | C144: =IFERROR(VLOOKUP(B144,'CP IDs'!$A$1:$E$7199,2,FALSE),"") ->  | D144: =IFERROR(VLOOKUP(B144,'CP IDs'!$A$1:$E$7199,5,FALSE),"") ->  | AY144: -500000 | AZ144: 500000 | BB144: 1 | BC144: 1 | BD144: 31 | BF144: 1 | BG144: 0 | BH144: 0 | BJ144: =AND(B144=$C$9,'Standing Data'!$D$9<>"Multi-academy Trust") -> 
A145: =IF(B145<>"",IF('Standing Data'!$D$9<>"Multiple",IF('Standing Data'!$D$9=B145,"Error - counterparty with self",""),IF(N(ISNA(MATCH(B145,'Standing Data'!$E$48:$E$147,0)))<>0,"","Error - counterparty with self")),"") ->  | C145: =IFERROR(VLOOKUP(B145,'CP IDs'!$A$1:$E$7199,2,FALSE),"") ->  | D145: =IFERROR(VLOOKUP(B145,'CP IDs'!$A$1:$E$7199,5,FALSE),"") ->  | AY145: -500000 | AZ145: 500000 | BB145: 1 | BC145: 1 | BD145: 31 | BF145: 1 | BG145: 0 | BH145: 0 | BJ145: =AND(B145=$C$9,'Standing Data'!$D$9<>"Multi-academy Trust") -> 
A146: =IF(B146<>"",IF('Standing Data'!$D$9<>"Multiple",IF('Standing Data'!$D$9=B146,"Error - counterparty with self",""),IF(N(ISNA(MATCH(B146,'Standing Data'!$E$48:$E$147,0)))<>0,"","Error - counterparty with self")),"") ->  | C146: =IFERROR(VLOOKUP(B146,'CP IDs'!$A$1:$E$7199,2,FALSE),"") ->  | D146: =IFERROR(VLOOKUP(B146,'CP IDs'!$A$1:$E$7199,5,FALSE),"") ->  | AY146: -500000 | AZ146: 500000 | BB146: 1 | BC146: 1 | BD146: 31 | BF146: 1 | BG146: 0 | BH146: 0 | BJ146: =AND(B146=$C$9,'Standing Data'!$D$9<>"Multi-academy Trust") -> 
A147: =IF(B147<>"",IF('Standing Data'!$D$9<>"Multiple",IF('Standing Data'!$D$9=B147,"Error - counterparty with self",""),IF(N(ISNA(MATCH(B147,'Standing Data'!$E$48:$E$147,0)))<>0,"","Error - counterparty with self")),"") ->  | C147: =IFERROR(VLOOKUP(B147,'CP IDs'!$A$1:$E$7199,2,FALSE),"") ->  | D147: =IFERROR(VLOOKUP(B147,'CP IDs'!$A$1:$E$7199,5,FALSE),"") ->  | AY147: -500000 | AZ147: 500000 | BB147: 1 | BC147: 1 | BD147: 31 | BF147: 1 | BG147: 0 | BH147: 0 | BJ147: =AND(B147=$C$9,'Standing Data'!$D$9<>"Multi-academy Trust") -> 
A148: =IF(B148<>"",IF('Standing Data'!$D$9<>"Multiple",IF('Standing Data'!$D$9=B148,"Error - counterparty with self",""),IF(N(ISNA(MATCH(B148,'Standing Data'!$E$48:$E$147,0)))<>0,"","Error - counterparty with self")),"") ->  | C148: =IFERROR(VLOOKUP(B148,'CP IDs'!$A$1:$E$7199,2,FALSE),"") ->  | D148: =IFERROR(VLOOKUP(B148,'CP IDs'!$A$1:$E$7199,5,FALSE),"") ->  | AY148: -500000 | AZ148: 500000 | BB148: 1 | BC148: 1 | BD148: 31 | BF148: 1 | BG148: 0 | BH148: 0 | BJ148: =AND(B148=$C$9,'Standing Data'!$D$9<>"Multi-academy Trust") -> 
A149: =IF(B149<>"",IF('Standing Data'!$D$9<>"Multiple",IF('Standing Data'!$D$9=B149,"Error - counterparty with self",""),IF(N(ISNA(MATCH(B149,'Standing Data'!$E$48:$E$147,0)))<>0,"","Error - counterparty with self")),"") ->  | C149: =IFERROR(VLOOKUP(B149,'CP IDs'!$A$1:$E$7199,2,FALSE),"") ->  | D149: =IFERROR(VLOOKUP(B149,'CP IDs'!$A$1:$E$7199,5,FALSE),"") ->  | AY149: -500000 | AZ149: 500000 | BB149: 1 | BC149: 1 | BD149: 31 | BF149: 1 | BG149: 0 | BH149: 0 | BJ149: =AND(B149=$C$9,'Standing Data'!$D$9<>"Multi-academy Trust") -> 
A150: =IF(B150<>"",IF('Standing Data'!$D$9<>"Multiple",IF('Standing Data'!$D$9=B150,"Error - counterparty with self",""),IF(N(ISNA(MATCH(B150,'Standing Data'!$E$48:$E$147,0)))<>0,"","Error - counterparty with self")),"") ->  | C150: =IFERROR(VLOOKUP(B150,'CP IDs'!$A$1:$E$7199,2,FALSE),"") ->  | D150: =IFERROR(VLOOKUP(B150,'CP IDs'!$A$1:$E$7199,5,FALSE),"") ->  | AY150: -500000 | AZ150: 500000 | BB150: 1 | BC150: 1 | BD150: 31 | BF150: 1 | BG150: 0 | BH150: =COUNT(F150:AV150) -> 0 | BJ150: =AND(B150=$C$9,'Standing Data'!$D$9<>"Multi-academy Trust") -> 
A151: =IF(B151<>"",IF('Standing Data'!$D$9<>"Multiple",IF('Standing Data'!$D$9=B151,"Error - counterparty with self",""),IF(N(ISNA(MATCH(B151,'Standing Data'!$E$48:$E$147,0)))<>0,"","Error - counterparty with self")),"") ->  | C151: =IFERROR(VLOOKUP(B151,'CP IDs'!$A$1:$E$7199,2,FALSE),"") ->  | D151: =IFERROR(VLOOKUP(B151,'CP IDs'!$A$1:$E$7199,5,FALSE),"") ->  | AY151: =AY150 -> -500000 | AZ151: =AZ150 -> 500000 | BB151: 1 | BC151: 1 | BD151: 31 | BF151: 1 | BG151: 0 | BH151: 0 | BJ151: =AND(B151=$C$9,'Standing Data'!$D$9<>"Multi-academy Trust") -> 
A152: =IF(B152<>"",IF('Standing Data'!$D$9<>"Multiple",IF('Standing Data'!$D$9=B152,"Error - counterparty with self",""),IF(N(ISNA(MATCH(B152,'Standing Data'!$E$48:$E$147,0)))<>0,"","Error - counterparty with self")),"") ->  | C152: =IFERROR(VLOOKUP(B152,'CP IDs'!$A$1:$E$7199,2,FALSE),"") ->  | D152: =IFERROR(VLOOKUP(B152,'CP IDs'!$A$1:$E$7199,5,FALSE),"") ->  | AY152: -500000 | AZ152: 500000 | BB152: 1 | BC152: 1 | BD152: 31 | BF152: 1 | BG152: 0 | BH152: 0 | BJ152: =AND(B152=$C$9,'Standing Data'!$D$9<>"Multi-academy Trust") -> 
A153: =IF(B153<>"",IF('Standing Data'!$D$9<>"Multiple",IF('Standing Data'!$D$9=B153,"Error - counterparty with self",""),IF(N(ISNA(MATCH(B153,'Standing Data'!$E$48:$E$147,0)))<>0,"","Error - counterparty with self")),"") ->  | C153: =IFERROR(VLOOKUP(B153,'CP IDs'!$A$1:$E$7199,2,FALSE),"") ->  | D153: =IFERROR(VLOOKUP(B153,'CP IDs'!$A$1:$E$7199,5,FALSE),"") ->  | AY153: -500000 | AZ153: 500000 | BB153: 1 | BC153: 1 | BD153: 31 | BF153: 1 | BG153: 0 | BH153: 0 | BJ153: =AND(B153=$C$9,'Standing Data'!$D$9<>"Multi-academy Trust") -> 
A154: =IF(B154<>"",IF('Standing Data'!$D$9<>"Multiple",IF('Standing Data'!$D$9=B154,"Error - counterparty with self",""),IF(N(ISNA(MATCH(B154,'Standing Data'!$E$48:$E$147,0)))<>0,"","Error - counterparty with self")),"") ->  | C154: =IFERROR(VLOOKUP(B154,'CP IDs'!$A$1:$E$7199,2,FALSE),"") ->  | D154: =IFERROR(VLOOKUP(B154,'CP IDs'!$A$1:$E$7199,5,FALSE),"") ->  | AY154: -500000 | AZ154: 500000 | BB154: 1 | BC154: 1 | BD154: 31 | BF154: 1 | BG154: 0 | BH154: 0 | BJ154: =AND(B154=$C$9,'Standing Data'!$D$9<>"Multi-academy Trust") -> 
A155: =IF(B155<>"",IF('Standing Data'!$D$9<>"Multiple",IF('Standing Data'!$D$9=B155,"Error - counterparty with self",""),IF(N(ISNA(MATCH(B155,'Standing Data'!$E$48:$E$147,0)))<>0,"","Error - counterparty with self")),"") ->  | C155: =IFERROR(VLOOKUP(B155,'CP IDs'!$A$1:$E$7199,2,FALSE),"") ->  | D155: =IFERROR(VLOOKUP(B155,'CP IDs'!$A$1:$E$7199,5,FALSE),"") ->  | AY155: -500000 | AZ155: 500000 | BB155: 1 | BC155: 1 | BD155: 31 | BF155: 1 | BG155: 0 | BH155: 0 | BJ155: =AND(B155=$C$9,'Standing Data'!$D$9<>"Multi-academy Trust") -> 
A156: =IF(B156<>"",IF('Standing Data'!$D$9<>"Multiple",IF('Standing Data'!$D$9=B156,"Error - counterparty with self",""),IF(N(ISNA(MATCH(B156,'Standing Data'!$E$48:$E$147,0)))<>0,"","Error - counterparty with self")),"") ->  | C156: =IFERROR(VLOOKUP(B156,'CP IDs'!$A$1:$E$7199,2,FALSE),"") ->  | D156: =IFERROR(VLOOKUP(B156,'CP IDs'!$A$1:$E$7199,5,FALSE),"") ->  | AY156: -500000 | AZ156: 500000 | BB156: 1 | BC156: 1 | BD156: 31 | BF156: 1 | BG156: 0 | BH156: 0 | BJ156: =AND(B156=$C$9,'Standing Data'!$D$9<>"Multi-academy Trust") -> 
A157: =IF(B157<>"",IF('Standing Data'!$D$9<>"Multiple",IF('Standing Data'!$D$9=B157,"Error - counterparty with self",""),IF(N(ISNA(MATCH(B157,'Standing Data'!$E$48:$E$147,0)))<>0,"","Error - counterparty with self")),"") ->  | C157: =IFERROR(VLOOKUP(B157,'CP IDs'!$A$1:$E$7199,2,FALSE),"") ->  | D157: =IFERROR(VLOOKUP(B157,'CP IDs'!$A$1:$E$7199,5,FALSE),"") ->  | AY157: -500000 | AZ157: 500000 | BB157: 1 | BC157: 1 | BD157: 31 | BF157: 1 | BG157: 0 | BH157: 0 | BJ157: =AND(B157=$C$9,'Standing Data'!$D$9<>"Multi-academy Trust") -> 
A158: =IF(B158<>"",IF('Standing Data'!$D$9<>"Multiple",IF('Standing Data'!$D$9=B158,"Error - counterparty with self",""),IF(N(ISNA(MATCH(B158,'Standing Data'!$E$48:$E$147,0)))<>0,"","Error - counterparty with self")),"") ->  | C158: =IFERROR(VLOOKUP(B158,'CP IDs'!$A$1:$E$7199,2,FALSE),"") ->  | D158: =IFERROR(VLOOKUP(B158,'CP IDs'!$A$1:$E$7199,5,FALSE),"") ->  | AY158: -500000 | AZ158: 500000 | BB158: 1 | BC158: 1 | BD158: 31 | BF158: =COUNTA(C158) -> 1 | BG158: =1-COUNTBLANK(B158) -> 0 | BH158: 0 | BJ158: =AND(B158=$C$9,'Standing Data'!$D$9<>"Multi-academy Trust") -> 
A159: =IF(B159<>"",IF('Standing Data'!$D$9<>"Multiple",IF('Standing Data'!$D$9=B159,"Error - counterparty with self",""),IF(N(ISNA(MATCH(B159,'Standing Data'!$E$48:$E$147,0)))<>0,"","Error - counterparty with self")),"") ->  | C159: =IFERROR(VLOOKUP(B159,'CP IDs'!$A$1:$E$7199,2,FALSE),"") ->  | D159: =IFERROR(VLOOKUP(B159,'CP IDs'!$A$1:$E$7199,5,FALSE),"") ->  | E159: =IF(OR(AND(COUNT(F159:AV159)>0,C159=""),AND(COUNT(F159:AV159)=0,C159<>"")),"Error - on line","") ->  | AY159: -500000 | AZ159: 500000 | BB159: 1 | BC159: 1 | BD159: 31 | BF159: 1 | BG159: 0 | BH159: 0 | BJ159: =AND(B159=$C$9,'Standing Data'!$D$9<>"Multi-academy Trust") -> 
A160: =IF(B160<>"",IF('Standing Data'!$D$9<>"Multiple",IF('Standing Data'!$D$9=B160,"Error - counterparty with self",""),IF(N(ISNA(MATCH(B160,'Standing Data'!$E$48:$E$147,0)))<>0,"","Error - counterparty with self")),"") ->  | C160: =IFERROR(VLOOKUP(B160,'CP IDs'!$A$1:$E$7199,2,FALSE),"") ->  | D160: =IFERROR(VLOOKUP(B160,'CP IDs'!$A$1:$E$7199,5,FALSE),"") ->  | AY160: -500000 | AZ160: 500000 | BB160: 1 | BC160: 1 | BD160: 31 | BF160: 1 | BG160: 0 | BH160: 0 | BJ160: =AND(B160=$C$9,'Standing Data'!$D$9<>"Multi-academy Trust") -> 
A161: =IF(B161<>"",IF('Standing Data'!$D$9<>"Multiple",IF('Standing Data'!$D$9=B161,"Error - counterparty with self",""),IF(N(ISNA(MATCH(B161,'Standing Data'!$E$48:$E$147,0)))<>0,"","Error - counterparty with self")),"") ->  | C161: =IFERROR(VLOOKUP(B161,'CP IDs'!$A$1:$E$7199,2,FALSE),"") ->  | D161: =IFERROR(VLOOKUP(B161,'CP IDs'!$A$1:$E$7199,5,FALSE),"") ->  | AY161: -500000 | AZ161: 500000 | BB161: 1 | BC161: 1 | BD161: 31 | BF161: 1 | BG161: 0 | BH161: 0 | BJ161: =AND(B161=$C$9,'Standing Data'!$D$9<>"Multi-academy Trust") -> 
A162: =IF(B162<>"",IF('Standing Data'!$D$9<>"Multiple",IF('Standing Data'!$D$9=B162,"Error - counterparty with self",""),IF(N(ISNA(MATCH(B162,'Standing Data'!$E$48:$E$147,0)))<>0,"","Error - counterparty with self")),"") ->  | C162: =IFERROR(VLOOKUP(B162,'CP IDs'!$A$1:$E$7199,2,FALSE),"") ->  | D162: =IFERROR(VLOOKUP(B162,'CP IDs'!$A$1:$E$7199,5,FALSE),"") ->  | AY162: -500000 | AZ162: 500000 | BB162: 1 | BC162: 1 | BD162: 31 | BF162: 1 | BG162: 0 | BH162: 0 | BJ162: =AND(B162=$C$9,'Standing Data'!$D$9<>"Multi-academy Trust") -> 
A163: =IF(B163<>"",IF('Standing Data'!$D$9<>"Multiple",IF('Standing Data'!$D$9=B163,"Error - counterparty with self",""),IF(N(ISNA(MATCH(B163,'Standing Data'!$E$48:$E$147,0)))<>0,"","Error - counterparty with self")),"") ->  | C163: =IFERROR(VLOOKUP(B163,'CP IDs'!$A$1:$E$7199,2,FALSE),"") ->  | D163: =IFERROR(VLOOKUP(B163,'CP IDs'!$A$1:$E$7199,5,FALSE),"") ->  | AY163: -500000 | AZ163: 500000 | BB163: 1 | BC163: 1 | BD163: 31 | BF163: 1 | BG163: 0 | BH163: 0 | BJ163: =AND(B163=$C$9,'Standing Data'!$D$9<>"Multi-academy Trust") -> 
A164: =IF(B164<>"",IF('Standing Data'!$D$9<>"Multiple",IF('Standing Data'!$D$9=B164,"Error - counterparty with self",""),IF(N(ISNA(MATCH(B164,'Standing Data'!$E$48:$E$147,0)))<>0,"","Error - counterparty with self")),"") ->  | C164: =IFERROR(VLOOKUP(B164,'CP IDs'!$A$1:$E$7199,2,FALSE),"") ->  | D164: =IFERROR(VLOOKUP(B164,'CP IDs'!$A$1:$E$7199,5,FALSE),"") ->  | AY164: -500000 | AZ164: 500000 | BB164: 1 | BC164: 1 | BD164: 31 | BF164: 1 | BG164: 0 | BH164: 0 | BJ164: =AND(B164=$C$9,'Standing Data'!$D$9<>"Multi-academy Trust") -> 
A165: =IF(B165<>"",IF('Standing Data'!$D$9<>"Multiple",IF('Standing Data'!$D$9=B165,"Error - counterparty with self",""),IF(N(ISNA(MATCH(B165,'Standing Data'!$E$48:$E$147,0)))<>0,"","Error - counterparty with self")),"") ->  | C165: =IFERROR(VLOOKUP(B165,'CP IDs'!$A$1:$E$7199,2,FALSE),"") ->  | D165: =IFERROR(VLOOKUP(B165,'CP IDs'!$A$1:$E$7199,5,FALSE),"") ->  | AY165: -500000 | AZ165: 500000 | BB165: 1 | BC165: 1 | BD165: 31 | BF165: 1 | BG165: 0 | BH165: 0 | BJ165: =AND(B165=$C$9,'Standing Data'!$D$9<>"Multi-academy Trust") -> 
A166: =IF(B166<>"",IF('Standing Data'!$D$9<>"Multiple",IF('Standing Data'!$D$9=B166,"Error - counterparty with self",""),IF(N(ISNA(MATCH(B166,'Standing Data'!$E$48:$E$147,0)))<>0,"","Error - counterparty with self")),"") ->  | C166: =IFERROR(VLOOKUP(B166,'CP IDs'!$A$1:$E$7199,2,FALSE),"") ->  | D166: =IFERROR(VLOOKUP(B166,'CP IDs'!$A$1:$E$7199,5,FALSE),"") ->  | AY166: -500000 | AZ166: 500000 | BB166: 1 | BC166: 1 | BD166: 31 | BF166: 1 | BG166: 0 | BH166: 0 | BJ166: =AND(B166=$C$9,'Standing Data'!$D$9<>"Multi-academy Trust") -> 
A167: =IF(B167<>"",IF('Standing Data'!$D$9<>"Multiple",IF('Standing Data'!$D$9=B167,"Error - counterparty with self",""),IF(N(ISNA(MATCH(B167,'Standing Data'!$E$48:$E$147,0)))<>0,"","Error - counterparty with self")),"") ->  | C167: =IFERROR(VLOOKUP(B167,'CP IDs'!$A$1:$E$7199,2,FALSE),"") ->  | D167: =IFERROR(VLOOKUP(B167,'CP IDs'!$A$1:$E$7199,5,FALSE),"") ->  | AY167: -500000 | AZ167: 500000 | BB167: 1 | BC167: 1 | BD167: 31 | BF167: 1 | BG167: 0 | BH167: 0 | BJ167: =AND(B167=$C$9,'Standing Data'!$D$9<>"Multi-academy Trust") -> 
A168: =IF(B168<>"",IF('Standing Data'!$D$9<>"Multiple",IF('Standing Data'!$D$9=B168,"Error - counterparty with self",""),IF(N(ISNA(MATCH(B168,'Standing Data'!$E$48:$E$147,0)))<>0,"","Error - counterparty with self")),"") ->  | C168: =IFERROR(VLOOKUP(B168,'CP IDs'!$A$1:$E$7199,2,FALSE),"") ->  | D168: =IFERROR(VLOOKUP(B168,'CP IDs'!$A$1:$E$7199,5,FALSE),"") ->  | AY168: -500000 | AZ168: 500000 | BB168: 1 | BC168: 1 | BD168: 31 | BF168: 1 | BG168: 0 | BH168: 0 | BJ168: =AND(B168=$C$9,'Standing Data'!$D$9<>"Multi-academy Trust") -> 
A169: =IF(B169<>"",IF('Standing Data'!$D$9<>"Multiple",IF('Standing Data'!$D$9=B169,"Error - counterparty with self",""),IF(N(ISNA(MATCH(B169,'Standing Data'!$E$48:$E$147,0)))<>0,"","Error - counterparty with self")),"") ->  | C169: =IFERROR(VLOOKUP(B169,'CP IDs'!$A$1:$E$7199,2,FALSE),"") ->  | D169: =IFERROR(VLOOKUP(B169,'CP IDs'!$A$1:$E$7199,5,FALSE),"") ->  | AY169: -500000 | AZ169: 500000 | BB169: 1 | BC169: 1 | BD169: 31 | BF169: 1 | BG169: 0 | BH169: 0 | BJ169: =AND(B169=$C$9,'Standing Data'!$D$9<>"Multi-academy Trust") -> 
A170: =IF(B170<>"",IF('Standing Data'!$D$9<>"Multiple",IF('Standing Data'!$D$9=B170,"Error - counterparty with self",""),IF(N(ISNA(MATCH(B170,'Standing Data'!$E$48:$E$147,0)))<>0,"","Error - counterparty with self")),"") ->  | C170: =IFERROR(VLOOKUP(B170,'CP IDs'!$A$1:$E$7199,2,FALSE),"") ->  | D170: =IFERROR(VLOOKUP(B170,'CP IDs'!$A$1:$E$7199,5,FALSE),"") ->  | AY170: -500000 | AZ170: 500000 | BB170: 1 | BC170: 1 | BD170: 31 | BF170: 1 | BG170: 0 | BH170: 0 | BJ170: =AND(B170=$C$9,'Standing Data'!$D$9<>"Multi-academy Trust") -> 
A171: =IF(B171<>"",IF('Standing Data'!$D$9<>"Multiple",IF('Standing Data'!$D$9=B171,"Error - counterparty with self",""),IF(N(ISNA(MATCH(B171,'Standing Data'!$E$48:$E$147,0)))<>0,"","Error - counterparty with self")),"") ->  | C171: =IFERROR(VLOOKUP(B171,'CP IDs'!$A$1:$E$7199,2,FALSE),"") ->  | D171: =IFERROR(VLOOKUP(B171,'CP IDs'!$A$1:$E$7199,5,FALSE),"") ->  | AY171: -500000 | AZ171: 500000 | BB171: 1 | BC171: 1 | BD171: 31 | BF171: 1 | BG171: 0 | BH171: 0 | BJ171: =AND(B171=$C$9,'Standing Data'!$D$9<>"Multi-academy Trust") -> 
A172: =IF(B172<>"",IF('Standing Data'!$D$9<>"Multiple",IF('Standing Data'!$D$9=B172,"Error - counterparty with self",""),IF(N(ISNA(MATCH(B172,'Standing Data'!$E$48:$E$147,0)))<>0,"","Error - counterparty with self")),"") ->  | C172: =IFERROR(VLOOKUP(B172,'CP IDs'!$A$1:$E$7199,2,FALSE),"") ->  | D172: =IFERROR(VLOOKUP(B172,'CP IDs'!$A$1:$E$7199,5,FALSE),"") ->  | AY172: -500000 | AZ172: 500000 | BB172: 1 | BC172: 1 | BD172: 31 | BF172: 1 | BG172: 0 | BH172: 0 | BJ172: =AND(B172=$C$9,'Standing Data'!$D$9<>"Multi-academy Trust") -> 
A173: =IF(B173<>"",IF('Standing Data'!$D$9<>"Multiple",IF('Standing Data'!$D$9=B173,"Error - counterparty with self",""),IF(N(ISNA(MATCH(B173,'Standing Data'!$E$48:$E$147,0)))<>0,"","Error - counterparty with self")),"") ->  | C173: =IFERROR(VLOOKUP(B173,'CP IDs'!$A$1:$E$7199,2,FALSE),"") ->  | D173: =IFERROR(VLOOKUP(B173,'CP IDs'!$A$1:$E$7199,5,FALSE),"") ->  | AY173: -500000 | AZ173: 500000 | BB173: 1 | BC173: 1 | BD173: 31 | BF173: 1 | BG173: 0 | BH173: 0 | BJ173: =AND(B173=$C$9,'Standing Data'!$D$9<>"Multi-academy Trust") -> 
A174: =IF(B174<>"",IF('Standing Data'!$D$9<>"Multiple",IF('Standing Data'!$D$9=B174,"Error - counterparty with self",""),IF(N(ISNA(MATCH(B174,'Standing Data'!$E$48:$E$147,0)))<>0,"","Error - counterparty with self")),"") ->  | C174: =IFERROR(VLOOKUP(B174,'CP IDs'!$A$1:$E$7199,2,FALSE),"") ->  | D174: =IFERROR(VLOOKUP(B174,'CP IDs'!$A$1:$E$7199,5,FALSE),"") ->  | AY174: -500000 | AZ174: 500000 | BB174: 1 | BC174: 1 | BD174: 31 | BF174: 1 | BG174: 0 | BH174: 0 | BJ174: =AND(B174=$C$9,'Standing Data'!$D$9<>"Multi-academy Trust") -> 
A175: =IF(B175<>"",IF('Standing Data'!$D$9<>"Multiple",IF('Standing Data'!$D$9=B175,"Error - counterparty with self",""),IF(N(ISNA(MATCH(B175,'Standing Data'!$E$48:$E$147,0)))<>0,"","Error - counterparty with self")),"") ->  | C175: =IFERROR(VLOOKUP(B175,'CP IDs'!$A$1:$E$7199,2,FALSE),"") ->  | D175: =IFERROR(VLOOKUP(B175,'CP IDs'!$A$1:$E$7199,5,FALSE),"") ->  | AY175: -500000 | AZ175: 500000 | BB175: 1 | BC175: 1 | BD175: 31 | BF175: 1 | BG175: 0 | BH175: 0 | BJ175: =AND(B175=$C$9,'Standing Data'!$D$9<>"Multi-academy Trust") -> 
A176: =IF(B176<>"",IF('Standing Data'!$D$9<>"Multiple",IF('Standing Data'!$D$9=B176,"Error - counterparty with self",""),IF(N(ISNA(MATCH(B176,'Standing Data'!$E$48:$E$147,0)))<>0,"","Error - counterparty with self")),"") ->  | C176: =IFERROR(VLOOKUP(B176,'CP IDs'!$A$1:$E$7199,2,FALSE),"") ->  | D176: =IFERROR(VLOOKUP(B176,'CP IDs'!$A$1:$E$7199,5,FALSE),"") ->  | AY176: -500000 | AZ176: 500000 | BB176: 1 | BC176: 1 | BD176: 31 | BF176: 1 | BG176: 0 | BH176: 0 | BJ176: =AND(B176=$C$9,'Standing Data'!$D$9<>"Multi-academy Trust") -> 
A177: =IF(B177<>"",IF('Standing Data'!$D$9<>"Multiple",IF('Standing Data'!$D$9=B177,"Error - counterparty with self",""),IF(N(ISNA(MATCH(B177,'Standing Data'!$E$48:$E$147,0)))<>0,"","Error - counterparty with self")),"") ->  | C177: =IFERROR(VLOOKUP(B177,'CP IDs'!$A$1:$E$7199,2,FALSE),"") ->  | D177: =IFERROR(VLOOKUP(B177,'CP IDs'!$A$1:$E$7199,5,FALSE),"") ->  | AY177: -500000 | AZ177: 500000 | BB177: 1 | BC177: 1 | BD177: 31 | BF177: 1 | BG177: 0 | BH177: 0 | BJ177: =AND(B177=$C$9,'Standing Data'!$D$9<>"Multi-academy Trust") -> 
A178: =IF(B178<>"",IF('Standing Data'!$D$9<>"Multiple",IF('Standing Data'!$D$9=B178,"Error - counterparty with self",""),IF(N(ISNA(MATCH(B178,'Standing Data'!$E$48:$E$147,0)))<>0,"","Error - counterparty with self")),"") ->  | C178: =IFERROR(VLOOKUP(B178,'CP IDs'!$A$1:$E$7199,2,FALSE),"") ->  | D178: =IFERROR(VLOOKUP(B178,'CP IDs'!$A$1:$E$7199,5,FALSE),"") ->  | AY178: -500000 | AZ178: 500000 | BB178: 1 | BC178: 1 | BD178: 31 | BF178: 1 | BG178: 0 | BH178: 0 | BJ178: =AND(B178=$C$9,'Standing Data'!$D$9<>"Multi-academy Trust") -> 
A179: =IF(B179<>"",IF('Standing Data'!$D$9<>"Multiple",IF('Standing Data'!$D$9=B179,"Error - counterparty with self",""),IF(N(ISNA(MATCH(B179,'Standing Data'!$E$48:$E$147,0)))<>0,"","Error - counterparty with self")),"") ->  | C179: =IFERROR(VLOOKUP(B179,'CP IDs'!$A$1:$E$7199,2,FALSE),"") ->  | D179: =IFERROR(VLOOKUP(B179,'CP IDs'!$A$1:$E$7199,5,FALSE),"") ->  | AY179: -500000 | AZ179: 500000 | BB179: 1 | BC179: 1 | BD179: 31 | BF179: 1 | BG179: 0 | BH179: 0 | BJ179: =AND(B179=$C$9,'Standing Data'!$D$9<>"Multi-academy Trust") -> 
A180: =IF(B180<>"",IF('Standing Data'!$D$9<>"Multiple",IF('Standing Data'!$D$9=B180,"Error - counterparty with self",""),IF(N(ISNA(MATCH(B180,'Standing Data'!$E$48:$E$147,0)))<>0,"","Error - counterparty with self")),"") ->  | C180: =IFERROR(VLOOKUP(B180,'CP IDs'!$A$1:$E$7199,2,FALSE),"") ->  | D180: =IFERROR(VLOOKUP(B180,'CP IDs'!$A$1:$E$7199,5,FALSE),"") ->  | AY180: -500000 | AZ180: 500000 | BB180: 1 | BC180: 1 | BD180: 31 | BF180: 1 | BG180: 0 | BH180: 0 | BJ180: =AND(B180=$C$9,'Standing Data'!$D$9<>"Multi-academy Trust") -> 
A181: =IF(B181<>"",IF('Standing Data'!$D$9<>"Multiple",IF('Standing Data'!$D$9=B181,"Error - counterparty with self",""),IF(N(ISNA(MATCH(B181,'Standing Data'!$E$48:$E$147,0)))<>0,"","Error - counterparty with self")),"") ->  | C181: =IFERROR(VLOOKUP(B181,'CP IDs'!$A$1:$E$7199,2,FALSE),"") ->  | D181: =IFERROR(VLOOKUP(B181,'CP IDs'!$A$1:$E$7199,5,FALSE),"") ->  | AY181: -500000 | AZ181: 500000 | BB181: 1 | BC181: 1 | BD181: 31 | BF181: 1 | BG181: 0 | BH181: 0 | BJ181: =AND(B181=$C$9,'Standing Data'!$D$9<>"Multi-academy Trust") -> 
A182: =IF(B182<>"",IF('Standing Data'!$D$9<>"Multiple",IF('Standing Data'!$D$9=B182,"Error - counterparty with self",""),IF(N(ISNA(MATCH(B182,'Standing Data'!$E$48:$E$147,0)))<>0,"","Error - counterparty with self")),"") ->  | C182: =IFERROR(VLOOKUP(B182,'CP IDs'!$A$1:$E$7199,2,FALSE),"") ->  | D182: =IFERROR(VLOOKUP(B182,'CP IDs'!$A$1:$E$7199,5,FALSE),"") ->  | AY182: -500000 | AZ182: 500000 | BB182: 1 | BC182: 1 | BD182: 31 | BF182: 1 | BG182: 0 | BH182: 0 | BJ182: =AND(B182=$C$9,'Standing Data'!$D$9<>"Multi-academy Trust") -> 
A183: =IF(B183<>"",IF('Standing Data'!$D$9<>"Multiple",IF('Standing Data'!$D$9=B183,"Error - counterparty with self",""),IF(N(ISNA(MATCH(B183,'Standing Data'!$E$48:$E$147,0)))<>0,"","Error - counterparty with self")),"") ->  | C183: =IFERROR(VLOOKUP(B183,'CP IDs'!$A$1:$E$7199,2,FALSE),"") ->  | D183: =IFERROR(VLOOKUP(B183,'CP IDs'!$A$1:$E$7199,5,FALSE),"") ->  | AY183: -500000 | AZ183: 500000 | BB183: 1 | BC183: 1 | BD183: 31 | BF183: 1 | BG183: 0 | BH183: 0 | BJ183: =AND(B183=$C$9,'Standing Data'!$D$9<>"Multi-academy Trust") -> 
A184: =IF(B184<>"",IF('Standing Data'!$D$9<>"Multiple",IF('Standing Data'!$D$9=B184,"Error - counterparty with self",""),IF(N(ISNA(MATCH(B184,'Standing Data'!$E$48:$E$147,0)))<>0,"","Error - counterparty with self")),"") ->  | C184: =IFERROR(VLOOKUP(B184,'CP IDs'!$A$1:$E$7199,2,FALSE),"") ->  | D184: =IFERROR(VLOOKUP(B184,'CP IDs'!$A$1:$E$7199,5,FALSE),"") ->  | AY184: -500000 | AZ184: 500000 | BB184: 1 | BC184: 1 | BD184: 31 | BF184: 1 | BG184: 0 | BH184: 0 | BJ184: =AND(B184=$C$9,'Standing Data'!$D$9<>"Multi-academy Trust") -> 
A185: =IF(B185<>"",IF('Standing Data'!$D$9<>"Multiple",IF('Standing Data'!$D$9=B185,"Error - counterparty with self",""),IF(N(ISNA(MATCH(B185,'Standing Data'!$E$48:$E$147,0)))<>0,"","Error - counterparty with self")),"") ->  | C185: =IFERROR(VLOOKUP(B185,'CP IDs'!$A$1:$E$7199,2,FALSE),"") ->  | D185: =IFERROR(VLOOKUP(B185,'CP IDs'!$A$1:$E$7199,5,FALSE),"") ->  | AY185: -500000 | AZ185: 500000 | BB185: 1 | BC185: 1 | BD185: 31 | BF185: 1 | BG185: 0 | BH185: 0 | BJ185: =AND(B185=$C$9,'Standing Data'!$D$9<>"Multi-academy Trust") -> 
A186: =IF(B186<>"",IF('Standing Data'!$D$9<>"Multiple",IF('Standing Data'!$D$9=B186,"Error - counterparty with self",""),IF(N(ISNA(MATCH(B186,'Standing Data'!$E$48:$E$147,0)))<>0,"","Error - counterparty with self")),"") ->  | C186: =IFERROR(VLOOKUP(B186,'CP IDs'!$A$1:$E$7199,2,FALSE),"") ->  | D186: =IFERROR(VLOOKUP(B186,'CP IDs'!$A$1:$E$7199,5,FALSE),"") ->  | AY186: -500000 | AZ186: 500000 | BB186: 1 | BC186: 1 | BD186: 31 | BF186: 1 | BG186: 0 | BH186: 0 | BJ186: =AND(B186=$C$9,'Standing Data'!$D$9<>"Multi-academy Trust") -> 
A187: =IF(B187<>"",IF('Standing Data'!$D$9<>"Multiple",IF('Standing Data'!$D$9=B187,"Error - counterparty with self",""),IF(N(ISNA(MATCH(B187,'Standing Data'!$E$48:$E$147,0)))<>0,"","Error - counterparty with self")),"") ->  | C187: =IFERROR(VLOOKUP(B187,'CP IDs'!$A$1:$E$7199,2,FALSE),"") ->  | D187: =IFERROR(VLOOKUP(B187,'CP IDs'!$A$1:$E$7199,5,FALSE),"") ->  | AY187: -500000 | AZ187: 500000 | BB187: 1 | BC187: 1 | BD187: 31 | BF187: 1 | BG187: 0 | BH187: 0 | BJ187: =AND(B187=$C$9,'Standing Data'!$D$9<>"Multi-academy Trust") -> 
A188: =IF(B188<>"",IF('Standing Data'!$D$9<>"Multiple",IF('Standing Data'!$D$9=B188,"Error - counterparty with self",""),IF(N(ISNA(MATCH(B188,'Standing Data'!$E$48:$E$147,0)))<>0,"","Error - counterparty with self")),"") ->  | C188: =IFERROR(VLOOKUP(B188,'CP IDs'!$A$1:$E$7199,2,FALSE),"") ->  | D188: =IFERROR(VLOOKUP(B188,'CP IDs'!$A$1:$E$7199,5,FALSE),"") ->  | AY188: -500000 | AZ188: 500000 | BB188: 1 | BC188: 1 | BD188: 31 | BF188: 1 | BG188: 0 | BH188: 0 | BJ188: =AND(B188=$C$9,'Standing Data'!$D$9<>"Multi-academy Trust") -> 
A189: =IF(B189<>"",IF('Standing Data'!$D$9<>"Multiple",IF('Standing Data'!$D$9=B189,"Error - counterparty with self",""),IF(N(ISNA(MATCH(B189,'Standing Data'!$E$48:$E$147,0)))<>0,"","Error - counterparty with self")),"") ->  | C189: =IFERROR(VLOOKUP(B189,'CP IDs'!$A$1:$E$7199,2,FALSE),"") ->  | D189: =IFERROR(VLOOKUP(B189,'CP IDs'!$A$1:$E$7199,5,FALSE),"") ->  | AY189: -500000 | AZ189: 500000 | BB189: 1 | BC189: 1 | BD189: 31 | BF189: 1 | BG189: 0 | BH189: 0 | BJ189: =AND(B189=$C$9,'Standing Data'!$D$9<>"Multi-academy Trust") -> 
A190: =IF(B190<>"",IF('Standing Data'!$D$9<>"Multiple",IF('Standing Data'!$D$9=B190,"Error - counterparty with self",""),IF(N(ISNA(MATCH(B190,'Standing Data'!$E$48:$E$147,0)))<>0,"","Error - counterparty with self")),"") ->  | C190: =IFERROR(VLOOKUP(B190,'CP IDs'!$A$1:$E$7199,2,FALSE),"") ->  | D190: =IFERROR(VLOOKUP(B190,'CP IDs'!$A$1:$E$7199,5,FALSE),"") ->  | AY190: -500000 | AZ190: 500000 | BB190: 1 | BC190: 1 | BD190: 31 | BF190: 1 | BG190: 0 | BH190: 0 | BJ190: =AND(B190=$C$9,'Standing Data'!$D$9<>"Multi-academy Trust") -> 
A191: =IF(B191<>"",IF('Standing Data'!$D$9<>"Multiple",IF('Standing Data'!$D$9=B191,"Error - counterparty with self",""),IF(N(ISNA(MATCH(B191,'Standing Data'!$E$48:$E$147,0)))<>0,"","Error - counterparty with self")),"") ->  | C191: =IFERROR(VLOOKUP(B191,'CP IDs'!$A$1:$E$7199,2,FALSE),"") ->  | D191: =IFERROR(VLOOKUP(B191,'CP IDs'!$A$1:$E$7199,5,FALSE),"") ->  | AY191: -500000 | AZ191: 500000 | BB191: 1 | BC191: 1 | BD191: 31 | BF191: 1 | BG191: 0 | BH191: 0 | BJ191: =AND(B191=$C$9,'Standing Data'!$D$9<>"Multi-academy Trust") -> 
A192: =IF(B192<>"",IF('Standing Data'!$D$9<>"Multiple",IF('Standing Data'!$D$9=B192,"Error - counterparty with self",""),IF(N(ISNA(MATCH(B192,'Standing Data'!$E$48:$E$147,0)))<>0,"","Error - counterparty with self")),"") ->  | C192: =IFERROR(VLOOKUP(B192,'CP IDs'!$A$1:$E$7199,2,FALSE),"") ->  | D192: =IFERROR(VLOOKUP(B192,'CP IDs'!$A$1:$E$7199,5,FALSE),"") ->  | AY192: -500000 | AZ192: 500000 | BB192: 1 | BC192: 1 | BD192: 31 | BF192: 1 | BG192: 0 | BH192: 0 | BJ192: =AND(B192=$C$9,'Standing Data'!$D$9<>"Multi-academy Trust") -> 
A193: =IF(B193<>"",IF('Standing Data'!$D$9<>"Multiple",IF('Standing Data'!$D$9=B193,"Error - counterparty with self",""),IF(N(ISNA(MATCH(B193,'Standing Data'!$E$48:$E$147,0)))<>0,"","Error - counterparty with self")),"") ->  | C193: =IFERROR(VLOOKUP(B193,'CP IDs'!$A$1:$E$7199,2,FALSE),"") ->  | D193: =IFERROR(VLOOKUP(B193,'CP IDs'!$A$1:$E$7199,5,FALSE),"") ->  | AY193: -500000 | AZ193: 500000 | BB193: 1 | BC193: 1 | BD193: 31 | BF193: 1 | BG193: 0 | BH193: 0 | BJ193: =AND(B193=$C$9,'Standing Data'!$D$9<>"Multi-academy Trust") -> 
A194: =IF(B194<>"",IF('Standing Data'!$D$9<>"Multiple",IF('Standing Data'!$D$9=B194,"Error - counterparty with self",""),IF(N(ISNA(MATCH(B194,'Standing Data'!$E$48:$E$147,0)))<>0,"","Error - counterparty with self")),"") ->  | C194: =IFERROR(VLOOKUP(B194,'CP IDs'!$A$1:$E$7199,2,FALSE),"") ->  | D194: =IFERROR(VLOOKUP(B194,'CP IDs'!$A$1:$E$7199,5,FALSE),"") ->  | AY194: -500000 | AZ194: 500000 | BB194: 1 | BC194: 1 | BD194: 31 | BF194: 1 | BG194: 0 | BH194: 0 | BJ194: =AND(B194=$C$9,'Standing Data'!$D$9<>"Multi-academy Trust") -> 
A195: =IF(B195<>"",IF('Standing Data'!$D$9<>"Multiple",IF('Standing Data'!$D$9=B195,"Error - counterparty with self",""),IF(N(ISNA(MATCH(B195,'Standing Data'!$E$48:$E$147,0)))<>0,"","Error - counterparty with self")),"") ->  | C195: =IFERROR(VLOOKUP(B195,'CP IDs'!$A$1:$E$7199,2,FALSE),"") ->  | D195: =IFERROR(VLOOKUP(B195,'CP IDs'!$A$1:$E$7199,5,FALSE),"") ->  | AY195: -500000 | AZ195: 500000 | BB195: 1 | BC195: 1 | BD195: 31 | BF195: 1 | BG195: 0 | BH195: 0 | BJ195: =AND(B195=$C$9,'Standing Data'!$D$9<>"Multi-academy Trust") -> 
A196: =IF(B196<>"",IF('Standing Data'!$D$9<>"Multiple",IF('Standing Data'!$D$9=B196,"Error - counterparty with self",""),IF(N(ISNA(MATCH(B196,'Standing Data'!$E$48:$E$147,0)))<>0,"","Error - counterparty with self")),"") ->  | C196: =IFERROR(VLOOKUP(B196,'CP IDs'!$A$1:$E$7199,2,FALSE),"") ->  | D196: =IFERROR(VLOOKUP(B196,'CP IDs'!$A$1:$E$7199,5,FALSE),"") ->  | AY196: -500000 | AZ196: 500000 | BB196: 1 | BC196: 1 | BD196: 31 | BF196: 1 | BG196: 0 | BH196: 0 | BJ196: =AND(B196=$C$9,'Standing Data'!$D$9<>"Multi-academy Trust") -> 
A197: =IF(B197<>"",IF('Standing Data'!$D$9<>"Multiple",IF('Standing Data'!$D$9=B197,"Error - counterparty with self",""),IF(N(ISNA(MATCH(B197,'Standing Data'!$E$48:$E$147,0)))<>0,"","Error - counterparty with self")),"") ->  | C197: =IFERROR(VLOOKUP(B197,'CP IDs'!$A$1:$E$7199,2,FALSE),"") ->  | D197: =IFERROR(VLOOKUP(B197,'CP IDs'!$A$1:$E$7199,5,FALSE),"") ->  | AY197: -500000 | AZ197: 500000 | BB197: 1 | BC197: 1 | BD197: 31 | BF197: 1 | BG197: 0 | BH197: 0 | BJ197: =AND(B197=$C$9,'Standing Data'!$D$9<>"Multi-academy Trust") -> 
A198: =IF(B198<>"",IF('Standing Data'!$D$9<>"Multiple",IF('Standing Data'!$D$9=B198,"Error - counterparty with self",""),IF(N(ISNA(MATCH(B198,'Standing Data'!$E$48:$E$147,0)))<>0,"","Error - counterparty with self")),"") ->  | C198: =IFERROR(VLOOKUP(B198,'CP IDs'!$A$1:$E$7199,2,FALSE),"") ->  | D198: =IFERROR(VLOOKUP(B198,'CP IDs'!$A$1:$E$7199,5,FALSE),"") ->  | AY198: -500000 | AZ198: 500000 | BB198: 1 | BC198: 1 | BD198: 31 | BF198: 1 | BG198: 0 | BH198: 0 | BJ198: =AND(B198=$C$9,'Standing Data'!$D$9<>"Multi-academy Trust") -> 
A199: =IF(B199<>"",IF('Standing Data'!$D$9<>"Multiple",IF('Standing Data'!$D$9=B199,"Error - counterparty with self",""),IF(N(ISNA(MATCH(B199,'Standing Data'!$E$48:$E$147,0)))<>0,"","Error - counterparty with self")),"") ->  | C199: =IFERROR(VLOOKUP(B199,'CP IDs'!$A$1:$E$7199,2,FALSE),"") ->  | D199: =IFERROR(VLOOKUP(B199,'CP IDs'!$A$1:$E$7199,5,FALSE),"") ->  | AY199: -500000 | AZ199: 500000 | BB199: 1 | BC199: 1 | BD199: 31 | BF199: 1 | BG199: 0 | BH199: 0 | BJ199: =AND(B199=$C$9,'Standing Data'!$D$9<>"Multi-academy Trust") -> 
A200: =IF(B200<>"",IF('Standing Data'!$D$9<>"Multiple",IF('Standing Data'!$D$9=B200,"Error - counterparty with self",""),IF(N(ISNA(MATCH(B200,'Standing Data'!$E$48:$E$147,0)))<>0,"","Error - counterparty with self")),"") ->  | C200: =IFERROR(VLOOKUP(B200,'CP IDs'!$A$1:$E$7199,2,FALSE),"") ->  | D200: =IFERROR(VLOOKUP(B200,'CP IDs'!$A$1:$E$7199,5,FALSE),"") ->  | AY200: -500000 | AZ200: 500000 | BB200: 1 | BC200: 1 | BD200: 31 | BF200: 1 | BG200: 0 | BH200: 0 | BJ200: =AND(B200=$C$9,'Standing Data'!$D$9<>"Multi-academy Trust") -> 
A201: =IF(B201<>"",IF('Standing Data'!$D$9<>"Multiple",IF('Standing Data'!$D$9=B201,"Error - counterparty with self",""),IF(N(ISNA(MATCH(B201,'Standing Data'!$E$48:$E$147,0)))<>0,"","Error - counterparty with self")),"") ->  | C201: =IFERROR(VLOOKUP(B201,'CP IDs'!$A$1:$E$7199,2,FALSE),"") ->  | D201: =IFERROR(VLOOKUP(B201,'CP IDs'!$A$1:$E$7199,5,FALSE),"") ->  | AY201: -500000 | AZ201: 500000 | BB201: 1 | BC201: 1 | BD201: 31 | BF201: 1 | BG201: 0 | BH201: 0 | BJ201: =AND(B201=$C$9,'Standing Data'!$D$9<>"Multi-academy Trust") -> 
A202: =IF(B202<>"",IF('Standing Data'!$D$9<>"Multiple",IF('Standing Data'!$D$9=B202,"Error - counterparty with self",""),IF(N(ISNA(MATCH(B202,'Standing Data'!$E$48:$E$147,0)))<>0,"","Error - counterparty with self")),"") ->  | C202: =IFERROR(VLOOKUP(B202,'CP IDs'!$A$1:$E$7199,2,FALSE),"") ->  | D202: =IFERROR(VLOOKUP(B202,'CP IDs'!$A$1:$E$7199,5,FALSE),"") ->  | AY202: -500000 | AZ202: 500000 | BB202: 1 | BC202: 1 | BD202: 31 | BF202: 1 | BG202: 0 | BH202: 0 | BJ202: =AND(B202=$C$9,'Standing Data'!$D$9<>"Multi-academy Trust") -> 
A203: =IF(B203<>"",IF('Standing Data'!$D$9<>"Multiple",IF('Standing Data'!$D$9=B203,"Error - counterparty with self",""),IF(N(ISNA(MATCH(B203,'Standing Data'!$E$48:$E$147,0)))<>0,"","Error - counterparty with self")),"") ->  | C203: =IFERROR(VLOOKUP(B203,'CP IDs'!$A$1:$E$7199,2,FALSE),"") ->  | D203: =IFERROR(VLOOKUP(B203,'CP IDs'!$A$1:$E$7199,5,FALSE),"") ->  | AY203: -500000 | AZ203: 500000 | BB203: 1 | BC203: 1 | BD203: 31 | BF203: 1 | BG203: 0 | BH203: 0 | BJ203: =AND(B203=$C$9,'Standing Data'!$D$9<>"Multi-academy Trust") -> 
A204: =IF(B204<>"",IF('Standing Data'!$D$9<>"Multiple",IF('Standing Data'!$D$9=B204,"Error - counterparty with self",""),IF(N(ISNA(MATCH(B204,'Standing Data'!$E$48:$E$147,0)))<>0,"","Error - counterparty with self")),"") ->  | C204: =IFERROR(VLOOKUP(B204,'CP IDs'!$A$1:$E$7199,2,FALSE),"") ->  | D204: =IFERROR(VLOOKUP(B204,'CP IDs'!$A$1:$E$7199,5,FALSE),"") ->  | AY204: -500000 | AZ204: 500000 | BB204: 1 | BC204: 1 | BD204: 31 | BF204: 1 | BG204: 0 | BH204: 0 | BJ204: =AND(B204=$C$9,'Standing Data'!$D$9<>"Multi-academy Trust") -> 
A205: =IF(B205<>"",IF('Standing Data'!$D$9<>"Multiple",IF('Standing Data'!$D$9=B205,"Error - counterparty with self",""),IF(N(ISNA(MATCH(B205,'Standing Data'!$E$48:$E$147,0)))<>0,"","Error - counterparty with self")),"") ->  | C205: =IFERROR(VLOOKUP(B205,'CP IDs'!$A$1:$E$7199,2,FALSE),"") ->  | D205: =IFERROR(VLOOKUP(B205,'CP IDs'!$A$1:$E$7199,5,FALSE),"") ->  | AY205: -500000 | AZ205: 500000 | BB205: 1 | BC205: 1 | BD205: 31 | BF205: 1 | BG205: 0 | BH205: 0 | BJ205: =AND(B205=$C$9,'Standing Data'!$D$9<>"Multi-academy Trust") -> 
... 16 more rows

Sheet Subsidiaries (hidden)
A1: Accounts Return August 2015 - Subsidiaries
A3: Trust: | C3: ='Standing Data'!$D$3 -> 0 | G3: % of cells
A5: Period end: | C5: ='Standing Data'!$D$6 -> 2016-03-31 | F5: Sourced directly from Financial Statements | G5: =+(O11/S11) -> 0.5555555556
A7: Co. No.: | C7: ='Standing Data'!D14 -> Type number here | F7: Additional to Financial Statements, prepared on a similar basis | G7: =+(P11/S11) -> 0.3333333333
A9: Academy UPIN: | C9: =IF(AND(OR('Standing Data'!D9="Multiple",'Standing Data'!D9="Federation"),'Standing Data'!M48=0),'Standing Data'!E48,IF('Standing Data'!M48<>0,'Standing Data'!M48,IF(OR('Standing Data'!D9="Other",'Standing Data'!F9<>""),'Standing Data'!F9,'Standing Data'!D12))) ->  | F9: Additional to Financial Statements, prepared on a different/new basis | G9: =+(Q11/S11) -> 0.1111111111 | O9: Possible Cells | T9: Completed Cells
C10: Above details will populate automatically | D10: Error check cells | O10: Green | P10: Amber | Q10: Red | R10: Grey | S10: Total | T10: Green | U10: Amber | V10: Red | W10: Grey | X10: Total
E11: For the period | G11: At the period end | O11: =+SUM(O14:O23) -> 50 | P11: =+SUM(P14:P23) -> 30 | Q11: 10 | R11: 0 | S11: 90
C12: Full name of subsidiary company | D12: Company number | E12: Turnover | F12: Profit | G12: Assets | H12: Loans | I12: Finance Leases | J12: Other Liabilities | K12: Capital and Reserves | M12: Lower limit | N12: Upper limit
E13: £000 | F13: £000 | G13: £000 | H13: £000 | I13: £000 | J13: £000 | K13: £000 | M13: £000 | N13: £000
C14: Subsidiary 1 | L14: =+IF(G14<>SUM(H14:K14), "Error-balance sheet does not balance","") ->  | M14: -500000 | N14: 500000 | O14: 5 | P14: 3 | Q14: 1 | S14: =+SUM(O14:R14) -> 9
C15: Subsidiary 2 | L15: =+IF(G15<>SUM(H15:K15), "Error-balance sheet does not balance","") ->  | M15: -500000 | N15: 500000 | O15: 5 | P15: 3 | Q15: 1 | S15: =+SUM(O15:R15) -> 9
C16: Subsidiary 3 | M16: -500000 | N16: 500000 | O16: 5 | P16: 3 | Q16: 1 | S16: 9
C17: Subsidiary 4 | M17: -500000 | N17: 500000 | O17: 5 | P17: 3 | Q17: 1 | S17: 9
C18: Subsidiary 5 | M18: -500000 | N18: 500000 | O18: 5 | P18: 3 | Q18: 1 | S18: 9
C19: Subsidiary 6 | M19: -500000 | N19: 500000 | O19: 5 | P19: 3 | Q19: 1 | S19: 9
C20: Subsidiary 7 | M20: -500000 | N20: 500000 | O20: 5 | P20: 3 | Q20: 1 | S20: 9
C21: Subsidiary 8 | M21: -500000 | N21: 500000 | O21: 5 | P21: 3 | Q21: 1 | S21: 9
C22: Subsidiary 9 | M22: -500000 | N22: 500000 | O22: 5 | P22: 3 | Q22: 1 | S22: 9
C23: Subsidiary 10 | M23: -500000 | N23: 500000 | O23: 5 | P23: 3 | Q23: 1 | S23: 9

Sheet Bench.Return (hidden)
A1: Accounts Return August 2015 - Benchmarking Return
A3: Trust: | C3: ='Standing Data'!$D$3 -> 0
A5: Period end: | C5: ='Standing Data'!$D$6 -> 2016-03-31 | F5: Sourced directly from Financial Statements
A7: Co. No.: | C7: ='Standing Data'!D14 -> Type number here | F7: Additional to Financial Statements, prepared on a similar basis
A9: Academy UPIN: | C9: ='Fin.Return - SOFA'!C9 ->  | F9: Cells populate automatically from elsewhere in the Return
C10: Above details will populate automatically
A12: BENCHMARKING RETURN | K12: These columns are for MATs only
C13: Academy Name | F13: =+(C3) -> 0 | K13: Central Services | L13: ='Standing Data'!D48 ->  | M13: ='Standing Data'!D49 ->  | N13: ='Standing Data'!D50 ->  | O13: ='Standing Data'!D51 ->  | P13: ='Standing Data'!D52 ->  | Q13: ='Standing Data'!D53 ->  | R13: ='Standing Data'!D54 ->  | S13: ='Standing Data'!D55 ->  | T13: ='Standing Data'!D56 ->  | U13: ='Standing Data'!D57 ->  | V13: ='Standing Data'!D58 ->  | W13: ='Standing Data'!D59 ->  | X13: ='Standing Data'!D60 ->  | Y13: ='Standing Data'!D61 ->  | Z13: ='Standing Data'!D62 ->  | AA13: ='Standing Data'!D63 ->  | AB13: ='Standing Data'!D64 ->  | AC13: ='Standing Data'!D65 ->  | AD13: ='Standing Data'!D66 ->  | AE13: ='Standing Data'!D67 ->  | AF13: ='Standing Data'!D68 ->  | AG13: ='Standing Data'!D69 ->  | AH13: ='Standing Data'!D70 ->  | AI13: ='Standing Data'!D71 ->  | AJ13: ='Standing Data'!D72 ->  | AK13: ='Standing Data'!D73 ->  | AL13: ='Standing Data'!D74 ->  | AM13: ='Standing Data'!D75 ->  | AN13: ='Standing Data'!D76 ->  | AO13: ='Standing Data'!D77 ->  | AP13: ='Standing Data'!D78 ->  | AQ13: ='Standing Data'!D79 ->  | AR13: ='Standing Data'!D80 ->  | AS13: ='Standing Data'!D81 ->  | AT13: ='Standing Data'!D82 ->  | AU13: ='Standing Data'!D83 ->  | AV13: ='Standing Data'!D84 ->  | AW13: ='Standing Data'!D85 ->  | AX13: ='Standing Data'!D86 ->  | AY13: ='Standing Data'!D87 ->  | AZ13: ='Standing Data'!D88 ->  | BA13: ='Standing Data'!D89 ->  | BB13: ='Standing Data'!D90 ->  | BC13: ='Standing Data'!D91 ->  | BD13: ='Standing Data'!D92 ->  | BE13: ='Standing Data'!D93 ->  | BF13: ='Standing Data'!D94 ->  | BG13: ='Standing Data'!D95 ->  | BH13: ='Standing Data'!D96 ->  | BI13: ='Standing Data'!D97 ->  | BJ13: ='Standing Data'!D98 ->  | BK13: ='Standing Data'!D99 ->  | BL13: ='Standing Data'!D100 ->  | BM13: ='Standing Data'!D101 ->  | BN13: ='Standing Data'!D102 ->  | BO13: ='Standing Data'!D103 ->  | BP13: ='Standing Data'!D104 ->  | BQ13: ='Standing Data'!D105 ->  | BR13: ='Standing Data'!D106 ->  | BS13: ='Standing Data'!D107 ->  | BT13: ='Standing Data'!D108 ->  | BU13: ='Standing Data'!D109 ->  | BV13: ='Standing Data'!D110 ->  | BW13: ='Standing Data'!D111 ->  | BX13: ='Standing Data'!D112 ->  | BY13: ='Standing Data'!D113 ->  | BZ13: ='Standing Data'!D114 ->  | CA13: ='Standing Data'!D115 ->  | CB13: ='Standing Data'!D116 ->  | CC13: ='Standing Data'!D117 ->  | CD13: ='Standing Data'!D118 ->  | CE13: ='Standing Data'!D119 ->  | CF13: ='Standing Data'!D120 ->  | CG13: ='Standing Data'!D121 ->  | CH13: ='Standing Data'!D122 ->  | CI13: ='Standing Data'!D123 ->  | CJ13: ='Standing Data'!D124 ->  | CK13: ='Standing Data'!D125 ->  | CL13: ='Standing Data'!D126 ->  | CM13: ='Standing Data'!D127 ->  | CN13: ='Standing Data'!D128 ->  | CO13: ='Standing Data'!D129 ->  | CP13: ='Standing Data'!D130 ->  | CQ13: ='Standing Data'!D131 ->  | CR13: ='Standing Data'!D132 ->  | CS13: ='Standing Data'!D133 ->  | CT13: ='Standing Data'!D134 ->  | CU13: ='Standing Data'!D135 ->  | CV13: ='Standing Data'!D136 ->  | CW13: ='Standing Data'!D137 ->  | CX13: ='Standing Data'!D138 ->  | CY13: ='Standing Data'!D139 ->  | CZ13: ='Standing Data'!D140 ->  | DA13: ='Standing Data'!D141 ->  | DB13: ='Standing Data'!D142 ->  | DC13: ='Standing Data'!D143 ->  | DD13: ='Standing Data'!D144 ->  | DE13: ='Standing Data'!D145 ->  | DF13: ='Standing Data'!D146 ->  | DG13: ='Standing Data'!D147 -> 
C14: Period Length (months)
C15: UPIN | E15: Errors | F15: =IFERROR(VLOOKUP(F$988,Reference!$P$860:$T$3670,5,FALSE),"") ->  | G15: =IFERROR(VLOOKUP(G$988,Reference!$P$860:$T$3670,5,FALSE),"") ->  | H15: =IFERROR(VLOOKUP(H$988,Reference!$P$860:$T$3670,5,FALSE),"") ->  | I15: =IFERROR(VLOOKUP(I$988,Reference!$P$860:$T$3670,5,FALSE),"") ->  | K15: =IFERROR(VLOOKUP(K$988,Reference!$P$860:$T$3670,5,FALSE),"") ->  | L15: =+('Standing Data'!$E48) -> 0 | M15: =+('Standing Data'!$E49) -> 0 | N15: =+('Standing Data'!$E50) -> 0 | O15: =+('Standing Data'!$E51) -> 0 | P15: =+('Standing Data'!$E52) -> 0 | Q15: =+('Standing Data'!$E53) -> 0 | R15: =+('Standing Data'!$E54) -> 0 | S15: =+('Standing Data'!$E55) -> 0 | T15: =+('Standing Data'!$E56) -> 0 | U15: =+('Standing Data'!$E57) -> 0 | V15: =+('Standing Data'!$E58) -> 0 | W15: =+('Standing Data'!$E59) -> 0 | X15: =+('Standing Data'!$E60) -> 0 | Y15: =+('Standing Data'!$E61) -> 0 | Z15: =+('Standing Data'!$E62) -> 0 | AA15: =+('Standing Data'!$E63) -> 0 | AB15: =+('Standing Data'!$E64) -> 0 | AC15: =+('Standing Data'!$E65) -> 0 | AD15: =+('Standing Data'!$E66) -> 0 | AE15: =+('Standing Data'!$E67) -> 0 | AF15: =+('Standing Data'!$E68) -> 0 | AG15: =+('Standing Data'!$E69) -> 0 | AH15: =+('Standing Data'!$E70) -> 0 | AI15: =+('Standing Data'!$E71) -> 0 | AJ15: =+('Standing Data'!$E72) -> 0 | AK15: =+('Standing Data'!$E73) -> 0 | AL15: =+('Standing Data'!$E74) -> 0 | AM15: =+('Standing Data'!$E75) -> 0 | AN15: =+('Standing Data'!$E76) -> 0 | AO15: =+('Standing Data'!$E77) -> 0 | AP15: =+('Standing Data'!$E78) -> 0 | AQ15: =+('Standing Data'!$E79) -> 0 | AR15: =+('Standing Data'!$E80) -> 0 | AS15: =+('Standing Data'!$E81) -> 0 | AT15: =+('Standing Data'!$E82) -> 0 | AU15: =+('Standing Data'!$E83) -> 0 | AV15: =+('Standing Data'!$E84) -> 0 | AW15: =+('Standing Data'!$E85) -> 0 | AX15: =+('Standing Data'!$E86) -> 0 | AY15: =+('Standing Data'!$E87) -> 0 | AZ15: =+('Standing Data'!$E88) -> 0 | BA15: =+('Standing Data'!$E89) -> 0 | BB15: =+('Standing Data'!$E90) -> 0 | BC15: =+('Standing Data'!$E91) -> 0 | BD15: =+('Standing Data'!$E92) -> 0 | BE15: =+('Standing Data'!$E93) -> 0 | BF15: =+('Standing Data'!$E94) -> 0 | BG15: =+('Standing Data'!$E95) -> 0 | BH15: =+('Standing Data'!$E96) -> 0 | BI15: =+('Standing Data'!$E97) -> 0 | BJ15: =+('Standing Data'!$E98) -> 0 | BK15: =+('Standing Data'!$E99) -> 0 | BL15: =+('Standing Data'!$E100) -> 0 | BM15: =+('Standing Data'!$E101) -> 0 | BN15: =+('Standing Data'!$E102) -> 0 | BO15: =+('Standing Data'!$E103) -> 0 | BP15: =+('Standing Data'!$E104) -> 0 | BQ15: =+('Standing Data'!$E105) -> 0 | BR15: =+('Standing Data'!$E106) -> 0 | BS15: =+('Standing Data'!$E107) -> 0 | BT15: =+('Standing Data'!$E108) -> 0 | BU15: =+('Standing Data'!$E109) -> 0 | BV15: =+('Standing Data'!$E110) -> 0 | BW15: =+('Standing Data'!$E111) -> 0 | BX15: =+('Standing Data'!$E112) -> 0 | BY15: =+('Standing Data'!$E113) -> 0 | BZ15: =+('Standing Data'!$E114) -> 0 | CA15: =+('Standing Data'!$E115) -> 0 | CB15: =+('Standing Data'!$E116) -> 0 | CC15: =+('Standing Data'!$E117) -> 0 | CD15: =+('Standing Data'!$E118) -> 0 | CE15: =+('Standing Data'!$E119) -> 0 | CF15: =+('Standing Data'!$E120) -> 0 | CG15: =+('Standing Data'!$E121) -> 0 | CH15: =+('Standing Data'!$E122) -> 0 | CI15: =+('Standing Data'!$E123) -> 0 | CJ15: =+('Standing Data'!$E124) -> 0 | CK15: =+('Standing Data'!$E125) -> 0 | CL15: =+('Standing Data'!$E126) -> 0 | CM15: =+('Standing Data'!$E127) -> 0 | CN15: =+('Standing Data'!$E128) -> 0 | CO15: =+('Standing Data'!$E129) -> 0 | CP15: =+('Standing Data'!$E130) -> 0 | CQ15: =+('Standing Data'!$E131) -> 0 | CR15: =+('Standing Data'!$E132) -> 0 | CS15: =+('Standing Data'!$E133) -> 0 | CT15: =+('Standing Data'!$E134) -> 0 | CU15: =+('Standing Data'!$E135) -> 0 | CV15: =+('Standing Data'!$E136) -> 0 | CW15: =+('Standing Data'!$E137) -> 0 | CX15: =+('Standing Data'!$E138) -> 0 | CY15: =+('Standing Data'!$E139) -> 0 | CZ15: =+('Standing Data'!$E140) -> 0 | DA15: =+('Standing Data'!$E141) -> 0 | DB15: =+('Standing Data'!$E142) -> 0 | DC15: =+('Standing Data'!$E143) -> 0 | DD15: =+('Standing Data'!$E144) -> 0 | DE15: =+('Standing Data'!$E145) -> 0 | DF15: =+('Standing Data'!$E146) -> 0 | DG15: =+('Standing Data'!$E147) -> 0
D16: Line no. | F16: £000 | G16: £000 | I16: £000 | K16: £000 | L16: £000 | M16: £000 | N16: £000 | O16: £000 | P16: £000 | Q16: £000 | R16: £000 | S16: £000 | T16: £000 | U16: £000 | V16: £000 | W16: £000 | X16: £000 | Y16: £000 | Z16: £000 | AA16: £000 | AB16: £000 | AC16: £000 | AD16: £000 | AE16: £000 | AF16: £000 | AG16: £000 | AH16: £000 | AI16: £000 | AJ16: £000 | AK16: £000 | AL16: £000 | AM16: £000 | AN16: £000 | AO16: £000 | AP16: £000 | AQ16: £000 | AR16: £000 | AS16: £000 | AT16: £000 | AU16: £000 | AV16: £000 | AW16: £000 | AX16: £000 | AY16: £000 | AZ16: £000 | BA16: £000 | BB16: £000 | BC16: £000 | BD16: £000 | BE16: £000 | BF16: £000 | BG16: £000 | BH16: £000 | BI16: £000 | BJ16: £000 | BK16: £000 | BL16: £000 | BM16: £000 | BN16: £000 | BO16: £000 | BP16: £000 | BQ16: £000 | BR16: £000 | BS16: £000 | BT16: £000 | BU16: £000 | BV16: £000 | BW16: £000 | BX16: £000 | BY16: £000 | BZ16: £000 | CA16: £000 | CB16: £000 | CC16: £000 | CD16: £000 | CE16: £000 | CF16: £000 | CG16: £000 | CH16: £000 | CI16: £000 | CJ16: £000 | CK16: £000 | CL16: £000 | CM16: £000 | CN16: £000 | CO16: £000 | CP16: £000 | CQ16: £000 | CR16: £000 | CS16: £000 | CT16: £000 | CU16: £000 | CV16: £000 | CW16: £000 | CX16: £000 | CY16: £000 | CZ16: £000 | DA16: £000 | DB16: £000 | DC16: £000 | DD16: £000 | DE16: £000 | DF16: £000 | DG16: £000
A17: REVENUE INCOME | L17: =IF(AND(L15<>0,SUM(L18:L114)=0),"Error - no values entered",IF(AND(L15=0,SUM(L18:L114)<>0),"Error - values entered against blank UPIN","")) ->  | AR17: =IF(AND(AR15<>0,SUM(AR18:AR114)=0),"Error - no values entered",IF(AND(AR15=0,SUM(AR18:AR114)<>0),"Error - values entered against blank UPIN","")) ->  | BX17: =IF(AND(BX15<>0,SUM(BX18:BX114)=0),"Error - no values entered",IF(AND(BX15=0,SUM(BX18:BX114)<>0),"Error - values entered against blank UPIN","")) ->  | DD17: =IF(AND(DD15<>0,SUM(DD18:DD114)=0),"Error - no values entered",IF(AND(DD15=0,SUM(DD18:DD114)<>0),"Error - values entered against blank UPIN","")) -> 
B18: Grant funding
B19: EFA | C19: EFA revenue grants | D19: 1 | E19: =IF(DI19=TRUE, "Error - imbalance","") ->  | G19: =+SUM('Fin.Return - SOFA'!E105:E114) -> 0 | DI19: =AND(G19<>SUM(K19:DG19),'Standing Data'!$D$9="Multiple") -> FALSE
B20: DfE | C20: Other DfE grants (Revenue) | D20: 2 | E20: =IF(DI20=TRUE, "Error - imbalance","") ->  | G20: ='Fin.Return - SOFA'!E135 -> 0 | DI20: =AND(G20<>SUM(K20:DG20),'Standing Data'!$D$9="Multiple") -> FALSE
B21: LA | C21: SEN | D21: 3 | G21: ='Fin.Return - SOFA'!E146 -> 0 | DI21: =AND(G21<>SUM(K21:DG21),'Standing Data'!$D$9="Multiple") -> FALSE
B22: LA | C22: Other income | D22: 4 | G22: ='Fin.Return - SOFA'!E147 -> 0 | DI22: =AND(G22<>SUM(K22:DG22),'Standing Data'!$D$9="Multiple") -> FALSE
B23: Other | C23: Other Government grants | D23: 5 | G23: ='Fin.Return - SOFA'!E153 -> 0 | DI23: =AND(G23<>SUM(K23:DG23),'Standing Data'!$D$9="Multiple") -> FALSE
I24: =SUM(G19:G23) -> 0 | K24: =SUM(K19:K23) -> 0 | L24: 0 | M24: 0 | N24: 0 | O24: 0 | P24: 0 | Q24: 0 | R24: 0 | S24: 0 | T24: 0 | U24: 0 | V24: 0 | W24: 0 | X24: 0 | Y24: 0 | Z24: 0 | AA24: 0 | AB24: 0 | AC24: 0 | AD24: 0 | AE24: 0 | AF24: 0 | AG24: 0 | AH24: 0 | AI24: 0 | AJ24: 0 | AK24: 0 | AL24: 0 | AM24: 0 | AN24: 0 | AO24: 0 | AP24: 0 | AQ24: =SUM(AQ19:AQ23) -> 0 | AR24: 0 | AS24: 0 | AT24: 0 | AU24: 0 | AV24: 0 | AW24: 0 | AX24: 0 | AY24: 0 | AZ24: 0 | BA24: 0 | BB24: 0 | BC24: 0 | BD24: 0 | BE24: 0 | BF24: 0 | BG24: 0 | BH24: 0 | BI24: 0 | BJ24: 0 | BK24: 0 | BL24: 0 | BM24: 0 | BN24: 0 | BO24: 0 | BP24: 0 | BQ24: 0 | BR24: 0 | BS24: 0 | BT24: 0 | BU24: 0 | BV24: 0 | BW24: =SUM(BW19:BW23) -> 0 | BX24: 0 | BY24: 0 | BZ24: 0 | CA24: 0 | CB24: 0 | CC24: 0 | CD24: 0 | CE24: 0 | CF24: 0 | CG24: 0 | CH24: 0 | CI24: 0 | CJ24: 0 | CK24: 0 | CL24: 0 | CM24: 0 | CN24: 0 | CO24: 0 | CP24: 0 | CQ24: 0 | CR24: 0 | CS24: 0 | CT24: 0 | CU24: 0 | CV24: 0 | CW24: 0 | CX24: 0 | CY24: 0 | CZ24: 0 | DA24: 0 | DB24: 0 | DC24: =SUM(DC19:DC23) -> 0 | DD24: 0 | DE24: 0 | DF24: 0 | DG24: 0
B25: Other Revenue income
C26: Government source (non-grant) | D26: 6 | E26: =IF(DI26=TRUE, "Error - imbalance","") ->  | G26: ='Fin.Return - SOFA'!E158 -> 0 | DI26: =AND(G26<>SUM(K26:DG26),'Standing Data'!$D$9="Multiple") -> FALSE
C27: Academies | D27: 7 | G27: ='Fin.Return - SOFA'!E159 -> 0 | DI27: =AND(G27<>SUM(K27:DG27),'Standing Data'!$D$9="Multiple") -> FALSE
C28: Non- Government | D28: 8 | G28: ='Fin.Return - SOFA'!E160 -> 0 | DI28: =AND(G28<>SUM(K28:DG28),'Standing Data'!$D$9="Multiple") -> FALSE
I29: =SUM(G26:G28) -> 0 | K29: =SUM(K26:K28) -> 0 | L29: =SUM(L26:L28) -> 0 | M29: 0 | N29: 0 | O29: 0 | P29: 0 | Q29: 0 | R29: 0 | S29: 0 | T29: 0 | U29: 0 | V29: 0 | W29: 0 | X29: 0 | Y29: 0 | Z29: 0 | AA29: 0 | AB29: 0 | AC29: 0 | AD29: 0 | AE29: 0 | AF29: 0 | AG29: 0 | AH29: 0 | AI29: 0 | AJ29: 0 | AK29: 0 | AL29: 0 | AM29: 0 | AN29: 0 | AO29: 0 | AP29: 0 | AQ29: 0 | AR29: 0 | AS29: 0 | AT29: 0 | AU29: 0 | AV29: 0 | AW29: 0 | AX29: =SUM(AX26:AX28) -> 0 | AY29: 0 | AZ29: 0 | BA29: 0 | BB29: 0 | BC29: 0 | BD29: 0 | BE29: 0 | BF29: 0 | BG29: 0 | BH29: 0 | BI29: 0 | BJ29: 0 | BK29: 0 | BL29: 0 | BM29: 0 | BN29: 0 | BO29: 0 | BP29: 0 | BQ29: 0 | BR29: 0 | BS29: 0 | BT29: 0 | BU29: 0 | BV29: 0 | BW29: 0 | BX29: 0 | BY29: 0 | BZ29: 0 | CA29: 0 | CB29: 0 | CC29: 0 | CD29: 0 | CE29: 0 | CF29: 0 | CG29: 0 | CH29: 0 | CI29: 0 | CJ29: 0 | CK29: 0 | CL29: 0 | CM29: 0 | CN29: 0 | CO29: 0 | CP29: 0 | CQ29: 0 | CR29: 0 | CS29: 0 | CT29: 0 | CU29: 0 | CV29: 0 | CW29: 0 | CX29: 0 | CY29: 0 | CZ29: 0 | DA29: 0 | DB29: 0 | DC29: 0 | DD29: 0 | DE29: 0 | DF29: 0 | DG29: 0
B30: Self-generated income
C31: Income from facilities and services | D31: 9 | E31: =IF(DI31=TRUE, "Error - imbalance","") ->  | G31: ='Fin.Return - SOFA'!E79+'Fin.Return - SOFA'!E81 -> 0 | DI31: =AND(G31<>SUM(K31:DG31),'Standing Data'!$D$9="Multiple") -> FALSE
C32: Income from catering | D32: 10 | G32: ='Fin.Return - SOFA'!E80 -> 0 | DI32: =AND(G32<>SUM(K32:DG32),'Standing Data'!$D$9="Multiple") -> FALSE
C33: Receipts from supply teacher insurance claims | D33: 11 | G33: =+('Fin.Return - SOFA'!E82) -> 0 | DI33: =AND(G33<>SUM(K33:DG33),'Standing Data'!$D$9="Multiple") -> FALSE
C34: Other income - revenue | D34: 12 | G34: ='Fin.Return - SOFA'!E84 -> 0 | DI34: =AND(G34<>SUM(K34:DG34),'Standing Data'!$D$9="Multiple") -> FALSE
I35: =SUM(G31:G34) -> 0 | K35: =SUM(K31:K34) -> 0 | L35: =SUM(L31:L34) -> 0 | M35: 0 | N35: 0 | O35: 0 | P35: 0 | Q35: 0 | R35: 0 | S35: 0 | T35: 0 | U35: 0 | V35: 0 | W35: 0 | X35: 0 | Y35: 0 | Z35: 0 | AA35: 0 | AB35: 0 | AC35: 0 | AD35: 0 | AE35: 0 | AF35: 0 | AG35: 0 | AH35: 0 | AI35: 0 | AJ35: 0 | AK35: 0 | AL35: 0 | AM35: 0 | AN35: 0 | AO35: 0 | AP35: 0 | AQ35: 0 | AR35: 0 | AS35: 0 | AT35: 0 | AU35: 0 | AV35: 0 | AW35: 0 | AX35: 0 | AY35: 0 | AZ35: 0 | BA35: 0 | BB35: 0 | BC35: 0 | BD35: 0 | BE35: 0 | BF35: 0 | BG35: 0 | BH35: 0 | BI35: 0 | BJ35: 0 | BK35: 0 | BL35: 0 | BM35: 0 | BN35: 0 | BO35: 0 | BP35: 0 | BQ35: 0 | BR35: 0 | BS35: 0 | BT35: 0 | BU35: 0 | BV35: 0 | BW35: 0 | BX35: =SUM(BX31:BX34) -> 0 | BY35: 0 | BZ35: 0 | CA35: 0 | CB35: 0 | CC35: 0 | CD35: 0 | CE35: 0 | CF35: 0 | CG35: 0 | CH35: 0 | CI35: 0 | CJ35: 0 | CK35: 0 | CL35: 0 | CM35: 0 | CN35: 0 | CO35: 0 | CP35: 0 | CQ35: 0 | CR35: 0 | CS35: 0 | CT35: 0 | CU35: 0 | CV35: 0 | CW35: 0 | CX35: 0 | CY35: 0 | CZ35: 0 | DA35: 0 | DB35: 0 | DC35: 0 | DD35: 0 | DE35: 0 | DF35: 0 | DG35: 0
B36: Voluntary income
C37: Donations and/or voluntary funds - revenue | D37: 13 | E37: =IF(DI37=TRUE, "Error - imbalance","") ->  | G37: ='Fin.Return - SOFA'!E70+'Fin.Return - SOFA'!E71 -> 0 | DI37: =AND(G37<>SUM(K37:DG37),'Standing Data'!$D$9="Multiple") -> FALSE
I38: =SUM(G37) -> 0
B39: Investment income
C40: Investment income | D40: 14 | E40: =IF(DI40=TRUE, "Error - imbalance","") ->  | G40: ='Fin.Return - SOFA'!E97 -> 0 | I40: =G40 -> 0 | DI40: =AND(G40<>SUM(K40:DG40),'Standing Data'!$D$9="Multiple") -> FALSE
A43: TOTAL REVENUE INCOME | D43: 15 | E43: =IF(DI43=TRUE, "Error - imbalance","") ->  | I43: =SUM(I24:I42) -> 0 | K43: =+K40+K37+K35+K29+K24 -> 0 | L43: =+L40+L37+L35+L29+L24 -> 0 | M43: 0 | N43: 0 | O43: 0 | P43: 0 | Q43: 0 | R43: 0 | S43: 0 | T43: 0 | U43: 0 | V43: 0 | W43: 0 | X43: 0 | Y43: 0 | Z43: 0 | AA43: 0 | AB43: 0 | AC43: 0 | AD43: 0 | AE43: 0 | AF43: 0 | AG43: 0 | AH43: 0 | AI43: 0 | AJ43: 0 | AK43: 0 | AL43: 0 | AM43: 0 | AN43: 0 | AO43: 0 | AP43: 0 | AQ43: 0 | AR43: 0 | AS43: 0 | AT43: 0 | AU43: 0 | AV43: 0 | AW43: 0 | AX43: 0 | AY43: 0 | AZ43: 0 | BA43: 0 | BB43: 0 | BC43: 0 | BD43: 0 | BE43: 0 | BF43: 0 | BG43: 0 | BH43: 0 | BI43: 0 | BJ43: 0 | BK43: 0 | BL43: 0 | BM43: 0 | BN43: 0 | BO43: 0 | BP43: 0 | BQ43: 0 | BR43: 0 | BS43: 0 | BT43: 0 | BU43: 0 | BV43: 0 | BW43: 0 | BX43: =+BX40+BX37+BX35+BX29+BX24 -> 0 | BY43: 0 | BZ43: 0 | CA43: 0 | CB43: 0 | CC43: 0 | CD43: 0 | CE43: 0 | CF43: 0 | CG43: 0 | CH43: 0 | CI43: 0 | CJ43: 0 | CK43: 0 | CL43: 0 | CM43: 0 | CN43: 0 | CO43: 0 | CP43: 0 | CQ43: 0 | CR43: 0 | CS43: 0 | CT43: 0 | CU43: 0 | CV43: 0 | CW43: 0 | CX43: 0 | CY43: 0 | CZ43: 0 | DA43: 0 | DB43: 0 | DC43: 0 | DD43: 0 | DE43: 0 | DF43: 0 | DG43: 0 | DI43: =AND(I43<>SUM(K43:DG43),'Standing Data'!$D$9="Multiple") -> FALSE
A45: FUNDS INHERITED ON CONVERSION | D45: 16 | E45: =IF(DI45=TRUE, "Error - imbalance","") ->  | I45: ='Fin.Return - SOFA'!E20 -> 0 | DI45: =AND(I45<>SUM(K45:DG45),'Standing Data'!$D$9="Multiple") -> FALSE
A47: REVENUE EXPENDITURE
B48: Staff costs - extra note for guidance for Staff re-structure
C49: Teaching staff | D49: 17 | E49: =IF(DI49=TRUE, "Error - imbalance","") ->  | DI49: =AND(F49<>SUM(K49:DG49),'Standing Data'!$D$9="Multiple") -> FALSE
C50: Supply teaching staff - extra note in guidance | D50: 18 | DI50: =AND(F50<>SUM(K50:DG50),'Standing Data'!$D$9="Multiple") -> FALSE
C51: Education support staff | D51: 19 | DI51: =AND(F51<>SUM(K51:DG51),'Standing Data'!$D$9="Multiple") -> FALSE
C52: Administrative and clerical staff | D52: 20 | DI52: =AND(F52<>SUM(K52:DG52),'Standing Data'!$D$9="Multiple") -> FALSE
C53: Premises staff | D53: 21 | DI53: =AND(F53<>SUM(K53:DG53),'Standing Data'!$D$9="Multiple") -> FALSE
C54: Catering staff | D54: 22 | DI54: =AND(F54<>SUM(K54:DG54),'Standing Data'!$D$9="Multiple") -> FALSE
C55: Trade union facility time cover | D55: 23 | DI55: =AND(F55<>SUM(K55:DG55),'Standing Data'!$D$9="Multiple") -> FALSE
C56: Other staff | D56: 24 | DI56: =AND(F56<>SUM(K56:DG56),'Standing Data'!$D$9="Multiple") -> FALSE
D57: =IF(G57<=0,"Error - no values entered for staff costs","") -> Error - no values entered for staff costs | E57: =IF(G57>'Fin.Return - SOFA'!E301,"Error - value exceeds staff note in financial return","") ->  | G57: =SUM(F49:F56) -> 0 | K57: =SUM(K49:K56) -> 0 | L57: =SUM(L49:L56) -> 0 | M57: 0 | N57: 0 | O57: 0 | P57: 0 | Q57: 0 | R57: 0 | S57: 0 | T57: 0 | U57: 0 | V57: 0 | W57: 0 | X57: 0 | Y57: 0 | Z57: 0 | AA57: 0 | AB57: 0 | AC57: 0 | AD57: 0 | AE57: 0 | AF57: 0 | AG57: 0 | AH57: 0 | AI57: 0 | AJ57: 0 | AK57: 0 | AL57: 0 | AM57: 0 | AN57: 0 | AO57: 0 | AP57: 0 | AQ57: 0 | AR57: 0 | AS57: 0 | AT57: 0 | AU57: 0 | AV57: 0 | AW57: 0 | AX57: 0 | AY57: 0 | AZ57: 0 | BA57: 0 | BB57: 0 | BC57: 0 | BD57: 0 | BE57: 0 | BF57: 0 | BG57: 0 | BH57: 0 | BI57: 0 | BJ57: 0 | BK57: 0 | BL57: 0 | BM57: 0 | BN57: 0 | BO57: 0 | BP57: 0 | BQ57: 0 | BR57: 0 | BS57: 0 | BT57: 0 | BU57: 0 | BV57: 0 | BW57: 0 | BX57: =SUM(BX49:BX56) -> 0 | BY57: 0 | BZ57: 0 | CA57: 0 | CB57: 0 | CC57: 0 | CD57: 0 | CE57: 0 | CF57: 0 | CG57: 0 | CH57: 0 | CI57: 0 | CJ57: 0 | CK57: 0 | CL57: 0 | CM57: 0 | CN57: 0 | CO57: 0 | CP57: 0 | CQ57: 0 | CR57: 0 | CS57: 0 | CT57: 0 | CU57: 0 | CV57: 0 | CW57: 0 | CX57: 0 | CY57: 0 | CZ57: 0 | DA57: 0 | DB57: 0 | DC57: 0 | DD57: 0 | DE57: 0 | DF57: 0 | DG57: 0
C59: Indirect employee expenses | D59: 25 | E59: =IF(DI59=TRUE, "Error - imbalance","") ->  | F59: =+'Fin.Return - SOFA'!E253 -> 0 | DI59: =AND(F59<>SUM(K59:DG59),'Standing Data'!$D$9="Multiple") -> FALSE
C60: Staff development and training | D60: 26 | F60: =+'Fin.Return - SOFA'!E218 -> 0 | DI60: =AND(F60<>SUM(K60:DG60),'Standing Data'!$D$9="Multiple") -> FALSE
C61: Staff-related insurance | D61: 27 | F61: =+'Fin.Return - SOFA'!E219 -> 0 | DI61: =AND(F61<>SUM(K61:DG61),'Standing Data'!$D$9="Multiple") -> FALSE
G62: =SUM(F59:F61) -> 0 | K62: =SUM(K59:K61) -> 0 | L62: =SUM(L59:L61) -> 0 | M62: 0 | N62: 0 | O62: 0 | P62: 0 | Q62: 0 | R62: 0 | S62: 0 | T62: 0 | U62: 0 | V62: 0 | W62: 0 | X62: 0 | Y62: 0 | Z62: 0 | AA62: 0 | AB62: 0 | AC62: 0 | AD62: 0 | AE62: 0 | AF62: 0 | AG62: 0 | AH62: 0 | AI62: 0 | AJ62: 0 | AK62: 0 | AL62: 0 | AM62: 0 | AN62: 0 | AO62: 0 | AP62: 0 | AQ62: 0 | AR62: 0 | AS62: 0 | AT62: 0 | AU62: 0 | AV62: 0 | AW62: 0 | AX62: =SUM(AX59:AX61) -> 0 | AY62: 0 | AZ62: 0 | BA62: 0 | BB62: 0 | BC62: 0 | BD62: 0 | BE62: 0 | BF62: 0 | BG62: 0 | BH62: 0 | BI62: 0 | BJ62: 0 | BK62: 0 | BL62: 0 | BM62: 0 | BN62: 0 | BO62: 0 | BP62: 0 | BQ62: 0 | BR62: 0 | BS62: 0 | BT62: 0 | BU62: 0 | BV62: 0 | BW62: 0 | BX62: 0 | BY62: 0 | BZ62: 0 | CA62: 0 | CB62: 0 | CC62: 0 | CD62: 0 | CE62: 0 | CF62: 0 | CG62: 0 | CH62: 0 | CI62: 0 | CJ62: 0 | CK62: 0 | CL62: 0 | CM62: 0 | CN62: 0 | CO62: 0 | CP62: 0 | CQ62: 0 | CR62: 0 | CS62: 0 | CT62: 0 | CU62: 0 | CV62: 0 | CW62: 0 | CX62: 0 | CY62: 0 | CZ62: 0 | DA62: 0 | DB62: 0 | DC62: 0 | DD62: 0 | DE62: 0 | DF62: 0 | DG62: 0
B64: Maintenance of premises | D64: 28 | E64: =IF(DI64=TRUE, "Error - imbalance","") ->  | G64: =+'Fin.Return - SOFA'!E233+'Fin.Return - SOFA'!E234 -> 0 | DI64: =AND(G64<>SUM(K64:DG64),'Standing Data'!$D$9="Multiple") -> FALSE
B66: Other occupancy costs
C67: Cleaning | D67: 29 | E67: =IF(DI67=TRUE, "Error - imbalance","") ->  | F67: =+'Fin.Return - SOFA'!E235 -> 0 | DI67: =AND(F67<>SUM(K67:DG67),'Standing Data'!$D$9="Multiple") -> FALSE
C68: Water and sewerage | D68: 30 | F68: =+'Fin.Return - SOFA'!E239 -> 0 | DI68: =AND(F68<>SUM(K68:DG68),'Standing Data'!$D$9="Multiple") -> FALSE
C69: Energy | D69: 31 | F69: =+'Fin.Return - SOFA'!E240 -> 0 | DI69: =AND(F69<>SUM(K69:DG69),'Standing Data'!$D$9="Multiple") -> FALSE
C70: Rates | D70: 32 | F70: =+'Fin.Return - SOFA'!E238 -> 0 | DI70: =AND(F70<>SUM(K70:DG70),'Standing Data'!$D$9="Multiple") -> FALSE
C71: Rent | D71: 33 | F71: =+'Fin.Return - SOFA'!E237 -> 0 | DI71: =AND(F71<>SUM(K71:DG71),'Standing Data'!$D$9="Multiple") -> FALSE
C72: Other occupation costs | D72: 34 | F72: ='Fin.Return - SOFA'!E243 -> 0 | DI72: =AND(F72<>SUM(K72:DG72),'Standing Data'!$D$9="Multiple") -> FALSE
G73: =SUM(F67:F72) -> 0 | K73: =SUM(K67:K72) -> 0 | L73: =SUM(L67:L72) -> 0 | M73: 0 | N73: 0 | O73: 0 | P73: 0 | Q73: 0 | R73: 0 | S73: 0 | T73: 0 | U73: 0 | V73: 0 | W73: 0 | X73: 0 | Y73: 0 | Z73: 0 | AA73: 0 | AB73: 0 | AC73: 0 | AD73: 0 | AE73: 0 | AF73: 0 | AG73: 0 | AH73: 0 | AI73: 0 | AJ73: 0 | AK73: 0 | AL73: 0 | AM73: 0 | AN73: 0 | AO73: 0 | AP73: 0 | AQ73: 0 | AR73: 0 | AS73: 0 | AT73: 0 | AU73: 0 | AV73: 0 | AW73: 0 | AX73: 0 | AY73: 0 | AZ73: 0 | BA73: 0 | BB73: 0 | BC73: 0 | BD73: 0 | BE73: 0 | BF73: 0 | BG73: 0 | BH73: 0 | BI73: 0 | BJ73: 0 | BK73: 0 | BL73: 0 | BM73: 0 | BN73: 0 | BO73: 0 | BP73: 0 | BQ73: 0 | BR73: 0 | BS73: 0 | BT73: 0 | BU73: 0 | BV73: 0 | BW73: 0 | BX73: =SUM(BX67:BX72) -> 0 | BY73: 0 | BZ73: 0 | CA73: 0 | CB73: 0 | CC73: 0 | CD73: 0 | CE73: 0 | CF73: 0 | CG73: 0 | CH73: 0 | CI73: 0 | CJ73: 0 | CK73: 0 | CL73: 0 | CM73: 0 | CN73: 0 | CO73: 0 | CP73: 0 | CQ73: 0 | CR73: 0 | CS73: 0 | CT73: 0 | CU73: 0 | CV73: 0 | CW73: 0 | CX73: 0 | CY73: 0 | CZ73: 0 | DA73: 0 | DB73: 0 | DC73: 0 | DD73: 0 | DE73: 0 | DF73: 0 | DG73: 0
B75: Special facilities | D75: 35 | E75: =IF(DI75=TRUE, "Error - imbalance","") ->  | G75: =-'Fin.Return - SOFA'!E400+'Fin.Return - SOFA'!E172 -> 0 | DI75: =AND(G75<>SUM(K75:DG75),'Standing Data'!$D$9="Multiple") -> FALSE
B77: Educational supplies and services
C78: Learning resources (not ICT equipment) | D78: 36 | E78: =IF(DI78=TRUE, "Error - imbalance","") ->  | F78: =+'Fin.Return - SOFA'!E216+'Fin.Return - SOFA'!E223 -> 0 | DI78: =AND(F78<>SUM(K78:DG78),'Standing Data'!$D$9="Multiple") -> FALSE
C79: ICT learning resources | D79: 37 | F79: =+'Fin.Return - SOFA'!E220 -> 0 | DI79: =AND(F79<>SUM(K79:DG79),'Standing Data'!$D$9="Multiple") -> FALSE
C80: Examination fees | D80: 38 | F80: =+'Fin.Return - SOFA'!E217 -> 0 | DI80: =AND(F80<>SUM(K80:DG80),'Standing Data'!$D$9="Multiple") -> FALSE
C81: Educational Consultancy | D81: 39 | F81: =+'Fin.Return - SOFA'!E221 -> 0 | DI81: =AND(F81<>SUM(K81:DG81),'Standing Data'!$D$9="Multiple") -> FALSE
C82: Supply teacher insurance | D82: 40 | F82: ='Fin.Return - SOFA'!E228 -> 0 | DI82: =AND(F82<>SUM(K82:DG82),'Standing Data'!$D$9="Multiple") -> FALSE
C83: Agency supply teaching staff | D83: 41 | F83: ='Fin.Return - SOFA'!E294 -> 0 | DI83: =AND(F83<>SUM(K83:DG83),'Standing Data'!$D$9="Multiple") -> FALSE
G84: =SUM(F78:F83) -> 0 | K84: =SUM(K78:K83) -> 0 | L84: =SUM(L78:L83) -> 0 | M84: 0 | N84: 0 | O84: 0 | P84: 0 | Q84: 0 | R84: 0 | S84: 0 | T84: 0 | U84: 0 | V84: 0 | W84: 0 | X84: 0 | Y84: 0 | Z84: 0 | AA84: 0 | AB84: 0 | AC84: 0 | AD84: 0 | AE84: 0 | AF84: 0 | AG84: 0 | AH84: 0 | AI84: 0 | AJ84: 0 | AK84: 0 | AL84: 0 | AM84: 0 | AN84: 0 | AO84: 0 | AP84: 0 | AQ84: 0 | AR84: 0 | AS84: 0 | AT84: 0 | AU84: 0 | AV84: 0 | AW84: 0 | AX84: =SUM(AX78:AX83) -> 0 | AY84: 0 | AZ84: 0 | BA84: 0 | BB84: 0 | BC84: 0 | BD84: 0 | BE84: 0 | BF84: 0 | BG84: 0 | BH84: 0 | BI84: 0 | BJ84: 0 | BK84: 0 | BL84: 0 | BM84: 0 | BN84: 0 | BO84: 0 | BP84: 0 | BQ84: 0 | BR84: 0 | BS84: 0 | BT84: 0 | BU84: 0 | BV84: 0 | BW84: 0 | BX84: 0 | BY84: 0 | BZ84: 0 | CA84: 0 | CB84: 0 | CC84: 0 | CD84: 0 | CE84: 0 | CF84: 0 | CG84: 0 | CH84: 0 | CI84: 0 | CJ84: 0 | CK84: 0 | CL84: 0 | CM84: 0 | CN84: 0 | CO84: 0 | CP84: 0 | CQ84: 0 | CR84: 0 | CS84: 0 | CT84: 0 | CU84: 0 | CV84: 0 | CW84: 0 | CX84: 0 | CY84: 0 | CZ84: 0 | DA84: 0 | DB84: 0 | DC84: 0 | DD84: 0 | DE84: 0 | DF84: 0 | DG84: 0
B87: Other supplies and services
C88: Catering supplies | D88: 42 | E88: =IF(DI88=TRUE, "Error - imbalance","") ->  | F88: ='Fin.Return - SOFA'!E245 -> 0 | DI88: =AND(F88<>SUM(K88:DG88),'Standing Data'!$D$9="Multiple") -> FALSE
C89: Legal & Professional | D89: 43 | F89: ='Fin.Return - SOFA'!E266 -> 0 | DI89: =AND(F89<>SUM(K89:DG89),'Standing Data'!$D$9="Multiple") -> FALSE
C90: Auditor costs - Audit fees | D90: 44 | F90: ='Fin.Return - SOFA'!E271 -> 0 | DI90: =AND(F90<>SUM(K90:DG90),'Standing Data'!$D$9="Multiple") -> FALSE
C91: Auditor costs - Other fees | D91: 45 | F91: ='Fin.Return - SOFA'!E272 -> 0 | DI91: =AND(F91<>SUM(K91:DG91),'Standing Data'!$D$9="Multiple") -> FALSE
C92: Other insurance premiums | D92: 46 | F92: ='Fin.Return - SOFA'!E241 -> 0 | DI92: =AND(F92<>SUM(K92:DG92),'Standing Data'!$D$9="Multiple") -> FALSE
C93: Administrative supplies - non educational | D93: 47 | F93: =+'Fin.Return - SOFA'!E204+'Fin.Return - SOFA'!E232+'Fin.Return - SOFA'!E236+'Fin.Return - SOFA'!E244+'Fin.Return - SOFA'!E246+'Fin.Return - SOFA'!E257+'Fin.Return - SOFA'!E277+'Fin.Return - SOFA'!E279+'Fin.Return - SOFA'!E280+'Fin.Return - SOFA'!E281 -> 0 | DI93: =AND(F93<>SUM(K93:DG93),'Standing Data'!$D$9="Multiple") -> FALSE
C94: Direct revenue financing (Revenue contributions to capital) | D94: 48 | F94: ='Fin.Return - SOFA'!I41 -> 0 | DI94: =AND(F94<>SUM(K94:DG94),'Standing Data'!$D$9="Multiple") -> FALSE
C95: Other | D95: 49 | F95: =+'Fin.Return - SOFA'!E254+'Fin.Return - SOFA'!E255+'Fin.Return - SOFA'!E256+'Fin.Return - SOFA'!E273+'Fin.Return - SOFA'!E274+'Fin.Return - SOFA'!E275 -> 0 | DI95: =AND(F95<>SUM(K95:DG95),'Standing Data'!$D$9="Multiple") -> FALSE
G96: =SUM(F88:F95) -> 0 | K96: =SUM(K88:K95) -> 0 | L96: =SUM(L88:L95) -> 0 | M96: 0 | N96: 0 | O96: 0 | P96: 0 | Q96: 0 | R96: 0 | S96: 0 | T96: 0 | U96: 0 | V96: 0 | W96: 0 | X96: 0 | Y96: 0 | Z96: 0 | AA96: 0 | AB96: 0 | AC96: 0 | AD96: 0 | AE96: 0 | AF96: 0 | AG96: 0 | AH96: 0 | AI96: 0 | AJ96: 0 | AK96: 0 | AL96: 0 | AM96: 0 | AN96: 0 | AO96: 0 | AP96: 0 | AQ96: 0 | AR96: 0 | AS96: 0 | AT96: 0 | AU96: 0 | AV96: 0 | AW96: 0 | AX96: 0 | AY96: 0 | AZ96: 0 | BA96: 0 | BB96: 0 | BC96: 0 | BD96: 0 | BE96: 0 | BF96: 0 | BG96: 0 | BH96: 0 | BI96: 0 | BJ96: 0 | BK96: 0 | BL96: 0 | BM96: 0 | BN96: 0 | BO96: 0 | BP96: 0 | BQ96: 0 | BR96: 0 | BS96: 0 | BT96: 0 | BU96: 0 | BV96: 0 | BW96: 0 | BX96: =SUM(BX88:BX95) -> 0 | BY96: 0 | BZ96: 0 | CA96: 0 | CB96: 0 | CC96: 0 | CD96: 0 | CE96: 0 | CF96: 0 | CG96: 0 | CH96: 0 | CI96: 0 | CJ96: 0 | CK96: 0 | CL96: 0 | CM96: 0 | CN96: 0 | CO96: 0 | CP96: 0 | CQ96: 0 | CR96: 0 | CS96: 0 | CT96: 0 | CU96: 0 | CV96: 0 | CW96: 0 | CX96: 0 | CY96: 0 | CZ96: 0 | DA96: 0 | DB96: 0 | DC96: 0 | DD96: 0 | DE96: 0 | DF96: 0 | DG96: 0
B98: Funding costs
C99: Interest charges for Loan and bank | D99: 51 | E99: =IF(DI99=TRUE, "Error - imbalance","") ->  | F99: =+'Fin.Return - SOFA'!E251+'Fin.Return - SOFA'!E252 -> 0 | DI99: =AND(F99<>SUM(K99:DG99),'Standing Data'!$D$9="Multiple") -> FALSE
C100: PFI Charges | D100: 52 | F100: =+'Fin.Return - SOFA'!E248 -> 0 | DI100: =AND(F100<>SUM(K100:DG100),'Standing Data'!$D$9="Multiple") -> FALSE
C101: Central Recharges - MATs only | D101: 53 | DI101: =AND(F101<>SUM(K101:DG101),'Standing Data'!$D$9="Multiple") -> FALSE
G102: =SUM(F99:F101) -> 0 | K102: =SUM(K99:K101) -> 0 | L102: =SUM(L99:L101) -> 0 | M102: 0 | N102: 0 | O102: 0 | P102: 0 | Q102: 0 | R102: 0 | S102: 0 | T102: 0 | U102: 0 | V102: 0 | W102: 0 | X102: 0 | Y102: 0 | Z102: 0 | AA102: 0 | AB102: 0 | AC102: 0 | AD102: 0 | AE102: 0 | AF102: 0 | AG102: 0 | AH102: 0 | AI102: 0 | AJ102: 0 | AK102: 0 | AL102: 0 | AM102: 0 | AN102: 0 | AO102: 0 | AP102: 0 | AQ102: 0 | AR102: 0 | AS102: 0 | AT102: 0 | AU102: 0 | AV102: 0 | AW102: 0 | AX102: =SUM(AX99:AX101) -> 0 | AY102: 0 | AZ102: 0 | BA102: 0 | BB102: 0 | BC102: 0 | BD102: 0 | BE102: 0 | BF102: 0 | BG102: 0 | BH102: 0 | BI102: 0 | BJ102: 0 | BK102: 0 | BL102: 0 | BM102: 0 | BN102: 0 | BO102: 0 | BP102: 0 | BQ102: 0 | BR102: 0 | BS102: 0 | BT102: 0 | BU102: 0 | BV102: 0 | BW102: 0 | BX102: 0 | BY102: 0 | BZ102: 0 | CA102: 0 | CB102: 0 | CC102: 0 | CD102: 0 | CE102: 0 | CF102: 0 | CG102: 0 | CH102: 0 | CI102: 0 | CJ102: 0 | CK102: 0 | CL102: 0 | CM102: 0 | CN102: 0 | CO102: 0 | CP102: 0 | CQ102: 0 | CR102: 0 | CS102: 0 | CT102: 0 | CU102: 0 | CV102: 0 | CW102: 0 | CX102: 0 | CY102: 0 | CZ102: 0 | DA102: 0 | DB102: 0 | DC102: 0 | DD102: 0 | DE102: 0 | DF102: 0 | DG102: 0
A104: TOTAL REVENUE EXPENDITURE | I104: =SUM(G57:G102) -> 0 | K104: =+K102+K96+K84+K75+K73+K64+K62+K57 -> 0 | L104: =+L102+L96+L84+L75+L73+L64+L62+L57 -> 0 | M104: 0 | N104: 0 | O104: 0 | P104: 0 | Q104: 0 | R104: 0 | S104: 0 | T104: 0 | U104: 0 | V104: 0 | W104: 0 | X104: 0 | Y104: 0 | Z104: 0 | AA104: 0 | AB104: 0 | AC104: 0 | AD104: 0 | AE104: 0 | AF104: 0 | AG104: 0 | AH104: 0 | AI104: 0 | AJ104: 0 | AK104: 0 | AL104: 0 | AM104: 0 | AN104: 0 | AO104: 0 | AP104: 0 | AQ104: 0 | AR104: 0 | AS104: 0 | AT104: 0 | AU104: 0 | AV104: 0 | AW104: 0 | AX104: 0 | AY104: 0 | AZ104: 0 | BA104: 0 | BB104: 0 | BC104: 0 | BD104: 0 | BE104: 0 | BF104: 0 | BG104: 0 | BH104: 0 | BI104: 0 | BJ104: 0 | BK104: 0 | BL104: 0 | BM104: 0 | BN104: 0 | BO104: 0 | BP104: 0 | BQ104: 0 | BR104: 0 | BS104: 0 | BT104: 0 | BU104: 0 | BV104: 0 | BW104: 0 | BX104: =+BX102+BX96+BX84+BX75+BX73+BX64+BX62+BX57 -> 0 | BY104: 0 | BZ104: 0 | CA104: 0 | CB104: 0 | CC104: 0 | CD104: 0 | CE104: 0 | CF104: 0 | CG104: 0 | CH104: 0 | CI104: 0 | CJ104: 0 | CK104: 0 | CL104: 0 | CM104: 0 | CN104: 0 | CO104: 0 | CP104: 0 | CQ104: 0 | CR104: 0 | CS104: 0 | CT104: 0 | CU104: 0 | CV104: 0 | CW104: 0 | CX104: 0 | CY104: 0 | CZ104: 0 | DA104: 0 | DB104: 0 | DC104: 0 | DD104: 0 | DE104: 0 | DF104: 0 | DG104: 0
A107: Average staff numbers (full time equivalent) | F107: Total Number | G107: Permanently Employed Number | H107: Temporary/ Interim Staff Number
C109: Teachers | D109: 54 | E109: =IF(DI109=TRUE, "Error - imbalance","") ->  | F109: ='Fin.Return - SOFA'!E306 -> 0 | G109: ='Fin.Return - SOFA'!G306 -> 0 | H109: ='Fin.Return - SOFA'!H306 -> 0 | DI109: =AND(F109<>SUM(K109:DG109),'Standing Data'!$D$9="Multiple") -> FALSE
C110: Administration & Support | D110: 55 | F110: ='Fin.Return - SOFA'!E307 -> 0 | G110: ='Fin.Return - SOFA'!G307 -> 0 | H110: ='Fin.Return - SOFA'!H307 -> 0 | DI110: =AND(F110<>SUM(K110:DG110),'Standing Data'!$D$9="Multiple") -> FALSE
C111: Management | D111: 56 | F111: ='Fin.Return - SOFA'!E308 -> 0 | G111: ='Fin.Return - SOFA'!G308 -> 0 | H111: ='Fin.Return - SOFA'!H308 -> 0 | DI111: =AND(F111<>SUM(K111:DG111),'Standing Data'!$D$9="Multiple") -> FALSE
F112: =SUM(F109:F111) -> 0 | G112: =SUM(G109:G111) -> 0 | H112: =SUM(H109:H111) -> 0 | K112: =SUM(K109:K111) -> 0 | L112: =SUM(L109:L111) -> 0 | M112: 0 | N112: 0 | O112: 0 | P112: 0 | Q112: 0 | R112: 0 | S112: 0 | T112: 0 | U112: 0 | V112: 0 | W112: 0 | X112: 0 | Y112: 0 | Z112: 0 | AA112: 0 | AB112: 0 | AC112: 0 | AD112: 0 | AE112: 0 | AF112: 0 | AG112: 0 | AH112: 0 | AI112: 0 | AJ112: 0 | AK112: 0 | AL112: 0 | AM112: 0 | AN112: 0 | AO112: 0 | AP112: 0 | AQ112: 0 | AR112: 0 | AS112: 0 | AT112: 0 | AU112: 0 | AV112: 0 | AW112: 0 | AX112: =SUM(AX109:AX111) -> 0 | AY112: 0 | AZ112: 0 | BA112: 0 | BB112: 0 | BC112: 0 | BD112: 0 | BE112: 0 | BF112: 0 | BG112: 0 | BH112: 0 | BI112: 0 | BJ112: 0 | BK112: 0 | BL112: 0 | BM112: 0 | BN112: 0 | BO112: 0 | BP112: 0 | BQ112: 0 | BR112: 0 | BS112: 0 | BT112: 0 | BU112: 0 | BV112: 0 | BW112: 0 | BX112: 0 | BY112: 0 | BZ112: 0 | CA112: 0 | CB112: 0 | CC112: 0 | CD112: 0 | CE112: 0 | CF112: 0 | CG112: 0 | CH112: 0 | CI112: 0 | CJ112: 0 | CK112: 0 | CL112: 0 | CM112: 0 | CN112: 0 | CO112: 0 | CP112: 0 | CQ112: 0 | CR112: 0 | CS112: 0 | CT112: 0 | CU112: 0 | CV112: 0 | CW112: 0 | CX112: 0 | CY112: 0 | CZ112: 0 | DA112: 0 | DB112: 0 | DC112: 0 | DD112: 0 | DE112: 0 | DF112: 0 | DG112: 0

Sheet Land and Property
A1: Accounts Return March 2016 - Land and property | H1: Below | I1: Fin.Return | J1: Diff. | K1: Validation
H2: £'000 | I2: £'000 | J2: £'000
A3: Trust: | C3: ='Standing Data'!$D$3 -> 0 | G3: Freehold Land and Buildings | H3: =SUMIF($G$14:$G$112,G3,$F$14:$F$112) -> 0 | I3: ='Fin.Return - BS'!G98 -> 0 | J3: =H3-I3 -> 0 | K3: =IF(J3<>0,"ERROR","OK") -> OK
G4: Leasehold Land and Buildings | H4: =SUMIF($G$14:$G$112,G4,$F$14:$F$112) -> 0 | I4: ='Fin.Return - BS'!H98 -> 0 | J4: =H4-I4 -> 0 | K4: =IF(J4<>0,"ERROR","OK") -> OK
A5: Period end: | C5: =('Standing Data'!D6) -> 2016-03-31 | D5: Cells will populate automatically from elsewhere in the Return | G5: Leasehold Improvements | H5: 0 | I5: ='Fin.Return - BS'!I98 -> 0 | J5: 0 | K5: OK
A7: Company No.: | C7: ='Standing Data'!D14 -> Type number here | D7: Additional to Financial Statements, prepared on a similar basis
A9: Academy UPIN: | C9: ='Fin.Return - SOFA'!C9 ->  | D9: Non-financial cells to be populated by Academy Trust
C10: Above details will populate automatically | E10: Error check cells
C12: Academy Name | D12: UPIN | E12: Description of property | F12: Net Book Value included in financial return | G12: Leasehold / Freehold / Leasehold Improvements | H12: Donor/ Lessor/ Purchaser Type | I12: Lease term if applicable (years) | J12: If leasehold, lease type | K12: Rental/lease payment type (if applicable) | N12: Lower limit | O12: Upper limit
F13: £000 | N13: £000 | O13: £000
C14: =IFERROR(VLOOKUP(D14,Reference!$O$10:$T$7199,2,FALSE),"") ->  | L14: =IF(AND(F14<>0,G14=""),"Complete column G",IF(AND(LEFT(G14,9)="Leasehold",OR(I14="",I14=0)),"ERROR - Missing lease input",IF(AND(LEFT(G14,9)="Leasehold",OR(J14="",J14=0,J14="n/a")),"ERROR - Missing lease input",IF(AND(LEFT(G14,9)="Leasehold",OR(K14="",K14=0,K14="n/a")),"ERROR - Missing lease input","")))) ->  | N14: 0 | O14: 100000
C15: =IFERROR(VLOOKUP(D15,Reference!$O$10:$T$7199,2,FALSE),"") ->  | L15: =IF(AND(F15<>0,G15=""),"Complete column G",IF(AND(LEFT(G15,9)="Leasehold",OR(I15="",I15=0)),"ERROR - Missing lease input",IF(AND(LEFT(G15,9)="Leasehold",OR(J15="",J15=0,J15="n/a")),"ERROR - Missing lease input",IF(AND(LEFT(G15,9)="Leasehold",OR(K15="",K15=0,K15="n/a")),"ERROR - Missing lease input","")))) -> 
C16: =IFERROR(VLOOKUP(D16,Reference!$O$10:$T$7199,2,FALSE),"") -> 
C17: =IFERROR(VLOOKUP(D17,Reference!$O$10:$T$7199,2,FALSE),"") -> 
C18: =IFERROR(VLOOKUP(D18,Reference!$O$10:$T$7199,2,FALSE),"") -> 
C19: =IFERROR(VLOOKUP(D19,Reference!$O$10:$T$7199,2,FALSE),"") -> 
C20: =IFERROR(VLOOKUP(D20,Reference!$O$10:$T$7199,2,FALSE),"") -> 
C21: =IFERROR(VLOOKUP(D21,Reference!$O$10:$T$7199,2,FALSE),"") -> 
C22: =IFERROR(VLOOKUP(D22,Reference!$O$10:$T$7199,2,FALSE),"") -> 
C23: =IFERROR(VLOOKUP(D23,Reference!$O$10:$T$7199,2,FALSE),"") -> 
C24: =IFERROR(VLOOKUP(D24,Reference!$O$10:$T$7199,2,FALSE),"") -> 
C25: =IFERROR(VLOOKUP(D25,Reference!$O$10:$T$7199,2,FALSE),"") -> 
C26: =IFERROR(VLOOKUP(D26,Reference!$O$10:$T$7199,2,FALSE),"") -> 
C27: =IFERROR(VLOOKUP(D27,Reference!$O$10:$T$7199,2,FALSE),"") -> 
C28: =IFERROR(VLOOKUP(D28,Reference!$O$10:$T$7199,2,FALSE),"") -> 
C29: =IFERROR(VLOOKUP(D29,Reference!$O$10:$T$7199,2,FALSE),"") -> 
C30: =IFERROR(VLOOKUP(D30,Reference!$O$10:$T$7199,2,FALSE),"") -> 
C31: =IFERROR(VLOOKUP(D31,Reference!$O$10:$T$7199,2,FALSE),"") -> 
C32: =IFERROR(VLOOKUP(D32,Reference!$O$10:$T$7199,2,FALSE),"") -> 
C33: =IFERROR(VLOOKUP(D33,Reference!$O$10:$T$7199,2,FALSE),"") -> 
C34: =IFERROR(VLOOKUP(D34,Reference!$O$10:$T$7199,2,FALSE),"") -> 
C35: =IFERROR(VLOOKUP(D35,Reference!$O$10:$T$7199,2,FALSE),"") -> 
C36: =IFERROR(VLOOKUP(D36,Reference!$O$10:$T$7199,2,FALSE),"") -> 
C37: =IFERROR(VLOOKUP(D37,Reference!$O$10:$T$7199,2,FALSE),"") -> 
C38: =IFERROR(VLOOKUP(D38,Reference!$O$10:$T$7199,2,FALSE),"") -> 
C39: =IFERROR(VLOOKUP(D39,Reference!$O$10:$T$7199,2,FALSE),"") -> 
C40: =IFERROR(VLOOKUP(D40,Reference!$O$10:$T$7199,2,FALSE),"") -> 
C41: =IFERROR(VLOOKUP(D41,Reference!$O$10:$T$7199,2,FALSE),"") -> 
C42: =IFERROR(VLOOKUP(D42,Reference!$O$10:$T$7199,2,FALSE),"") -> 
C43: =IFERROR(VLOOKUP(D43,Reference!$O$10:$T$7199,2,FALSE),"") -> 
C44: =IFERROR(VLOOKUP(D44,Reference!$O$10:$T$7199,2,FALSE),"") -> 
C45: =IFERROR(VLOOKUP(D45,Reference!$O$10:$T$7199,2,FALSE),"") -> 
C46: =IFERROR(VLOOKUP(D46,Reference!$O$10:$T$7199,2,FALSE),"") -> 
C47: =IFERROR(VLOOKUP(D47,Reference!$O$10:$T$7199,2,FALSE),"") -> 
C48: =IFERROR(VLOOKUP(D48,Reference!$O$10:$T$7199,2,FALSE),"") -> 
C49: =IFERROR(VLOOKUP(D49,Reference!$O$10:$T$7199,2,FALSE),"") -> 
C50: =IFERROR(VLOOKUP(D50,Reference!$O$10:$T$7199,2,FALSE),"") -> 
C51: =IFERROR(VLOOKUP(D51,Reference!$O$10:$T$7199,2,FALSE),"") -> 
C52: =IFERROR(VLOOKUP(D52,Reference!$O$10:$T$7199,2,FALSE),"") -> 
C53: =IFERROR(VLOOKUP(D53,Reference!$O$10:$T$7199,2,FALSE),"") -> 
C54: =IFERROR(VLOOKUP(D54,Reference!$O$10:$T$7199,2,FALSE),"") -> 
C55: =IFERROR(VLOOKUP(D55,Reference!$O$10:$T$7199,2,FALSE),"") -> 
C56: =IFERROR(VLOOKUP(D56,Reference!$O$10:$T$7199,2,FALSE),"") -> 
C57: =IFERROR(VLOOKUP(D57,Reference!$O$10:$T$7199,2,FALSE),"") -> 
C58: =IFERROR(VLOOKUP(D58,Reference!$O$10:$T$7199,2,FALSE),"") -> 
C59: =IFERROR(VLOOKUP(D59,Reference!$O$10:$T$7199,2,FALSE),"") -> 
C60: =IFERROR(VLOOKUP(D60,Reference!$O$10:$T$7199,2,FALSE),"") -> 
C61: =IFERROR(VLOOKUP(D61,Reference!$O$10:$T$7199,2,FALSE),"") -> 
C62: =IFERROR(VLOOKUP(D62,Reference!$O$10:$T$7199,2,FALSE),"") -> 
C63: =IFERROR(VLOOKUP(D63,Reference!$O$10:$T$7199,2,FALSE),"") -> 
C64: =IFERROR(VLOOKUP(D64,Reference!$O$10:$T$7199,2,FALSE),"") -> 
C65: =IFERROR(VLOOKUP(D65,Reference!$O$10:$T$7199,2,FALSE),"") -> 
C66: =IFERROR(VLOOKUP(D66,Reference!$O$10:$T$7199,2,FALSE),"") -> 
C67: =IFERROR(VLOOKUP(D67,Reference!$O$10:$T$7199,2,FALSE),"") -> 
C68: =IFERROR(VLOOKUP(D68,Reference!$O$10:$T$7199,2,FALSE),"") -> 
C69: =IFERROR(VLOOKUP(D69,Reference!$O$10:$T$7199,2,FALSE),"") -> 
C70: =IFERROR(VLOOKUP(D70,Reference!$O$10:$T$7199,2,FALSE),"") -> 
C71: =IFERROR(VLOOKUP(D71,Reference!$O$10:$T$7199,2,FALSE),"") -> 
C72: =IFERROR(VLOOKUP(D72,Reference!$O$10:$T$7199,2,FALSE),"") -> 
C73: =IFERROR(VLOOKUP(D73,Reference!$O$10:$T$7199,2,FALSE),"") -> 
C74: =IFERROR(VLOOKUP(D74,Reference!$O$10:$T$7199,2,FALSE),"") -> 
C75: =IFERROR(VLOOKUP(D75,Reference!$O$10:$T$7199,2,FALSE),"") -> 
C76: =IFERROR(VLOOKUP(D76,Reference!$O$10:$T$7199,2,FALSE),"") -> 
C77: =IFERROR(VLOOKUP(D77,Reference!$O$10:$T$7199,2,FALSE),"") -> 
C78: =IFERROR(VLOOKUP(D78,Reference!$O$10:$T$7199,2,FALSE),"") -> 
C79: =IFERROR(VLOOKUP(D79,Reference!$O$10:$T$7199,2,FALSE),"") ->  | L79: =IF(AND(F79<>0,G79=""),"Complete column G",IF(AND(LEFT(G79,9)="Leasehold",OR(I79="",I79=0)),"ERROR - Missing lease input",IF(AND(LEFT(G79,9)="Leasehold",OR(J79="",J79=0,J79="n/a")),"ERROR - Missing lease input",IF(AND(LEFT(G79,9)="Leasehold",OR(K79="",K79=0,K79="n/a")),"ERROR - Missing lease input","")))) -> 
C80: =IFERROR(VLOOKUP(D80,Reference!$O$10:$T$7199,2,FALSE),"") -> 
C81: =IFERROR(VLOOKUP(D81,Reference!$O$10:$T$7199,2,FALSE),"") -> 
C82: =IFERROR(VLOOKUP(D82,Reference!$O$10:$T$7199,2,FALSE),"") -> 
C83: =IFERROR(VLOOKUP(D83,Reference!$O$10:$T$7199,2,FALSE),"") -> 
C84: =IFERROR(VLOOKUP(D84,Reference!$O$10:$T$7199,2,FALSE),"") -> 
C85: =IFERROR(VLOOKUP(D85,Reference!$O$10:$T$7199,2,FALSE),"") -> 
C86: =IFERROR(VLOOKUP(D86,Reference!$O$10:$T$7199,2,FALSE),"") -> 
C87: =IFERROR(VLOOKUP(D87,Reference!$O$10:$T$7199,2,FALSE),"") -> 
C88: =IFERROR(VLOOKUP(D88,Reference!$O$10:$T$7199,2,FALSE),"") -> 
C89: =IFERROR(VLOOKUP(D89,Reference!$O$10:$T$7199,2,FALSE),"") -> 
C90: =IFERROR(VLOOKUP(D90,Reference!$O$10:$T$7199,2,FALSE),"") -> 
C91: =IFERROR(VLOOKUP(D91,Reference!$O$10:$T$7199,2,FALSE),"") -> 
C92: =IFERROR(VLOOKUP(D92,Reference!$O$10:$T$7199,2,FALSE),"") -> 
C93: =IFERROR(VLOOKUP(D93,Reference!$O$10:$T$7199,2,FALSE),"") -> 
C94: =IFERROR(VLOOKUP(D94,Reference!$O$10:$T$7199,2,FALSE),"") -> 
C95: =IFERROR(VLOOKUP(D95,Reference!$O$10:$T$7199,2,FALSE),"") -> 
C96: =IFERROR(VLOOKUP(D96,Reference!$O$10:$T$7199,2,FALSE),"") -> 
C97: =IFERROR(VLOOKUP(D97,Reference!$O$10:$T$7199,2,FALSE),"") -> 
C98: =IFERROR(VLOOKUP(D98,Reference!$O$10:$T$7199,2,FALSE),"") -> 
C99: =IFERROR(VLOOKUP(D99,Reference!$O$10:$T$7199,2,FALSE),"") -> 
C100: =IFERROR(VLOOKUP(D100,Reference!$O$10:$T$7199,2,FALSE),"") -> 
C101: =IFERROR(VLOOKUP(D101,Reference!$O$10:$T$7199,2,FALSE),"") -> 
C102: =IFERROR(VLOOKUP(D102,Reference!$O$10:$T$7199,2,FALSE),"") -> 
C103: =IFERROR(VLOOKUP(D103,Reference!$O$10:$T$7199,2,FALSE),"") -> 
C104: =IFERROR(VLOOKUP(D104,Reference!$O$10:$T$7199,2,FALSE),"") -> 
C105: =IFERROR(VLOOKUP(D105,Reference!$O$10:$T$7199,2,FALSE),"") -> 
C106: =IFERROR(VLOOKUP(D106,Reference!$O$10:$T$7199,2,FALSE),"") -> 
C107: =IFERROR(VLOOKUP(D107,Reference!$O$10:$T$7199,2,FALSE),"") -> 
C108: =IFERROR(VLOOKUP(D108,Reference!$O$10:$T$7199,2,FALSE),"") -> 
C109: =IFERROR(VLOOKUP(D109,Reference!$O$10:$T$7199,2,FALSE),"") -> 
C110: =IFERROR(VLOOKUP(D110,Reference!$O$10:$T$7199,2,FALSE),"") -> 
C111: =IFERROR(VLOOKUP(D111,Reference!$O$10:$T$7199,2,FALSE),"") -> 
C112: =IFERROR(VLOOKUP(D112,Reference!$O$10:$T$7199,2,FALSE),"") -> 

Sheet CP IDs
A1: CODE | B1: NAME | C1: CODE | D1: Counterparty Type | E1: Counterparty Gross
A2: 130335 | B2: AB Kettleby Community Primary School | C2: 130335 | D2: Academy | E2: Academy
A3: 123288 | B3: Abacus Belsize Primary School | C3: 123288 | D3: Academy | E3: Academy
A4: 127210 | B4: Abbey CofE Academy | C4: 127210 | D4: Academy | E4: Academy
A5: 120322 | B5: Abbey College, Ramsey | C5: 120322 | D5: Academy | E5: Academy
A6: 120083 | B6: Abbey Grange Church of England Academy | C6: 120083 | D6: Academy | E6: Academy
A7: 124243 | B7: Abbey Hey Primary Academy | C7: 124243 | D7: Academy | E7: Academy
A8: 124569 | B8: Abbey Hill Academy | C8: 124569 | D8: Academy | E8: Academy
A9: 119988 | B9: Abbey Infants' School | C9: 119988 | D9: Academy | E9: Academy
A10: 119989 | B10: Abbey Junior School | C10: 119989 | D10: Academy | E10: Academy
A11: 126329 | B11: Abbey Park Academy | C11: 126329 | D11: Academy | E11: Academy
A12: 120154 | B12: Abbey School, The | C12: 120154 | D12: Academy | E12: Academy
A13: 123404 | B13: Abbey View | C13: 123404 | D13: Academy | E13: Academy
A14: 123534 | B14: Abbey Woods Academy | C14: 123534 | D14: Academy | E14: Academy
A15: 122250 | B15: Abbeyfield School | C15: 122250 | D15: Academy | E15: Academy
A16: 122309 | B16: Abbeywood Community School | C16: 122309 | D16: Academy | E16: Academy
A17: 133078 | B17: Abbeywood First School | C17: 133078 | D17: Academy | E17: Academy
A18: 122896 | B18: Abbots Hall Primary School | C18: 122896 | D18: Academy | E18: Academy
A19: 131130 | B19: Abbotsweld Primary School | C19: 131130 | D19: Academy | E19: Academy
A20: 119551 | B20: Abbs Cross Academy and Arts College | C20: 119551 | D20: Academy | E20: Academy
A21: 121187 | B21: Abington Vale Primary School | C21: 121187 | D21: Academy | E21: Academy
A22: 119101 | B22: Abraham Darby Academy | C22: 119101 | D22: Academy | E22: Academy
A23: 120210 | B23: Abraham Guest Academy | C23: 120210 | D23: Academy | E23: Academy
A24: 122270 | B24: Academy @ Worden | C24: 122270 | D24: Academy | E24: Academy
A25: 119119 | B25: Academy 360 | C25: 119119 | D25: Academy | E25: Academy
A26: 119508 | B26: Academy at Shotton Hall, The | C26: 119508 | D26: Academy | E26: Academy
A27: 123407 | B27: Academy of Central Bedfordshire, The | C27: 123407 | D27: Academy | E27: Academy
A28: 119111 | B28: Academy of St Francis of Assisi, The | C28: 119111 | D28: Academy | E28: Academy
A29: 119813 | B29: Academy of Trinity C of E Primary | C29: 119813 | D29: Academy | E29: Academy
A30: 120096 | B30: Academy Selsey, The | C30: 120096 | D30: Academy | E30: Academy
A31: 118597 | B31: Accrington Academy | C31: 118597 | D31: Academy | E31: Academy
A32: 120359 | B32: Accrington St Christopher's Church of England High School | C32: 120359 | D32: Academy | E32: Academy
A33: 122775 | B33: ACE Academy, The | C33: 122775 | D33: Academy | E33: Academy
A34: 122565 | B34: Acle Academy | C34: 122565 | D34: Academy | E34: Academy
A35: 123272 | B35: Acocks Green Primary School | C35: 123272 | D35: Academy | E35: Academy
A36: 123412 | B36: Acorn Free School | C36: 123412 | D36: Academy | E36: Academy
A37: 123239 | B37: Acorns Primary School | C37: 123239 | D37: Academy | E37: Academy
A38: 122311 | B38: Acre Hall Primary School | C38: 122311 | D38: Academy | E38: Academy
A39: 122739 | B39: Acre Rigg Academy | C39: 122739 | D39: Academy | E39: Academy
A40: 130951 | B40: Ad Astra Infant School | C40: 130951 | D40: Academy | E40: Academy
A41: 120418 | B41: Adams' Grammar School | C41: 120418 | D41: Academy | E41: Academy
A42: 129409 | B42: Adelaide School | C42: 129409 | D42: Academy | E42: Academy
A43: 129888 | B43: Adisham Church of England Primary School | C43: 129888 | D43: Academy | E43: Academy
A44: 129010 | B44: Admiral Lord Nelson School | C44: 129010 | D44: Academy | E44: Academy
A45: 122656 | B45: Admirals Academy | C45: 122656 | D45: Academy | E45: Academy
A46: 132034 | B46: Aegir | C46: 132034 | D46: Academy | E46: Academy
A47: 123037 | B47: Aerodrome Primary Academy | C47: 123037 | D47: Academy | E47: Academy
A48: 124306 | B48: Ainthorpe Primary School | C48: 124306 | D48: Academy | E48: Academy
A49: 119563 | B49: Airedale Academy | C49: 119563 | D49: Academy | E49: Academy
A50: 131232 | B50: Airedale Infant School | C50: 131232 | D50: Academy | E50: Academy
A51: 131374 | B51: Airedale Junior School | C51: 131374 | D51: Academy | E51: Academy
A52: 132632 | B52: Akaal Primary School | C52: 132632 | D52: Academy | E52: Academy
A53: 120249 | B53: Alameda Middle School | C53: 120249 | D53: Academy | E53: Academy
A54: 119583 | B54: Alban Church of England Academy | C54: 119583 | D54: Academy | E54: Academy
A55: 122102 | B55: Alban City School | C55: 122102 | D55: Academy | E55: Academy
A56: 121853 | B56: Albany Academy - Chorley | C56: 121853 | D56: Academy | E56: Academy
A57: 120189 | B57: Albany School, The - Havering | C57: 120189 | D57: Academy | E57: Academy
A58: 130333 | B58: Albert Bradbeer Primary Academy | C58: 130333 | D58: Academy | E58: Academy
A59: 121940 | B59: Albion Academy, The | C59: 121940 | D59: Academy | E59: Academy
A60: 120172 | B60: Alcester Academy | C60: 120172 | D60: Academy | E60: Academy
A61: 119579 | B61: Alcester Grammar School | C61: 119579 | D61: Academy | E61: Academy
A62: 120534 | B62: Aldborough Primary School | C62: 120534 | D62: Academy | E62: Academy
A63: 127509 | B63: Alde Valley School | C63: 127509 | D63: Academy | E63: Academy
A64: 119994 | B64: Alderbrook School | C64: 119994 | D64: Academy | E64: Academy
A65: 119676 | B65: Alderman Jacobs Primary School | C65: 119676 | D65: Academy | E65: Academy
A66: 122717 | B66: Alderman White School | C66: 122717 | D66: Academy | E66: Academy
A67: 122992 | B67: Aldersley High School | C67: 122992 | D67: Academy | E67: Academy
A68: 121205 | B68: Aldridge School | C68: 121205 | D68: Academy | E68: Academy
A69: 123939 | B69: Alec Hunter Academy | C69: 123939 | D69: Academy | E69: Academy
A70: 118409 | B70: Alec Reed Academy | C70: 118409 | D70: Academy | E70: Academy
A71: 125230 | B71: Alexandra Infant School | C71: 125230 | D71: Academy | E71: Academy
A72: 125200 | B72: Alexandra Junior School | C72: 125200 | D72: Academy | E72: Academy
A73: 120567 | B73: Alexandra Park School | C73: 120567 | D73: Academy | E73: Academy
A74: 124171 | B74: Alexandra School | C74: 124171 | D74: Academy | E74: Academy
A75: 120753 | B75: Alfriston School | C75: 120753 | D75: Academy | E75: Academy
A76: 121000 | B76: All Faiths Children's Academy | C76: 121000 | D76: Academy | E76: Academy
A77: 123111 | B77: All Hallows Catholic College | C77: 123111 | D77: Academy | E77: Academy
A78: 120930 | B78: All Saints Academy Darfield | C78: 120930 | D78: Academy | E78: Academy
A79: 120760 | B79: All Saints Academy - Stockton-on-Tees | C79: 120760 | D79: Academy | E79: Academy
A80: 130748 | B80: All Saints Academy - Walsall | C80: 130748 | D80: Academy | E80: Academy
A81: 131178 | B81: All saints Academy - Wissey Valley | C81: 131178 | D81: Academy | E81: Academy
A82: 119040 | B82: All Saints Academy Dunstable | C82: 119040 | D82: Academy | E82: Academy
A83: 119150 | B83: All Saints' Academy, Cheltenham | C83: 119150 | D83: Academy | E83: Academy
A84: 130163 | B84: All Saints Babbacombe CofE Primary School | C84: 130163 | D84: Academy | E84: Academy
A85: 124644 | B85: All Saints Catholic College - Dukinfield | C85: 124644 | D85: Academy | E85: Academy
A86: 121197 | B86: All Saints' Catholic High School - Sheffield | C86: 121197 | D86: Academy | E86: Academy
A87: 131646 | B87: All Saints CE Junior School - Hastings | C87: 131646 | D87: Academy | E87: Academy
A88: 119199 | B88: All Saints Church of England Academy, The - Plymouth | C88: 119199 | D88: Academy | E88: Academy
A89: 131793 | B89: All Saints Church of England Primary School - Chatham | C89: 131793 | D89: Academy | E89: Academy
A90: 132908 | B90: All Saints CofE Primary School (Marsh) | C90: 132908 | D90: Academy | E90: Academy
A91: 131252 | B91: All Saints Harworth CofE (Aided) Primary School | C91: 131252 | D91: Academy | E91: Academy
A92: 124183 | B92: All Saints Interchurch Academy - March | C92: 124183 | D92: Academy | E92: Academy
A93: 120504 | B93: All Saints Junior School - Reading | C93: 120504 | D93: Academy | E93: Academy
A94: 129891 | B94: All Saints RC Comprehensive School | C94: 129891 | D94: Academy | E94: Academy
A95: 129424 | B95: All Saints VA CofE Primary School | C95: 129424 | D95: Academy | E95: Academy
A96: 131429 | B96: Allenbourn Middle School | C96: 131429 | D96: Academy | E96: Academy
A97: 131351 | B97: Allenton Primary School | C97: 131351 | D97: Academy | E97: Academy
A98: 123084 | B98: Alleyne's Academy | C98: 123084 | D98: Academy | E98: Academy
A99: 124701 | B99: Allhallows Primary Academy | C99: 124701 | D99: Academy | E99: Academy
A100: 122969 | B100: Allington Primary School | C100: 122969 | D100: Academy | E100: Academy
A101: 123357 | B101: Alma Primary | C101: 123357 | D101: Academy | E101: Academy
A102: 122100 | B102: Al-Madinah School | C102: 122100 | D102: Academy | E102: Academy
A103: 122325 | B103: Alperton Community School | C103: 122325 | D103: Academy | E103: Academy
A104: 124251 | B104: Alsager School | C104: 124251 | D104: Academy | E104: Academy
A105: 122572 | B105: Alston Primary School | C105: 122572 | D105: Academy | E105: Academy
A106: 131166 | B106: Alt Academy | C106: 131166 | D106: Academy | E106: Academy
A107: 130649 | B107: Altarnun Community Primary School | C107: 130649 | D107: Academy | E107: Academy
A108: 132412 | B108: Alternative Provision for Medical Needs | C108: 132412 | D108: Academy | E108: Academy
A109: 122124 | B109: Altrincham College of Arts | C109: 122124 | D109: Academy | E109: Academy
A110: 119511 | B110: Altrincham Grammar School for Boys | C110: 119511 | D110: Academy | E110: Academy
A111: 120289 | B111: Altrincham Grammar School for Girls | C111: 120289 | D111: Academy | E111: Academy
A112: 122326 | B112: Altwood CofE Secondary School | C112: 122326 | D112: Academy | E112: Academy
A113: 131129 | B113: Alverton Primary School | C113: 131129 | D113: Academy | E113: Academy
A114: 130606 | B114: Ambergate Sports College | C114: 130606 | D114: Academy | E114: Academy
A115: 132267 | B115: Ambleside CofE Primary School - Ambleside | C115: 132267 | D115: Academy | E115: Academy
A116: 122945 | B116: Ambleside Primary School - Nottingham | C116: 122945 | D116: Academy | E116: Academy
A117: 120372 | B117: Amersham School | C117: 120372 | D117: Academy | E117: Academy
A118: 120500 | B118: Amery Hill School | C118: 120500 | D118: Academy | E118: Academy
A119: 119499 | B119: Amherst School | C119: 119499 | D119: Academy | E119: Academy
A120: 124111 | B120: Anchorsholme Primary Academy | C120: 124111 | D120: Academy | E120: Academy
A121: 131651 | B121: Angel Oak Academy | C121: 131651 | D121: Academy | E121: Academy
A122: 123086 | B122: Anglesey Primary Academy | C122: 123086 | D122: Academy | E122: Academy
A123: 120813 | B123: Anglo European School | C123: 120813 | D123: Academy | E123: Academy
A124: 119839 | B124: Ansford Academy | C124: 119839 | D124: Academy | E124: Academy
A125: 130934 | B125: Anston Greenlands Primary School | C125: 130934 | D125: Academy | E125: Academy
A126: 130493 | B126: Anthony Curton CofE Primary School | C126: 130493 | D126: Academy | E126: Academy
A127: 131131 | B127: Antingham and Southrepps Community Primary School | C127: 131131 | D127: Academy | E127: Academy
A128: 131671 | B128: Antony Church of England School | C128: 131671 | D128: Academy | E128: Academy
A129: 131050 | B129: Apollo Studio Academy | C129: 131050 | D129: Academy | E129: Academy
A130: 120251 | B130: Appleby Grammar School | C130: 120251 | D130: Academy | E130: Academy
A131: 120654 | B131: Applecroft School | C131: 120654 | D131: Academy | E131: Academy
A132: 123941 | B132: Applegarth Academy | C132: 123941 | D132: Academy | E132: Academy
A133: 119126 | B133: Appleton Academy - Bradford | C133: 119126 | D133: Academy | E133: Academy
A134: 124252 | B134: Appleton Primary School - Hull | C134: 124252 | D134: Academy | E134: Academy
A135: 119556 | B135: Appleton School, The - Benfleet | C135: 119556 | D135: Academy | E135: Academy
A136: 122541 | B136: Arbours Primary Academy, The | C136: 122541 | D136: Academy | E136: Academy
A137: 120258 | B137: Archbishop Benson CofE Primary School | C137: 120258 | D137: Academy | E137: Academy
A138: 124585 | B138: Archbishop Courtenay Primary School | C138: 124585 | D138: Academy | E138: Academy
A139: 124584 | B139: Archbishop Cranmer Church of England Academy | C139: 124584 | D139: Academy | E139: Academy
A140: 119523 | B140: Archbishop Holgate's School | C140: 119523 | D140: Academy | E140: Academy
A141: 130936 | B141: Archbishop Lanfranc Academy, The | C141: 130936 | D141: Academy | E141: Academy
A142: 119095 | B142: Archbishop Sentamu Academy | C142: 119095 | D142: Academy | E142: Academy
A143: 130702 | B143: Archbishop Wake Church of England Primary School | C143: 130702 | D143: Academy | E143: Academy
A144: 123349 | B144: Archer Academy, The | C144: 123349 | D144: Academy | E144: Academy
A145: 119276 | B145: Arden | C145: 119276 | D145: Academy | E145: Academy
A146: 124389 | B146: Arden Grove Infant and Nursery School | C146: 124389 | D146: Academy | E146: Academy
A147: 121192 | B147: Ardley Hill Academy | C147: 121192 | D147: Academy | E147: Academy
A148: 118659 | B148: ARK Academy | C148: 118659 | D148: Academy | E148: Academy
A149: 122186 | B149: ARK All Saints Academy | C149: 122186 | D149: Academy | E149: Academy
A150: 120505 | B150: ARK Atwood Primary Academy | C150: 120505 | D150: Academy | E150: Academy
A151: 123906 | B151: ARK Ayrton Primary Academy | C151: 123906 | D151: Academy | E151: Academy
A152: 122381 | B152: ARK Bentworth Primary Academy | C152: 122381 | D152: Academy | E152: Academy
A153: 130774 | B153: ARK Blacklands Primary Academy | C153: 130774 | D153: Academy | E153: Academy
A154: 125180 | B154: ARK Boulton Academy | C154: 125180 | D154: Academy | E154: Academy
A155: 124488 | B155: ARK Brunel Primary Academy | C155: 124488 | D155: Academy | E155: Academy
A156: 118604 | B156: ARK Burlington Danes Primary Academy | C156: 118604 | D156: Academy | E156: Academy
A157: 132633 | B157: ARK Byron Primary Academy | C157: 132633 | D157: Academy | E157: Academy
A158: 120428 | B158: ARK Chamberlain Primary Academy | C158: 120428 | D158: Academy | E158: Academy
A159: 120506 | B159: ARK Conway Primary Academy | C159: 120506 | D159: Academy | E159: Academy
A160: 129541 | B160: ARK Dickens Primary Academy | C160: 129541 | D160: Academy | E160: Academy
A161: 129412 | B161: ARK Elvin Academy | C161: 129412 | D161: Academy | E161: Academy
A162: 124680 | B162: ARK Franklin Primary Academy | C162: 124680 | D162: Academy | E162: Academy
A163: 118614 | B163: ARK Globe Academy | C163: 118614 | D163: Academy | E163: Academy
A164: 124685 | B164: ARK Helenswood Academy | C164: 124685 | D164: Academy | E164: Academy
A165: 120917 | B165: ARK Isaac Newton Academy | C165: 120917 | D165: Academy | E165: Academy
A166: 123290 | B166: ARK John Keats Academy | C166: 123290 | D166: Academy | E166: Academy
A167: 120907 | B167: ARK Kings Academy | C167: 120907 | D167: Academy | E167: Academy
A168: 130044 | B168: ARK Little Ridge Primary Academy | C168: 130044 | D168: Academy | E168: Academy
A169: 120114 | B169: ARK Oval Primary Academy | C169: 120114 | D169: Academy | E169: Academy
A170: 121923 | B170: ARK Priory Primary Academy | C170: 121923 | D170: Academy | E170: Academy
A171: 122388 | B171: ARK Putney Academy | C171: 122388 | D171: Academy | E171: Academy
A172: 121847 | B172: ARK Rose Primary Academy | C172: 121847 | D172: Academy | E172: Academy
A173: 119134 | B173: ARK St Alban's Academy | C173: 119134 | D173: Academy | E173: Academy
A174: 124224 | B174: ARK Swift Primary Academy | C174: 124224 | D174: Academy | E174: Academy
A175: 120992 | B175: ARK Tindal Primary Academy | C175: 120992 | D175: Academy | E175: Academy
A176: 119116 | B176: ARK Walworth Academy | C176: 119116 | D176: Academy | E176: Academy
A177: 124511 | B177: ARK William Parker Academy | C177: 124511 | D177: Academy | E177: Academy
A178: 121002 | B178: Armthorpe Academy | C178: 121002 | D178: Academy | E178: Academy
A179: 121125 | B179: Armthorpe Shaw Wood Academy | C179: 121125 | D179: Academy | E179: Academy
A180: 127778 | B180: Arnbrook Primary School | C180: 127778 | D180: Academy | E180: Academy
A181: 119649 | B181: Arnewood School Academy, The | C181: 119649 | D181: Academy | E181: Academy
A182: 119841 | B182: Arnold Academy | C182: 119841 | D182: Academy | E182: Academy
A183: 120591 | B183: Arnold Hill Academy | C183: 120591 | D183: Academy | E183: Academy
A184: 120652 | B184: Arnside National CofE School | C184: 120652 | D184: Academy | E184: Academy
A185: 122314 | B185: Arrow Vale RSA Academy | C185: 122314 | D185: Academy | E185: Academy
A186: 119274 | B186: Arthur Mellows Village College | C186: 119274 | D186: Academy | E186: Academy
A187: 120018 | B187: Arthur Terry School, The | C187: 120018 | D187: Academy | E187: Academy
A188: 130476 | B188: Ascot Road Community Free School | C188: 130476 | D188: Academy | E188: Academy
A189: 124150 | B189: Asfordby Hill Primary School | C189: 124150 | D189: Academy | E189: Academy
A190: 121036 | B190: Ash Field Academy | C190: 121036 | D190: Academy | E190: Academy
A191: 120803 | B191: Ash Green School | C191: 120803 | D191: Academy | E191: Academy
A192: 124642 | B192: Ash Grove Academy | C192: 124642 | D192: Academy | E192: Academy
A193: 120458 | B193: Ash Hill Academy | C193: 120458 | D193: Academy | E193: Academy
A194: 131115 | B194: Ash Trees School | C194: 131115 | D194: Academy | E194: Academy
A195: 119678 | B195: Ashburton Primary School | C195: 119678 | D195: Academy | E195: Academy
A196: 122680 | B196: Ashby Hill Top Primary School | C196: 122680 | D196: Academy | E196: Academy
A197: 122080 | B197: Ashby School | C197: 122080 | D197: Academy | E197: Academy
A198: 118598 | B198: Ashcroft Technology Academy | C198: 118598 | D198: Academy | E198: Academy
A199: 121097 | B199: Ashfield Comprehensive School | C199: 121097 | D199: Academy | E199: Academy
A200: 120332 | B200: Ashingdon Primary Academy | C200: 120332 | D200: Academy | E200: Academy
... 6999 more rows

Sheet LA CPID Look up (hidden)
A2: Academy file name | B2: CPID name
A3: Row Labels
A4: Barking and Dagenham London Borough Council | B4: Barking & Dagenham London Borough Council | F4: =IF(A4<>B4,"Diff","ok") -> Diff
A5: Barnet London Borough Council | B5: Barnet London Borough Council | F5: =IF(A5<>B5,"Diff","ok") -> ok
A6: Barnsley Metropolitan Borough Council | B6: Barnsley Metropolitan Borough Council | F6: ok
A7: Bath & North East Somerset Council | B7: Bath & North East Somerset Council | F7: ok
A8: Bedford Borough Council | B8: Bedford Unitary Authority | F8: Diff
A9: Bexley London Borough Council | B9: Bexley London Borough Council | F9: ok
A10: Birmingham City Council | B10: Birmingham City Council | F10: ok
A11: Blackburn with Darwen Borough Council | B11: Blackburn with Darwen Unitary Authority | F11: Diff
A12: Blackpool Council | B12: Blackpool Unitary Authority | F12: Diff
A13: Bolton Metropolitan Borough Council | B13: Bolton Metropolitan Borough Council | F13: ok
A14: Bournemouth Borough Council | B14: Bournemouth Council | F14: Diff
A15: Bracknell Forest Council | B15: Bracknell Forest Borough Council | F15: Diff
A16: Bradford Metropolitan District Council | B16: Bradford City Council | F16: Diff
A17: Brent London Borough Council | B17: Brent London Borough Council | F17: ok
A18: Brighton and Hove City Council | B18: Brighton & Hove City Council | F18: Diff
A19: Bristol City Council | B19: Bristol City Council | F19: ok
A20: Bromley London Borough Council | B20: Bromley London Borough Council | F20: ok
A21: Buckinghamshire County Council | B21: Buckinghamshire County Council | F21: ok
A22: Bury Metropolitan Borough Council | B22: Bury Metropolitan Borough Council | F22: ok
A23: Calderdale Metropolitan Borough Council | B23: Calderdale Metropolitan Borough Council | F23: ok
A24: Cambridgeshire County Council | B24: Cambridgeshire County Council | F24: ok
A25: Camden London Borough Council | B25: Camden London Borough Council | F25: ok
A26: Central Bedfordshire Council | B26: Central Bedfordshire Unitary Authority | F26: Diff
A27: Cheshire East Council | B27: Cheshire East Unitary Authority | F27: Diff
A28: Cheshire West and Chester Council | B28: Cheshire West and Chester Unitary Authority | F28: Diff
A29: City of York Council | B29: City of York Council | F29: ok
A30: Cornwall Council | B30: Cornwall Unitary Authority | F30: Diff
A31: Coventry City Council | B31: Coventry City Council | F31: ok
A32: Croydon London Borough Council | B32: Croydon London Borough Council | F32: ok
A33: Cumbria County Council | B33: Cumbria County Council | F33: ok
A34: Darlington Borough Council | B34: Darlington Borough Council | F34: ok
A35: Derby City Council | B35: Derby City Council | F35: ok
A36: Derbyshire County Council | B36: Derbyshire County Council | F36: ok
A37: Devon County Council | B37: Devon County Council | F37: ok
A38: Doncaster Metropolitan Borough Council | B38: Doncaster Metropolitan Borough Council | F38: ok
A39: Dorset County Council | B39: Dorset County Council | F39: ok
A40: Dudley Metropolitan Borough Council | B40: Dudley Metropolitan Borough Council | F40: ok
A41: Durham County Council | B41: County Durham Unitary Authority | F41: Diff
A42: Ealing London Borough Council | B42: Ealing London Borough Council | F42: ok
A43: East Riding of Yorkshire Council | B43: East Riding of Yorkshire Council | F43: ok
A44: East Sussex County Council | B44: East Sussex County Council | F44: ok
A45: Enfield London Borough Council | B45: Enfield London Borough Council | F45: ok
A46: Essex County Council | B46: Essex County Council | F46: ok
A47: Gateshead Council | B47: Gateshead Council | F47: ok
A48: Gloucestershire County Council | B48: Gloucestershire County Council | F48: ok
A49: Greenwich London Borough Council | B49: Greenwich London Borough Council | F49: ok
A50: Hackney London Borough Council (The Learning Trust) | B50: Hackney London Borough Council | F50: Diff
A51: Halton Borough Council | B51: Halton Borough Council | F51: ok
A52: Hammersmith and Fulham London Borough Council | B52: Hammersmith and Fulham London Borough Council | F52: ok
A53: Hampshire County Council | B53: Hampshire County Council | F53: ok
A54: Haringey London Borough Council | B54: Haringey London Borough Council | F54: ok
A55: Harrow London Borough Council | B55: Harrow London Borough Council | F55: ok
A56: Hartlepool Borough Council | B56: Hartlepool Borough Council | F56: ok
A57: Havering London Borough Council | B57: Havering London Borough Council | F57: ok
A58: Herefordshire Council | B58: Herefordshire Council | F58: ok
A59: Hertfordshire County Council | B59: Hertfordshire County Council | F59: ok
A60: Hillingdon London Borough Council | B60: Hillingdon London Borough Council | F60: ok
A61: Hounslow London Borough Council | B61: Hounslow London Borough Council | F61: ok
A62: Hull City Council | B62: Kingston upon Hull City Council | F62: Diff
A63: Isle of Wight Council | B63: Isle of Wight Council | F63: ok
A64: Islington London Borough Council | B64: Islington London Borough Council | F64: ok
A65: Kent County Council | B65: Kent County Council | F65: ok
A66: Kirklees Metropolitan Council | B66: Kirklees Metropolitan Council | F66: ok
A67: Knowsley Metropolitan Borough Council | B67: Knowsley Metropolitan Borough Council | F67: ok
A68: Lambeth London Borough Council | B68: Lambeth London Borough Council | F68: ok
A69: Lancashire County Council | B69: Lancashire County Council | F69: =IF(A69<>B69,"Diff","ok") -> ok
A70: Leeds City Council | B70: Leeds City Council | F70: ok
A71: Leicester City Council | B71: Leicester City Council | F71: ok
A72: Leicestershire County Council | B72: Leicestershire County Council | F72: ok
A73: Lewisham London Borough Council | B73: Lewisham London Borough Council | F73: ok
A74: Lincolnshire County Council | B74: Lincolnshire County Council | F74: ok
A75: Liverpool City Council | B75: Liverpool City Council | F75: ok
A76: Luton Borough Council | B76: Luton Borough Council | F76: ok
A77: Manchester City Council | B77: Manchester City Council | F77: ok
A78: Medway Council | B78: Medway Towns Unitary Authority (The) | F78: Diff
A79: Merton Borough Council | B79: Merton Borough Council | F79: ok
A80: Middlesbrough Council | B80: Middlesbrough Council | F80: ok
A81: Milton Keynes Council | B81: Milton Keynes Council | F81: ok
A82: Newcastle Upon Tyne City Council | B82: Newcastle upon Tyne City Council | F82: ok
A83: Newham London Borough Council | B83: Newham London Borough Council | F83: ok
A84: Norfolk County Council | B84: Norfolk County Council | F84: ok
A85: North East Lincolnshire Council | B85: North East Lincolnshire Council | F85: ok
A86: North Lincolnshire Council | B86: North Lincolnshire Council | F86: ok
A87: North Somerset District Council | B87: North Somerset Council | F87: Diff
A88: North Tyneside Council | B88: North Tyneside Metropolitan Borough Council | F88: Diff
A89: North Yorkshire County Council | B89: North Yorkshire County Council | F89: ok
A90: Northamptonshire County Council | B90: Northamptonshire County Council | F90: ok
A91: Northumberland County Council | B91: Northumberland Unitary Authority | F91: Diff
A92: Nottingham City Council | B92: Nottingham City Council | F92: ok
A93: Nottinghamshire County Council | B93: Nottinghamshire County Council | F93: ok
A94: Oldham Metropolitan Borough Council | B94: Oldham Metropolitan Borough Council | F94: ok
A95: Oxfordshire County Council | B95: Oxfordshire County Council | F95: ok
A96: Peterborough City Council | B96: Peterborough City Council | F96: ok
A97: Plymouth City Council | B97: Plymouth City Council | F97: ok
A98: Poole Borough Council | B98: Poole (Borough of) | F98: Diff
A99: Portsmouth City Council | B99: Portsmouth City Council | F99: ok
A100: Reading Borough Council | B100: Reading Borough Council | F100: ok
A101: Redbridge London Borough Council | B101: Redbridge London Borough Council | F101: ok
A102: Redcar and Cleveland Borough Council | B102: Redcar and Cleveland Borough Council | F102: ok
A103: Richmond Upon Thames Borough Council | B103: Richmond upon Thames Borough Council | F103: ok
A104: Rochdale Metropolitan Borough Council | B104: Rochdale Borough Council | F104: Diff
A105: Rotherham Metropolitan Borough Council | B105: Rotherham Borough Council | F105: Diff
A106: Royal Borough of Kensington and Chelsea Council | B106: Kensington and Chelsea Council (Royal Borough of) | F106: Diff
A107: Royal Borough of Kingston Upon Thames Council | B107: Kingston upon Thames Council (Royal Borough of) | F107: Diff
A108: Royal Borough of Windsor and Maidenhead | B108: Windsor and Maidenhead (Royal Borough of) | F108: Diff
A109: Rutland County Council | B109: Rutland County Council | F109: ok
A110: Salford City Council | B110: Salford City Council | F110: ok
A111: Sandwell Metropolitan Borough Council | B111: Sandwell Metropolitan Borough Council | F111: ok
A112: Sefton Metropolitan Borough Council | B112: Sefton Metropolitan Borough Council | F112: ok
A113: Sheffield City Council | B113: Sheffield City Council | F113: ok
A114: Shropshire Council | B114: Shropshire Unitary Authority | F114: Diff
A115: Slough Borough Council | B115: Slough Borough Council | F115: ok
A116: Solihull Metropolitan Borough Council | B116: Solihull Metropolitan Borough Council | F116: ok
A117: Somerset County Council | B117: Somerset County Council | F117: ok
A118: South Gloucestershire Council | B118: South Gloucestershire Council | F118: ok
A119: South Tyneside Council | B119: South Tyneside Council | F119: ok
A120: Southampton City Council | B120: Southampton City Council | F120: ok
A121: Southend-on-Sea Borough Council | B121: Southend-on-Sea Borough Council | F121: ok
A122: Southwark London Borough Council | B122: Southwark London Borough Council | F122: ok
A123: St Helens Metropolitan Borough Council | B123: St Helens Metropolitan Borough Council | F123: ok
A124: Staffordshire County Council | B124: Staffordshire County Council | F124: ok
A125: Stockport Metropolitan Borough Council | B125: Stockport Metropolitan Borough Council | F125: ok
A126: Stockton-on-Tees Borough Council | B126: Stockton-on-Tees Borough Council | F126: ok
A127: Stoke-on-Trent City Council | B127: Stoke-on-Trent Unitary Authority | F127: Diff
A128: Suffolk County Council | B128: Suffolk County Council | F128: ok
A129: Sunderland City Council | B129: Sunderland City Metropolitan Borough Council | F129: Diff
A130: Surrey County Council | B130: Surrey County Council | F130: ok
A131: Sutton London Borough Council | B131: Sutton London Borough Council | F131: ok
A132: Swindon Borough Council | B132: Swindon Unitary Authority | F132: Diff
A133: Tameside Metropolitan Borough Council | B133: Tameside Metropolitan Borough Council | F133: =IF(A133<>B133,"Diff","ok") -> ok
A134: Telford and Wrekin Council | B134: Telford and Wrekin (Borough of) | F134: Diff
A135: Thurrock Borough Council | B135: Thurrock Unitary Authority | F135: Diff
A136: Torbay Council | B136: Torbay Council | F136: ok
A137: Tower Hamlets London Borough Council | B137: Tower Hamlets London Borough Council | F137: ok
A138: Trafford Borough Council | B138: Trafford Metropolitan Borough Council | F138: Diff
A139: Wakefield Council | B139: Wakefield City Council | F139: Diff
A140: Walsall Metropolitan Borough Council | B140: Walsall Metropolitan Borough Council | F140: ok
A141: Waltham Forest London Borough Council | B141: Waltham Forest London Borough Council | F141: ok
A142: Wandsworth London Borough Council | B142: Wandsworth London Borough Council | F142: ok
A143: Warrington Borough Council | B143: Warrington Borough Council | F143: ok
A144: Warwickshire County Council | B144: Warwickshire County Council | F144: ok
A145: West Berkshire Council | B145: West Berkshire Council | F145: ok
A146: West Sussex County Council | B146: West Sussex County Council | F146: ok
A147: Westminster City Council | B147: Westminster City Council | F147: ok
A148: Wigan Metropolitan Borough Council | B148: Wigan Metropolitan Borough Council | F148: ok
A149: Wiltshire Council | B149: Wiltshire Unitary Authority | F149: Diff
A150: Wirral Metropolitan Borough Council | B150: Wirral Metropolitan Borough Council | F150: ok
A151: Wokingham Borough Council | B151: Wokingham Council | F151: Diff
A152: Wolverhampton City Council | B152: Wolverhampton City Council | F152: ok
A153: Worcestershire County Council | B153: Worcestershire County Council | F153: ok
A154: Grand Total

Sheet Reference
A1: EFA Accounts Return
A2: Period end: | B2: ='Standing Data'!D6 -> 2016-03-31
A4: LOOKUPS AND DATA TABLES
O5: Academy schools - as at 31 March 2016
E7: Period length | G7: New or existing member | I7: Pension Schemes | L7: Pension scheme types | O7: UPIN | P7: NAME | Q7: Date of conversion | R7: LA | S7: LA CPID | T7: Regional Schools Commissioner
C8: Yes | E8: Year | G8: Member for whole period | I8: LGPS | J8: 1 | L8: Defined benefit scheme(s) - multi-employer allocated scheme assets and liabilities
C9: No | E9: Short first period | G9: Newly converted member | I9: Teachers Pension Scheme | J9: 2 | L9: Defined benefit scheme(s) - single employer | O9: Multiple | P9: Multi-academy Trust | Q9: Multiple | R9: Multiple | T9: Multiple
E10: Long first period | G10: In period transfer in | I10: Stakeholder/private pension scheme provider | J10: 3 | L10: Defined benefit scheme(s) - multi-employer unallocated scheme assets and liabilities | O10: 130335 | P10: AB Kettleby Community Primary School | Q10: 2014-04-01 | R10: Leicestershire County Council | S10: =VLOOKUP(R10,'LA CPID Look up'!$A$3:$C$153,2,FALSE) -> Leicestershire County Council | T10: East Midlands and the Humber
E11: Short later period | G11: In period transfer out | I11: Other | J11: 4 | L11: Defined contribution scheme(s) | O11: 123288 | P11: Abacus Belsize Primary School | Q11: 2013-09-01 | R11: Camden London Borough Council | S11: =VLOOKUP(R11,'LA CPID Look up'!$A$3:$C$153,2,FALSE) -> Camden London Borough Council | T11: South-Central England and North-West London
E12: Long later period | I12: Scheme Name | J12: 5 | L12: Stakeholder/private pension provision | O12: 127210 | P12: Abbey CofE Academy | Q12: 2013-12-01 | R12: Northamptonshire County Council | S12: =VLOOKUP(R12,'LA CPID Look up'!$A$3:$C$153,2,FALSE) -> Northamptonshire County Council | T12: East of England and North-East London
A13: Predecessor School Type | J13: 6 | L13: Scheme Type | O13: 120322 | P13: Abbey College, Ramsey | Q13: 2011-09-01 | R13: Cambridgeshire County Council | S13: =VLOOKUP(R13,'LA CPID Look up'!$A$3:$C$153,2,FALSE) -> Cambridgeshire County Council | T13: East of England and North-East London
A14: LA school | J14: 7 | O14: 120083 | P14: Abbey Grange Church of England Academy | Q14: 2011-08-01 | R14: Leeds City Council | S14: =VLOOKUP(R14,'LA CPID Look up'!$A$3:$C$153,2,FALSE) -> Leeds City Council | T14: Lancashire and West Yorkshire
A15: Independent school | J15: 8 | O15: 124243 | P15: Abbey Hey Primary Academy | Q15: 2013-12-01 | R15: Manchester City Council | S15: =VLOOKUP(R15,'LA CPID Look up'!$A$3:$C$153,2,FALSE) -> Manchester City Council | T15: Lancashire and West Yorkshire
A16: Faith school | J16: 9 | O16: 124569 | P16: Abbey Hill Academy | Q16: 2013-08-01 | R16: Stockton-on-Tees Borough Council | S16: =VLOOKUP(R16,'LA CPID Look up'!$A$3:$C$153,2,FALSE) -> Stockton-on-Tees Borough Council | T16: North of England
A17: Foundation school | J17: 10 | O17: 119988 | P17: Abbey Infants' School | Q17: 2011-08-01 | R17: Darlington Borough Council | S17: =VLOOKUP(R17,'LA CPID Look up'!$A$3:$C$153,2,FALSE) -> Darlington Borough Council | T17: North of England
A18: Voluntary aided/controlled | E18: Special payments and losses | G18: Related parties | O18: 119989 | P18: Abbey Junior School | Q18: 2011-08-01 | R18: Darlington Borough Council | S18: =VLOOKUP(R18,'LA CPID Look up'!$A$3:$C$153,2,FALSE) -> Darlington Borough Council | T18: North of England
A19: No predecessor | E19: Cash losses | G19: No transactions | O19: 126329 | P19: Abbey Park Academy | Q19: 2013-12-01 | R19: Calderdale Metropolitan Borough Council | S19: =VLOOKUP(R19,'LA CPID Look up'!$A$3:$C$153,2,FALSE) -> Calderdale Metropolitan Borough Council | T19: Lancashire and West Yorkshire
E20: Claims abandoned | G20: Transactions | O20: 120154 | P20: Abbey School, The | Q20: 2011-08-01 | R20: Kent County Council | S20: =VLOOKUP(R20,'LA CPID Look up'!$A$3:$C$153,2,FALSE) -> Kent County Council | T20: South-East England and South London
A21: Audit opinion | E21: Administration write-offs | O21: 123404 | P21: Abbey View | Q21: 2013-09-01 | R21: Gloucestershire County Council | S21: =VLOOKUP(R21,'LA CPID Look up'!$A$3:$C$153,2,FALSE) -> Gloucestershire County Council | T21: South-West England
A22: Unqualified | E22: Fruitless payments | O22: 123534 | P22: Abbey Woods Academy | Q22: 2013-09-01 | R22: Oxfordshire County Council | S22: =VLOOKUP(R22,'LA CPID Look up'!$A$3:$C$153,2,FALSE) -> Oxfordshire County Council | T22: East of England and North-East London
A23: Qualified | E23: Store/stock losses | I23: Assurance report on regularity conclusion | L23: LGPS Schemes | O23: 122250 | P23: Abbeyfield School | Q23: 2012-10-01 | R23: Northamptonshire County Council | S23: =VLOOKUP(R23,'LA CPID Look up'!$A$3:$C$153,2,FALSE) -> Northamptonshire County Council | T23: East of England and North-East London
A24: Emphasis of Matter | E24: Special payments - non contractual exit packages | I24: No matters by exception | L24: Barking and Dagenham - LGPS | O24: 122309 | P24: Abbeywood Community School | Q24: 2013-01-01 | R24: South Gloucestershire Council | S24: =VLOOKUP(R24,'LA CPID Look up'!$A$3:$C$153,2,FALSE) -> South Gloucestershire Council | T24: South-West England
A25: Adverse | E25: Special payments -other | I25: Matters by exception | L25: Barnet - LGPS | O25: 133078 | P25: Abbeywood First School | Q25: 2016-03-01 | R25: Worcestershire County Council | S25: =VLOOKUP(R25,'LA CPID Look up'!$A$3:$C$153,2,FALSE) -> Worcestershire County Council | T25: West Midlands
A26: N/A - 31 March | E26: Gifts | I26: N/A - 31 March | L26: Bath and North East Somerset Council - LGPS | O26: 122896 | P26: Abbots Hall Primary School | Q26: 2013-05-01 | R26: Thurrock Borough Council | S26: =VLOOKUP(R26,'LA CPID Look up'!$A$3:$C$153,2,FALSE) -> Thurrock Unitary Authority | T26: East of England and North-East London
E27: Academy Type | L27: Bedfordshire Pension Fund - LGPS | O27: 131130 | P27: Abbotsweld Primary School | Q27: 2015-01-01 | R27: Essex County Council | S27: =VLOOKUP(R27,'LA CPID Look up'!$A$3:$C$153,2,FALSE) -> Essex County Council | T27: East of England and North-East London
E28: Sponsored Academy | L28: Bexley - LGPS | O28: 119551 | P28: Abbs Cross Academy and Arts College | Q28: 2011-04-01 | R28: Havering London Borough Council | S28: =VLOOKUP(R28,'LA CPID Look up'!$A$3:$C$153,2,FALSE) -> Havering London Borough Council | T28: East of England and North-East London
A29: Period End | E29: Converter Academy | I29: Benchmarking period | L29: Brent - LGPS | O29: 121187 | P29: Abington Vale Primary School | Q29: 2012-11-01 | R29: Northamptonshire County Council | S29: =VLOOKUP(R29,'LA CPID Look up'!$A$3:$C$153,2,FALSE) -> Northamptonshire County Council | T29: East of England and North-East London
A30: 2014-03-31 | E30: Fast Track Sponsored | L30: Bromley - LGPS | O30: 119101 | P30: Abraham Darby Academy | Q30: 2008-09-02 | R30: Telford and Wrekin Council | S30: =VLOOKUP(R30,'LA CPID Look up'!$A$3:$C$153,2,FALSE) -> Telford and Wrekin (Borough of) | T30: West Midlands
A31: 2014-04-30 | E31: Free School | I31: 0 -6 months | L31: Buckinghamshire County Council- LGPS | O31: 120210 | P31: Abraham Guest Academy | Q31: 2012-01-01 | R31: Wigan Metropolitan Borough Council | S31: =VLOOKUP(R31,'LA CPID Look up'!$A$3:$C$153,2,FALSE) -> Wigan Metropolitan Borough Council | T31: Lancashire and West Yorkshire
A32: 2014-05-31 | E32: University Technical College | I32: 6 - 12 months | L32: Cambridgeshire County Council - LGPS | O32: 122270 | P32: Academy @ Worden | Q32: 2013-02-01 | R32: Lancashire County Council | S32: =VLOOKUP(R32,'LA CPID Look up'!$A$3:$C$153,2,FALSE) -> Lancashire County Council | T32: Lancashire and West Yorkshire
A33: 2014-06-30 | E33: Special School | I33: 12 months | L33: Camden - LGPS | O33: 119119 | P33: Academy 360 | Q33: 2008-09-01 | R33: Sunderland City Council | S33: =VLOOKUP(R33,'LA CPID Look up'!$A$3:$C$153,2,FALSE) -> Sunderland City Metropolitan Borough Council | T33: North of England
A34: 2014-07-31 | E34: Studio School | I34: 12 - 18 months | L34: Cheshire Pension Fund - LGPS | O34: 119508 | P34: Academy at Shotton Hall, The | Q34: 2011-02-01 | R34: Durham County Council | S34: =VLOOKUP(R34,'LA CPID Look up'!$A$3:$C$153,2,FALSE) -> County Durham Unitary Authority | T34: North of England
A35: 2014-08-31 | E35: Multiple | I35: 18 + months | L35: Cornwall County Council - LGPS | O35: 123407 | P35: Academy of Central Bedfordshire, The | Q35: 2013-09-01 | R35: Bedford Borough Council | S35: =VLOOKUP(R35,'LA CPID Look up'!$A$3:$C$153,2,FALSE) -> Bedford Unitary Authority | T35: South-Central England and North-West London
A36: 2015-03-31 | E36: CTC | L36: Corporation of London - LGPS | O36: 119111 | P36: Academy of St Francis of Assisi, The | Q36: 2005-09-01 | R36: Liverpool City Council | S36: =VLOOKUP(R36,'LA CPID Look up'!$A$3:$C$153,2,FALSE) -> Liverpool City Council | T36: Lancashire and West Yorkshire
A37: 2015-08-31 | E37: Intermediate | I37: Land and Buildings | L37: Croydon - LGPS | O37: 119813 | P37: Academy of Trinity C of E Primary | Q37: 2011-06-01 | R37: Bath & North East Somerset Council | S37: =VLOOKUP(R37,'LA CPID Look up'!$A$3:$C$153,2,FALSE) -> Bath & North East Somerset Council | T37: South-West England
A38: 2016-03-31 | E38: Other | I38: Land and Buildings - school buildings | L38: Cumbria County Council - LGPS | O38: 120096 | P38: Academy Selsey, The | Q38: 2011-09-01 | R38: West Sussex County Council | S38: =VLOOKUP(R38,'LA CPID Look up'!$A$3:$C$153,2,FALSE) -> West Sussex County Council | T38: South-East England and South London
I39: Land and Buildings - sports facilities | L39: Derbyshire County Council - LGPS | O39: 118597 | P39: Accrington Academy | Q39: 2008-09-01 | R39: Lancashire County Council | S39: =VLOOKUP(R39,'LA CPID Look up'!$A$3:$C$153,2,FALSE) -> Lancashire County Council | T39: Lancashire and West Yorkshire
E40: Freehold/leasehold | I40: Land and Buildings - HQ/admin | L40: Devon County Council - LGPS | O40: 120359 | P40: Accrington St Christopher's Church of England High School | Q40: 2011-09-01 | R40: Lancashire County Council | S40: =VLOOKUP(R40,'LA CPID Look up'!$A$3:$C$153,2,FALSE) -> Lancashire County Council | T40: Lancashire and West Yorkshire
E41: Freehold Land and Buildings | F41: _FreeholdLandandBuildings | G41: _FreeholdLBRental | I41: Land and Buildings - Investment | L41: Dorset County Council - LGPS | O41: 122775 | P41: ACE Academy, The | Q41: 2013-03-01 | R41: Sandwell Metropolitan Borough Council | S41: =VLOOKUP(R41,'LA CPID Look up'!$A$3:$C$153,2,FALSE) -> Sandwell Metropolitan Borough Council | T41: West Midlands
E42: Leasehold Land and Buildings | F42: _LeaseholdLandandBuildings | G42: _LeaseholdLBRental | I42: Land and Buildings - Other | L42: Durham County Council - LGPS | O42: 122565 | P42: Acle Academy | Q42: 2012-09-01 | R42: Norfolk County Council | S42: =VLOOKUP(R42,'LA CPID Look up'!$A$3:$C$153,2,FALSE) -> Norfolk County Council | T42: East of England and North-East London
E43: Leasehold Improvements | F43: _LeaseholdImprovements | G43: _ImprovementsLBRental | I43: Land only - sports pitches | L43: Ealing - LGPS | O43: 123272 | P43: Acocks Green Primary School | Q43: 2013-04-01 | R43: Birmingham City Council | S43: =VLOOKUP(R43,'LA CPID Look up'!$A$3:$C$153,2,FALSE) -> Birmingham City Council | T43: West Midlands
E44: Donor/lessor | I44: Land only - car parks | L44: East Riding Pension Fund - LGPS | O44: 123412 | P44: Acorn Free School | Q44: 2013-09-01 | R44: Lincolnshire County Council | S44: =VLOOKUP(R44,'LA CPID Look up'!$A$3:$C$153,2,FALSE) -> Lincolnshire County Council | T44: East Midlands and the Humber
E45: Purchase by trust | I45: Land only - investment | L45: East Sussex County Council - LGPS | O45: 123239 | P45: Acorns Primary School | Q45: 2014-09-01 | R45: Warwickshire County Council | S45: =VLOOKUP(R45,'LA CPID Look up'!$A$3:$C$153,2,FALSE) -> Warwickshire County Council | T45: West Midlands
E46: Local authority | I46: Land only - other | L46: Enfield - LGPS | O46: 122311 | P46: Acre Hall Primary School | Q46: 2013-07-01 | R46: Trafford Borough Council | S46: =VLOOKUP(R46,'LA CPID Look up'!$A$3:$C$153,2,FALSE) -> Trafford Metropolitan Borough Council | T46: Lancashire and West Yorkshire
E47: Church | L47: Environment Agency - LGPS | O47: 122739 | P47: Acre Rigg Academy | Q47: 2012-12-01 | R47: Durham County Council | S47: =VLOOKUP(R47,'LA CPID Look up'!$A$3:$C$153,2,FALSE) -> County Durham Unitary Authority | T47: North of England
E48: Other faith body | L48: Essex County Council - LGPS | O48: 130951 | P48: Ad Astra Infant School | Q48: 2015-04-01 | R48: Poole Borough Council | S48: =VLOOKUP(R48,'LA CPID Look up'!$A$3:$C$153,2,FALSE) -> Poole (Borough of) | T48: South-West England
E49: Other | I49: _LeaseholdLandandBuildings | L49: Gloucestershire County Council - LGPS | O49: 120418 | P49: Adams' Grammar School | Q49: 2011-09-01 | R49: Telford and Wrekin Council | S49: =VLOOKUP(R49,'LA CPID Look up'!$A$3:$C$153,2,FALSE) -> Telford and Wrekin (Borough of) | T49: West Midlands
I50: Operating | L50: Greater Manchester Pension Fund - LGPS | O50: 129409 | P50: Adelaide School | Q50: 2013-12-01 | R50: Cheshire East Council | S50: =VLOOKUP(R50,'LA CPID Look up'!$A$3:$C$153,2,FALSE) -> Cheshire East Unitary Authority | T50: West Midlands
E51: _FreeholdLBRental | I51: Finance | L51: Greenwich - LGPS | O51: 129888 | P51: Adisham Church of England Primary School | Q51: 2014-09-01 | R51: Kent County Council | S51: =VLOOKUP(R51,'LA CPID Look up'!$A$3:$C$153,2,FALSE) -> Kent County Council | T51: South-East England and South London
E52: n/a | L52: Hackney - LGPS | O52: 129010 | P52: Admiral Lord Nelson School | Q52: 2014-04-01 | R52: Portsmouth City Council | S52: =VLOOKUP(R52,'LA CPID Look up'!$A$3:$C$153,2,FALSE) -> Portsmouth City Council | T52: South-East England and South London
L53: Hammersmith and Fulham - LGPS | O53: 122656 | P53: Admirals Academy | Q53: 2012-11-01 | R53: Norfolk County Council | S53: =VLOOKUP(R53,'LA CPID Look up'!$A$3:$C$153,2,FALSE) -> Norfolk County Council | T53: East of England and North-East London
I54: _LeaseholdImprovements | L54: Hampshire Pension Fund - LGPS | O54: 132034 | P54: Aegir | Q54: 2015-07-01 | R54: Lincolnshire County Council | S54: =VLOOKUP(R54,'LA CPID Look up'!$A$3:$C$153,2,FALSE) -> Lincolnshire County Council | T54: East Midlands and the Humber
E55: _LeaseholdLBRental | I55: Operating | L55: Haringey - LGPS | O55: 123037 | P55: Aerodrome Primary Academy | Q55: 2012-12-01 | R55: Croydon London Borough Council | S55: =VLOOKUP(R55,'LA CPID Look up'!$A$3:$C$153,2,FALSE) -> Croydon London Borough Council | T55: South-East England and South London
E56: Nominal | I56: Finance | L56: Harrow - LGPS | O56: 124306 | P56: Ainthorpe Primary School | Q56: 2013-12-01 | R56: Hull City Council | S56: =VLOOKUP(R56,'LA CPID Look up'!$A$3:$C$153,2,FALSE) -> Kingston upon Hull City Council | T56: East Midlands and the Humber
E57: Market Value | I57: Rental | L57: Havering - LGPS | O57: 119563 | P57: Airedale Academy | Q57: 2011-04-01 | R57: Wakefield Council | S57: =VLOOKUP(R57,'LA CPID Look up'!$A$3:$C$153,2,FALSE) -> Wakefield City Council | T57: Lancashire and West Yorkshire
L58: Hertfordshire County Council - LGPS | O58: 131232 | P58: Airedale Infant School | Q58: 2014-11-01 | R58: Wakefield Council | S58: =VLOOKUP(R58,'LA CPID Look up'!$A$3:$C$153,2,FALSE) -> Wakefield City Council | T58: Lancashire and West Yorkshire
E59: _ImprovementsLBRental | I59: _FreeholdLandandBuildings | L59: Hillingdon - LGPS | O59: 131374 | P59: Airedale Junior School | Q59: 2015-01-01 | R59: Wakefield Council | S59: =VLOOKUP(R59,'LA CPID Look up'!$A$3:$C$153,2,FALSE) -> Wakefield City Council | T59: Lancashire and West Yorkshire
E60: Nominal | I60: n/a | L60: Hounslow - LGPS | O60: 132632 | P60: Akaal Primary School | Q60: 2015-09-01 | R60: Derby City Council | S60: =VLOOKUP(R60,'LA CPID Look up'!$A$3:$C$153,2,FALSE) -> Derby City Council | T60: East Midlands and the Humber
E61: Market Value | L61: Isle of Wight Council - LGPS | O61: 120249 | P61: Alameda Middle School | Q61: 2011-08-01 | R61: Central Bedfordshire Council | S61: =VLOOKUP(R61,'LA CPID Look up'!$A$3:$C$153,2,FALSE) -> Central Bedfordshire Unitary Authority | T61: South-Central England and North-West London
L62: Islington - LGPS | O62: 119583 | P62: Alban Church of England Academy | Q62: 2011-04-01 | R62: Bedford Borough Council | S62: =VLOOKUP(R62,'LA CPID Look up'!$A$3:$C$153,2,FALSE) -> Bedford Unitary Authority | T62: South-Central England and North-West London
L63: Kensington and Chelsea - LGPS | O63: 122102 | P63: Alban City School | Q63: 2012-09-01 | R63: Hertfordshire County Council | S63: =VLOOKUP(R63,'LA CPID Look up'!$A$3:$C$153,2,FALSE) -> Hertfordshire County Council | T63: East of England and North-East London
L64: Kent County Council (Kent Pension Fund) - LGPS | O64: 121853 | P64: Albany Academy - Chorley | Q64: 2012-08-01 | R64: Lancashire County Council | S64: =VLOOKUP(R64,'LA CPID Look up'!$A$3:$C$153,2,FALSE) -> Lancashire County Council | T64: Lancashire and West Yorkshire
L65: Kingston upon Thames - LGPS | O65: 120189 | P65: Albany School, The - Havering | Q65: 2011-08-01 | R65: Havering London Borough Council | S65: =VLOOKUP(R65,'LA CPID Look up'!$A$3:$C$153,2,FALSE) -> Havering London Borough Council | T65: East of England and North-East London
L66: Lambeth - LGPS | O66: 130333 | P66: Albert Bradbeer Primary Academy | Q66: 2014-09-01 | R66: Birmingham City Council | S66: =VLOOKUP(R66,'LA CPID Look up'!$A$3:$C$153,2,FALSE) -> Birmingham City Council | T66: West Midlands
L67: Lancashire County Council - LGPS | O67: 121940 | P67: Albion Academy, The | Q67: 2012-09-01 | R67: Salford City Council | S67: =VLOOKUP(R67,'LA CPID Look up'!$A$3:$C$153,2,FALSE) -> Salford City Council | T67: Lancashire and West Yorkshire
L68: Leicestershire County Council - LGPS | O68: 120172 | P68: Alcester Academy | Q68: 2011-08-01 | R68: Warwickshire County Council | S68: =VLOOKUP(R68,'LA CPID Look up'!$A$3:$C$153,2,FALSE) -> Warwickshire County Council | T68: West Midlands
L69: Lewisham - LGPS | O69: 119579 | P69: Alcester Grammar School | Q69: 2011-04-01 | R69: Warwickshire County Council | S69: =VLOOKUP(R69,'LA CPID Look up'!$A$3:$C$153,2,FALSE) -> Warwickshire County Council | T69: West Midlands
L70: Lincolnshire County Council - LGPS | O70: 120534 | P70: Aldborough Primary School | Q70: 2011-09-01 | R70: Redbridge London Borough Council | S70: =VLOOKUP(R70,'LA CPID Look up'!$A$3:$C$153,2,FALSE) -> Redbridge London Borough Council | T70: East of England and North-East London
L71: London Pension Fund Authority - LGPS | O71: 127509 | P71: Alde Valley School | Q71: 2015-01-01 | R71: Suffolk County Council | S71: =VLOOKUP(R71,'LA CPID Look up'!$A$3:$C$153,2,FALSE) -> Suffolk County Council | T71: East of England and North-East London
L72: Merseyside Pension Fund - LGPS | O72: 119994 | P72: Alderbrook School | Q72: 2011-08-01 | R72: Solihull Metropolitan Borough Council | S72: =VLOOKUP(R72,'LA CPID Look up'!$A$3:$C$153,2,FALSE) -> Solihull Metropolitan Borough Council | T72: West Midlands
